Workbook

Sheet Base_Critérios de Consulta (hidden)
B2: Serventias | C2: Comarca | D2: Grupo | E2: Região/Entrância | F2: Grupo de Atribuição | G2: Pje
B3: CAPITAL 1 VARA CIVEL | C3: =VLOOKUP(B3,[1]Planilha1!$A$12:$B$1131,2,0) -> CAPITAL | D3: 1 | E3: CAPITAL | F3: Ac Trab + Civ + Juiz Inf Conc + Precatorias | G3: Não
B4: CAPITAL 10 VARA CIVEL | C4: =VLOOKUP(B4,[1]Planilha1!$A$12:$B$1131,2,0) -> CAPITAL | D4: 1 | E4: CAPITAL | F4: Ac Trab + Civ + Juiz Inf Conc + Precatorias | G4: Não
B5: CAPITAL 11 VARA CIVEL | C5: =VLOOKUP(B5,[1]Planilha1!$A$12:$B$1131,2,0) -> CAPITAL | D5: 1 | E5: CAPITAL | F5: Ac Trab + Civ + Juiz Inf Conc + Precatorias | G5: Não
B6: CAPITAL 12 VARA CIVEL | C6: =VLOOKUP(B6,[1]Planilha1!$A$12:$B$1131,2,0) -> CAPITAL | D6: 1 | E6: CAPITAL | F6: Ac Trab + Civ + Juiz Inf Conc + Precatorias | G6: Não
B7: CAPITAL 13 VARA CIVEL | C7: =VLOOKUP(B7,[1]Planilha1!$A$12:$B$1131,2,0) -> CAPITAL | D7: 1 | E7: CAPITAL | F7: Ac Trab + Civ + Juiz Inf Conc + Precatorias | G7: Não
B8: CAPITAL 14 VARA CIVEL | C8: =VLOOKUP(B8,[1]Planilha1!$A$12:$B$1131,2,0) -> CAPITAL | D8: 1 | E8: CAPITAL | F8: Ac Trab + Civ + Juiz Inf Conc + Precatorias | G8: Não
B9: CAPITAL 15 VARA CIVEL | C9: =VLOOKUP(B9,[1]Planilha1!$A$12:$B$1131,2,0) -> CAPITAL | D9: 1 | E9: CAPITAL | F9: Ac Trab + Civ + Juiz Inf Conc + Precatorias | G9: Não
B10: CAPITAL 16 VARA CIVEL | C10: =VLOOKUP(B10,[1]Planilha1!$A$12:$B$1131,2,0) -> CAPITAL | D10: 1 | E10: CAPITAL | F10: Ac Trab + Civ + Juiz Inf Conc + Precatorias | G10: Não
B11: CAPITAL 17 VARA CIVEL | C11: =VLOOKUP(B11,[1]Planilha1!$A$12:$B$1131,2,0) -> CAPITAL | D11: 1 | E11: CAPITAL | F11: Ac Trab + Civ + Juiz Inf Conc + Precatorias | G11: Não
B12: CAPITAL 18 VARA CIVEL | C12: =VLOOKUP(B12,[1]Planilha1!$A$12:$B$1131,2,0) -> CAPITAL | D12: 1 | E12: CAPITAL | F12: Ac Trab + Civ + Juiz Inf Conc + Precatorias | G12: Não
B13: CAPITAL 19 VARA CIVEL | C13: =VLOOKUP(B13,[1]Planilha1!$A$12:$B$1131,2,0) -> CAPITAL | D13: 1 | E13: CAPITAL | F13: Ac Trab + Civ + Juiz Inf Conc + Precatorias | G13: Não
B14: CAPITAL 2 VARA CIVEL | C14: =VLOOKUP(B14,[1]Planilha1!$A$12:$B$1131,2,0) -> CAPITAL | D14: 1 | E14: CAPITAL | F14: Ac Trab + Civ + Juiz Inf Conc + Precatorias | G14: Não
B15: CAPITAL 20 VARA CIVEL | C15: =VLOOKUP(B15,[1]Planilha1!$A$12:$B$1131,2,0) -> CAPITAL | D15: 1 | E15: CAPITAL | F15: Ac Trab + Civ + Juiz Inf Conc + Precatorias | G15: Não
B16: CAPITAL 21 VARA CIVEL | C16: =VLOOKUP(B16,[1]Planilha1!$A$12:$B$1131,2,0) -> CAPITAL | D16: 1 | E16: CAPITAL | F16: Ac Trab + Civ + Juiz Inf Conc + Precatorias | G16: Não
B17: CAPITAL 22 VARA CIVEL | C17: =VLOOKUP(B17,[1]Planilha1!$A$12:$B$1131,2,0) -> CAPITAL | D17: 1 | E17: CAPITAL | F17: Ac Trab + Civ + Juiz Inf Conc + Precatorias | G17: Não
B18: CAPITAL 23 VARA CIVEL | C18: =VLOOKUP(B18,[1]Planilha1!$A$12:$B$1131,2,0) -> CAPITAL | D18: 1 | E18: CAPITAL | F18: Ac Trab + Civ + Juiz Inf Conc + Precatorias | G18: Não
B19: CAPITAL 24 VARA CIVEL | C19: =VLOOKUP(B19,[1]Planilha1!$A$12:$B$1131,2,0) -> CAPITAL | D19: 1 | E19: CAPITAL | F19: Ac Trab + Civ + Juiz Inf Conc + Precatorias | G19: Não
B20: CAPITAL 25 VARA CIVEL | C20: =VLOOKUP(B20,[1]Planilha1!$A$12:$B$1131,2,0) -> CAPITAL | D20: 1 | E20: CAPITAL | F20: Ac Trab + Civ + Juiz Inf Conc + Precatorias | G20: Não
B21: CAPITAL 26 VARA CIVEL | C21: =VLOOKUP(B21,[1]Planilha1!$A$12:$B$1131,2,0) -> CAPITAL | D21: 1 | E21: CAPITAL | F21: Ac Trab + Civ + Juiz Inf Conc + Precatorias | G21: Não
B22: CAPITAL 27 VARA CIVEL | C22: =VLOOKUP(B22,[1]Planilha1!$A$12:$B$1131,2,0) -> CAPITAL | D22: 1 | E22: CAPITAL | F22: Ac Trab + Civ + Juiz Inf Conc + Precatorias | G22: Não
B23: CAPITAL 28 VARA CIVEL | C23: =VLOOKUP(B23,[1]Planilha1!$A$12:$B$1131,2,0) -> CAPITAL | D23: 1 | E23: CAPITAL | F23: Ac Trab + Civ + Juiz Inf Conc + Precatorias | G23: Não
B24: CAPITAL 29 VARA CIVEL | C24: =VLOOKUP(B24,[1]Planilha1!$A$12:$B$1131,2,0) -> CAPITAL | D24: 1 | E24: CAPITAL | F24: Ac Trab + Civ + Juiz Inf Conc + Precatorias | G24: Não
B25: CAPITAL 3 VARA CIVEL | C25: =VLOOKUP(B25,[1]Planilha1!$A$12:$B$1131,2,0) -> CAPITAL | D25: 1 | E25: CAPITAL | F25: Ac Trab + Civ + Juiz Inf Conc + Precatorias | G25: Não
B26: CAPITAL 30 VARA CIVEL | C26: =VLOOKUP(B26,[1]Planilha1!$A$12:$B$1131,2,0) -> CAPITAL | D26: 1 | E26: CAPITAL | F26: Ac Trab + Civ + Juiz Inf Conc + Precatorias | G26: Não
B27: CAPITAL 31 VARA CIVEL | C27: =VLOOKUP(B27,[1]Planilha1!$A$12:$B$1131,2,0) -> CAPITAL | D27: 1 | E27: CAPITAL | F27: Ac Trab + Civ + Juiz Inf Conc + Precatorias | G27: Não
B28: CAPITAL 32 VARA CIVEL | C28: =VLOOKUP(B28,[1]Planilha1!$A$12:$B$1131,2,0) -> CAPITAL | D28: 1 | E28: CAPITAL | F28: Ac Trab + Civ + Juiz Inf Conc + Precatorias | G28: Não
B29: CAPITAL 33 VARA CIVEL | C29: =VLOOKUP(B29,[1]Planilha1!$A$12:$B$1131,2,0) -> CAPITAL | D29: 1 | E29: CAPITAL | F29: Ac Trab + Civ + Juiz Inf Conc + Precatorias | G29: Não
B30: CAPITAL 34 VARA CIVEL | C30: =VLOOKUP(B30,[1]Planilha1!$A$12:$B$1131,2,0) -> CAPITAL | D30: 1 | E30: CAPITAL | F30: Ac Trab + Civ + Juiz Inf Conc + Precatorias | G30: Não
B31: CAPITAL 35 VARA CIVEL | C31: =VLOOKUP(B31,[1]Planilha1!$A$12:$B$1131,2,0) -> CAPITAL | D31: 1 | E31: CAPITAL | F31: Ac Trab + Civ + Juiz Inf Conc + Precatorias | G31: Não
B32: CAPITAL 36 VARA CIVEL | C32: =VLOOKUP(B32,[1]Planilha1!$A$12:$B$1131,2,0) -> CAPITAL | D32: 1 | E32: CAPITAL | F32: Ac Trab + Civ + Juiz Inf Conc + Precatorias | G32: Não
B33: CAPITAL 37 VARA CIVEL | C33: =VLOOKUP(B33,[1]Planilha1!$A$12:$B$1131,2,0) -> CAPITAL | D33: 1 | E33: CAPITAL | F33: Ac Trab + Civ + Juiz Inf Conc + Precatorias | G33: Não
B34: CAPITAL 38 VARA CIVEL | C34: =VLOOKUP(B34,[1]Planilha1!$A$12:$B$1131,2,0) -> CAPITAL | D34: 1 | E34: CAPITAL | F34: Ac Trab + Civ + Juiz Inf Conc + Precatorias | G34: Não
B35: CAPITAL 39 VARA CIVEL | C35: =VLOOKUP(B35,[1]Planilha1!$A$12:$B$1131,2,0) -> CAPITAL | D35: 1 | E35: CAPITAL | F35: Ac Trab + Civ + Juiz Inf Conc + Precatorias | G35: Não
B36: CAPITAL 4 VARA CIVEL | C36: =VLOOKUP(B36,[1]Planilha1!$A$12:$B$1131,2,0) -> CAPITAL | D36: 1 | E36: CAPITAL | F36: Ac Trab + Civ + Juiz Inf Conc + Precatorias | G36: Não
B37: CAPITAL 40 VARA CIVEL | C37: =VLOOKUP(B37,[1]Planilha1!$A$12:$B$1131,2,0) -> CAPITAL | D37: 1 | E37: CAPITAL | F37: Ac Trab + Civ + Juiz Inf Conc + Precatorias | G37: Não
B38: CAPITAL 41 VARA CIVEL | C38: =VLOOKUP(B38,[1]Planilha1!$A$12:$B$1131,2,0) -> CAPITAL | D38: 1 | E38: CAPITAL | F38: Ac Trab + Civ + Juiz Inf Conc + Precatorias | G38: Não
B39: CAPITAL 42 VARA CIVEL | C39: =VLOOKUP(B39,[1]Planilha1!$A$12:$B$1131,2,0) -> CAPITAL | D39: 1 | E39: CAPITAL | F39: Ac Trab + Civ + Juiz Inf Conc + Precatorias | G39: Não
B40: CAPITAL 43 VARA CIVEL | C40: =VLOOKUP(B40,[1]Planilha1!$A$12:$B$1131,2,0) -> CAPITAL | D40: 1 | E40: CAPITAL | F40: Ac Trab + Civ + Juiz Inf Conc + Precatorias | G40: Não
B41: CAPITAL 44 VARA CIVEL | C41: =VLOOKUP(B41,[1]Planilha1!$A$12:$B$1131,2,0) -> CAPITAL | D41: 1 | E41: CAPITAL | F41: Ac Trab + Civ + Juiz Inf Conc + Precatorias | G41: Não
B42: CAPITAL 45 VARA CIVEL | C42: =VLOOKUP(B42,[1]Planilha1!$A$12:$B$1131,2,0) -> CAPITAL | D42: 1 | E42: CAPITAL | F42: Ac Trab + Civ + Juiz Inf Conc + Precatorias | G42: Não
B43: CAPITAL 46 VARA CIVEL | C43: =VLOOKUP(B43,[1]Planilha1!$A$12:$B$1131,2,0) -> CAPITAL | D43: 1 | E43: CAPITAL | F43: Ac Trab + Civ + Juiz Inf Conc + Precatorias | G43: Não
B44: CAPITAL 47 VARA CIVEL | C44: =VLOOKUP(B44,[1]Planilha1!$A$12:$B$1131,2,0) -> CAPITAL | D44: 1 | E44: CAPITAL | F44: Ac Trab + Civ + Juiz Inf Conc + Precatorias | G44: Não
B45: CAPITAL 48 VARA CIVEL | C45: =VLOOKUP(B45,[1]Planilha1!$A$12:$B$1131,2,0) -> CAPITAL | D45: 1 | E45: CAPITAL | F45: Ac Trab + Civ + Juiz Inf Conc + Precatorias | G45: Não
B46: CAPITAL 49 VARA CIVEL | C46: =VLOOKUP(B46,[1]Planilha1!$A$12:$B$1131,2,0) -> CAPITAL | D46: 1 | E46: CAPITAL | F46: Ac Trab + Civ + Juiz Inf Conc + Precatorias | G46: Não
B47: CAPITAL 5 VARA CIVEL | C47: =VLOOKUP(B47,[1]Planilha1!$A$12:$B$1131,2,0) -> CAPITAL | D47: 1 | E47: CAPITAL | F47: Ac Trab + Civ + Juiz Inf Conc + Precatorias | G47: Não
B48: CAPITAL 50 VARA CIVEL | C48: =VLOOKUP(B48,[1]Planilha1!$A$12:$B$1131,2,0) -> CAPITAL | D48: 1 | E48: CAPITAL | F48: Ac Trab + Civ + Juiz Inf Conc + Precatorias | G48: Não
B49: CAPITAL 51 VARA CIVEL | C49: =VLOOKUP(B49,[1]Planilha1!$A$12:$B$1131,2,0) -> CAPITAL | D49: 1 | E49: CAPITAL | F49: Ac Trab + Civ + Juiz Inf Conc + Precatorias | G49: Não
B50: CAPITAL 52 VARA CIVEL | C50: =VLOOKUP(B50,[1]Planilha1!$A$12:$B$1131,2,0) -> CAPITAL | D50: 1 | E50: CAPITAL | F50: Ac Trab + Civ + Juiz Inf Conc + Precatorias | G50: Não
B51: CAPITAL 6 VARA CIVEL | C51: =VLOOKUP(B51,[1]Planilha1!$A$12:$B$1131,2,0) -> CAPITAL | D51: 1 | E51: CAPITAL | F51: Ac Trab + Civ + Juiz Inf Conc + Precatorias | G51: Não
B52: CAPITAL 7 VARA CIVEL | C52: =VLOOKUP(B52,[1]Planilha1!$A$12:$B$1131,2,0) -> CAPITAL | D52: 1 | E52: CAPITAL | F52: Ac Trab + Civ + Juiz Inf Conc + Precatorias | G52: Não
B53: CAPITAL 8 VARA CIVEL | C53: =VLOOKUP(B53,[1]Planilha1!$A$12:$B$1131,2,0) -> CAPITAL | D53: 1 | E53: CAPITAL | F53: Ac Trab + Civ + Juiz Inf Conc + Precatorias | G53: Não
B54: CAPITAL 9 VARA CIVEL | C54: =VLOOKUP(B54,[1]Planilha1!$A$12:$B$1131,2,0) -> CAPITAL | D54: 1 | E54: CAPITAL | F54: Ac Trab + Civ + Juiz Inf Conc + Precatorias | G54: Não
B55: CAPITAL 11 VARA CRIMINAL | C55: =VLOOKUP(B55,[1]Planilha1!$A$12:$B$1131,2,0) -> CAPITAL | D55: 2 | E55: CAPITAL | F55: Crim | G55: Não
B56: CAPITAL 14 VARA CRIMINAL | C56: =VLOOKUP(B56,[1]Planilha1!$A$12:$B$1131,2,0) -> CAPITAL | D56: 2 | E56: CAPITAL | F56: Crim | G56: Não
B57: CAPITAL 16 VARA CRIMINAL | C57: =VLOOKUP(B57,[1]Planilha1!$A$12:$B$1131,2,0) -> CAPITAL | D57: 2 | E57: CAPITAL | F57: Crim | G57: Não
B58: CAPITAL 17 VARA CRIMINAL | C58: =VLOOKUP(B58,[1]Planilha1!$A$12:$B$1131,2,0) -> CAPITAL | D58: 2 | E58: CAPITAL | F58: Crim | G58: Não
B59: CAPITAL 19 VARA CRIMINAL | C59: =VLOOKUP(B59,[1]Planilha1!$A$12:$B$1131,2,0) -> CAPITAL | D59: 2 | E59: CAPITAL | F59: Crim | G59: Não
B60: CAPITAL 20 VARA CRIMINAL | C60: =VLOOKUP(B60,[1]Planilha1!$A$12:$B$1131,2,0) -> CAPITAL | D60: 2 | E60: CAPITAL | F60: Crim | G60: Não
B61: CAPITAL 21 VARA CRIMINAL | C61: =VLOOKUP(B61,[1]Planilha1!$A$12:$B$1131,2,0) -> CAPITAL | D61: 2 | E61: CAPITAL | F61: Crim | G61: Não
B62: CAPITAL 23 VARA CRIMINAL | C62: =VLOOKUP(B62,[1]Planilha1!$A$12:$B$1131,2,0) -> CAPITAL | D62: 2 | E62: CAPITAL | F62: Crim | G62: Não
B63: CAPITAL 26 VARA CRIMINAL | C63: =VLOOKUP(B63,[1]Planilha1!$A$12:$B$1131,2,0) -> CAPITAL | D63: 2 | E63: CAPITAL | F63: Crim | G63: Não
B64: CAPITAL 27 VARA CRIMINAL | C64: =VLOOKUP(B64,[1]Planilha1!$A$12:$B$1131,2,0) -> CAPITAL | D64: 2 | E64: CAPITAL | F64: Crim | G64: Não
B65: CAPITAL 28 VARA CRIMINAL | C65: =VLOOKUP(B65,[1]Planilha1!$A$12:$B$1131,2,0) -> CAPITAL | D65: 2 | E65: CAPITAL | F65: Crim | G65: Não
B66: CAPITAL 29 VARA CRIMINAL | C66: =VLOOKUP(B66,[1]Planilha1!$A$12:$B$1131,2,0) -> CAPITAL | D66: 2 | E66: CAPITAL | F66: Crim | G66: Não
B67: CAPITAL 31 VARA CRIMINAL | C67: =VLOOKUP(B67,[1]Planilha1!$A$12:$B$1131,2,0) -> CAPITAL | D67: 2 | E67: CAPITAL | F67: Crim | G67: Não
B68: CAPITAL 32 VARA CRIMINAL | C68: =VLOOKUP(B68,[1]Planilha1!$A$12:$B$1131,2,0) -> CAPITAL | D68: 2 | E68: CAPITAL | F68: Crim | G68: Não
B69: CAPITAL 33 VARA CRIMINAL | C69: =VLOOKUP(B69,[1]Planilha1!$A$12:$B$1131,2,0) -> CAPITAL | D69: 2 | E69: CAPITAL | F69: Crim | G69: Não
B70: CAPITAL 34 VARA CRIMINAL | C70: =VLOOKUP(B70,[1]Planilha1!$A$12:$B$1131,2,0) -> CAPITAL | D70: 2 | E70: CAPITAL | F70: Crim | G70: Não
B71: CAPITAL 35 VARA CRIMINAL | C71: =VLOOKUP(B71,[1]Planilha1!$A$12:$B$1131,2,0) -> CAPITAL | D71: 2 | E71: CAPITAL | F71: Crim | G71: Não
B72: CAPITAL 36 VARA CRIMINAL | C72: =VLOOKUP(B72,[1]Planilha1!$A$12:$B$1131,2,0) -> CAPITAL | D72: 2 | E72: CAPITAL | F72: Crim | G72: Não
B73: CAPITAL 37 VARA CRIMINAL | C73: =VLOOKUP(B73,[1]Planilha1!$A$12:$B$1131,2,0) -> CAPITAL | D73: 2 | E73: CAPITAL | F73: Crim | G73: Não
B74: CAPITAL 38 VARA CRIMINAL | C74: =VLOOKUP(B74,[1]Planilha1!$A$12:$B$1131,2,0) -> CAPITAL | D74: 2 | E74: CAPITAL | F74: Crim | G74: Não
B75: CAPITAL 39 VARA CRIMINAL | C75: =VLOOKUP(B75,[1]Planilha1!$A$12:$B$1131,2,0) -> CAPITAL | D75: 2 | E75: CAPITAL | F75: Crim | G75: Não
B76: CAPITAL 40 VARA CRIMINAL | C76: =VLOOKUP(B76,[1]Planilha1!$A$12:$B$1131,2,0) -> CAPITAL | D76: 2 | E76: CAPITAL | F76: Crim | G76: Não
B77: CAPITAL 41 VARA CRIMINAL | C77: =VLOOKUP(B77,[1]Planilha1!$A$12:$B$1131,2,0) -> CAPITAL | D77: 2 | E77: CAPITAL | F77: Crim | G77: Não
B78: CAPITAL 42 VARA CRIMINAL | C78: =VLOOKUP(B78,[1]Planilha1!$A$12:$B$1131,2,0) -> CAPITAL | D78: 2 | E78: CAPITAL | F78: Crim | G78: Não
B79: CAPITAL 43 VARA CRIMINAL | C79: =VLOOKUP(B79,[1]Planilha1!$A$12:$B$1131,2,0) -> CAPITAL | D79: 2 | E79: CAPITAL | F79: Crim | G79: Não
B80: CAPITAL 5 VARA CRIMINAL | C80: =VLOOKUP(B80,[1]Planilha1!$A$12:$B$1131,2,0) -> CAPITAL | D80: 2 | E80: CAPITAL | F80: Crim | G80: Não
B81: CAPITAL 11 VARA FAZ PUBLICA | C81: =VLOOKUP(B81,[1]Planilha1!$A$12:$B$1131,2,0) -> CAPITAL | D81: 3 | E81: CAPITAL | F81: Div Ativ + Faz Pub | G81: Não
B82: CAPITAL 17 VARA DE FAZENDA PUBLICA | C82: =VLOOKUP(B82,[1]Planilha1!$A$12:$B$1131,2,0) -> CAPITAL | D82: 3 | E82: CAPITAL | F82: Div Ativ + Faz Pub | G82: Não
B83: CAPITAL 1 VARA EMPRESARIAL | C83: =VLOOKUP(B83,[1]Planilha1!$A$12:$B$1131,2,0) -> CAPITAL | D83: 4 | E83: CAPITAL | F83: Emp | G83: Não
B84: CAPITAL 2 VARA EMPRESARIAL | C84: =VLOOKUP(B84,[1]Planilha1!$A$12:$B$1131,2,0) -> CAPITAL | D84: 4 | E84: CAPITAL | F84: Emp | G84: Não
B85: CAPITAL 3 VARA EMPRESARIAL | C85: =VLOOKUP(B85,[1]Planilha1!$A$12:$B$1131,2,0) -> CAPITAL | D85: 4 | E85: CAPITAL | F85: Emp | G85: Não
B86: CAPITAL 4 VARA EMPRESARIAL | C86: =VLOOKUP(B86,[1]Planilha1!$A$12:$B$1131,2,0) -> CAPITAL | D86: 4 | E86: CAPITAL | F86: Emp | G86: Não
B87: CAPITAL 5 VARA EMPRESARIAL | C87: =VLOOKUP(B87,[1]Planilha1!$A$12:$B$1131,2,0) -> CAPITAL | D87: 4 | E87: CAPITAL | F87: Emp | G87: Não
B88: CAPITAL 6 VARA EMPRESARIAL | C88: =VLOOKUP(B88,[1]Planilha1!$A$12:$B$1131,2,0) -> CAPITAL | D88: 4 | E88: CAPITAL | F88: Emp | G88: Não
B89: CAPITAL 7 VARA EMPRESARIAL | C89: =VLOOKUP(B89,[1]Planilha1!$A$12:$B$1131,2,0) -> CAPITAL | D89: 4 | E89: CAPITAL | F89: Emp | G89: Não
B90: CAPITAL 1 VARA DE FAMILIA | C90: =VLOOKUP(B90,[1]Planilha1!$A$12:$B$1131,2,0) -> CAPITAL | D90: 5 | E90: CAPITAL | F90: Fam + Juiz Inf Conc | G90: Não
B91: CAPITAL 10 VARA DE FAMILIA | C91: =VLOOKUP(B91,[1]Planilha1!$A$12:$B$1131,2,0) -> CAPITAL | D91: 5 | E91: CAPITAL | F91: Fam + Juiz Inf Conc | G91: Não
B92: CAPITAL 11 VARA DE FAMILIA | C92: =VLOOKUP(B92,[1]Planilha1!$A$12:$B$1131,2,0) -> CAPITAL | D92: 5 | E92: CAPITAL | F92: Fam + Juiz Inf Conc | G92: Não
B93: CAPITAL 12 VARA DE FAMILIA | C93: =VLOOKUP(B93,[1]Planilha1!$A$12:$B$1131,2,0) -> CAPITAL | D93: 5 | E93: CAPITAL | F93: Fam + Juiz Inf Conc | G93: Não
B94: CAPITAL 18 VARA DE FAMILIA | C94: =VLOOKUP(B94,[1]Planilha1!$A$12:$B$1131,2,0) -> CAPITAL | D94: 5 | E94: CAPITAL | F94: Fam + Juiz Inf Conc | G94: Não
B95: CAPITAL 2 VARA DE FAMILIA | C95: =VLOOKUP(B95,[1]Planilha1!$A$12:$B$1131,2,0) -> CAPITAL | D95: 5 | E95: CAPITAL | F95: Fam + Juiz Inf Conc | G95: Não
B96: CAPITAL 4 VARA DE FAMILIA | C96: =VLOOKUP(B96,[1]Planilha1!$A$12:$B$1131,2,0) -> CAPITAL | D96: 5 | E96: CAPITAL | F96: Fam + Juiz Inf Conc | G96: Não
B97: CAPITAL 5 VARA DE FAMILIA | C97: =VLOOKUP(B97,[1]Planilha1!$A$12:$B$1131,2,0) -> CAPITAL | D97: 5 | E97: CAPITAL | F97: Fam + Juiz Inf Conc | G97: Não
B98: CAPITAL 6 VARA DE FAMILIA | C98: =VLOOKUP(B98,[1]Planilha1!$A$12:$B$1131,2,0) -> CAPITAL | D98: 5 | E98: CAPITAL | F98: Fam + Juiz Inf Conc | G98: Não
B99: CAPITAL 9 VARA DE FAMILIA | C99: =VLOOKUP(B99,[1]Planilha1!$A$12:$B$1131,2,0) -> CAPITAL | D99: 5 | E99: CAPITAL | F99: Fam + Juiz Inf Conc | G99: Não
B100: CAPITAL 1 VARA FAZ PUBLICA | C100: =VLOOKUP(B100,[1]Planilha1!$A$12:$B$1131,2,0) -> CAPITAL | D100: 6 | E100: CAPITAL | F100: Faz Pub | G100: Não
B101: CAPITAL 10 VARA FAZ PUBLICA | C101: =VLOOKUP(B101,[1]Planilha1!$A$12:$B$1131,2,0) -> CAPITAL | D101: 6 | E101: CAPITAL | F101: Faz Pub | G101: Não
B102: CAPITAL 13 VARA FAZ PUBLICA | C102: =VLOOKUP(B102,[1]Planilha1!$A$12:$B$1131,2,0) -> CAPITAL | D102: 6 | E102: CAPITAL | F102: Faz Pub | G102: Não
B103: CAPITAL 14 VARA FAZ PUBLICA | C103: =VLOOKUP(B103,[1]Planilha1!$A$12:$B$1131,2,0) -> CAPITAL | D103: 6 | E103: CAPITAL | F103: Faz Pub | G103: Não
B104: CAPITAL 15 VARA FAZ PUBLICA | C104: =VLOOKUP(B104,[1]Planilha1!$A$12:$B$1131,2,0) -> CAPITAL | D104: 6 | E104: CAPITAL | F104: Faz Pub | G104: Não
B105: CAPITAL 16 VARA FAZ PUBLICA | C105: =VLOOKUP(B105,[1]Planilha1!$A$12:$B$1131,2,0) -> CAPITAL | D105: 6 | E105: CAPITAL | F105: Faz Pub | G105: Não
B106: CAPITAL 2 VARA FAZ PUBLICA | C106: =VLOOKUP(B106,[1]Planilha1!$A$12:$B$1131,2,0) -> CAPITAL | D106: 6 | E106: CAPITAL | F106: Faz Pub | G106: Não
B107: CAPITAL 3 VARA FAZ PUBLICA | C107: =VLOOKUP(B107,[1]Planilha1!$A$12:$B$1131,2,0) -> CAPITAL | D107: 6 | E107: CAPITAL | F107: Faz Pub | G107: Não
B108: CAPITAL 4 VARA FAZ PUBLICA | C108: =VLOOKUP(B108,[1]Planilha1!$A$12:$B$1131,2,0) -> CAPITAL | D108: 6 | E108: CAPITAL | F108: Faz Pub | G108: Não
B109: CAPITAL 5 VARA FAZ PUBLICA | C109: =VLOOKUP(B109,[1]Planilha1!$A$12:$B$1131,2,0) -> CAPITAL | D109: 6 | E109: CAPITAL | F109: Faz Pub | G109: Não
B110: CAPITAL 6 VARA FAZ PUBLICA | C110: =VLOOKUP(B110,[1]Planilha1!$A$12:$B$1131,2,0) -> CAPITAL | D110: 6 | E110: CAPITAL | F110: Faz Pub | G110: Não
B111: CAPITAL 7 VARA FAZ PUBLICA | C111: =VLOOKUP(B111,[1]Planilha1!$A$12:$B$1131,2,0) -> CAPITAL | D111: 6 | E111: CAPITAL | F111: Faz Pub | G111: Não
B112: CAPITAL 8 VARA FAZ PUBLICA | C112: =VLOOKUP(B112,[1]Planilha1!$A$12:$B$1131,2,0) -> CAPITAL | D112: 6 | E112: CAPITAL | F112: Faz Pub | G112: Não
B113: CAPITAL 9 VARA FAZ PUBLICA | C113: =VLOOKUP(B113,[1]Planilha1!$A$12:$B$1131,2,0) -> CAPITAL | D113: 6 | E113: CAPITAL | F113: Faz Pub | G113: Não
B114: CAPITAL 1 VARA INF JUV IDO | C114: =VLOOKUP(B114,[1]Planilha1!$A$12:$B$1131,2,0) -> CAPITAL | D114: 7 | E114: CAPITAL | F114: Inf Juv | G114: Não
B115: CAPITAL 2 VARA INF JUV IDO | C115: =VLOOKUP(B115,[1]Planilha1!$A$12:$B$1131,2,0) -> CAPITAL | D115: 7 | E115: CAPITAL | F115: Inf Juv | G115: Não
B116: CAPITAL I JUI ESP CIV | C116: =VLOOKUP(B116,[1]Planilha1!$A$12:$B$1131,2,0) -> CAPITAL | D116: 8 | E116: CAPITAL | F116: Juiz Esp Civ | G116: Sim
B117: CAPITAL II JUI ESP CIV | C117: =VLOOKUP(B117,[1]Planilha1!$A$12:$B$1131,2,0) -> CAPITAL | D117: 8 | E117: CAPITAL | F117: Juiz Esp Civ | G117: Sim
B118: CAPITAL III JUI ESP CIV | C118: =VLOOKUP(B118,[1]Planilha1!$A$12:$B$1131,2,0) -> CAPITAL | D118: 8 | E118: CAPITAL | F118: Juiz Esp Civ | G118: Sim
B119: CAPITAL IV JUI ESP CIV | C119: =VLOOKUP(B119,[1]Planilha1!$A$12:$B$1131,2,0) -> CAPITAL | D119: 8 | E119: CAPITAL | F119: Juiz Esp Civ | G119: Sim
B120: CAPITAL IX JUI ESP CIV (VILA ISABEL) | C120: =VLOOKUP(B120,[1]Planilha1!$A$12:$B$1131,2,0) -> CAPITAL | D120: 8 | E120: CAPITAL | F120: Juiz Esp Civ | G120: Sim
B121: CAPITAL V JUI ESP CIV/COPACABANA | C121: =VLOOKUP(B121,[1]Planilha1!$A$12:$B$1131,2,0) -> CAPITAL | D121: 8 | E121: CAPITAL | F121: Juiz Esp Civ | G121: Sim
B122: CAPITAL VI JUI ESP CIV | C122: =VLOOKUP(B122,[1]Planilha1!$A$12:$B$1131,2,0) -> CAPITAL | D122: 8 | E122: CAPITAL | F122: Juiz Esp Civ | G122: Sim
B123: CAPITAL VII JUI ESP CIV | C123: =VLOOKUP(B123,[1]Planilha1!$A$12:$B$1131,2,0) -> CAPITAL | D123: 8 | E123: CAPITAL | F123: Juiz Esp Civ | G123: Sim
B124: CAPITAL VIII JUI ESP CIV/TIJUCA | C124: =VLOOKUP(B124,[1]Planilha1!$A$12:$B$1131,2,0) -> CAPITAL | D124: 8 | E124: CAPITAL | F124: Juiz Esp Civ | G124: Sim
B125: CAPITAL XXI JUI ESP CIV | C125: =VLOOKUP(B125,[1]Planilha1!$A$12:$B$1131,2,0) -> CAPITAL | D125: 8 | E125: CAPITAL | F125: Juiz Esp Civ | G125: Sim
B126: CAPITAL XXIII JUI ESP CIV | C126: =VLOOKUP(B126,[1]Planilha1!$A$12:$B$1131,2,0) -> CAPITAL | D126: 8 | E126: CAPITAL | F126: Juiz Esp Civ | G126: Sim
B127: CAPITAL XXVII JUI ESP CIV | C127: =VLOOKUP(B127,[1]Planilha1!$A$12:$B$1131,2,0) -> CAPITAL | D127: 8 | E127: CAPITAL | F127: Juiz Esp Civ | G127: Sim
B128: CAPITAL I JUI ESP CRIM | C128: =VLOOKUP(B128,[1]Planilha1!$A$12:$B$1131,2,0) -> CAPITAL | D128: 9 | E128: CAPITAL | F128: Juiz Esp Crim | G128: Não
B129: CAPITAL III JUI ESP CRIM | C129: =VLOOKUP(B129,[1]Planilha1!$A$12:$B$1131,2,0) -> CAPITAL | D129: 9 | E129: CAPITAL | F129: Juiz Esp Crim | G129: Não
B130: CAPITAL IV JUI ESP CRIM | C130: =VLOOKUP(B130,[1]Planilha1!$A$12:$B$1131,2,0) -> CAPITAL | D130: 9 | E130: CAPITAL | F130: Juiz Esp Crim | G130: Não
B131: CAPITAL VIII JUI ESP CRIM | C131: =VLOOKUP(B131,[1]Planilha1!$A$12:$B$1131,2,0) -> CAPITAL | D131: 9 | E131: CAPITAL | F131: Juiz Esp Crim | G131: Não
B132: CAPITAL 1 VARA ORFAOS SUC | C132: =VLOOKUP(B132,[1]Planilha1!$A$12:$B$1131,2,0) -> CAPITAL | D132: 10 | E132: CAPITAL | F132: Orf, Suc e Prov | G132: Não
B133: CAPITAL 11 VARA ORFAOS SUC | C133: =VLOOKUP(B133,[1]Planilha1!$A$12:$B$1131,2,0) -> CAPITAL | D133: 10 | E133: CAPITAL | F133: Orf, Suc e Prov | G133: Não
B134: CAPITAL 12 VARA ORFAOS SUC | C134: =VLOOKUP(B134,[1]Planilha1!$A$12:$B$1131,2,0) -> CAPITAL | D134: 10 | E134: CAPITAL | F134: Orf, Suc e Prov | G134: Não
B135: CAPITAL 2 VARA ORFAOS SUC | C135: =VLOOKUP(B135,[1]Planilha1!$A$12:$B$1131,2,0) -> CAPITAL | D135: 10 | E135: CAPITAL | F135: Orf, Suc e Prov | G135: Não
B136: CAPITAL 3 VARA ORFAOS SUC | C136: =VLOOKUP(B136,[1]Planilha1!$A$12:$B$1131,2,0) -> CAPITAL | D136: 10 | E136: CAPITAL | F136: Orf, Suc e Prov | G136: Não
B137: CAPITAL 4 VARA ORFAOS SUC | C137: =VLOOKUP(B137,[1]Planilha1!$A$12:$B$1131,2,0) -> CAPITAL | D137: 10 | E137: CAPITAL | F137: Orf, Suc e Prov | G137: Não
B138: CAPITAL 5 VARA ORFAOS SUC | C138: =VLOOKUP(B138,[1]Planilha1!$A$12:$B$1131,2,0) -> CAPITAL | D138: 10 | E138: CAPITAL | F138: Orf, Suc e Prov | G138: Não
B139: CAPITAL 6 VARA ORFAOS SUC | C139: =VLOOKUP(B139,[1]Planilha1!$A$12:$B$1131,2,0) -> CAPITAL | D139: 10 | E139: CAPITAL | F139: Orf, Suc e Prov | G139: Não
B140: CAPITAL 7 VARA ORFAOS SUC | C140: =VLOOKUP(B140,[1]Planilha1!$A$12:$B$1131,2,0) -> CAPITAL | D140: 10 | E140: CAPITAL | F140: Orf, Suc e Prov | G140: Não
B141: CAPITAL 1 VARA CRIMINAL | C141: =VLOOKUP(B141,[1]Planilha1!$A$12:$B$1131,2,0) -> CAPITAL | D141: 11 | E141: CAPITAL | F141: Priv Juri | G141: Não
B142: CAPITAL 2 VARA CRIMINAL | C142: =VLOOKUP(B142,[1]Planilha1!$A$12:$B$1131,2,0) -> CAPITAL | D142: 11 | E142: CAPITAL | F142: Priv Juri | G142: Não
B143: CAPITAL 3 VARA CRIMINAL | C143: =VLOOKUP(B143,[1]Planilha1!$A$12:$B$1131,2,0) -> CAPITAL | D143: 11 | E143: CAPITAL | F143: Priv Juri | G143: Não
B144: CAPITAL 4 VARA CRIMINAL | C144: =VLOOKUP(B144,[1]Planilha1!$A$12:$B$1131,2,0) -> CAPITAL | D144: 11 | E144: CAPITAL | F144: Priv Juri | G144: Não
B145: CAPITAL I J VIO DOM FAM | C145: =VLOOKUP(B145,[1]Planilha1!$A$12:$B$1131,2,0) -> CAPITAL | D145: 12 | E145: CAPITAL | F145: Viol Dom Fam | G145: Não
B146: CAPITAL V J VIO DOM FAM | C146: =VLOOKUP(B146,[1]Planilha1!$A$12:$B$1131,2,0) -> CAPITAL | D146: 12 | E146: CAPITAL | F146: Viol Dom Fam | G146: Não
B147: ARRAIAL DO CABO VARA UNICA | C147: =VLOOKUP(B147,[1]Planilha1!$A$12:$B$1131,2,0) -> ARRAIAL DO CABO | D147: 13 | E147: COMUM - 1º GRUPO | F147: Ac Trab + Civ + Crim + DA INFANCIA E DA JUVENTUDE (MENOR INFRATOR) + Div Ativ + Emp + Fam + Faz Pub + Inf Juv + Juiz Inf Conc + Orf, Suc e Prov + Priv Juri + RCPN + Reg Pub | G147: Parcialmente
B148: BOM JARDIM VARA UNICA | C148: =VLOOKUP(B148,[1]Planilha1!$A$12:$B$1131,2,0) -> BOM JARDIM | D148: 13 | E148: COMUM - 1º GRUPO | F148: Ac Trab + Civ + Crim + DA INFANCIA E DA JUVENTUDE (MENOR INFRATOR) + Div Ativ + Emp + Fam + Faz Pub + Inf Juv + Juiz Inf Conc + Orf, Suc e Prov + Priv Juri + RCPN + Reg Pub | G148: Parcialmente
B149: CAMBUCI-SAO JOSE DE UBA VARA UNICA | C149: =VLOOKUP(B149,[1]Planilha1!$A$12:$B$1131,2,0) -> CAMBUCI | D149: 13 | E149: COMUM - 1º GRUPO | F149: Ac Trab + Civ + Crim + DA INFANCIA E DA JUVENTUDE (MENOR INFRATOR) + Div Ativ + Emp + Fam + Faz Pub + Inf Juv + Juiz Inf Conc + Orf, Suc e Prov + Priv Juri + RCPN + Reg Pub | G149: Parcialmente
B150: CANTAGALO VARA UNICA | C150: =VLOOKUP(B150,[1]Planilha1!$A$12:$B$1131,2,0) -> CANTAGALO | D150: 13 | E150: COMUM - 1º GRUPO | F150: Ac Trab + Civ + Crim + DA INFANCIA E DA JUVENTUDE (MENOR INFRATOR) + Div Ativ + Emp + Fam + Faz Pub + Inf Juv + Juiz Inf Conc + Orf, Suc e Prov + Priv Juri + RCPN + Reg Pub | G150: Parcialmente
B151: CARAPEBUS/QUISSAMA VARA UNICA | C151: =VLOOKUP(B151,[1]Planilha1!$A$12:$B$1131,2,0) -> CARAPEBUS/QUISSAMA | D151: 13 | E151: COMUM - 1º GRUPO | F151: Ac Trab + Civ + Crim + DA INFANCIA E DA JUVENTUDE (MENOR INFRATOR) + Div Ativ + Emp + Fam + Faz Pub + Inf Juv + Juiz Inf Conc + Orf, Suc e Prov + Priv Juri + RCPN + Reg Pub | G151: Parcialmente
B152: CARMO VARA UNICA | C152: =VLOOKUP(B152,[1]Planilha1!$A$12:$B$1131,2,0) -> CARMO | D152: 13 | E152: COMUM - 1º GRUPO | F152: Ac Trab + Civ + Crim + DA INFANCIA E DA JUVENTUDE (MENOR INFRATOR) + Div Ativ + Emp + Fam + Faz Pub + Inf Juv + Juiz Inf Conc + Orf, Suc e Prov + Priv Juri + RCPN + Reg Pub | G152: Parcialmente
B153: CASIMIRO DE ABREU VARA UNICA | C153: =VLOOKUP(B153,[1]Planilha1!$A$12:$B$1131,2,0) -> CASIMIRO DE ABREU | D153: 13 | E153: COMUM - 1º GRUPO | F153: Ac Trab + Civ + Crim + DA INFANCIA E DA JUVENTUDE (MENOR INFRATOR) + Div Ativ + Emp + Fam + Faz Pub + Inf Juv + Juiz Inf Conc + Orf, Suc e Prov + Priv Juri + RCPN + Reg Pub | G153: Parcialmente
B154: CONCEICAO DE MACABU VARA UNICA | C154: =VLOOKUP(B154,[1]Planilha1!$A$12:$B$1131,2,0) -> CONCEICAO DE MACABU | D154: 13 | E154: COMUM - 1º GRUPO | F154: Ac Trab + Civ + Crim + DA INFANCIA E DA JUVENTUDE (MENOR INFRATOR) + Div Ativ + Emp + Fam + Faz Pub + Inf Juv + Juiz Inf Conc + Orf, Suc e Prov + Priv Juri + RCPN + Reg Pub | G154: Parcialmente
B155: CORDEIRO-MACUCO VARA UNICA | C155: =VLOOKUP(B155,[1]Planilha1!$A$12:$B$1131,2,0) -> CORDEIRO | D155: 13 | E155: COMUM - 1º GRUPO | F155: Ac Trab + Civ + Crim + DA INFANCIA E DA JUVENTUDE (MENOR INFRATOR) + Div Ativ + Emp + Fam + Faz Pub + Inf Juv + Juiz Inf Conc + Orf, Suc e Prov + Priv Juri + RCPN + Reg Pub | G155: Parcialmente
B156: DUAS BARRAS VARA UNICA | C156: =VLOOKUP(B156,[1]Planilha1!$A$12:$B$1131,2,0) -> DUAS BARRAS | D156: 13 | E156: COMUM - 1º GRUPO | F156: Ac Trab + Civ + Crim + DA INFANCIA E DA JUVENTUDE (MENOR INFRATOR) + Div Ativ + Emp + Fam + Faz Pub + Inf Juv + Juiz Inf Conc + Orf, Suc e Prov + Priv Juri + RCPN + Reg Pub | G156: Parcialmente
B157: ENGENHEIRO PAULO DE FRONTIN VARA UNICA | C157: =VLOOKUP(B157,[1]Planilha1!$A$12:$B$1131,2,0) -> ENGENHEIRO PAULO DE FRONTIN | D157: 13 | E157: COMUM - 1º GRUPO | F157: Ac Trab + Civ + Crim + DA INFANCIA E DA JUVENTUDE (MENOR INFRATOR) + Div Ativ + Emp + Fam + Faz Pub + Inf Juv + Juiz Inf Conc + Orf, Suc e Prov + Priv Juri + RCPN + Reg Pub | G157: Parcialmente
B158: IGUABA GRANDE VARA UNICA | C158: =VLOOKUP(B158,[1]Planilha1!$A$12:$B$1131,2,0) -> IGUABA GRANDE | D158: 13 | E158: COMUM - 1º GRUPO | F158: Ac Trab + Civ + Crim + DA INFANCIA E DA JUVENTUDE (MENOR INFRATOR) + Div Ativ + Emp + Fam + Faz Pub + Inf Juv + Juiz Inf Conc + Orf, Suc e Prov + Priv Juri + RCPN + Reg Pub | G158: Parcialmente
B159: ITALVA-CARDOSO MOREIRA VARA UNICA | C159: =VLOOKUP(B159,[1]Planilha1!$A$12:$B$1131,2,0) -> ITALVA | D159: 13 | E159: COMUM - 1º GRUPO | F159: Ac Trab + Civ + Crim + DA INFANCIA E DA JUVENTUDE (MENOR INFRATOR) + Div Ativ + Emp + Fam + Faz Pub + Inf Juv + Juiz Inf Conc + Orf, Suc e Prov + Priv Juri + RCPN + Reg Pub | G159: Parcialmente
B160: ITAOCARA VARA UNICA | C160: =VLOOKUP(B160,[1]Planilha1!$A$12:$B$1131,2,0) -> ITAOCARA | D160: 13 | E160: COMUM - 1º GRUPO | F160: Ac Trab + Civ + Crim + DA INFANCIA E DA JUVENTUDE (MENOR INFRATOR) + Div Ativ + Emp + Fam + Faz Pub + Inf Juv + Juiz Inf Conc + Orf, Suc e Prov + Priv Juri + RCPN + Reg Pub | G160: Parcialmente
B161: ITATIAIA VARA UNICA | C161: =VLOOKUP(B161,[1]Planilha1!$A$12:$B$1131,2,0) -> ITATIAIA | D161: 13 | E161: COMUM - 1º GRUPO | F161: Ac Trab + Civ + Crim + DA INFANCIA E DA JUVENTUDE (MENOR INFRATOR) + Div Ativ + Emp + Fam + Faz Pub + Inf Juv + Juiz Inf Conc + Orf, Suc e Prov + Priv Juri + RCPN + Reg Pub | G161: Parcialmente
B162: LAJE DO MURIAE VARA UNICA | C162: =VLOOKUP(B162,[1]Planilha1!$A$12:$B$1131,2,0) -> LAJE DO MURIAE | D162: 13 | E162: COMUM - 1º GRUPO | F162: Ac Trab + Civ + Crim + DA INFANCIA E DA JUVENTUDE (MENOR INFRATOR) + Div Ativ + Emp + Fam + Faz Pub + Inf Juv + Juiz Inf Conc + Orf, Suc e Prov + Priv Juri + RCPN + Reg Pub | G162: Parcialmente
B163: MANGARATIBA VARA UNICA | C163: =VLOOKUP(B163,[1]Planilha1!$A$12:$B$1131,2,0) -> MANGARATIBA | D163: 13 | E163: COMUM - 1º GRUPO | F163: Ac Trab + Civ + Crim + DA INFANCIA E DA JUVENTUDE (MENOR INFRATOR) + Div Ativ + Emp + Fam + Faz Pub + Inf Juv + Juiz Inf Conc + Orf, Suc e Prov + Priv Juri + RCPN + Reg Pub | G163: Parcialmente
B164: MENDES VARA UNICA | C164: =VLOOKUP(B164,[1]Planilha1!$A$12:$B$1131,2,0) -> MENDES | D164: 13 | E164: COMUM - 1º GRUPO | F164: Ac Trab + Civ + Crim + DA INFANCIA E DA JUVENTUDE (MENOR INFRATOR) + Div Ativ + Emp + Fam + Faz Pub + Inf Juv + Juiz Inf Conc + Orf, Suc e Prov + Priv Juri + RCPN + Reg Pub | G164: Parcialmente
B165: MIGUEL PEREIRA VARA UNICA | C165: =VLOOKUP(B165,[1]Planilha1!$A$12:$B$1131,2,0) -> MIGUEL PEREIRA | D165: 13 | E165: COMUM - 1º GRUPO | F165: Ac Trab + Civ + Crim + DA INFANCIA E DA JUVENTUDE (MENOR INFRATOR) + Div Ativ + Emp + Fam + Faz Pub + Inf Juv + Juiz Inf Conc + Orf, Suc e Prov + Priv Juri + RCPN + Reg Pub | G165: Parcialmente
B166: NATIVIDADE-VARRE-SAI VARA UNICA | C166: =VLOOKUP(B166,[1]Planilha1!$A$12:$B$1131,2,0) -> NATIVIDADE | D166: 13 | E166: COMUM - 1º GRUPO | F166: Ac Trab + Civ + Crim + DA INFANCIA E DA JUVENTUDE (MENOR INFRATOR) + Div Ativ + Emp + Fam + Faz Pub + Inf Juv + Juiz Inf Conc + Orf, Suc e Prov + Priv Juri + RCPN + Reg Pub | G166: Parcialmente
B167: PARACAMBI VARA UNICA | C167: =VLOOKUP(B167,[1]Planilha1!$A$12:$B$1131,2,0) -> PARACAMBI | D167: 13 | E167: COMUM - 1º GRUPO | F167: Ac Trab + Civ + Crim + DA INFANCIA E DA JUVENTUDE (MENOR INFRATOR) + Div Ativ + Emp + Fam + Faz Pub + Inf Juv + Juiz Inf Conc + Orf, Suc e Prov + Priv Juri + RCPN + Reg Pub | G167: Parcialmente
B168: PARATY VARA UNICA | C168: =VLOOKUP(B168,[1]Planilha1!$A$12:$B$1131,2,0) -> PARATY | D168: 13 | E168: COMUM - 1º GRUPO | F168: Ac Trab + Civ + Crim + DA INFANCIA E DA JUVENTUDE (MENOR INFRATOR) + Div Ativ + Emp + Fam + Faz Pub + Inf Juv + Juiz Inf Conc + Orf, Suc e Prov + Priv Juri + RCPN + Reg Pub | G168: Parcialmente
B169: PATY DO ALFERES VARA UNICA | C169: =VLOOKUP(B169,[1]Planilha1!$A$12:$B$1131,2,0) -> PATY DO ALFERES | D169: 13 | E169: COMUM - 1º GRUPO | F169: Ac Trab + Civ + Crim + DA INFANCIA E DA JUVENTUDE (MENOR INFRATOR) + Div Ativ + Emp + Fam + Faz Pub + Inf Juv + Juiz Inf Conc + Orf, Suc e Prov + Priv Juri + RCPN + Reg Pub | G169: Parcialmente
B170: PINHEIRAL VARA UNICA | C170: =VLOOKUP(B170,[1]Planilha1!$A$12:$B$1131,2,0) -> PINHEIRAL | D170: 13 | E170: COMUM - 1º GRUPO | F170: Ac Trab + Civ + Crim + DA INFANCIA E DA JUVENTUDE (MENOR INFRATOR) + Div Ativ + Emp + Fam + Faz Pub + Inf Juv + Juiz Inf Conc + Orf, Suc e Prov + Priv Juri + RCPN + Reg Pub | G170: Parcialmente
B171: PIRAI VARA UNICA | C171: =VLOOKUP(B171,[1]Planilha1!$A$12:$B$1131,2,0) -> PIRAI | D171: 13 | E171: COMUM - 1º GRUPO | F171: Ac Trab + Civ + Crim + DA INFANCIA E DA JUVENTUDE (MENOR INFRATOR) + Div Ativ + Emp + Fam + Faz Pub + Inf Juv + Juiz Inf Conc + Orf, Suc e Prov + Priv Juri + RCPN + Reg Pub | G171: Parcialmente
B172: PORCIUNCULA VARA UNICA | C172: =VLOOKUP(B172,[1]Planilha1!$A$12:$B$1131,2,0) -> PORCIUNCULA | D172: 13 | E172: COMUM - 1º GRUPO | F172: Ac Trab + Civ + Crim + DA INFANCIA E DA JUVENTUDE (MENOR INFRATOR) + Div Ativ + Emp + Fam + Faz Pub + Inf Juv + Juiz Inf Conc + Orf, Suc e Prov + Priv Juri + RCPN + Reg Pub | G172: Parcialmente
B173: PORTO REAL/QUATIS VARA UNICA | C173: =VLOOKUP(B173,[1]Planilha1!$A$12:$B$1131,2,0) -> PORTO REAL/QUATIS | D173: 13 | E173: COMUM - 1º GRUPO | F173: Ac Trab + Civ + Crim + DA INFANCIA E DA JUVENTUDE (MENOR INFRATOR) + Div Ativ + Emp + Fam + Faz Pub + Inf Juv + Juiz Inf Conc + Orf, Suc e Prov + Priv Juri + RCPN + Reg Pub | G173: Parcialmente
B174: RIO CLARO VARA UNICA | C174: =VLOOKUP(B174,[1]Planilha1!$A$12:$B$1131,2,0) -> RIO CLARO | D174: 13 | E174: COMUM - 1º GRUPO | F174: Ac Trab + Civ + Crim + DA INFANCIA E DA JUVENTUDE (MENOR INFRATOR) + Div Ativ + Emp + Fam + Faz Pub + Inf Juv + Juiz Inf Conc + Orf, Suc e Prov + Priv Juri + RCPN + Reg Pub | G174: Parcialmente
B175: RIO DAS FLORES VARA UNICA | C175: =VLOOKUP(B175,[1]Planilha1!$A$12:$B$1131,2,0) -> RIO DAS FLORES | D175: 13 | E175: COMUM - 1º GRUPO | F175: Ac Trab + Civ + Crim + DA INFANCIA E DA JUVENTUDE (MENOR INFRATOR) + Div Ativ + Emp + Fam + Faz Pub + Inf Juv + Juiz Inf Conc + Orf, Suc e Prov + Priv Juri + RCPN + Reg Pub | G175: Parcialmente
B176: SANTA MARIA MADALENA VARA UNICA | C176: =VLOOKUP(B176,[1]Planilha1!$A$12:$B$1131,2,0) -> SANTA MARIA MADALENA | D176: 13 | E176: COMUM - 1º GRUPO | F176: Ac Trab + Civ + Crim + DA INFANCIA E DA JUVENTUDE (MENOR INFRATOR) + Div Ativ + Emp + Fam + Faz Pub + Inf Juv + Juiz Inf Conc + Orf, Suc e Prov + Priv Juri + RCPN + Reg Pub | G176: Parcialmente
B177: SAO FRANCISCO DE ITABAPOANA VARA UNICA | C177: =VLOOKUP(B177,[1]Planilha1!$A$12:$B$1131,2,0) -> SAO FRANCISCO DE ITABAPOANA | D177: 13 | E177: COMUM - 1º GRUPO | F177: Ac Trab + Civ + Crim + DA INFANCIA E DA JUVENTUDE (MENOR INFRATOR) + Div Ativ + Emp + Fam + Faz Pub + Inf Juv + Juiz Inf Conc + Orf, Suc e Prov + Priv Juri + RCPN + Reg Pub | G177: Parcialmente
B178: SAO JOSE DO VALE DO RIO PRETO VARA UNICA | C178: =VLOOKUP(B178,[1]Planilha1!$A$12:$B$1131,2,0) -> SAO JOSE DO VALE DO RIO PRETO | D178: 13 | E178: COMUM - 1º GRUPO | F178: Ac Trab + Civ + Crim + DA INFANCIA E DA JUVENTUDE (MENOR INFRATOR) + Div Ativ + Emp + Fam + Faz Pub + Inf Juv + Juiz Inf Conc + Orf, Suc e Prov + Priv Juri + RCPN + Reg Pub | G178: Parcialmente
B179: SAO SEBASTIAO DO ALTO VARA UNICA | C179: =VLOOKUP(B179,[1]Planilha1!$A$12:$B$1131,2,0) -> SAO SEBASTIAO DO ALTO | D179: 13 | E179: COMUM - 1º GRUPO | F179: Ac Trab + Civ + Crim + DA INFANCIA E DA JUVENTUDE (MENOR INFRATOR) + Div Ativ + Emp + Fam + Faz Pub + Inf Juv + Juiz Inf Conc + Orf, Suc e Prov + Priv Juri + RCPN + Reg Pub | G179: Parcialmente
B180: SAPUCAIA VARA UNICA | C180: =VLOOKUP(B180,[1]Planilha1!$A$12:$B$1131,2,0) -> SAPUCAIA | D180: 13 | E180: COMUM - 1º GRUPO | F180: Ac Trab + Civ + Crim + DA INFANCIA E DA JUVENTUDE (MENOR INFRATOR) + Div Ativ + Emp + Fam + Faz Pub + Inf Juv + Juiz Inf Conc + Orf, Suc e Prov + Priv Juri + RCPN + Reg Pub | G180: Parcialmente
B181: SILVA JARDIM VARA UNICA | C181: =VLOOKUP(B181,[1]Planilha1!$A$12:$B$1131,2,0) -> SILVA JARDIM | D181: 13 | E181: COMUM - 1º GRUPO | F181: Ac Trab + Civ + Crim + DA INFANCIA E DA JUVENTUDE (MENOR INFRATOR) + Div Ativ + Emp + Fam + Faz Pub + Inf Juv + Juiz Inf Conc + Orf, Suc e Prov + Priv Juri + RCPN + Reg Pub | G181: Parcialmente
B182: SUMIDOURO VARA UNICA | C182: =VLOOKUP(B182,[1]Planilha1!$A$12:$B$1131,2,0) -> SUMIDOURO | D182: 13 | E182: COMUM - 1º GRUPO | F182: Ac Trab + Civ + Crim + DA INFANCIA E DA JUVENTUDE (MENOR INFRATOR) + Div Ativ + Emp + Fam + Faz Pub + Inf Juv + Juiz Inf Conc + Orf, Suc e Prov + Priv Juri + RCPN + Reg Pub | G182: Parcialmente
B183: TRAJANO DE MORAES VARA UNICA | C183: =VLOOKUP(B183,[1]Planilha1!$A$12:$B$1131,2,0) -> TRAJANO DE MORAES | D183: 13 | E183: COMUM - 1º GRUPO | F183: Ac Trab + Civ + Crim + DA INFANCIA E DA JUVENTUDE (MENOR INFRATOR) + Div Ativ + Emp + Fam + Faz Pub + Inf Juv + Juiz Inf Conc + Orf, Suc e Prov + Priv Juri + RCPN + Reg Pub | G183: Parcialmente
B184: ARRAIAL DO CABO NUCLEO DA DIVIDA ATIVA | C184: =VLOOKUP(B184,[1]Planilha1!$A$12:$B$1131,2,0) -> ARRAIAL DO CABO | D184: 14 | E184: COMUM - 1º GRUPO | F184: Div Ativ | G184: Não
B185: BOM JARDIM NUCLEO DA DIVIDA ATIVA | C185: =VLOOKUP(B185,[1]Planilha1!$A$12:$B$1131,2,0) -> BOM JARDIM | D185: 14 | E185: COMUM - 1º GRUPO | F185: Div Ativ | G185: Não
B186: CAMBUCI-SAO JOSE DE UBA NUCLEO DA DIVIDA ATIVA | C186: =VLOOKUP(B186,[1]Planilha1!$A$12:$B$1131,2,0) -> CAMBUCI | D186: 14 | E186: COMUM - 1º GRUPO | F186: Div Ativ | G186: Não
B187: CANTAGALO NUCLEO DA DIVIDA ATIVA | C187: =VLOOKUP(B187,[1]Planilha1!$A$12:$B$1131,2,0) -> CANTAGALO | D187: 14 | E187: COMUM - 1º GRUPO | F187: Div Ativ | G187: Não
B188: CARAPEBUS/QUISSAMA NUCLEO DA DIVIDA ATIVA | C188: =VLOOKUP(B188,[1]Planilha1!$A$12:$B$1131,2,0) -> CARAPEBUS/QUISSAMA | D188: 14 | E188: COMUM - 1º GRUPO | F188: Div Ativ | G188: Não
B189: CARMO NUCLEO DA DIVIDA ATIVA | C189: =VLOOKUP(B189,[1]Planilha1!$A$12:$B$1131,2,0) -> CARMO | D189: 14 | E189: COMUM - 1º GRUPO | F189: Div Ativ | G189: Não
B190: CASIMIRO DE ABREU NUCLEO DA DIVIDA ATIVA | C190: =VLOOKUP(B190,[1]Planilha1!$A$12:$B$1131,2,0) -> CASIMIRO DE ABREU | D190: 14 | E190: COMUM - 1º GRUPO | F190: Div Ativ | G190: Não
B191: CONCEICAO DE MACABU NUCLEO DA DIVIDA ATIVA | C191: =VLOOKUP(B191,[1]Planilha1!$A$12:$B$1131,2,0) -> CONCEICAO DE MACABU | D191: 14 | E191: COMUM - 1º GRUPO | F191: Div Ativ | G191: Não
B192: CORDEIRO-MACUCO NUCLEO DA DIVIDA ATIVA | C192: =VLOOKUP(B192,[1]Planilha1!$A$12:$B$1131,2,0) -> CORDEIRO | D192: 14 | E192: COMUM - 1º GRUPO | F192: Div Ativ | G192: Não
B193: DUAS BARRAS NUCLEO DA DIVIDA ATIVA | C193: =VLOOKUP(B193,[1]Planilha1!$A$12:$B$1131,2,0) -> DUAS BARRAS | D193: 14 | E193: COMUM - 1º GRUPO | F193: Div Ativ | G193: Não
B194: ENGENHEIRO PAULO DE FRONTIN NUCLEO DA DIVIDA ATIVA | C194: =VLOOKUP(B194,[1]Planilha1!$A$12:$B$1131,2,0) -> ENGENHEIRO PAULO DE FRONTIN | D194: 14 | E194: COMUM - 1º GRUPO | F194: Div Ativ | G194: Não
B195: IGUABA GRANDE NUCLEO DA DIVIDA ATIVA | C195: =VLOOKUP(B195,[1]Planilha1!$A$12:$B$1131,2,0) -> IGUABA GRANDE | D195: 14 | E195: COMUM - 1º GRUPO | F195: Div Ativ | G195: Não
B196: ITALVA-CARDOSO MOREIRA NUCLEO DA DIVIDA ATIVA | C196: =VLOOKUP(B196,[1]Planilha1!$A$12:$B$1131,2,0) -> ITALVA | D196: 14 | E196: COMUM - 1º GRUPO | F196: Div Ativ | G196: Não
B197: ITAOCARA NUCLEO DA DIVIDA ATIVA | C197: =VLOOKUP(B197,[1]Planilha1!$A$12:$B$1131,2,0) -> ITAOCARA | D197: 14 | E197: COMUM - 1º GRUPO | F197: Div Ativ | G197: Não
B198: ITATIAIA NUCLEO DA DIVIDA ATIVA | C198: =VLOOKUP(B198,[1]Planilha1!$A$12:$B$1131,2,0) -> ITATIAIA | D198: 14 | E198: COMUM - 1º GRUPO | F198: Div Ativ | G198: Não
B199: LAJE DO MURIAE NUCLEO DA DIVIDA ATIVA | C199: =VLOOKUP(B199,[1]Planilha1!$A$12:$B$1131,2,0) -> LAJE DO MURIAE | D199: 14 | E199: COMUM - 1º GRUPO | F199: Div Ativ | G199: Não
B200: MANGARATIBA NUCLEO DA DIVIDA ATIVA | C200: =VLOOKUP(B200,[1]Planilha1!$A$12:$B$1131,2,0) -> MANGARATIBA | D200: 14 | E200: COMUM - 1º GRUPO | F200: Div Ativ | G200: Não
B201: MENDES NUCLEO DA DIVIDA ATIVA | C201: =VLOOKUP(B201,[1]Planilha1!$A$12:$B$1131,2,0) -> MENDES | D201: 14 | E201: COMUM - 1º GRUPO | F201: Div Ativ | G201: Não
... 646 more rows

Sheet Informações_
B10: Sumário
B12: Como usar o relatório | C12: Valor apresentado no relatório / Período | D12: Definição dos Indicadores e Índices
B13: Legenda das cores | C13: Critério das Cores
A16: Definição dos Indicadores e Índices
B22: Indicador | C22: Definição | J22: Índices CNJ | K22: Definição
B23: Acervo Geral | C23: Total de processos que compõem o Acervo Físico incluindo os processos com andamento de Remessa para qualquer destinatário com exceção daquelas com destinatários 1 (Ministério Público), 3 (Delegacia Policial) e 36 (R.C.P.N.) quando estiverem baixados. Serão retirados processos criminais sem recebimento de denúncia com remessa em aberto para os destinatários 1 (Ministério Público) ou 3 (Delegacia Policial). Serão retirados também processos com remessa aos tribunais e turmas recursais sem data de devolução. Não são contabilizados processos descartados. | J23: IAD | K23: Índice que mede a relação entre o número de processos baixados e o número de casos novos apresentados no mesmo período
B24: Acervo Físico | C24: Total de processos em andamento na Serventia. Excluem-se os processos secundários encerrados e os processos cujos últimos andamentos sejam: Arquivamento, Devolução de Carta Precatória, de Interpelação, de Justificação, de Protesto, de Justificação e de Notificação, Declínio de Competência, Remessa para qualquer destinatário, vista de autos e Pedido de Desarquivamento com a data de desarquivamento em branco | J24: IPS | K24: Índice obtido a partir da divisão do total de processos baixados pelo número de servidores
B25: Arquivados | C25: Quantidade de feitos arquivados pela serventia no período, incluindo aqueles que foram arquivados provisoriamente e de forma especial | J25: Taxa de Congestionamento de Conhecimento | K25: A taxa de congestionamento mede a efetividade do tribunal em um período, levando-se em conta o total de casos baixados e o estoque pendente
B26: Tombados Geral | C26: Total de processos distribuídos para a serventia, no período, incluindo-se Habilitações de Crédito (nas serventias com atribuição Empresarial), as cartas precatórias, notificações, interpelações, justificações, protestos, executivos fiscais e secundários, excluindo-se os processos redistribuídos | J26: Meta 1 | K26: Julgar quantidade maior de processos de conhecimento do que os distribuídos no ano corrente, excluídos os suspensos e sobrestados no ano corrente
B27: Audiências Realizadas | C27: Total de audiências realizadas na serventia, no período. | J27: Casos Pendentes no 1º Grau | K27: Indica o total de casos pendentes na primeira instância ao final do ano anterior ao ano-base, aferido conforme anexos da Resolução CNJ 76/2009, somando-se o 1º grau, e, quando aplicável ao ramo de justiça, os juizados especiais e as turmas recursais. Considera-se a soma dos processos de conhecimento e de execução
B28: Conclusões | C28: Total de processos na serventia com início de fase de conclusão e / ou remessa ao juiz vinculado / tabelar, no período Total de processos na serventia com conclusão aberta ao juiz titular ou vinculado / tabelar, no período
B29: Autos Conclusos + 30/100 dias | C29: Total de processos na Serventia, conclusos ao Juiz por mais de 30/100 dias, no período.
B30: Autos Paralisados + 30/90 dias | C30: Total de processos do Acervo Físico da serventia, sem movimentação há mais de 30/90 dias, na data de referência, excluindo-se os processos que estão aguardando audiência. Nas serventias com competência criminal, excluem-se os pronunciados foragidos e os processos em fase de execução penal na vara. Não são considerados processos suspensos.
B32: Redistribuídos Remetidos | C32: Total de processos redistribuídos pela serventia no período, excluindo-se as Habilitações de Crédito (nas serventias com atribuição Empresarial), as cartas precatórias, notificações, interpelações, justificações, protestos, executivos fiscais e secundários. | J32: Casos Novos no 1º Grau | K32: Indica o total de casos novos na primeira instância durante o ano-base, aferido conforme anexos da Resolução CNJ 76/2009, somando-se o 1º grau, e, quando aplicável ao ramo de justiça, os juizados especiais e as turmas recursais. Considera-se a soma dos processos de conhecimento e de execução.
B38: Fonte: Dicionário de Termos Estatísticos - TJRJ | J38: FONTE: CNJ
A41: Valor apresentado no relatório / Período
B47: Média dos últimos 12 meses (Jun/21 - Mai/22)
A51: Legenda das Cores
A63: Critérios das Cores
B69: Indicador | D69: Classificação
B70: Acervo Geral | D70: Se o valor apresentado pela serventia for maior que a média do grupo, cor vermelha. Caso ao contrário, verde.
B71: Autos conclusos + 30/100 dias
B72: Autos Paralisados + 30/90 dias
B73: % de autos Paralisados + 90 dias em relação ao Acerv Fis
B74: % de Autos Cls. + 30 dias em relação aos autos Paralisados + 30 dias
B75: Taxa de Congestionamento de Conhecimento
B76: Meta 1 2022 - Parcial | D76: Se o valor apresentado pela serventia for maior que a média do grupo ou maior que 100%, cor verde. Caso ao contrário vermelha.
B77: IAD
B78: IPS | D78: Se o valor apresentado pela serventia for maior que a média do grupo, cor verde. Caso ao contrário, vermelha.
B79: % de Arq/Acer Fis
B80: Conclusões
B81: Variação - Acervo Geral | D81: Se a variação apresentada for maior que 10%, cor vermelha. Caso ao contrário, verde.
A84: Como usar o relatório?

Sheet Tabela com os Grupos
B17: Serventias | C17: Grupo | D17: Pje
B18: CAPITAL 1 VARA CIVEL | C18: 1 | D18: Não
B19: CAPITAL 10 VARA CIVEL | C19: 1 | D19: Não
B20: CAPITAL 11 VARA CIVEL | C20: 1 | D20: Não
B21: CAPITAL 12 VARA CIVEL | C21: 1 | D21: Não
B22: CAPITAL 13 VARA CIVEL | C22: 1 | D22: Não
B23: CAPITAL 14 VARA CIVEL | C23: 1 | D23: Não
B24: CAPITAL 15 VARA CIVEL | C24: 1 | D24: Não
B25: CAPITAL 16 VARA CIVEL | C25: 1 | D25: Não
B26: CAPITAL 17 VARA CIVEL | C26: 1 | D26: Não
B27: CAPITAL 18 VARA CIVEL | C27: 1 | D27: Não
B28: CAPITAL 19 VARA CIVEL | C28: 1 | D28: Não
B29: CAPITAL 2 VARA CIVEL | C29: 1 | D29: Não
B30: CAPITAL 20 VARA CIVEL | C30: 1 | D30: Não
B31: CAPITAL 21 VARA CIVEL | C31: 1 | D31: Não
B32: CAPITAL 22 VARA CIVEL | C32: 1 | D32: Não
B33: CAPITAL 23 VARA CIVEL | C33: 1 | D33: Não
B34: CAPITAL 24 VARA CIVEL | C34: 1 | D34: Não
B35: CAPITAL 25 VARA CIVEL | C35: 1 | D35: Não
B36: CAPITAL 26 VARA CIVEL | C36: 1 | D36: Não
B37: CAPITAL 27 VARA CIVEL | C37: 1 | D37: Não
B38: CAPITAL 28 VARA CIVEL | C38: 1 | D38: Não
B39: CAPITAL 29 VARA CIVEL | C39: 1 | D39: Não
B40: CAPITAL 3 VARA CIVEL | C40: 1 | D40: Não
B41: CAPITAL 30 VARA CIVEL | C41: 1 | D41: Não
B42: CAPITAL 31 VARA CIVEL | C42: 1 | D42: Não
B43: CAPITAL 32 VARA CIVEL | C43: 1 | D43: Não
B44: CAPITAL 33 VARA CIVEL | C44: 1 | D44: Não
B45: CAPITAL 34 VARA CIVEL | C45: 1 | D45: Não
B46: CAPITAL 35 VARA CIVEL | C46: 1 | D46: Não
B47: CAPITAL 36 VARA CIVEL | C47: 1 | D47: Não
B48: CAPITAL 37 VARA CIVEL | C48: 1 | D48: Não
B49: CAPITAL 38 VARA CIVEL | C49: 1 | D49: Não
B50: CAPITAL 39 VARA CIVEL | C50: 1 | D50: Não
B51: CAPITAL 4 VARA CIVEL | C51: 1 | D51: Não
B52: CAPITAL 40 VARA CIVEL | C52: 1 | D52: Não
B53: CAPITAL 41 VARA CIVEL | C53: 1 | D53: Não
B54: CAPITAL 42 VARA CIVEL | C54: 1 | D54: Não
B55: CAPITAL 43 VARA CIVEL | C55: 1 | D55: Não
B56: CAPITAL 44 VARA CIVEL | C56: 1 | D56: Não
B57: CAPITAL 45 VARA CIVEL | C57: 1 | D57: Não
B58: CAPITAL 46 VARA CIVEL | C58: 1 | D58: Não
B59: CAPITAL 47 VARA CIVEL | C59: 1 | D59: Não
B60: CAPITAL 48 VARA CIVEL | C60: 1 | D60: Não
B61: CAPITAL 49 VARA CIVEL | C61: 1 | D61: Não
B62: CAPITAL 5 VARA CIVEL | C62: 1 | D62: Não
B63: CAPITAL 50 VARA CIVEL | C63: 1 | D63: Não
B64: CAPITAL 51 VARA CIVEL | C64: 1 | D64: Não
B65: CAPITAL 52 VARA CIVEL | C65: 1 | D65: Não
B66: CAPITAL 6 VARA CIVEL | C66: 1 | D66: Não
B67: CAPITAL 7 VARA CIVEL | C67: 1 | D67: Não
B68: CAPITAL 8 VARA CIVEL | C68: 1 | D68: Não
B69: CAPITAL 9 VARA CIVEL | C69: 1 | D69: Não
B70: CAPITAL 11 VARA CRIMINAL | C70: 2 | D70: Não
B71: CAPITAL 14 VARA CRIMINAL | C71: 2 | D71: Não
B72: CAPITAL 16 VARA CRIMINAL | C72: 2 | D72: Não
B73: CAPITAL 17 VARA CRIMINAL | C73: 2 | D73: Não
B74: CAPITAL 19 VARA CRIMINAL | C74: 2 | D74: Não
B75: CAPITAL 20 VARA CRIMINAL | C75: 2 | D75: Não
B76: CAPITAL 21 VARA CRIMINAL | C76: 2 | D76: Não
B77: CAPITAL 23 VARA CRIMINAL | C77: 2 | D77: Não
B78: CAPITAL 26 VARA CRIMINAL | C78: 2 | D78: Não
B79: CAPITAL 27 VARA CRIMINAL | C79: 2 | D79: Não
B80: CAPITAL 28 VARA CRIMINAL | C80: 2 | D80: Não
B81: CAPITAL 29 VARA CRIMINAL | C81: 2 | D81: Não
B82: CAPITAL 31 VARA CRIMINAL | C82: 2 | D82: Não
B83: CAPITAL 32 VARA CRIMINAL | C83: 2 | D83: Não
B84: CAPITAL 33 VARA CRIMINAL | C84: 2 | D84: Não
B85: CAPITAL 34 VARA CRIMINAL | C85: 2 | D85: Não
B86: CAPITAL 35 VARA CRIMINAL | C86: 2 | D86: Não
B87: CAPITAL 36 VARA CRIMINAL | C87: 2 | D87: Não
B88: CAPITAL 37 VARA CRIMINAL | C88: 2 | D88: Não
B89: CAPITAL 38 VARA CRIMINAL | C89: 2 | D89: Não
B90: CAPITAL 39 VARA CRIMINAL | C90: 2 | D90: Não
B91: CAPITAL 40 VARA CRIMINAL | C91: 2 | D91: Não
B92: CAPITAL 41 VARA CRIMINAL | C92: 2 | D92: Não
B93: CAPITAL 42 VARA CRIMINAL | C93: 2 | D93: Não
B94: CAPITAL 43 VARA CRIMINAL | C94: 2 | D94: Não
B95: CAPITAL 5 VARA CRIMINAL | C95: 2 | D95: Não
B96: CAPITAL 11 VARA FAZ PUBLICA | C96: 3 | D96: Não
B97: CAPITAL 17 VARA DE FAZENDA PUBLICA | C97: 3 | D97: Não
B98: CAPITAL 1 VARA EMPRESARIAL | C98: 4 | D98: Não
B99: CAPITAL 2 VARA EMPRESARIAL | C99: 4 | D99: Não
B100: CAPITAL 3 VARA EMPRESARIAL | C100: 4 | D100: Não
B101: CAPITAL 4 VARA EMPRESARIAL | C101: 4 | D101: Não
B102: CAPITAL 5 VARA EMPRESARIAL | C102: 4 | D102: Não
B103: CAPITAL 6 VARA EMPRESARIAL | C103: 4 | D103: Não
B104: CAPITAL 7 VARA EMPRESARIAL | C104: 4 | D104: Não
B105: CAPITAL 1 VARA DE FAMILIA | C105: 5 | D105: Não
B106: CAPITAL 10 VARA DE FAMILIA | C106: 5 | D106: Não
B107: CAPITAL 11 VARA DE FAMILIA | C107: 5 | D107: Não
B108: CAPITAL 12 VARA DE FAMILIA | C108: 5 | D108: Não
B109: CAPITAL 18 VARA DE FAMILIA | C109: 5 | D109: Não
B110: CAPITAL 2 VARA DE FAMILIA | C110: 5 | D110: Não
B111: CAPITAL 4 VARA DE FAMILIA | C111: 5 | D111: Não
B112: CAPITAL 5 VARA DE FAMILIA | C112: 5 | D112: Não
B113: CAPITAL 6 VARA DE FAMILIA | C113: 5 | D113: Não
B114: CAPITAL 9 VARA DE FAMILIA | C114: 5 | D114: Não
B115: CAPITAL 1 VARA FAZ PUBLICA | C115: 6 | D115: Não
B116: CAPITAL 10 VARA FAZ PUBLICA | C116: 6 | D116: Não
B117: CAPITAL 13 VARA FAZ PUBLICA | C117: 6 | D117: Não
B118: CAPITAL 14 VARA FAZ PUBLICA | C118: 6 | D118: Não
B119: CAPITAL 15 VARA FAZ PUBLICA | C119: 6 | D119: Não
B120: CAPITAL 16 VARA FAZ PUBLICA | C120: 6 | D120: Não
B121: CAPITAL 2 VARA FAZ PUBLICA | C121: 6 | D121: Não
B122: CAPITAL 3 VARA FAZ PUBLICA | C122: 6 | D122: Não
B123: CAPITAL 4 VARA FAZ PUBLICA | C123: 6 | D123: Não
B124: CAPITAL 5 VARA FAZ PUBLICA | C124: 6 | D124: Não
B125: CAPITAL 6 VARA FAZ PUBLICA | C125: 6 | D125: Não
B126: CAPITAL 7 VARA FAZ PUBLICA | C126: 6 | D126: Não
B127: CAPITAL 8 VARA FAZ PUBLICA | C127: 6 | D127: Não
B128: CAPITAL 9 VARA FAZ PUBLICA | C128: 6 | D128: Não
B129: CAPITAL 1 VARA INF JUV IDO | C129: 7 | D129: Não
B130: CAPITAL 2 VARA INF JUV IDO | C130: 7 | D130: Não
B131: CAPITAL I JUI ESP CIV | C131: 8 | D131: Sim
B132: CAPITAL II JUI ESP CIV | C132: 8 | D132: Sim
B133: CAPITAL III JUI ESP CIV | C133: 8 | D133: Sim
B134: CAPITAL IV JUI ESP CIV | C134: 8 | D134: Sim
B135: CAPITAL IX JUI ESP CIV (VILA ISABEL) | C135: 8 | D135: Sim
B136: CAPITAL V JUI ESP CIV/COPACABANA | C136: 8 | D136: Sim
B137: CAPITAL VI JUI ESP CIV | C137: 8 | D137: Sim
B138: CAPITAL VII JUI ESP CIV | C138: 8 | D138: Sim
B139: CAPITAL VIII JUI ESP CIV/TIJUCA | C139: 8 | D139: Sim
B140: CAPITAL XXI JUI ESP CIV | C140: 8 | D140: Sim
B141: CAPITAL XXIII JUI ESP CIV | C141: 8 | D141: Sim
B142: CAPITAL XXVII JUI ESP CIV | C142: 8 | D142: Sim
B143: CAPITAL I JUI ESP CRIM | C143: 9 | D143: Não
B144: CAPITAL III JUI ESP CRIM | C144: 9 | D144: Não
B145: CAPITAL IV JUI ESP CRIM | C145: 9 | D145: Não
B146: CAPITAL VIII JUI ESP CRIM | C146: 9 | D146: Não
B147: CAPITAL 1 VARA ORFAOS SUC | C147: 10 | D147: Não
B148: CAPITAL 11 VARA ORFAOS SUC | C148: 10 | D148: Não
B149: CAPITAL 12 VARA ORFAOS SUC | C149: 10 | D149: Não
B150: CAPITAL 2 VARA ORFAOS SUC | C150: 10 | D150: Não
B151: CAPITAL 3 VARA ORFAOS SUC | C151: 10 | D151: Não
B152: CAPITAL 4 VARA ORFAOS SUC | C152: 10 | D152: Não
B153: CAPITAL 5 VARA ORFAOS SUC | C153: 10 | D153: Não
B154: CAPITAL 6 VARA ORFAOS SUC | C154: 10 | D154: Não
B155: CAPITAL 7 VARA ORFAOS SUC | C155: 10 | D155: Não
B156: CAPITAL 1 VARA CRIMINAL | C156: 11 | D156: Não
B157: CAPITAL 2 VARA CRIMINAL | C157: 11 | D157: Não
B158: CAPITAL 3 VARA CRIMINAL | C158: 11 | D158: Não
B159: CAPITAL 4 VARA CRIMINAL | C159: 11 | D159: Não
B160: CAPITAL I J VIO DOM FAM | C160: 12 | D160: Não
B161: CAPITAL V J VIO DOM FAM | C161: 12 | D161: Não
B162: ARRAIAL DO CABO VARA UNICA | C162: 13 | D162: Parcialmente
B163: BOM JARDIM VARA UNICA | C163: 13 | D163: Parcialmente
B164: CAMBUCI-SAO JOSE DE UBA VARA UNICA | C164: 13 | D164: Parcialmente
B165: CANTAGALO VARA UNICA | C165: 13 | D165: Parcialmente
B166: CARAPEBUS/QUISSAMA VARA UNICA | C166: 13 | D166: Parcialmente
B167: CARMO VARA UNICA | C167: 13 | D167: Parcialmente
B168: CASIMIRO DE ABREU VARA UNICA | C168: 13 | D168: Parcialmente
B169: CONCEICAO DE MACABU VARA UNICA | C169: 13 | D169: Parcialmente
B170: CORDEIRO-MACUCO VARA UNICA | C170: 13 | D170: Parcialmente
B171: DUAS BARRAS VARA UNICA | C171: 13 | D171: Parcialmente
B172: ENGENHEIRO PAULO DE FRONTIN VARA UNICA | C172: 13 | D172: Parcialmente
B173: IGUABA GRANDE VARA UNICA | C173: 13 | D173: Parcialmente
B174: ITALVA-CARDOSO MOREIRA VARA UNICA | C174: 13 | D174: Parcialmente
B175: ITAOCARA VARA UNICA | C175: 13 | D175: Parcialmente
B176: ITATIAIA VARA UNICA | C176: 13 | D176: Parcialmente
B177: LAJE DO MURIAE VARA UNICA | C177: 13 | D177: Parcialmente
B178: MANGARATIBA VARA UNICA | C178: 13 | D178: Parcialmente
B179: MENDES VARA UNICA | C179: 13 | D179: Parcialmente
B180: MIGUEL PEREIRA VARA UNICA | C180: 13 | D180: Parcialmente
B181: NATIVIDADE-VARRE-SAI VARA UNICA | C181: 13 | D181: Parcialmente
B182: PARACAMBI VARA UNICA | C182: 13 | D182: Parcialmente
B183: PARATY VARA UNICA | C183: 13 | D183: Parcialmente
B184: PATY DO ALFERES VARA UNICA | C184: 13 | D184: Parcialmente
B185: PINHEIRAL VARA UNICA | C185: 13 | D185: Parcialmente
B186: PIRAI VARA UNICA | C186: 13 | D186: Parcialmente
B187: PORCIUNCULA VARA UNICA | C187: 13 | D187: Parcialmente
B188: PORTO REAL/QUATIS VARA UNICA | C188: 13 | D188: Parcialmente
B189: RIO CLARO VARA UNICA | C189: 13 | D189: Parcialmente
B190: RIO DAS FLORES VARA UNICA | C190: 13 | D190: Parcialmente
B191: SANTA MARIA MADALENA VARA UNICA | C191: 13 | D191: Parcialmente
B192: SAO FRANCISCO DE ITABAPOANA VARA UNICA | C192: 13 | D192: Parcialmente
B193: SAO JOSE DO VALE DO RIO PRETO VARA UNICA | C193: 13 | D193: Parcialmente
B194: SAO SEBASTIAO DO ALTO VARA UNICA | C194: 13 | D194: Parcialmente
B195: SAPUCAIA VARA UNICA | C195: 13 | D195: Parcialmente
B196: SILVA JARDIM VARA UNICA | C196: 13 | D196: Parcialmente
B197: SUMIDOURO VARA UNICA | C197: 13 | D197: Parcialmente
B198: TRAJANO DE MORAES VARA UNICA | C198: 13 | D198: Parcialmente
B199: ARRAIAL DO CABO NUCLEO DA DIVIDA ATIVA | C199: 14 | D199: Não
B200: BOM JARDIM NUCLEO DA DIVIDA ATIVA | C200: 14 | D200: Não
B201: CAMBUCI-SAO JOSE DE UBA NUCLEO DA DIVIDA ATIVA | C201: 14 | D201: Não
B202: CANTAGALO NUCLEO DA DIVIDA ATIVA | C202: 14 | D202: Não
B203: CARAPEBUS/QUISSAMA NUCLEO DA DIVIDA ATIVA | C203: 14 | D203: Não
B204: CARMO NUCLEO DA DIVIDA ATIVA | C204: 14 | D204: Não
B205: CASIMIRO DE ABREU NUCLEO DA DIVIDA ATIVA | C205: 14 | D205: Não
B206: CONCEICAO DE MACABU NUCLEO DA DIVIDA ATIVA | C206: 14 | D206: Não
B207: CORDEIRO-MACUCO NUCLEO DA DIVIDA ATIVA | C207: 14 | D207: Não
B208: DUAS BARRAS NUCLEO DA DIVIDA ATIVA | C208: 14 | D208: Não
B209: ENGENHEIRO PAULO DE FRONTIN NUCLEO DA DIVIDA ATIVA | C209: 14 | D209: Não
B210: IGUABA GRANDE NUCLEO DA DIVIDA ATIVA | C210: 14 | D210: Não
B211: ITALVA-CARDOSO MOREIRA NUCLEO DA DIVIDA ATIVA | C211: 14 | D211: Não
B212: ITAOCARA NUCLEO DA DIVIDA ATIVA | C212: 14 | D212: Não
B213: ITATIAIA NUCLEO DA DIVIDA ATIVA | C213: 14 | D213: Não
B214: LAJE DO MURIAE NUCLEO DA DIVIDA ATIVA | C214: 14 | D214: Não
B215: MANGARATIBA NUCLEO DA DIVIDA ATIVA | C215: 14 | D215: Não
B216: MENDES NUCLEO DA DIVIDA ATIVA | C216: 14 | D216: Não
... 648 more rows

Sheet Tabela de Comparação
D30: Acervo Geral (a) | L30: Acervo Físico (b) | V30: 1 | AE30: Autos Conclusos | AM30: Autos Paralisados | AY30: Lotação | BB30: Fiscalição/GEAP-C | BD30: Farol
A31: Serventia | B31: Grupo | C31: PJe? | D31: Físico (Média) | E31: Eletrônico (Média) | F31: Média no período (I) | H31: Último Mês (II) | J31: Variação % (I) - (II) | L31: Média no período | M31: Último Mês | N31: Proc. fora do Acer Fis (a) - (b) (Último mês) | O31: Arq (Média) | P31: Tombados Geral (Média) | Q31: Meta 1 2021 | R31: Meta 1 2022 (Parcial) | S31: Meta 1 2022 Cor | T31: IAD (Média) | V31: IPS (Média) | X31: Tx. Congestionamento (Média) | Z31: % de Arq/Acer Fis (Média) | AB31: Aud. Real. (Média) | AC31: Conclusões (Média) | AE31: 30 (Média) | AG31: 100 (Média) | AI31: 30 (Último Mês) | AK31: 100 (Último Mês) | AM31: 30 (Média) | AO31: 90 (Média) | AQ31: 30 (Último Mês) | AS31: 90 (Último Mês) | AU31: **% de Autos Paralisados + 90 dias em relação ao Acer Fis (Último mês) | AW31: % de Autos Cls. + 30 dias em relação aos Autos Paralisados + 30 dias (Último Mês) | AY31: Atual | AZ31: Ideal | BA31: Deficitária? | BB31: Fiscalização (Sim/Não) | BC31: GEAP-C (Sim/Não)
A32: Média do Grupo | D32: =SUBTOTAL(1,Tabela32[Físico (Média)]) -> 1468.401975 | E32: =SUBTOTAL(1,Tabela32[Eletrônico (Média)]) -> 7119.028909 | F32: =SUBTOTAL(1,Tabela32[Média no período (I)]) -> 8649.072683 | H32: =SUBTOTAL(1,Tabela32[Último Mês (II)]) -> 8652.31882 | J32: =SUBTOTAL(1,Tabela32[Variação (I) - (II)]) -> -0.006219273968 | K32: 0.1 | L32: =SUBTOTAL(1,Tabela32[Média no período]) -> 8245.933169 | M32: =SUBTOTAL(1,Tabela32[Último Mês]) -> 8197.338483 | N32: =SUBTOTAL(1,Tabela32[Proc. fora do Acer Fis (a) - (b) (Último mês)]) -> 454.9803371 | O32: =SUBTOTAL(1,Tabela32[Arq (Média)]) -> 200.159059 | P32: =SUBTOTAL(1,Tabela32[Tombados Geral (Média)]) -> 158.1757959 | Q32: =SUBTOTAL(1,Tabela32[Meta 1 2021]) -> 0.9007968916 | R32: =SUBTOTAL(1,Tabela32[Meta 1 2022 (Parcial) ]) ->  | T32: =SUBTOTAL(1,Tabela32[IAD (Média)]) -> 3.759844093 | V32: =SUBTOTAL(1,Tabela32[IPS (Média)]) ->  | X32: =SUBTOTAL(1,Tabela32[Tx. Congestionamento (Média)]) -> 0.7317669753 | Z32: =SUBTOTAL(1,Tabela32[% de Arq/Acer Fis (Média)]) -> 0.04102638045 | AB32: =SUBTOTAL(1,Tabela32[Aud. Real. (Média)]) -> 25.75362828 | AC32: =SUBTOTAL(1,Tabela32[Conclusões (Média)]) -> 976.1086142 | AE32: =SUBTOTAL(1,Tabela32[30 (Média)]) -> 77.22565543 | AG32: =SUBTOTAL(1,Tabela32[100 (Média)]) -> 30.4082397 | AI32: =SUBTOTAL(1,Tabela32[30 (Último Mês)]) -> 82.75280899 | AK32: =SUBTOTAL(1,Tabela32[100 (Último Mês)]) -> 28.83146067 | AM32: =SUBTOTAL(1,Tabela32[30 (Média) ]) -> 5174.130267 | AO32: =SUBTOTAL(1,Tabela32[90 (Média)]) -> 3299.301147 | AQ32: =SUBTOTAL(1,Tabela32[ 30 (Último Mês)]) -> 5039.855337 | AS32: =SUBTOTAL(1,Tabela32[ 90 (Último Mês)2]) -> 3271.956461 | AU32: =SUBTOTAL(1,Tabela32[**% de Autos Paralisados + 90 dias em relação ao Acer Fis (Último mês)]) -> 0.1387518861 | AW32: =SUBTOTAL(1,Tabela32[**% de Autos Cls. + 30 dias em relação aos Autos Paralisados + 30 dias (Último Mês)]) -> 0.04849593934
A33: Mediana do Grupo | D33: =_xlfn.AGGREGATE(12,5,Tabela32[Físico (Média)]) -> 589.75 | E33: =_xlfn.AGGREGATE(12,5,Tabela32[Eletrônico (Média)]) -> 3286.291667 | F33: =_xlfn.AGGREGATE(12,5,Tabela32[Média no período (I)]) -> 4125.375 | H33: =_xlfn.AGGREGATE(12,5,Tabela32[Último Mês (II)]) -> 4114 | J33: =_xlfn.AGGREGATE(12,5,Tabela32[Variação (I) - (II)]) -> -0.008468275484 | L33: =_xlfn.AGGREGATE(12,5,Tabela32[Média no período]) -> 3937.666667 | M33: =_xlfn.AGGREGATE(12,5,Tabela32[Último Mês]) -> 3868 | N33: =_xlfn.AGGREGATE(12,5,Tabela32[Proc. fora do Acer Fis (a) - (b) (Último mês)]) -> 124 | O33: =_xlfn.AGGREGATE(12,5,Tabela32[Arq (Média)]) -> 93.375 | P33: =_xlfn.AGGREGATE(12,5,Tabela32[Tombados Geral (Média)]) -> 88.79166667 | Q33: =_xlfn.AGGREGATE(12,5,Tabela32[Meta 1 2021]) -> 0.8842337376 | R33: =_xlfn.AGGREGATE(12,5,Tabela32[Meta 1 2022 (Parcial) ]) ->  | T33: =_xlfn.AGGREGATE(12,5,Tabela32[IAD (Média)]) -> 1.365465549 | V33: =_xlfn.AGGREGATE(12,5,Tabela32[IPS (Média)]) ->  | X33: =_xlfn.AGGREGATE(12,5,Tabela32[Tx. Congestionamento (Média)]) -> 0.7504894886 | Z33: =_xlfn.AGGREGATE(12,5,Tabela32[% de Arq/Acer Fis (Média)]) -> 0.02683736998 | AA33: =_xlfn.AGGREGATE(12,5,Tabela32[% de Arq/Acer Fis2]) ->  | AB33: =_xlfn.AGGREGATE(12,5,Tabela32[Aud. Real. (Média)]) -> 12.20833333 | AC33: =_xlfn.AGGREGATE(12,5,Tabela32[Conclusões (Média)]) -> 802.7916667 | AD33: =_xlfn.AGGREGATE(12,5,Tabela32[Conclusões2]) ->  | AE33: =_xlfn.AGGREGATE(12,5,Tabela32[30 (Média)]) -> 3.375 | AG33: =_xlfn.AGGREGATE(12,5,Tabela32[100 (Média)]) -> 0 | AI33: =_xlfn.AGGREGATE(12,5,Tabela32[30 (Último Mês)]) -> 2 | AK33: =_xlfn.AGGREGATE(12,5,Tabela32[100 (Último Mês)]) -> 0 | AM33: =_xlfn.AGGREGATE(12,5,Tabela32[30 (Média) ]) -> 1412.916667 | AO33: =_xlfn.AGGREGATE(12,5,Tabela32[90 (Média)]) -> 326.0416667 | AQ33: =_xlfn.AGGREGATE(12,5,Tabela32[ 30 (Último Mês)]) -> 1087 | AS33: =_xlfn.AGGREGATE(12,5,Tabela32[ 90 (Último Mês)2]) -> 166 | AU33: =_xlfn.AGGREGATE(12,5,Tabela32[**% de Autos Paralisados + 90 dias em relação ao Acer Fis (Último mês)]) -> 0.0615381786 | AW33: =_xlfn.AGGREGATE(12,5,Tabela32[**% de Autos Cls. + 30 dias em relação aos Autos Paralisados + 30 dias (Último Mês)]) -> 0.001465239999
A34: Serventia | B34: Grupo | C34: PJe? | D34: Físico (Média) | E34: Eletrônico (Média) | F34: Média no período (I) | G34: Cor | H34: Último Mês (II) | I34: Acervo Geral | J34: Variação (I) - (II) | K34: Variação - Cor | L34: Média no período | M34: Último Mês | N34: Proc. fora do Acer Fis (a) - (b) (Último mês) | O34: Arq (Média) | P34: Tombados Geral (Média) | Q34: Meta 1 2021 | R34: Meta 1 2022 (Parcial) | S34: Meta 1 Parcial Cor | T34: IAD (Média) | U34: IAD | V34: IPS (Média) | W34: IPS | X34: Tx. Congestionamento (Média) | Y34: ***Tx. Congestionamento2 | Z34: % de Arq/Acer Fis (Média) | AA34: % de Arq/Acer Fis2 | AB34: Aud. Real. (Média) | AC34: Conclusões (Média) | AD34: Conclusões2 | AE34: 30 (Média) | AF34: 30_ | AG34: 100 (Média) | AH34: 100_ | AI34: 30 (Último Mês) | AJ34: 30 Último Mês2 | AK34: 100 (Último Mês) | AL34: 100 Último Mês2 | AM34: 30 (Média) | AN34: 30__ | AO34: 90 (Média) | AP34: 90_____ | AQ34: 30 (Último Mês) | AR34: Último Mês6 | AS34: 90 (Último Mês)2 | AT34: Último Mês2 | AU34: **% de Autos Paralisados + 90 dias em relação ao Acer Fis (Último mês) | AV34: **% de Autos Paralisados + 90 dias em relação ao Acer Fis2 | AW34: **% de Autos Cls. + 30 dias em relação aos Autos Paralisados + 30 dias (Último Mês) | AX34: **% de Autos Cls. + 30 dias em relação aos Autos Paralisados + 30 dias2 | AY34: Atual | AZ34: Ideal | BA34: Deficitária? | BB34: Fiscalização (Sim/Não) | BC34: GEAP-C (Sim/Não) | BE34: 2
A35: CAPITAL 1 VARA CIVEL | B35: =VLOOKUP(Tabela32[[#This Row],[Serventia]],'Base_Critérios de Consulta'!$B$3:$D$868,3,0) -> 1 | C35: =VLOOKUP(Tabela32[[#This Row],[Serventia]],'Base_Critérios de Consulta'!$B$3:$G$868,6,0) -> Não | D35: =IFERROR(VLOOKUP(Tabela32[[#This Row],[Serventia]],'Acervo Geral - Físico'!$A$6:$N$1098,14,0),"-") -> 38.58333333 | E35: =VLOOKUP(Tabela32[[#This Row],[Serventia]],'Acervo Geral - Eletrônico'!$A$6:$N$1030,14,0) -> 3326 | F35: =VLOOKUP(Tabela32[[#This Row],[Serventia]],'Acervo Geral - TOTAL'!$A$6:$N$1141,14,0) -> 3364.583333 | G35: =VLOOKUP(Tabela32[[#This Row],[Serventia]],'Definição das cores'!$B$13160:$E$13887,4,0) -> Verde | H35: =VLOOKUP(Tabela32[[#This Row],[Serventia]],'Acervo Geral - TOTAL'!$A$6:$M$1141,13,0) -> 3412 | I35: =VLOOKUP(Tabela32[[#This Row],[Serventia]],'Definição das cores'!$B$5:$E$731,4,0) -> Verde | J35: =(Tabela32[[#This Row],[Último Mês (II)]]/Tabela32[[#This Row],[Média no período (I)]])-1 -> 0.01409287926 | K35: =VLOOKUP(Tabela32[[#This Row],[Serventia]],'Definição das cores'!$A$737:$C$1462,3,0) -> Verde | L35: =VLOOKUP(Tabela32[[#This Row],[Serventia]],'Acervo Físico - TOTAL'!$A$6:$N$1141,14,0) -> 3335.416667 | M35: =VLOOKUP(Tabela32[[#This Row],[Serventia]],'Acervo Físico - TOTAL'!$A$6:$N$1141,13,0) -> 3353 | N35: =Tabela32[[#This Row],[Último Mês (II)]]-Tabela32[[#This Row],[Último Mês]] -> 59 | O35: =VLOOKUP(Tabela32[[#This Row],[Serventia]],Arquivados!$A$6:$N$1141,14,0) -> 44.33333333 | P35: =VLOOKUP(Tabela32[[#This Row],[Serventia]],'Tombados Geral '!$A$6:$N$1141,14,0) -> 80.91666667 | Q35: =VLOOKUP(Tabela32[[#This Row],[Serventia]],Tabela6[],3,0) -> 1.068820225 | R35: =VLOOKUP(Tabela32[[#This Row],[Serventia]],'Meta 1 - 2022'!$B$2:$D$859,3,0) -> 0 | S35: =VLOOKUP(Tabela32[[#This Row],[Serventia]],'Definição das cores'!$B$4393:$E$5113,4,0) -> Verde | T35: =VLOOKUP(Tabela32[[#This Row],[Serventia]],IAD!$A$10:$N$940,14,0) -> 2.067620759 | U35: =VLOOKUP(Tabela32[[#This Row],[Serventia]],'Definição das cores'!$B$1468:$E$2190,4,0) -> Verde | V35: =VLOOKUP(Tabela32[[#This Row],[Serventia]],IPS!$A$10:$N$940,14,0) ->  | W35: =VLOOKUP(Tabela32[[#This Row],[Serventia]],'Definição das cores'!$B$5124:$E$5846,4,0) ->  | X35: =VLOOKUP(Tabela32[[#This Row],[Serventia]],'Taxa De Congestionamento'!$A$3:$N$884,14,0) -> 0.6861409463 | Y35: =VLOOKUP(Tabela32[[#This Row],[Serventia]],'Definição das cores'!$B$2202:$E$2922,4,0) -> Verde | Z35: =Tabela32[[#This Row],[Arq (Média)]]/Tabela32[[#This Row],[Média no período]] -> 0.01329169269 | AA35: =VLOOKUP(Tabela32[[#This Row],[Serventia]],'Definição das cores'!$B$5856:$E$6582,4,0) -> Vermelho | AB35: =VLOOKUP(Tabela32[[#This Row],[Serventia]],'Aud. Real.'!$A$6:$N$1141,14,0) -> 5.166666667 | AC35: =VLOOKUP(Tabela32[[#This Row],[Serventia]],Conclusão!$A$6:$N$1141,14,0) -> 1196.5 | AD35: =VLOOKUP(Tabela32[[#This Row],[Serventia]],'Definição das cores'!$B$6587:$E$7312,4,0) -> Verde | AE35: =VLOOKUP(Tabela32[[#This Row],[Serventia]],'Autos Conclusos + 30 '!$A$6:$N$1141,14,0) -> 151.8333333 | AF35: =VLOOKUP(Tabela32[[#This Row],[Serventia]],'Definição das cores'!$B$7317:$E$8041,4,0) -> Vermelho | AG35: =VLOOKUP(Tabela32[[#This Row],[Serventia]],'Autos Conclusos + 100'!$A$6:$N$1141,14,0) -> 77.25 | AH35: =VLOOKUP(Tabela32[[#This Row],[Serventia]],'Definição das cores'!$B$8046:$E$8771,4,0) -> Vermelho | AI35: =VLOOKUP(Tabela32[[#This Row],[Serventia]],'Autos Conclusos + 30 '!$A$5:$N$1141,13,0) -> 97 | AJ35: =VLOOKUP(Tabela32[[#This Row],[Serventia]],'Definição das cores'!$B$8046:$E$8771,4,0) -> Vermelho | AK35: =VLOOKUP(Tabela32[[#This Row],[Serventia]],'Autos Conclusos + 100'!$A$5:$N$1141,13,0) -> 47 | AL35: =VLOOKUP(Tabela32[[#This Row],[Serventia]],'Definição das cores'!$B$9506:$E$10231,4,0) -> Verde | AM35: =VLOOKUP(Tabela32[[#This Row],[Serventia]],'Autos Paralisados + 30'!$A$6:$N$1141,14,0) -> 1033.5 | AN35: =VLOOKUP(Tabela32[[#This Row],[Serventia]],'Definição das cores'!$B$10236:$E$10961,4,0) -> Verde | AO35: =VLOOKUP(Tabela32[[#This Row],[Serventia]],'Autos Paralisados + 90'!$A$6:$N$1141,14,0) -> 206.4166667 | AP35: =VLOOKUP(Tabela32[[#This Row],[Serventia]],'Definição das cores'!$B$10967:$E$11692,4,0) -> Verde | AQ35: =VLOOKUP(Tabela32[[#This Row],[Serventia]],'Autos Paralisados + 30'!$A$6:$N$1141,13,0) -> 996 | AR35: =VLOOKUP(Tabela32[[#This Row],[Serventia]],'Definição das cores'!$B$11698:$E$12423,4,0) -> Vermelho | AS35: =VLOOKUP(Tabela32[[#This Row],[Serventia]],'Autos Paralisados + 90'!$A$6:$N$1141,13,0) -> 99 | AT35: =VLOOKUP(Tabela32[[#This Row],[Serventia]],'Definição das cores'!$B$12428:$E$13155,4,0) -> Verde | AU35: =Tabela32[[#This Row],[ 90 (Último Mês)2]]/Tabela32[[#This Row],[Último Mês]] -> 0.02952579779 | AV35: =VLOOKUP(Tabela32[[#This Row],[Serventia]],'Definição das cores'!$B$3664:$E$4389,4,0) -> Verde | AW35: =IFERROR(Tabela32[[#This Row],[30 (Último Mês)]]/Tabela32[[#This Row],[ 30 (Último Mês)]],"-") -> 0.09738955823 | AX35: =VLOOKUP(Tabela32[[#This Row],[Serventia]],'Definição das cores'!$B$2932:$E$3660,4,0) -> Vermelho | AY35: =VLOOKUP(Tabela32[[#This Row],[Serventia]],Lotação!$A$12:$D$2844,4,0) ->  | AZ35: =IFERROR(ROUND(VLOOKUP(Tabela32[[#This Row],[Serventia]],Tabela8[],2,0),0),"N/A") -> 6 | BA35: =IF(Tabela32[[#This Row],[Ideal]]="N/A","N/A",IF(Tabela32[[#This Row],[Atual]]>=Tabela32[[#This Row],[Ideal]],"Não",IF(Tabela32[[#This Row],[Atual]]<Tabela32[[#This Row],[Ideal]],"Sim"))) ->  | BB35: =VLOOKUP(Tabela32[[#This Row],[Serventia]],Tabela4[],8,0) -> Não | BC35: =VLOOKUP(Tabela32[[#This Row],[Serventia]],Tabela5[],15,0) ->  | BD35: =VLOOKUP(Tabela32[[#This Row],[Serventia]],'Definição das cores'!$A$13890:$J$14735,9,0) -> 5/6 | BE35: =VLOOKUP(Tabela32[[#This Row],[Serventia]],'Definição das cores'!$A$13890:$J$14735,10,0) -> 1/6
A36: CAPITAL 10 VARA CIVEL | B36: =VLOOKUP(Tabela32[[#This Row],[Serventia]],'Base_Critérios de Consulta'!$B$3:$D$868,3,0) -> 1 | C36: =VLOOKUP(Tabela32[[#This Row],[Serventia]],'Base_Critérios de Consulta'!$B$3:$G$868,6,0) -> Não | D36: =IFERROR(VLOOKUP(Tabela32[[#This Row],[Serventia]],'Acervo Geral - Físico'!$A$6:$N$1098,14,0),"-") -> 120.25 | E36: =VLOOKUP(Tabela32[[#This Row],[Serventia]],'Acervo Geral - Eletrônico'!$A$6:$N$1030,14,0) -> 3963.833333 | F36: =VLOOKUP(Tabela32[[#This Row],[Serventia]],'Acervo Geral - TOTAL'!$A$6:$N$1141,14,0) -> 4084.083333 | G36: =VLOOKUP(Tabela32[[#This Row],[Serventia]],'Definição das cores'!$B$13160:$E$13887,4,0) -> Vermelho | H36: =VLOOKUP(Tabela32[[#This Row],[Serventia]],'Acervo Geral - TOTAL'!$A$6:$M$1141,13,0) -> 4037 | I36: =VLOOKUP(Tabela32[[#This Row],[Serventia]],'Definição das cores'!$B$5:$E$731,4,0) -> Vermelho | J36: =(Tabela32[[#This Row],[Último Mês (II)]]/Tabela32[[#This Row],[Média no período (I)]])-1 -> -0.01152849477 | K36: =VLOOKUP(Tabela32[[#This Row],[Serventia]],'Definição das cores'!$A$737:$C$1462,3,0) -> Verde | L36: =VLOOKUP(Tabela32[[#This Row],[Serventia]],'Acervo Físico - TOTAL'!$A$6:$N$1141,14,0) -> 4059.333333 | M36: =VLOOKUP(Tabela32[[#This Row],[Serventia]],'Acervo Físico - TOTAL'!$A$6:$N$1141,13,0) -> 4016 | N36: =Tabela32[[#This Row],[Último Mês (II)]]-Tabela32[[#This Row],[Último Mês]] -> 21 | O36: =VLOOKUP(Tabela32[[#This Row],[Serventia]],Arquivados!$A$6:$N$1141,14,0) -> 69.25 | P36: =VLOOKUP(Tabela32[[#This Row],[Serventia]],'Tombados Geral '!$A$6:$N$1141,14,0) -> 81.83333333 | Q36: =VLOOKUP(Tabela32[[#This Row],[Serventia]],Tabela6[],3,0) -> 0.8280605227 | R36: =VLOOKUP(Tabela32[[#This Row],[Serventia]],'Meta 1 - 2022'!$B$2:$D$859,3,0) -> 0 | S36: =VLOOKUP(Tabela32[[#This Row],[Serventia]],'Definição das cores'!$B$4393:$E$5113,4,0) -> Verde | T36: =VLOOKUP(Tabela32[[#This Row],[Serventia]],IAD!$A$10:$N$940,14,0) -> 1.909074026 | U36: =VLOOKUP(Tabela32[[#This Row],[Serventia]],'Definição das cores'!$B$1468:$E$2190,4,0) -> Verde | V36: =VLOOKUP(Tabela32[[#This Row],[Serventia]],IPS!$A$10:$N$940,14,0) ->  | W36: =VLOOKUP(Tabela32[[#This Row],[Serventia]],'Definição das cores'!$B$5124:$E$5846,4,0) ->  | X36: =VLOOKUP(Tabela32[[#This Row],[Serventia]],'Taxa De Congestionamento'!$A$3:$N$884,14,0) -> 0.7969198454 | Y36: =VLOOKUP(Tabela32[[#This Row],[Serventia]],'Definição das cores'!$B$2202:$E$2922,4,0) -> Vermelho | Z36: =Tabela32[[#This Row],[Arq (Média)]]/Tabela32[[#This Row],[Média no período]] -> 0.01705945147 | AA36: =VLOOKUP(Tabela32[[#This Row],[Serventia]],'Definição das cores'!$B$5856:$E$6582,4,0) -> Verde | AB36: =VLOOKUP(Tabela32[[#This Row],[Serventia]],'Aud. Real.'!$A$6:$N$1141,14,0) -> 1.916666667 | AC36: =VLOOKUP(Tabela32[[#This Row],[Serventia]],Conclusão!$A$6:$N$1141,14,0) -> 1148.833333 | AD36: =VLOOKUP(Tabela32[[#This Row],[Serventia]],'Definição das cores'!$B$6587:$E$7312,4,0) -> Verde | AE36: =VLOOKUP(Tabela32[[#This Row],[Serventia]],'Autos Conclusos + 30 '!$A$6:$N$1141,14,0) -> 48.5 | AF36: =VLOOKUP(Tabela32[[#This Row],[Serventia]],'Definição das cores'!$B$7317:$E$8041,4,0) -> Verde | AG36: =VLOOKUP(Tabela32[[#This Row],[Serventia]],'Autos Conclusos + 100'!$A$6:$N$1141,14,0) -> 8.25 | AH36: =VLOOKUP(Tabela32[[#This Row],[Serventia]],'Definição das cores'!$B$8046:$E$8771,4,0) -> Verde | AI36: =VLOOKUP(Tabela32[[#This Row],[Serventia]],'Autos Conclusos + 30 '!$A$5:$N$1141,13,0) -> 70 | AJ36: =VLOOKUP(Tabela32[[#This Row],[Serventia]],'Definição das cores'!$B$8046:$E$8771,4,0) -> Verde | AK36: =VLOOKUP(Tabela32[[#This Row],[Serventia]],'Autos Conclusos + 100'!$A$5:$N$1141,13,0) -> 6 | AL36: =VLOOKUP(Tabela32[[#This Row],[Serventia]],'Definição das cores'!$B$9506:$E$10231,4,0) -> Verde | AM36: =VLOOKUP(Tabela32[[#This Row],[Serventia]],'Autos Paralisados + 30'!$A$6:$N$1141,14,0) -> 1900 | AN36: =VLOOKUP(Tabela32[[#This Row],[Serventia]],'Definição das cores'!$B$10236:$E$10961,4,0) -> Vermelho | AO36: =VLOOKUP(Tabela32[[#This Row],[Serventia]],'Autos Paralisados + 90'!$A$6:$N$1141,14,0) -> 937.8333333 | AP36: =VLOOKUP(Tabela32[[#This Row],[Serventia]],'Definição das cores'!$B$10967:$E$11692,4,0) -> Vermelho | AQ36: =VLOOKUP(Tabela32[[#This Row],[Serventia]],'Autos Paralisados + 30'!$A$6:$N$1141,13,0) -> 1352 | AR36: =VLOOKUP(Tabela32[[#This Row],[Serventia]],'Definição das cores'!$B$11698:$E$12423,4,0) -> Vermelho | AS36: =VLOOKUP(Tabela32[[#This Row],[Serventia]],'Autos Paralisados + 90'!$A$6:$N$1141,13,0) -> 819 | AT36: =VLOOKUP(Tabela32[[#This Row],[Serventia]],'Definição das cores'!$B$12428:$E$13155,4,0) -> Vermelho | AU36: =Tabela32[[#This Row],[ 90 (Último Mês)2]]/Tabela32[[#This Row],[Último Mês]] -> 0.2039342629 | AV36: =VLOOKUP(Tabela32[[#This Row],[Serventia]],'Definição das cores'!$B$3664:$E$4389,4,0) -> Vermelho | AW36: =IFERROR(Tabela32[[#This Row],[30 (Último Mês)]]/Tabela32[[#This Row],[ 30 (Último Mês)]],"-") -> 0.05177514793 | AX36: =VLOOKUP(Tabela32[[#This Row],[Serventia]],'Definição das cores'!$B$2932:$E$3660,4,0) -> Verde | AY36: =VLOOKUP(Tabela32[[#This Row],[Serventia]],Lotação!$A$12:$D$2844,4,0) ->  | AZ36: =IFERROR(ROUND(VLOOKUP(Tabela32[[#This Row],[Serventia]],Tabela8[],2,0),0),"N/A") -> 6 | BA36: =IF(Tabela32[[#This Row],[Ideal]]="N/A","N/A",IF(Tabela32[[#This Row],[Atual]]>=Tabela32[[#This Row],[Ideal]],"Não",IF(Tabela32[[#This Row],[Atual]]<Tabela32[[#This Row],[Ideal]],"Sim"))) ->  | BB36: =VLOOKUP(Tabela32[[#This Row],[Serventia]],Tabela4[],8,0) -> Não | BC36: =VLOOKUP(Tabela32[[#This Row],[Serventia]],Tabela5[],15,0) ->  | BD36: =VLOOKUP(Tabela32[[#This Row],[Serventia]],'Definição das cores'!$A$13890:$J$14735,9,0) -> 3/6 | BE36: =VLOOKUP(Tabela32[[#This Row],[Serventia]],'Definição das cores'!$A$13890:$J$14735,10,0) -> 3/6
A37: CAPITAL 11 VARA CIVEL | B37: =VLOOKUP(Tabela32[[#This Row],[Serventia]],'Base_Critérios de Consulta'!$B$3:$D$868,3,0) -> 1 | C37: =VLOOKUP(Tabela32[[#This Row],[Serventia]],'Base_Critérios de Consulta'!$B$3:$G$868,6,0) -> Não | D37: =IFERROR(VLOOKUP(Tabela32[[#This Row],[Serventia]],'Acervo Geral - Físico'!$A$6:$N$1098,14,0),"-") -> 9.916666667 | E37: =VLOOKUP(Tabela32[[#This Row],[Serventia]],'Acervo Geral - Eletrônico'!$A$6:$N$1030,14,0) -> 1672.5 | F37: =VLOOKUP(Tabela32[[#This Row],[Serventia]],'Acervo Geral - TOTAL'!$A$6:$N$1141,14,0) -> 1682.416667 | G37: =VLOOKUP(Tabela32[[#This Row],[Serventia]],'Definição das cores'!$B$13160:$E$13887,4,0) -> Verde | H37: =VLOOKUP(Tabela32[[#This Row],[Serventia]],'Acervo Geral - TOTAL'!$A$6:$M$1141,13,0) -> 1856 | I37: =VLOOKUP(Tabela32[[#This Row],[Serventia]],'Definição das cores'!$B$5:$E$731,4,0) -> Verde | J37: =(Tabela32[[#This Row],[Último Mês (II)]]/Tabela32[[#This Row],[Média no período (I)]])-1 -> 0.1031749963 | K37: =VLOOKUP(Tabela32[[#This Row],[Serventia]],'Definição das cores'!$A$737:$C$1462,3,0) -> Vermelho | L37: =VLOOKUP(Tabela32[[#This Row],[Serventia]],'Acervo Físico - TOTAL'!$A$6:$N$1141,14,0) -> 1675 | M37: =VLOOKUP(Tabela32[[#This Row],[Serventia]],'Acervo Físico - TOTAL'!$A$6:$N$1141,13,0) -> 1844 | N37: =Tabela32[[#This Row],[Último Mês (II)]]-Tabela32[[#This Row],[Último Mês]] -> 12 | O37: =VLOOKUP(Tabela32[[#This Row],[Serventia]],Arquivados!$A$6:$N$1141,14,0) -> 21.91666667 | P37: =VLOOKUP(Tabela32[[#This Row],[Serventia]],'Tombados Geral '!$A$6:$N$1141,14,0) -> 78.25 | Q37: =VLOOKUP(Tabela32[[#This Row],[Serventia]],Tabela6[],3,0) -> 0.8227060653 | R37: =VLOOKUP(Tabela32[[#This Row],[Serventia]],'Meta 1 - 2022'!$B$2:$D$859,3,0) -> 0 | S37: =VLOOKUP(Tabela32[[#This Row],[Serventia]],'Definição das cores'!$B$4393:$E$5113,4,0) -> Verde | T37: =VLOOKUP(Tabela32[[#This Row],[Serventia]],IAD!$A$10:$N$940,14,0) -> 1.350465139 | U37: =VLOOKUP(Tabela32[[#This Row],[Serventia]],'Definição das cores'!$B$1468:$E$2190,4,0) -> Verde | V37: =VLOOKUP(Tabela32[[#This Row],[Serventia]],IPS!$A$10:$N$940,14,0) ->  | W37: =VLOOKUP(Tabela32[[#This Row],[Serventia]],'Definição das cores'!$B$5124:$E$5846,4,0) ->  | X37: =VLOOKUP(Tabela32[[#This Row],[Serventia]],'Taxa De Congestionamento'!$A$3:$N$884,14,0) -> 0.5396090251 | Y37: =VLOOKUP(Tabela32[[#This Row],[Serventia]],'Definição das cores'!$B$2202:$E$2922,4,0) -> Verde | Z37: =Tabela32[[#This Row],[Arq (Média)]]/Tabela32[[#This Row],[Média no período]] -> 0.01308457711 | AA37: =VLOOKUP(Tabela32[[#This Row],[Serventia]],'Definição das cores'!$B$5856:$E$6582,4,0) -> Vermelho | AB37: =VLOOKUP(Tabela32[[#This Row],[Serventia]],'Aud. Real.'!$A$6:$N$1141,14,0) -> 2.083333333 | AC37: =VLOOKUP(Tabela32[[#This Row],[Serventia]],Conclusão!$A$6:$N$1141,14,0) -> 901.6666667 | AD37: =VLOOKUP(Tabela32[[#This Row],[Serventia]],'Definição das cores'!$B$6587:$E$7312,4,0) -> Vermelho | AE37: =VLOOKUP(Tabela32[[#This Row],[Serventia]],'Autos Conclusos + 30 '!$A$6:$N$1141,14,0) -> 0.08333333333 | AF37: =VLOOKUP(Tabela32[[#This Row],[Serventia]],'Definição das cores'!$B$7317:$E$8041,4,0) -> Verde | AG37: =VLOOKUP(Tabela32[[#This Row],[Serventia]],'Autos Conclusos + 100'!$A$6:$N$1141,14,0) -> 0 | AH37: =VLOOKUP(Tabela32[[#This Row],[Serventia]],'Definição das cores'!$B$8046:$E$8771,4,0) -> Verde | AI37: =VLOOKUP(Tabela32[[#This Row],[Serventia]],'Autos Conclusos + 30 '!$A$5:$N$1141,13,0) -> 0 | AJ37: =VLOOKUP(Tabela32[[#This Row],[Serventia]],'Definição das cores'!$B$8046:$E$8771,4,0) -> Verde | AK37: =VLOOKUP(Tabela32[[#This Row],[Serventia]],'Autos Conclusos + 100'!$A$5:$N$1141,13,0) -> 0 | AL37: =VLOOKUP(Tabela32[[#This Row],[Serventia]],'Definição das cores'!$B$9506:$E$10231,4,0) -> Verde | AM37: =VLOOKUP(Tabela32[[#This Row],[Serventia]],'Autos Paralisados + 30'!$A$6:$N$1141,14,0) -> 131.25 | AN37: =VLOOKUP(Tabela32[[#This Row],[Serventia]],'Definição das cores'!$B$10236:$E$10961,4,0) -> Verde | AO37: =VLOOKUP(Tabela32[[#This Row],[Serventia]],'Autos Paralisados + 90'!$A$6:$N$1141,14,0) -> 14.5 | AP37: =VLOOKUP(Tabela32[[#This Row],[Serventia]],'Definição das cores'!$B$10967:$E$11692,4,0) -> Verde | AQ37: =VLOOKUP(Tabela32[[#This Row],[Serventia]],'Autos Paralisados + 30'!$A$6:$N$1141,13,0) -> 28 | AR37: =VLOOKUP(Tabela32[[#This Row],[Serventia]],'Definição das cores'!$B$11698:$E$12423,4,0) -> Verde | AS37: =VLOOKUP(Tabela32[[#This Row],[Serventia]],'Autos Paralisados + 90'!$A$6:$N$1141,13,0) -> 10 | AT37: =VLOOKUP(Tabela32[[#This Row],[Serventia]],'Definição das cores'!$B$12428:$E$13155,4,0) -> Verde | AU37: =Tabela32[[#This Row],[ 90 (Último Mês)2]]/Tabela32[[#This Row],[Último Mês]] -> 0.005422993492 | AV37: =VLOOKUP(Tabela32[[#This Row],[Serventia]],'Definição das cores'!$B$3664:$E$4389,4,0) -> Verde | AW37: =IFERROR(Tabela32[[#This Row],[30 (Último Mês)]]/Tabela32[[#This Row],[ 30 (Último Mês)]],"-") -> 0 | AX37: =VLOOKUP(Tabela32[[#This Row],[Serventia]],'Definição das cores'!$B$2932:$E$3660,4,0) -> Verde | AY37: =VLOOKUP(Tabela32[[#This Row],[Serventia]],Lotação!$A$12:$D$2844,4,0) ->  | AZ37: =IFERROR(ROUND(VLOOKUP(Tabela32[[#This Row],[Serventia]],Tabela8[],2,0),0),"N/A") -> 6 | BA37: =IF(Tabela32[[#This Row],[Ideal]]="N/A","N/A",IF(Tabela32[[#This Row],[Atual]]>=Tabela32[[#This Row],[Ideal]],"Não",IF(Tabela32[[#This Row],[Atual]]<Tabela32[[#This Row],[Ideal]],"Sim"))) ->  | BB37: =VLOOKUP(Tabela32[[#This Row],[Serventia]],Tabela4[],8,0) -> Sim | BC37: =VLOOKUP(Tabela32[[#This Row],[Serventia]],Tabela5[],15,0) ->  | BD37: =VLOOKUP(Tabela32[[#This Row],[Serventia]],'Definição das cores'!$A$13890:$J$14735,9,0) -> 5/6 | BE37: =VLOOKUP(Tabela32[[#This Row],[Serventia]],'Definição das cores'!$A$13890:$J$14735,10,0) -> 1/6
A38: CAPITAL 12 VARA CIVEL | B38: =VLOOKUP(Tabela32[[#This Row],[Serventia]],'Base_Critérios de Consulta'!$B$3:$D$868,3,0) -> 1 | C38: =VLOOKUP(Tabela32[[#This Row],[Serventia]],'Base_Critérios de Consulta'!$B$3:$G$868,6,0) -> Não | D38: =IFERROR(VLOOKUP(Tabela32[[#This Row],[Serventia]],'Acervo Geral - Físico'!$A$6:$N$1098,14,0),"-") -> 1.25 | E38: =VLOOKUP(Tabela32[[#This Row],[Serventia]],'Acervo Geral - Eletrônico'!$A$6:$N$1030,14,0) -> 4123.916667 | F38: =VLOOKUP(Tabela32[[#This Row],[Serventia]],'Acervo Geral - TOTAL'!$A$6:$N$1141,14,0) -> 4125.166667 | G38: =VLOOKUP(Tabela32[[#This Row],[Serventia]],'Definição das cores'!$B$13160:$E$13887,4,0) -> Vermelho | H38: =VLOOKUP(Tabela32[[#This Row],[Serventia]],'Acervo Geral - TOTAL'!$A$6:$M$1141,13,0) -> 4251 | I38: =VLOOKUP(Tabela32[[#This Row],[Serventia]],'Definição das cores'!$B$5:$E$731,4,0) -> Vermelho | J38: =(Tabela32[[#This Row],[Último Mês (II)]]/Tabela32[[#This Row],[Média no período (I)]])-1 -> 0.03050381803 | K38: =VLOOKUP(Tabela32[[#This Row],[Serventia]],'Definição das cores'!$A$737:$C$1462,3,0) -> Verde | L38: =VLOOKUP(Tabela32[[#This Row],[Serventia]],'Acervo Físico - TOTAL'!$A$6:$N$1141,14,0) -> 4090.583333 | M38: =VLOOKUP(Tabela32[[#This Row],[Serventia]],'Acervo Físico - TOTAL'!$A$6:$N$1141,13,0) -> 4225 | N38: =Tabela32[[#This Row],[Último Mês (II)]]-Tabela32[[#This Row],[Último Mês]] -> 26 | O38: =VLOOKUP(Tabela32[[#This Row],[Serventia]],Arquivados!$A$6:$N$1141,14,0) -> 19.33333333 | P38: =VLOOKUP(Tabela32[[#This Row],[Serventia]],'Tombados Geral '!$A$6:$N$1141,14,0) -> 80.08333333 | Q38: =VLOOKUP(Tabela32[[#This Row],[Serventia]],Tabela6[],3,0) -> 0.5830985915 | R38: =VLOOKUP(Tabela32[[#This Row],[Serventia]],'Meta 1 - 2022'!$B$2:$D$859,3,0) -> 0 | S38: =VLOOKUP(Tabela32[[#This Row],[Serventia]],'Definição das cores'!$B$4393:$E$5113,4,0) -> Verde | T38: =VLOOKUP(Tabela32[[#This Row],[Serventia]],IAD!$A$10:$N$940,14,0) -> 1.197702935 | U38: =VLOOKUP(Tabela32[[#This Row],[Serventia]],'Definição das cores'!$B$1468:$E$2190,4,0) -> Verde | V38: =VLOOKUP(Tabela32[[#This Row],[Serventia]],IPS!$A$10:$N$940,14,0) ->  | W38: =VLOOKUP(Tabela32[[#This Row],[Serventia]],'Definição das cores'!$B$5124:$E$5846,4,0) ->  | X38: =VLOOKUP(Tabela32[[#This Row],[Serventia]],'Taxa De Congestionamento'!$A$3:$N$884,14,0) -> 0.791012074 | Y38: =VLOOKUP(Tabela32[[#This Row],[Serventia]],'Definição das cores'!$B$2202:$E$2922,4,0) -> Vermelho | Z38: =Tabela32[[#This Row],[Arq (Média)]]/Tabela32[[#This Row],[Média no período]] -> 0.00472630228 | AA38: =VLOOKUP(Tabela32[[#This Row],[Serventia]],'Definição das cores'!$B$5856:$E$6582,4,0) -> Vermelho | AB38: =VLOOKUP(Tabela32[[#This Row],[Serventia]],'Aud. Real.'!$A$6:$N$1141,14,0) -> 0.1666666667 | AC38: =VLOOKUP(Tabela32[[#This Row],[Serventia]],Conclusão!$A$6:$N$1141,14,0) -> 899.9166667 | AD38: =VLOOKUP(Tabela32[[#This Row],[Serventia]],'Definição das cores'!$B$6587:$E$7312,4,0) -> Vermelho | AE38: =VLOOKUP(Tabela32[[#This Row],[Serventia]],'Autos Conclusos + 30 '!$A$6:$N$1141,14,0) -> 1.416666667 | AF38: =VLOOKUP(Tabela32[[#This Row],[Serventia]],'Definição das cores'!$B$7317:$E$8041,4,0) -> Verde | AG38: =VLOOKUP(Tabela32[[#This Row],[Serventia]],'Autos Conclusos + 100'!$A$6:$N$1141,14,0) -> 0.25 | AH38: =VLOOKUP(Tabela32[[#This Row],[Serventia]],'Definição das cores'!$B$8046:$E$8771,4,0) -> Verde | AI38: =VLOOKUP(Tabela32[[#This Row],[Serventia]],'Autos Conclusos + 30 '!$A$5:$N$1141,13,0) -> 0 | AJ38: =VLOOKUP(Tabela32[[#This Row],[Serventia]],'Definição das cores'!$B$8046:$E$8771,4,0) -> Verde | AK38: =VLOOKUP(Tabela32[[#This Row],[Serventia]],'Autos Conclusos + 100'!$A$5:$N$1141,13,0) -> 0 | AL38: =VLOOKUP(Tabela32[[#This Row],[Serventia]],'Definição das cores'!$B$9506:$E$10231,4,0) -> Verde | AM38: =VLOOKUP(Tabela32[[#This Row],[Serventia]],'Autos Paralisados + 30'!$A$6:$N$1141,14,0) -> 2090.916667 | AN38: =VLOOKUP(Tabela32[[#This Row],[Serventia]],'Definição das cores'!$B$10236:$E$10961,4,0) -> Vermelho | AO38: =VLOOKUP(Tabela32[[#This Row],[Serventia]],'Autos Paralisados + 90'!$A$6:$N$1141,14,0) -> 522.25 | AP38: =VLOOKUP(Tabela32[[#This Row],[Serventia]],'Definição das cores'!$B$10967:$E$11692,4,0) -> Vermelho | AQ38: =VLOOKUP(Tabela32[[#This Row],[Serventia]],'Autos Paralisados + 30'!$A$6:$N$1141,13,0) -> 1617 | AR38: =VLOOKUP(Tabela32[[#This Row],[Serventia]],'Definição das cores'!$B$11698:$E$12423,4,0) -> Vermelho | AS38: =VLOOKUP(Tabela32[[#This Row],[Serventia]],'Autos Paralisados + 90'!$A$6:$N$1141,13,0) -> 246 | AT38: =VLOOKUP(Tabela32[[#This Row],[Serventia]],'Definição das cores'!$B$12428:$E$13155,4,0) -> Vermelho | AU38: =Tabela32[[#This Row],[ 90 (Último Mês)2]]/Tabela32[[#This Row],[Último Mês]] -> 0.05822485207 | AV38: =VLOOKUP(Tabela32[[#This Row],[Serventia]],'Definição das cores'!$B$3664:$E$4389,4,0) -> Vermelho | AW38: =IFERROR(Tabela32[[#This Row],[30 (Último Mês)]]/Tabela32[[#This Row],[ 30 (Último Mês)]],"-") -> 0 | AX38: =VLOOKUP(Tabela32[[#This Row],[Serventia]],'Definição das cores'!$B$2932:$E$3660,4,0) -> Verde | AY38: =VLOOKUP(Tabela32[[#This Row],[Serventia]],Lotação!$A$12:$D$2844,4,0) ->  | AZ38: =IFERROR(ROUND(VLOOKUP(Tabela32[[#This Row],[Serventia]],Tabela8[],2,0),0),"N/A") -> 6 | BA38: =IF(Tabela32[[#This Row],[Ideal]]="N/A","N/A",IF(Tabela32[[#This Row],[Atual]]>=Tabela32[[#This Row],[Ideal]],"Não",IF(Tabela32[[#This Row],[Atual]]<Tabela32[[#This Row],[Ideal]],"Sim"))) ->  | BB38: =VLOOKUP(Tabela32[[#This Row],[Serventia]],Tabela4[],8,0) -> Não | BC38: =VLOOKUP(Tabela32[[#This Row],[Serventia]],Tabela5[],15,0) ->  | BD38: =VLOOKUP(Tabela32[[#This Row],[Serventia]],'Definição das cores'!$A$13890:$J$14735,9,0) -> 3/6 | BE38: =VLOOKUP(Tabela32[[#This Row],[Serventia]],'Definição das cores'!$A$13890:$J$14735,10,0) -> 3/6
A39: CAPITAL 13 VARA CIVEL | B39: =VLOOKUP(Tabela32[[#This Row],[Serventia]],'Base_Critérios de Consulta'!$B$3:$D$868,3,0) -> 1 | C39: =VLOOKUP(Tabela32[[#This Row],[Serventia]],'Base_Critérios de Consulta'!$B$3:$G$868,6,0) -> Não | D39: =IFERROR(VLOOKUP(Tabela32[[#This Row],[Serventia]],'Acervo Geral - Físico'!$A$6:$N$1098,14,0),"-") -> 5.416666667 | E39: =VLOOKUP(Tabela32[[#This Row],[Serventia]],'Acervo Geral - Eletrônico'!$A$6:$N$1030,14,0) -> 1643.083333 | F39: =VLOOKUP(Tabela32[[#This Row],[Serventia]],'Acervo Geral - TOTAL'!$A$6:$N$1141,14,0) -> 1648.5 | G39: =VLOOKUP(Tabela32[[#This Row],[Serventia]],'Definição das cores'!$B$13160:$E$13887,4,0) -> Verde | H39: =VLOOKUP(Tabela32[[#This Row],[Serventia]],'Acervo Geral - TOTAL'!$A$6:$M$1141,13,0) -> 1694 | I39: =VLOOKUP(Tabela32[[#This Row],[Serventia]],'Definição das cores'!$B$5:$E$731,4,0) -> Verde | J39: =(Tabela32[[#This Row],[Último Mês (II)]]/Tabela32[[#This Row],[Média no período (I)]])-1 -> 0.02760084926 | K39: =VLOOKUP(Tabela32[[#This Row],[Serventia]],'Definição das cores'!$A$737:$C$1462,3,0) -> Verde | L39: =VLOOKUP(Tabela32[[#This Row],[Serventia]],'Acervo Físico - TOTAL'!$A$6:$N$1141,14,0) -> 1634.666667 | M39: =VLOOKUP(Tabela32[[#This Row],[Serventia]],'Acervo Físico - TOTAL'!$A$6:$N$1141,13,0) -> 1668 | N39: =Tabela32[[#This Row],[Último Mês (II)]]-Tabela32[[#This Row],[Último Mês]] -> 26 | O39: =VLOOKUP(Tabela32[[#This Row],[Serventia]],Arquivados!$A$6:$N$1141,14,0) -> 48.25 | P39: =VLOOKUP(Tabela32[[#This Row],[Serventia]],'Tombados Geral '!$A$6:$N$1141,14,0) -> 82.75 | Q39: =VLOOKUP(Tabela32[[#This Row],[Serventia]],Tabela6[],3,0) -> 0.9399075501 | R39: =VLOOKUP(Tabela32[[#This Row],[Serventia]],'Meta 1 - 2022'!$B$2:$D$859,3,0) -> 0 | S39: =VLOOKUP(Tabela32[[#This Row],[Serventia]],'Definição das cores'!$B$4393:$E$5113,4,0) -> Verde | T39: =VLOOKUP(Tabela32[[#This Row],[Serventia]],IAD!$A$10:$N$940,14,0) -> 1.027609495 | U39: =VLOOKUP(Tabela32[[#This Row],[Serventia]],'Definição das cores'!$B$1468:$E$2190,4,0) -> Verde | V39: =VLOOKUP(Tabela32[[#This Row],[Serventia]],IPS!$A$10:$N$940,14,0) ->  | W39: =VLOOKUP(Tabela32[[#This Row],[Serventia]],'Definição das cores'!$B$5124:$E$5846,4,0) ->  | X39: =VLOOKUP(Tabela32[[#This Row],[Serventia]],'Taxa De Congestionamento'!$A$3:$N$884,14,0) -> 0.6093770933 | Y39: =VLOOKUP(Tabela32[[#This Row],[Serventia]],'Definição das cores'!$B$2202:$E$2922,4,0) -> Verde | Z39: =Tabela32[[#This Row],[Arq (Média)]]/Tabela32[[#This Row],[Média no período]] -> 0.02951672104 | AA39: =VLOOKUP(Tabela32[[#This Row],[Serventia]],'Definição das cores'!$B$5856:$E$6582,4,0) -> Verde | AB39: =VLOOKUP(Tabela32[[#This Row],[Serventia]],'Aud. Real.'!$A$6:$N$1141,14,0) -> 5.333333333 | AC39: =VLOOKUP(Tabela32[[#This Row],[Serventia]],Conclusão!$A$6:$N$1141,14,0) -> 1333.916667 | AD39: =VLOOKUP(Tabela32[[#This Row],[Serventia]],'Definição das cores'!$B$6587:$E$7312,4,0) -> Verde | AE39: =VLOOKUP(Tabela32[[#This Row],[Serventia]],'Autos Conclusos + 30 '!$A$6:$N$1141,14,0) -> 0.8333333333 | AF39: =VLOOKUP(Tabela32[[#This Row],[Serventia]],'Definição das cores'!$B$7317:$E$8041,4,0) -> Verde | AG39: =VLOOKUP(Tabela32[[#This Row],[Serventia]],'Autos Conclusos + 100'!$A$6:$N$1141,14,0) -> 0 | AH39: =VLOOKUP(Tabela32[[#This Row],[Serventia]],'Definição das cores'!$B$8046:$E$8771,4,0) -> Verde | AI39: =VLOOKUP(Tabela32[[#This Row],[Serventia]],'Autos Conclusos + 30 '!$A$5:$N$1141,13,0) -> 0 | AJ39: =VLOOKUP(Tabela32[[#This Row],[Serventia]],'Definição das cores'!$B$8046:$E$8771,4,0) -> Verde | AK39: =VLOOKUP(Tabela32[[#This Row],[Serventia]],'Autos Conclusos + 100'!$A$5:$N$1141,13,0) -> 0 | AL39: =VLOOKUP(Tabela32[[#This Row],[Serventia]],'Definição das cores'!$B$9506:$E$10231,4,0) -> Verde | AM39: =VLOOKUP(Tabela32[[#This Row],[Serventia]],'Autos Paralisados + 30'!$A$6:$N$1141,14,0) -> 363.0833333 | AN39: =VLOOKUP(Tabela32[[#This Row],[Serventia]],'Definição das cores'!$B$10236:$E$10961,4,0) -> Verde | AO39: =VLOOKUP(Tabela32[[#This Row],[Serventia]],'Autos Paralisados + 90'!$A$6:$N$1141,14,0) -> 3.583333333 | AP39: =VLOOKUP(Tabela32[[#This Row],[Serventia]],'Definição das cores'!$B$10967:$E$11692,4,0) -> Verde | AQ39: =VLOOKUP(Tabela32[[#This Row],[Serventia]],'Autos Paralisados + 30'!$A$6:$N$1141,13,0) -> 120 | AR39: =VLOOKUP(Tabela32[[#This Row],[Serventia]],'Definição das cores'!$B$11698:$E$12423,4,0) -> Verde | AS39: =VLOOKUP(Tabela32[[#This Row],[Serventia]],'Autos Paralisados + 90'!$A$6:$N$1141,13,0) -> 0 | AT39: =VLOOKUP(Tabela32[[#This Row],[Serventia]],'Definição das cores'!$B$12428:$E$13155,4,0) -> Verde | AU39: =Tabela32[[#This Row],[ 90 (Último Mês)2]]/Tabela32[[#This Row],[Último Mês]] -> 0 | AV39: =VLOOKUP(Tabela32[[#This Row],[Serventia]],'Definição das cores'!$B$3664:$E$4389,4,0) -> Verde | AW39: =IFERROR(Tabela32[[#This Row],[30 (Último Mês)]]/Tabela32[[#This Row],[ 30 (Último Mês)]],"-") -> 0 | AX39: =VLOOKUP(Tabela32[[#This Row],[Serventia]],'Definição das cores'!$B$2932:$E$3660,4,0) -> Verde | AY39: =VLOOKUP(Tabela32[[#This Row],[Serventia]],Lotação!$A$12:$D$2844,4,0) ->  | AZ39: =IFERROR(ROUND(VLOOKUP(Tabela32[[#This Row],[Serventia]],Tabela8[],2,0),0),"N/A") -> 6 | BA39: =IF(Tabela32[[#This Row],[Ideal]]="N/A","N/A",IF(Tabela32[[#This Row],[Atual]]>=Tabela32[[#This Row],[Ideal]],"Não",IF(Tabela32[[#This Row],[Atual]]<Tabela32[[#This Row],[Ideal]],"Sim"))) ->  | BB39: =VLOOKUP(Tabela32[[#This Row],[Serventia]],Tabela4[],8,0) -> Não | BC39: =VLOOKUP(Tabela32[[#This Row],[Serventia]],Tabela5[],15,0) ->  | BD39: =VLOOKUP(Tabela32[[#This Row],[Serventia]],'Definição das cores'!$A$13890:$J$14735,9,0) -> 6/6 | BE39: =VLOOKUP(Tabela32[[#This Row],[Serventia]],'Definição das cores'!$A$13890:$J$14735,10,0) -> 0/6
A40: CAPITAL 14 VARA CIVEL | B40: =VLOOKUP(Tabela32[[#This Row],[Serventia]],'Base_Critérios de Consulta'!$B$3:$D$868,3,0) -> 1 | C40: =VLOOKUP(Tabela32[[#This Row],[Serventia]],'Base_Critérios de Consulta'!$B$3:$G$868,6,0) -> Não | D40: =IFERROR(VLOOKUP(Tabela32[[#This Row],[Serventia]],'Acervo Geral - Físico'!$A$6:$N$1098,14,0),"-") -> 10.58333333 | E40: =VLOOKUP(Tabela32[[#This Row],[Serventia]],'Acervo Geral - Eletrônico'!$A$6:$N$1030,14,0) -> 3937.25 | F40: =VLOOKUP(Tabela32[[#This Row],[Serventia]],'Acervo Geral - TOTAL'!$A$6:$N$1141,14,0) -> 3947.833333 | G40: =VLOOKUP(Tabela32[[#This Row],[Serventia]],'Definição das cores'!$B$13160:$E$13887,4,0) -> Vermelho | H40: =VLOOKUP(Tabela32[[#This Row],[Serventia]],'Acervo Geral - TOTAL'!$A$6:$M$1141,13,0) -> 4047 | I40: =VLOOKUP(Tabela32[[#This Row],[Serventia]],'Definição das cores'!$B$5:$E$731,4,0) -> Vermelho | J40: =(Tabela32[[#This Row],[Último Mês (II)]]/Tabela32[[#This Row],[Média no período (I)]])-1 -> 0.02511926373 | K40: =VLOOKUP(Tabela32[[#This Row],[Serventia]],'Definição das cores'!$A$737:$C$1462,3,0) -> Verde | L40: =VLOOKUP(Tabela32[[#This Row],[Serventia]],'Acervo Físico - TOTAL'!$A$6:$N$1141,14,0) -> 3860.833333 | M40: =VLOOKUP(Tabela32[[#This Row],[Serventia]],'Acervo Físico - TOTAL'!$A$6:$N$1141,13,0) -> 4007 | N40: =Tabela32[[#This Row],[Último Mês (II)]]-Tabela32[[#This Row],[Último Mês]] -> 40 | O40: =VLOOKUP(Tabela32[[#This Row],[Serventia]],Arquivados!$A$6:$N$1141,14,0) -> 14.41666667 | P40: =VLOOKUP(Tabela32[[#This Row],[Serventia]],'Tombados Geral '!$A$6:$N$1141,14,0) -> 80.5 | Q40: =VLOOKUP(Tabela32[[#This Row],[Serventia]],Tabela6[],3,0) -> 0.8308724832 | R40: =VLOOKUP(Tabela32[[#This Row],[Serventia]],'Meta 1 - 2022'!$B$2:$D$859,3,0) -> 0 | S40: =VLOOKUP(Tabela32[[#This Row],[Serventia]],'Definição das cores'!$B$4393:$E$5113,4,0) -> Verde | T40: =VLOOKUP(Tabela32[[#This Row],[Serventia]],IAD!$A$10:$N$940,14,0) -> 1.083617212 | U40: =VLOOKUP(Tabela32[[#This Row],[Serventia]],'Definição das cores'!$B$1468:$E$2190,4,0) -> Verde | V40: =VLOOKUP(Tabela32[[#This Row],[Serventia]],IPS!$A$10:$N$940,14,0) ->  | W40: =VLOOKUP(Tabela32[[#This Row],[Serventia]],'Definição das cores'!$B$5124:$E$5846,4,0) ->  | X40: =VLOOKUP(Tabela32[[#This Row],[Serventia]],'Taxa De Congestionamento'!$A$3:$N$884,14,0) -> 0.8695635172 | Y40: =VLOOKUP(Tabela32[[#This Row],[Serventia]],'Definição das cores'!$B$2202:$E$2922,4,0) -> Vermelho | Z40: =Tabela32[[#This Row],[Arq (Média)]]/Tabela32[[#This Row],[Média no período]] -> 0.003734081589 | AA40: =VLOOKUP(Tabela32[[#This Row],[Serventia]],'Definição das cores'!$B$5856:$E$6582,4,0) -> Vermelho | AB40: =VLOOKUP(Tabela32[[#This Row],[Serventia]],'Aud. Real.'!$A$6:$N$1141,14,0) -> 2.916666667 | AC40: =VLOOKUP(Tabela32[[#This Row],[Serventia]],Conclusão!$A$6:$N$1141,14,0) -> 842.4166667 | AD40: =VLOOKUP(Tabela32[[#This Row],[Serventia]],'Definição das cores'!$B$6587:$E$7312,4,0) -> Vermelho | AE40: =VLOOKUP(Tabela32[[#This Row],[Serventia]],'Autos Conclusos + 30 '!$A$6:$N$1141,14,0) -> 25.58333333 | AF40: =VLOOKUP(Tabela32[[#This Row],[Serventia]],'Definição das cores'!$B$7317:$E$8041,4,0) -> Verde | AG40: =VLOOKUP(Tabela32[[#This Row],[Serventia]],'Autos Conclusos + 100'!$A$6:$N$1141,14,0) -> 0.5833333333 | AH40: =VLOOKUP(Tabela32[[#This Row],[Serventia]],'Definição das cores'!$B$8046:$E$8771,4,0) -> Verde | AI40: =VLOOKUP(Tabela32[[#This Row],[Serventia]],'Autos Conclusos + 30 '!$A$5:$N$1141,13,0) -> 25 | AJ40: =VLOOKUP(Tabela32[[#This Row],[Serventia]],'Definição das cores'!$B$8046:$E$8771,4,0) -> Verde | AK40: =VLOOKUP(Tabela32[[#This Row],[Serventia]],'Autos Conclusos + 100'!$A$5:$N$1141,13,0) -> 0 | AL40: =VLOOKUP(Tabela32[[#This Row],[Serventia]],'Definição das cores'!$B$9506:$E$10231,4,0) -> Verde | AM40: =VLOOKUP(Tabela32[[#This Row],[Serventia]],'Autos Paralisados + 30'!$A$6:$N$1141,14,0) -> 1672.75 | AN40: =VLOOKUP(Tabela32[[#This Row],[Serventia]],'Definição das cores'!$B$10236:$E$10961,4,0) -> Vermelho | AO40: =VLOOKUP(Tabela32[[#This Row],[Serventia]],'Autos Paralisados + 90'!$A$6:$N$1141,14,0) -> 490.3333333 | AP40: =VLOOKUP(Tabela32[[#This Row],[Serventia]],'Definição das cores'!$B$10967:$E$11692,4,0) -> Vermelho | AQ40: =VLOOKUP(Tabela32[[#This Row],[Serventia]],'Autos Paralisados + 30'!$A$6:$N$1141,13,0) -> 1919 | AR40: =VLOOKUP(Tabela32[[#This Row],[Serventia]],'Definição das cores'!$B$11698:$E$12423,4,0) -> Vermelho | AS40: =VLOOKUP(Tabela32[[#This Row],[Serventia]],'Autos Paralisados + 90'!$A$6:$N$1141,13,0) -> 837 | AT40: =VLOOKUP(Tabela32[[#This Row],[Serventia]],'Definição das cores'!$B$12428:$E$13155,4,0) -> Vermelho | AU40: =Tabela32[[#This Row],[ 90 (Último Mês)2]]/Tabela32[[#This Row],[Último Mês]] -> 0.2088844522 | AV40: =VLOOKUP(Tabela32[[#This Row],[Serventia]],'Definição das cores'!$B$3664:$E$4389,4,0) -> Vermelho | AW40: =IFERROR(Tabela32[[#This Row],[30 (Último Mês)]]/Tabela32[[#This Row],[ 30 (Último Mês)]],"-") -> 0.01302761855 | AX40: =VLOOKUP(Tabela32[[#This Row],[Serventia]],'Definição das cores'!$B$2932:$E$3660,4,0) -> Verde | AY40: =VLOOKUP(Tabela32[[#This Row],[Serventia]],Lotação!$A$12:$D$2844,4,0) ->  | AZ40: =IFERROR(ROUND(VLOOKUP(Tabela32[[#This Row],[Serventia]],Tabela8[],2,0),0),"N/A") -> 6 | BA40: =IF(Tabela32[[#This Row],[Ideal]]="N/A","N/A",IF(Tabela32[[#This Row],[Atual]]>=Tabela32[[#This Row],[Ideal]],"Não",IF(Tabela32[[#This Row],[Atual]]<Tabela32[[#This Row],[Ideal]],"Sim"))) ->  | BB40: =VLOOKUP(Tabela32[[#This Row],[Serventia]],Tabela4[],8,0) -> Não | BC40: =VLOOKUP(Tabela32[[#This Row],[Serventia]],Tabela5[],15,0) ->  | BD40: =VLOOKUP(Tabela32[[#This Row],[Serventia]],'Definição das cores'!$A$13890:$J$14735,9,0) -> 3/6 | BE40: =VLOOKUP(Tabela32[[#This Row],[Serventia]],'Definição das cores'!$A$13890:$J$14735,10,0) -> 3/6
A41: CAPITAL 15 VARA CIVEL | B41: =VLOOKUP(Tabela32[[#This Row],[Serventia]],'Base_Critérios de Consulta'!$B$3:$D$868,3,0) -> 1 | C41: =VLOOKUP(Tabela32[[#This Row],[Serventia]],'Base_Critérios de Consulta'!$B$3:$G$868,6,0) -> Não | D41: =IFERROR(VLOOKUP(Tabela32[[#This Row],[Serventia]],'Acervo Geral - Físico'!$A$6:$N$1098,14,0),"-") -> 18.75 | E41: =VLOOKUP(Tabela32[[#This Row],[Serventia]],'Acervo Geral - Eletrônico'!$A$6:$N$1030,14,0) -> 3343.333333 | F41: =VLOOKUP(Tabela32[[#This Row],[Serventia]],'Acervo Geral - TOTAL'!$A$6:$N$1141,14,0) -> 3362.083333 | G41: =VLOOKUP(Tabela32[[#This Row],[Serventia]],'Definição das cores'!$B$13160:$E$13887,4,0) -> Verde | H41: =VLOOKUP(Tabela32[[#This Row],[Serventia]],'Acervo Geral - TOTAL'!$A$6:$M$1141,13,0) -> 3303 | I41: =VLOOKUP(Tabela32[[#This Row],[Serventia]],'Definição das cores'!$B$5:$E$731,4,0) -> Verde | J41: =(Tabela32[[#This Row],[Último Mês (II)]]/Tabela32[[#This Row],[Média no período (I)]])-1 -> -0.01757342917 | K41: =VLOOKUP(Tabela32[[#This Row],[Serventia]],'Definição das cores'!$A$737:$C$1462,3,0) -> Verde | L41: =VLOOKUP(Tabela32[[#This Row],[Serventia]],'Acervo Físico - TOTAL'!$A$6:$N$1141,14,0) -> 3225.25 | M41: =VLOOKUP(Tabela32[[#This Row],[Serventia]],'Acervo Físico - TOTAL'!$A$6:$N$1141,13,0) -> 3190 | N41: =Tabela32[[#This Row],[Último Mês (II)]]-Tabela32[[#This Row],[Último Mês]] -> 113 | O41: =VLOOKUP(Tabela32[[#This Row],[Serventia]],Arquivados!$A$6:$N$1141,14,0) -> 21.75 | P41: =VLOOKUP(Tabela32[[#This Row],[Serventia]],'Tombados Geral '!$A$6:$N$1141,14,0) -> 79.83333333 | Q41: =VLOOKUP(Tabela32[[#This Row],[Serventia]],Tabela6[],3,0) -> 1.747181965 | R41: =VLOOKUP(Tabela32[[#This Row],[Serventia]],'Meta 1 - 2022'!$B$2:$D$859,3,0) -> 0 | S41: =VLOOKUP(Tabela32[[#This Row],[Serventia]],'Definição das cores'!$B$4393:$E$5113,4,0) -> Verde | T41: =VLOOKUP(Tabela32[[#This Row],[Serventia]],IAD!$A$10:$N$940,14,0) -> 1.328553345 | U41: =VLOOKUP(Tabela32[[#This Row],[Serventia]],'Definição das cores'!$B$1468:$E$2190,4,0) -> Verde | V41: =VLOOKUP(Tabela32[[#This Row],[Serventia]],IPS!$A$10:$N$940,14,0) ->  | W41: =VLOOKUP(Tabela32[[#This Row],[Serventia]],'Definição das cores'!$B$5124:$E$5846,4,0) ->  | X41: =VLOOKUP(Tabela32[[#This Row],[Serventia]],'Taxa De Congestionamento'!$A$3:$N$884,14,0) -> 0.7190610272 | Y41: =VLOOKUP(Tabela32[[#This Row],[Serventia]],'Definição das cores'!$B$2202:$E$2922,4,0) -> Verde | Z41: =Tabela32[[#This Row],[Arq (Média)]]/Tabela32[[#This Row],[Média no período]] -> 0.006743663282 | AA41: =VLOOKUP(Tabela32[[#This Row],[Serventia]],'Definição das cores'!$B$5856:$E$6582,4,0) -> Vermelho | AB41: =VLOOKUP(Tabela32[[#This Row],[Serventia]],'Aud. Real.'!$A$6:$N$1141,14,0) -> 9.833333333 | AC41: =VLOOKUP(Tabela32[[#This Row],[Serventia]],Conclusão!$A$6:$N$1141,14,0) -> 1687.166667 | AD41: =VLOOKUP(Tabela32[[#This Row],[Serventia]],'Definição das cores'!$B$6587:$E$7312,4,0) -> Verde | AE41: =VLOOKUP(Tabela32[[#This Row],[Serventia]],'Autos Conclusos + 30 '!$A$6:$N$1141,14,0) -> 14.83333333 | AF41: =VLOOKUP(Tabela32[[#This Row],[Serventia]],'Definição das cores'!$B$7317:$E$8041,4,0) -> Verde | AG41: =VLOOKUP(Tabela32[[#This Row],[Serventia]],'Autos Conclusos + 100'!$A$6:$N$1141,14,0) -> 0.75 | AH41: =VLOOKUP(Tabela32[[#This Row],[Serventia]],'Definição das cores'!$B$8046:$E$8771,4,0) -> Verde | AI41: =VLOOKUP(Tabela32[[#This Row],[Serventia]],'Autos Conclusos + 30 '!$A$5:$N$1141,13,0) -> 6 | AJ41: =VLOOKUP(Tabela32[[#This Row],[Serventia]],'Definição das cores'!$B$8046:$E$8771,4,0) -> Verde | AK41: =VLOOKUP(Tabela32[[#This Row],[Serventia]],'Autos Conclusos + 100'!$A$5:$N$1141,13,0) -> 0 | AL41: =VLOOKUP(Tabela32[[#This Row],[Serventia]],'Definição das cores'!$B$9506:$E$10231,4,0) -> Verde | AM41: =VLOOKUP(Tabela32[[#This Row],[Serventia]],'Autos Paralisados + 30'!$A$6:$N$1141,14,0) -> 637.25 | AN41: =VLOOKUP(Tabela32[[#This Row],[Serventia]],'Definição das cores'!$B$10236:$E$10961,4,0) -> Verde | AO41: =VLOOKUP(Tabela32[[#This Row],[Serventia]],'Autos Paralisados + 90'!$A$6:$N$1141,14,0) -> 82.83333333 | AP41: =VLOOKUP(Tabela32[[#This Row],[Serventia]],'Definição das cores'!$B$10967:$E$11692,4,0) -> Verde | AQ41: =VLOOKUP(Tabela32[[#This Row],[Serventia]],'Autos Paralisados + 30'!$A$6:$N$1141,13,0) -> 523 | AR41: =VLOOKUP(Tabela32[[#This Row],[Serventia]],'Definição das cores'!$B$11698:$E$12423,4,0) -> Verde | AS41: =VLOOKUP(Tabela32[[#This Row],[Serventia]],'Autos Paralisados + 90'!$A$6:$N$1141,13,0) -> 7 | AT41: =VLOOKUP(Tabela32[[#This Row],[Serventia]],'Definição das cores'!$B$12428:$E$13155,4,0) -> Verde | AU41: =Tabela32[[#This Row],[ 90 (Último Mês)2]]/Tabela32[[#This Row],[Último Mês]] -> 0.002194357367 | AV41: =VLOOKUP(Tabela32[[#This Row],[Serventia]],'Definição das cores'!$B$3664:$E$4389,4,0) -> Verde | AW41: =IFERROR(Tabela32[[#This Row],[30 (Último Mês)]]/Tabela32[[#This Row],[ 30 (Último Mês)]],"-") -> 0.01147227533 | AX41: =VLOOKUP(Tabela32[[#This Row],[Serventia]],'Definição das cores'!$B$2932:$E$3660,4,0) -> Verde | AY41: =VLOOKUP(Tabela32[[#This Row],[Serventia]],Lotação!$A$12:$D$2844,4,0) ->  | AZ41: =IFERROR(ROUND(VLOOKUP(Tabela32[[#This Row],[Serventia]],Tabela8[],2,0),0),"N/A") -> 6 | BA41: =IF(Tabela32[[#This Row],[Ideal]]="N/A","N/A",IF(Tabela32[[#This Row],[Atual]]>=Tabela32[[#This Row],[Ideal]],"Não",IF(Tabela32[[#This Row],[Atual]]<Tabela32[[#This Row],[Ideal]],"Sim"))) ->  | BB41: =VLOOKUP(Tabela32[[#This Row],[Serventia]],Tabela4[],8,0) -> Não | BC41: =VLOOKUP(Tabela32[[#This Row],[Serventia]],Tabela5[],15,0) ->  | BD41: =VLOOKUP(Tabela32[[#This Row],[Serventia]],'Definição das cores'!$A$13890:$J$14735,9,0) -> 6/6 | BE41: =VLOOKUP(Tabela32[[#This Row],[Serventia]],'Definição das cores'!$A$13890:$J$14735,10,0) -> 0/6
A42: CAPITAL 16 VARA CIVEL | B42: =VLOOKUP(Tabela32[[#This Row],[Serventia]],'Base_Critérios de Consulta'!$B$3:$D$868,3,0) -> 1 | C42: =VLOOKUP(Tabela32[[#This Row],[Serventia]],'Base_Critérios de Consulta'!$B$3:$G$868,6,0) -> Não | D42: =IFERROR(VLOOKUP(Tabela32[[#This Row],[Serventia]],'Acervo Geral - Físico'!$A$6:$N$1098,14,0),"-") -> 31.5 | E42: =VLOOKUP(Tabela32[[#This Row],[Serventia]],'Acervo Geral - Eletrônico'!$A$6:$N$1030,14,0) -> 2467 | F42: =VLOOKUP(Tabela32[[#This Row],[Serventia]],'Acervo Geral - TOTAL'!$A$6:$N$1141,14,0) -> 2498.5 | G42: =VLOOKUP(Tabela32[[#This Row],[Serventia]],'Definição das cores'!$B$13160:$E$13887,4,0) -> Verde | H42: =VLOOKUP(Tabela32[[#This Row],[Serventia]],'Acervo Geral - TOTAL'!$A$6:$M$1141,13,0) -> 2473 | I42: =VLOOKUP(Tabela32[[#This Row],[Serventia]],'Definição das cores'!$B$5:$E$731,4,0) -> Verde | J42: =(Tabela32[[#This Row],[Último Mês (II)]]/Tabela32[[#This Row],[Média no período (I)]])-1 -> -0.01020612367 | K42: =VLOOKUP(Tabela32[[#This Row],[Serventia]],'Definição das cores'!$A$737:$C$1462,3,0) -> Verde | L42: =VLOOKUP(Tabela32[[#This Row],[Serventia]],'Acervo Físico - TOTAL'!$A$6:$N$1141,14,0) -> 2466.5 | M42: =VLOOKUP(Tabela32[[#This Row],[Serventia]],'Acervo Físico - TOTAL'!$A$6:$N$1141,13,0) -> 2465 | N42: =Tabela32[[#This Row],[Último Mês (II)]]-Tabela32[[#This Row],[Último Mês]] -> 8 | O42: =VLOOKUP(Tabela32[[#This Row],[Serventia]],Arquivados!$A$6:$N$1141,14,0) -> 38.66666667 | P42: =VLOOKUP(Tabela32[[#This Row],[Serventia]],'Tombados Geral '!$A$6:$N$1141,14,0) -> 78.58333333 | Q42: =VLOOKUP(Tabela32[[#This Row],[Serventia]],Tabela6[],3,0) -> 1.023291925 | R42: =VLOOKUP(Tabela32[[#This Row],[Serventia]],'Meta 1 - 2022'!$B$2:$D$859,3,0) -> 0 | S42: =VLOOKUP(Tabela32[[#This Row],[Serventia]],'Definição das cores'!$B$4393:$E$5113,4,0) -> Verde | T42: =VLOOKUP(Tabela32[[#This Row],[Serventia]],IAD!$A$10:$N$940,14,0) -> 1.095671138 | U42: =VLOOKUP(Tabela32[[#This Row],[Serventia]],'Definição das cores'!$B$1468:$E$2190,4,0) -> Verde | V42: =VLOOKUP(Tabela32[[#This Row],[Serventia]],IPS!$A$10:$N$940,14,0) ->  | W42: =VLOOKUP(Tabela32[[#This Row],[Serventia]],'Definição das cores'!$B$5124:$E$5846,4,0) ->  | X42: =VLOOKUP(Tabela32[[#This Row],[Serventia]],'Taxa De Congestionamento'!$A$3:$N$884,14,0) -> 0.7176633027 | Y42: =VLOOKUP(Tabela32[[#This Row],[Serventia]],'Definição das cores'!$B$2202:$E$2922,4,0) -> Verde | Z42: =Tabela32[[#This Row],[Arq (Média)]]/Tabela32[[#This Row],[Média no período]] -> 0.01567673491 | AA42: =VLOOKUP(Tabela32[[#This Row],[Serventia]],'Definição das cores'!$B$5856:$E$6582,4,0) -> Verde | AB42: =VLOOKUP(Tabela32[[#This Row],[Serventia]],'Aud. Real.'!$A$6:$N$1141,14,0) -> 4.833333333 | AC42: =VLOOKUP(Tabela32[[#This Row],[Serventia]],Conclusão!$A$6:$N$1141,14,0) -> 830.5 | AD42: =VLOOKUP(Tabela32[[#This Row],[Serventia]],'Definição das cores'!$B$6587:$E$7312,4,0) -> Vermelho | AE42: =VLOOKUP(Tabela32[[#This Row],[Serventia]],'Autos Conclusos + 30 '!$A$6:$N$1141,14,0) -> 18.83333333 | AF42: =VLOOKUP(Tabela32[[#This Row],[Serventia]],'Definição das cores'!$B$7317:$E$8041,4,0) -> Verde | AG42: =VLOOKUP(Tabela32[[#This Row],[Serventia]],'Autos Conclusos + 100'!$A$6:$N$1141,14,0) -> 1 | AH42: =VLOOKUP(Tabela32[[#This Row],[Serventia]],'Definição das cores'!$B$8046:$E$8771,4,0) -> Verde | AI42: =VLOOKUP(Tabela32[[#This Row],[Serventia]],'Autos Conclusos + 30 '!$A$5:$N$1141,13,0) -> 18 | AJ42: =VLOOKUP(Tabela32[[#This Row],[Serventia]],'Definição das cores'!$B$8046:$E$8771,4,0) -> Verde | AK42: =VLOOKUP(Tabela32[[#This Row],[Serventia]],'Autos Conclusos + 100'!$A$5:$N$1141,13,0) -> 2 | AL42: =VLOOKUP(Tabela32[[#This Row],[Serventia]],'Definição das cores'!$B$9506:$E$10231,4,0) -> Verde | AM42: =VLOOKUP(Tabela32[[#This Row],[Serventia]],'Autos Paralisados + 30'!$A$6:$N$1141,14,0) -> 599 | AN42: =VLOOKUP(Tabela32[[#This Row],[Serventia]],'Definição das cores'!$B$10236:$E$10961,4,0) -> Verde | AO42: =VLOOKUP(Tabela32[[#This Row],[Serventia]],'Autos Paralisados + 90'!$A$6:$N$1141,14,0) -> 81.83333333 | AP42: =VLOOKUP(Tabela32[[#This Row],[Serventia]],'Definição das cores'!$B$10967:$E$11692,4,0) -> Verde | AQ42: =VLOOKUP(Tabela32[[#This Row],[Serventia]],'Autos Paralisados + 30'!$A$6:$N$1141,13,0) -> 353 | AR42: =VLOOKUP(Tabela32[[#This Row],[Serventia]],'Definição das cores'!$B$11698:$E$12423,4,0) -> Verde | AS42: =VLOOKUP(Tabela32[[#This Row],[Serventia]],'Autos Paralisados + 90'!$A$6:$N$1141,13,0) -> 14 | AT42: =VLOOKUP(Tabela32[[#This Row],[Serventia]],'Definição das cores'!$B$12428:$E$13155,4,0) -> Verde | AU42: =Tabela32[[#This Row],[ 90 (Último Mês)2]]/Tabela32[[#This Row],[Último Mês]] -> 0.005679513185 | AV42: =VLOOKUP(Tabela32[[#This Row],[Serventia]],'Definição das cores'!$B$3664:$E$4389,4,0) -> Verde | AW42: =IFERROR(Tabela32[[#This Row],[30 (Último Mês)]]/Tabela32[[#This Row],[ 30 (Último Mês)]],"-") -> 0.05099150142 | AX42: =VLOOKUP(Tabela32[[#This Row],[Serventia]],'Definição das cores'!$B$2932:$E$3660,4,0) -> Verde | AY42: =VLOOKUP(Tabela32[[#This Row],[Serventia]],Lotação!$A$12:$D$2844,4,0) ->  | AZ42: =IFERROR(ROUND(VLOOKUP(Tabela32[[#This Row],[Serventia]],Tabela8[],2,0),0),"N/A") -> 6 | BA42: =IF(Tabela32[[#This Row],[Ideal]]="N/A","N/A",IF(Tabela32[[#This Row],[Atual]]>=Tabela32[[#This Row],[Ideal]],"Não",IF(Tabela32[[#This Row],[Atual]]<Tabela32[[#This Row],[Ideal]],"Sim"))) ->  | BB42: =VLOOKUP(Tabela32[[#This Row],[Serventia]],Tabela4[],8,0) -> Não | BC42: =VLOOKUP(Tabela32[[#This Row],[Serventia]],Tabela5[],15,0) ->  | BD42: =VLOOKUP(Tabela32[[#This Row],[Serventia]],'Definição das cores'!$A$13890:$J$14735,9,0) -> 6/6 | BE42: =VLOOKUP(Tabela32[[#This Row],[Serventia]],'Definição das cores'!$A$13890:$J$14735,10,0) -> 0/6
A43: CAPITAL 17 VARA CIVEL | B43: =VLOOKUP(Tabela32[[#This Row],[Serventia]],'Base_Critérios de Consulta'!$B$3:$D$868,3,0) -> 1 | C43: =VLOOKUP(Tabela32[[#This Row],[Serventia]],'Base_Critérios de Consulta'!$B$3:$G$868,6,0) -> Não | D43: =IFERROR(VLOOKUP(Tabela32[[#This Row],[Serventia]],'Acervo Geral - Físico'!$A$6:$N$1098,14,0),"-") -> 110.1666667 | E43: =VLOOKUP(Tabela32[[#This Row],[Serventia]],'Acervo Geral - Eletrônico'!$A$6:$N$1030,14,0) -> 2945.083333 | F43: =VLOOKUP(Tabela32[[#This Row],[Serventia]],'Acervo Geral - TOTAL'!$A$6:$N$1141,14,0) -> 3055.25 | G43: =VLOOKUP(Tabela32[[#This Row],[Serventia]],'Definição das cores'!$B$13160:$E$13887,4,0) -> Verde | H43: =VLOOKUP(Tabela32[[#This Row],[Serventia]],'Acervo Geral - TOTAL'!$A$6:$M$1141,13,0) -> 3080 | I43: =VLOOKUP(Tabela32[[#This Row],[Serventia]],'Definição das cores'!$B$5:$E$731,4,0) -> Verde | J43: =(Tabela32[[#This Row],[Último Mês (II)]]/Tabela32[[#This Row],[Média no período (I)]])-1 -> 0.008100810081 | K43: =VLOOKUP(Tabela32[[#This Row],[Serventia]],'Definição das cores'!$A$737:$C$1462,3,0) -> Verde | L43: =VLOOKUP(Tabela32[[#This Row],[Serventia]],'Acervo Físico - TOTAL'!$A$6:$N$1141,14,0) -> 2986.166667 | M43: =VLOOKUP(Tabela32[[#This Row],[Serventia]],'Acervo Físico - TOTAL'!$A$6:$N$1141,13,0) -> 3015 | N43: =Tabela32[[#This Row],[Último Mês (II)]]-Tabela32[[#This Row],[Último Mês]] -> 65 | O43: =VLOOKUP(Tabela32[[#This Row],[Serventia]],Arquivados!$A$6:$N$1141,14,0) -> 22.41666667 | P43: =VLOOKUP(Tabela32[[#This Row],[Serventia]],'Tombados Geral '!$A$6:$N$1141,14,0) -> 81.91666667 | Q43: =VLOOKUP(Tabela32[[#This Row],[Serventia]],Tabela6[],3,0) -> 0.6403385049 | R43: =VLOOKUP(Tabela32[[#This Row],[Serventia]],'Meta 1 - 2022'!$B$2:$D$859,3,0) -> 0 | S43: =VLOOKUP(Tabela32[[#This Row],[Serventia]],'Definição das cores'!$B$4393:$E$5113,4,0) -> Verde | T43: =VLOOKUP(Tabela32[[#This Row],[Serventia]],IAD!$A$10:$N$940,14,0) -> 1.027396668 | U43: =VLOOKUP(Tabela32[[#This Row],[Serventia]],'Definição das cores'!$B$1468:$E$2190,4,0) -> Verde | V43: =VLOOKUP(Tabela32[[#This Row],[Serventia]],IPS!$A$10:$N$940,14,0) ->  | W43: =VLOOKUP(Tabela32[[#This Row],[Serventia]],'Definição das cores'!$B$5124:$E$5846,4,0) ->  | X43: =VLOOKUP(Tabela32[[#This Row],[Serventia]],'Taxa De Congestionamento'!$A$3:$N$884,14,0) -> 0.7638845535 | Y43: =VLOOKUP(Tabela32[[#This Row],[Serventia]],'Definição das cores'!$B$2202:$E$2922,4,0) -> Verde | Z43: =Tabela32[[#This Row],[Arq (Média)]]/Tabela32[[#This Row],[Média no período]] -> 0.007506837082 | AA43: =VLOOKUP(Tabela32[[#This Row],[Serventia]],'Definição das cores'!$B$5856:$E$6582,4,0) -> Vermelho | AB43: =VLOOKUP(Tabela32[[#This Row],[Serventia]],'Aud. Real.'!$A$6:$N$1141,14,0) -> 1 | AC43: =VLOOKUP(Tabela32[[#This Row],[Serventia]],Conclusão!$A$6:$N$1141,14,0) -> 491.25 | AD43: =VLOOKUP(Tabela32[[#This Row],[Serventia]],'Definição das cores'!$B$6587:$E$7312,4,0) -> Vermelho | AE43: =VLOOKUP(Tabela32[[#This Row],[Serventia]],'Autos Conclusos + 30 '!$A$6:$N$1141,14,0) -> 198.0833333 | AF43: =VLOOKUP(Tabela32[[#This Row],[Serventia]],'Definição das cores'!$B$7317:$E$8041,4,0) -> Vermelho | AG43: =VLOOKUP(Tabela32[[#This Row],[Serventia]],'Autos Conclusos + 100'!$A$6:$N$1141,14,0) -> 89.75 | AH43: =VLOOKUP(Tabela32[[#This Row],[Serventia]],'Definição das cores'!$B$8046:$E$8771,4,0) -> Vermelho | AI43: =VLOOKUP(Tabela32[[#This Row],[Serventia]],'Autos Conclusos + 30 '!$A$5:$N$1141,13,0) -> 519 | AJ43: =VLOOKUP(Tabela32[[#This Row],[Serventia]],'Definição das cores'!$B$8046:$E$8771,4,0) -> Vermelho | AK43: =VLOOKUP(Tabela32[[#This Row],[Serventia]],'Autos Conclusos + 100'!$A$5:$N$1141,13,0) -> 137 | AL43: =VLOOKUP(Tabela32[[#This Row],[Serventia]],'Definição das cores'!$B$9506:$E$10231,4,0) -> Vermelho | AM43: =VLOOKUP(Tabela32[[#This Row],[Serventia]],'Autos Paralisados + 30'!$A$6:$N$1141,14,0) -> 1215 | AN43: =VLOOKUP(Tabela32[[#This Row],[Serventia]],'Definição das cores'!$B$10236:$E$10961,4,0) -> Vermelho | AO43: =VLOOKUP(Tabela32[[#This Row],[Serventia]],'Autos Paralisados + 90'!$A$6:$N$1141,14,0) -> 396 | AP43: =VLOOKUP(Tabela32[[#This Row],[Serventia]],'Definição das cores'!$B$10967:$E$11692,4,0) -> Vermelho | AQ43: =VLOOKUP(Tabela32[[#This Row],[Serventia]],'Autos Paralisados + 30'!$A$6:$N$1141,13,0) -> 1144 | AR43: =VLOOKUP(Tabela32[[#This Row],[Serventia]],'Definição das cores'!$B$11698:$E$12423,4,0) -> Vermelho | AS43: =VLOOKUP(Tabela32[[#This Row],[Serventia]],'Autos Paralisados + 90'!$A$6:$N$1141,13,0) -> 185 | AT43: =VLOOKUP(Tabela32[[#This Row],[Serventia]],'Definição das cores'!$B$12428:$E$13155,4,0) -> Vermelho | AU43: =Tabela32[[#This Row],[ 90 (Último Mês)2]]/Tabela32[[#This Row],[Último Mês]] -> 0.06135986733 | AV43: =VLOOKUP(Tabela32[[#This Row],[Serventia]],'Definição das cores'!$B$3664:$E$4389,4,0) -> Vermelho | AW43: =IFERROR(Tabela32[[#This Row],[30 (Último Mês)]]/Tabela32[[#This Row],[ 30 (Último Mês)]],"-") -> 0.4536713287 | AX43: =VLOOKUP(Tabela32[[#This Row],[Serventia]],'Definição das cores'!$B$2932:$E$3660,4,0) -> Vermelho | AY43: =VLOOKUP(Tabela32[[#This Row],[Serventia]],Lotação!$A$12:$D$2844,4,0) ->  | AZ43: =IFERROR(ROUND(VLOOKUP(Tabela32[[#This Row],[Serventia]],Tabela8[],2,0),0),"N/A") -> 6 | BA43: =IF(Tabela32[[#This Row],[Ideal]]="N/A","N/A",IF(Tabela32[[#This Row],[Atual]]>=Tabela32[[#This Row],[Ideal]],"Não",IF(Tabela32[[#This Row],[Atual]]<Tabela32[[#This Row],[Ideal]],"Sim"))) ->  | BB43: =VLOOKUP(Tabela32[[#This Row],[Serventia]],Tabela4[],8,0) -> Não | BC43: =VLOOKUP(Tabela32[[#This Row],[Serventia]],Tabela5[],15,0) ->  | BD43: =VLOOKUP(Tabela32[[#This Row],[Serventia]],'Definição das cores'!$A$13890:$J$14735,9,0) -> 4/6 | BE43: =VLOOKUP(Tabela32[[#This Row],[Serventia]],'Definição das cores'!$A$13890:$J$14735,10,0) -> 2/6
A44: CAPITAL 18 VARA CIVEL | B44: =VLOOKUP(Tabela32[[#This Row],[Serventia]],'Base_Critérios de Consulta'!$B$3:$D$868,3,0) -> 1 | C44: =VLOOKUP(Tabela32[[#This Row],[Serventia]],'Base_Critérios de Consulta'!$B$3:$G$868,6,0) -> Não | D44: =IFERROR(VLOOKUP(Tabela32[[#This Row],[Serventia]],'Acervo Geral - Físico'!$A$6:$N$1098,14,0),"-") -> 53.83333333 | E44: =VLOOKUP(Tabela32[[#This Row],[Serventia]],'Acervo Geral - Eletrônico'!$A$6:$N$1030,14,0) -> 3114.583333 | F44: =VLOOKUP(Tabela32[[#This Row],[Serventia]],'Acervo Geral - TOTAL'!$A$6:$N$1141,14,0) -> 3168.416667 | G44: =VLOOKUP(Tabela32[[#This Row],[Serventia]],'Definição das cores'!$B$13160:$E$13887,4,0) -> Verde | H44: =VLOOKUP(Tabela32[[#This Row],[Serventia]],'Acervo Geral - TOTAL'!$A$6:$M$1141,13,0) -> 3207 | I44: =VLOOKUP(Tabela32[[#This Row],[Serventia]],'Definição das cores'!$B$5:$E$731,4,0) -> Verde | J44: =(Tabela32[[#This Row],[Último Mês (II)]]/Tabela32[[#This Row],[Média no período (I)]])-1 -> 0.01217748087 | K44: =VLOOKUP(Tabela32[[#This Row],[Serventia]],'Definição das cores'!$A$737:$C$1462,3,0) -> Verde | L44: =VLOOKUP(Tabela32[[#This Row],[Serventia]],'Acervo Físico - TOTAL'!$A$6:$N$1141,14,0) -> 3134.25 | M44: =VLOOKUP(Tabela32[[#This Row],[Serventia]],'Acervo Físico - TOTAL'!$A$6:$N$1141,13,0) -> 3168 | N44: =Tabela32[[#This Row],[Último Mês (II)]]-Tabela32[[#This Row],[Último Mês]] -> 39 | O44: =VLOOKUP(Tabela32[[#This Row],[Serventia]],Arquivados!$A$6:$N$1141,14,0) -> 41.5 | P44: =VLOOKUP(Tabela32[[#This Row],[Serventia]],'Tombados Geral '!$A$6:$N$1141,14,0) -> 81.16666667 | Q44: =VLOOKUP(Tabela32[[#This Row],[Serventia]],Tabela6[],3,0) -> 0.9484375 | R44: =VLOOKUP(Tabela32[[#This Row],[Serventia]],'Meta 1 - 2022'!$B$2:$D$859,3,0) -> 0 | S44: =VLOOKUP(Tabela32[[#This Row],[Serventia]],'Definição das cores'!$B$4393:$E$5113,4,0) -> Verde | T44: =VLOOKUP(Tabela32[[#This Row],[Serventia]],IAD!$A$10:$N$940,14,0) -> 1.400596547 | U44: =VLOOKUP(Tabela32[[#This Row],[Serventia]],'Definição das cores'!$B$1468:$E$2190,4,0) -> Verde | V44: =VLOOKUP(Tabela32[[#This Row],[Serventia]],IPS!$A$10:$N$940,14,0) ->  | W44: =VLOOKUP(Tabela32[[#This Row],[Serventia]],'Definição das cores'!$B$5124:$E$5846,4,0) ->  | X44: =VLOOKUP(Tabela32[[#This Row],[Serventia]],'Taxa De Congestionamento'!$A$3:$N$884,14,0) -> 0.7239637259 | Y44: =VLOOKUP(Tabela32[[#This Row],[Serventia]],'Definição das cores'!$B$2202:$E$2922,4,0) -> Verde | Z44: =Tabela32[[#This Row],[Arq (Média)]]/Tabela32[[#This Row],[Média no período]] -> 0.01324080721 | AA44: =VLOOKUP(Tabela32[[#This Row],[Serventia]],'Definição das cores'!$B$5856:$E$6582,4,0) -> Vermelho | AB44: =VLOOKUP(Tabela32[[#This Row],[Serventia]],'Aud. Real.'!$A$6:$N$1141,14,0) -> 1.583333333 | AC44: =VLOOKUP(Tabela32[[#This Row],[Serventia]],Conclusão!$A$6:$N$1141,14,0) -> 1148.083333 | AD44: =VLOOKUP(Tabela32[[#This Row],[Serventia]],'Definição das cores'!$B$6587:$E$7312,4,0) -> Verde | AE44: =VLOOKUP(Tabela32[[#This Row],[Serventia]],'Autos Conclusos + 30 '!$A$6:$N$1141,14,0) -> 0 | AF44: =VLOOKUP(Tabela32[[#This Row],[Serventia]],'Definição das cores'!$B$7317:$E$8041,4,0) -> Verde | AG44: =VLOOKUP(Tabela32[[#This Row],[Serventia]],'Autos Conclusos + 100'!$A$6:$N$1141,14,0) -> 0 | AH44: =VLOOKUP(Tabela32[[#This Row],[Serventia]],'Definição das cores'!$B$8046:$E$8771,4,0) -> Verde | AI44: =VLOOKUP(Tabela32[[#This Row],[Serventia]],'Autos Conclusos + 30 '!$A$5:$N$1141,13,0) -> 0 | AJ44: =VLOOKUP(Tabela32[[#This Row],[Serventia]],'Definição das cores'!$B$8046:$E$8771,4,0) -> Verde | AK44: =VLOOKUP(Tabela32[[#This Row],[Serventia]],'Autos Conclusos + 100'!$A$5:$N$1141,13,0) -> 0 | AL44: =VLOOKUP(Tabela32[[#This Row],[Serventia]],'Definição das cores'!$B$9506:$E$10231,4,0) -> Verde | AM44: =VLOOKUP(Tabela32[[#This Row],[Serventia]],'Autos Paralisados + 30'!$A$6:$N$1141,14,0) -> 878.3333333 | AN44: =VLOOKUP(Tabela32[[#This Row],[Serventia]],'Definição das cores'!$B$10236:$E$10961,4,0) -> Verde | AO44: =VLOOKUP(Tabela32[[#This Row],[Serventia]],'Autos Paralisados + 90'!$A$6:$N$1141,14,0) -> 12.66666667 | AP44: =VLOOKUP(Tabela32[[#This Row],[Serventia]],'Definição das cores'!$B$10967:$E$11692,4,0) -> Verde | AQ44: =VLOOKUP(Tabela32[[#This Row],[Serventia]],'Autos Paralisados + 30'!$A$6:$N$1141,13,0) -> 857 | AR44: =VLOOKUP(Tabela32[[#This Row],[Serventia]],'Definição das cores'!$B$11698:$E$12423,4,0) -> Verde | AS44: =VLOOKUP(Tabela32[[#This Row],[Serventia]],'Autos Paralisados + 90'!$A$6:$N$1141,13,0) -> 37 | AT44: =VLOOKUP(Tabela32[[#This Row],[Serventia]],'Definição das cores'!$B$12428:$E$13155,4,0) -> Verde | AU44: =Tabela32[[#This Row],[ 90 (Último Mês)2]]/Tabela32[[#This Row],[Último Mês]] -> 0.01167929293 | AV44: =VLOOKUP(Tabela32[[#This Row],[Serventia]],'Definição das cores'!$B$3664:$E$4389,4,0) -> Verde | AW44: =IFERROR(Tabela32[[#This Row],[30 (Último Mês)]]/Tabela32[[#This Row],[ 30 (Último Mês)]],"-") -> 0 | AX44: =VLOOKUP(Tabela32[[#This Row],[Serventia]],'Definição das cores'!$B$2932:$E$3660,4,0) -> Verde | AY44: =VLOOKUP(Tabela32[[#This Row],[Serventia]],Lotação!$A$12:$D$2844,4,0) ->  | AZ44: =IFERROR(ROUND(VLOOKUP(Tabela32[[#This Row],[Serventia]],Tabela8[],2,0),0),"N/A") -> 6 | BA44: =IF(Tabela32[[#This Row],[Ideal]]="N/A","N/A",IF(Tabela32[[#This Row],[Atual]]>=Tabela32[[#This Row],[Ideal]],"Não",IF(Tabela32[[#This Row],[Atual]]<Tabela32[[#This Row],[Ideal]],"Sim"))) ->  | BB44: =VLOOKUP(Tabela32[[#This Row],[Serventia]],Tabela4[],8,0) -> Não | BC44: =VLOOKUP(Tabela32[[#This Row],[Serventia]],Tabela5[],15,0) ->  | BD44: =VLOOKUP(Tabela32[[#This Row],[Serventia]],'Definição das cores'!$A$13890:$J$14735,9,0) -> 6/6 | BE44: =VLOOKUP(Tabela32[[#This Row],[Serventia]],'Definição das cores'!$A$13890:$J$14735,10,0) -> 0/6
A45: CAPITAL 19 VARA CIVEL | B45: =VLOOKUP(Tabela32[[#This Row],[Serventia]],'Base_Critérios de Consulta'!$B$3:$D$868,3,0) -> 1 | C45: =VLOOKUP(Tabela32[[#This Row],[Serventia]],'Base_Critérios de Consulta'!$B$3:$G$868,6,0) -> Não | D45: =IFERROR(VLOOKUP(Tabela32[[#This Row],[Serventia]],'Acervo Geral - Físico'!$A$6:$N$1098,14,0),"-") -> 35.66666667 | E45: =VLOOKUP(Tabela32[[#This Row],[Serventia]],'Acervo Geral - Eletrônico'!$A$6:$N$1030,14,0) -> 1818.25 | F45: =VLOOKUP(Tabela32[[#This Row],[Serventia]],'Acervo Geral - TOTAL'!$A$6:$N$1141,14,0) -> 1853.916667 | G45: =VLOOKUP(Tabela32[[#This Row],[Serventia]],'Definição das cores'!$B$13160:$E$13887,4,0) -> Verde | H45: =VLOOKUP(Tabela32[[#This Row],[Serventia]],'Acervo Geral - TOTAL'!$A$6:$M$1141,13,0) -> 1833 | I45: =VLOOKUP(Tabela32[[#This Row],[Serventia]],'Definição das cores'!$B$5:$E$731,4,0) -> Verde | J45: =(Tabela32[[#This Row],[Último Mês (II)]]/Tabela32[[#This Row],[Média no período (I)]])-1 -> -0.0112824201 | K45: =VLOOKUP(Tabela32[[#This Row],[Serventia]],'Definição das cores'!$A$737:$C$1462,3,0) -> Verde | L45: =VLOOKUP(Tabela32[[#This Row],[Serventia]],'Acervo Físico - TOTAL'!$A$6:$N$1141,14,0) -> 1851.5 | M45: =VLOOKUP(Tabela32[[#This Row],[Serventia]],'Acervo Físico - TOTAL'!$A$6:$N$1141,13,0) -> 1829 | N45: =Tabela32[[#This Row],[Último Mês (II)]]-Tabela32[[#This Row],[Último Mês]] -> 4 | O45: =VLOOKUP(Tabela32[[#This Row],[Serventia]],Arquivados!$A$6:$N$1141,14,0) -> 56 | P45: =VLOOKUP(Tabela32[[#This Row],[Serventia]],'Tombados Geral '!$A$6:$N$1141,14,0) -> 80.91666667 | Q45: =VLOOKUP(Tabela32[[#This Row],[Serventia]],Tabela6[],3,0) -> 1.114678899 | R45: =VLOOKUP(Tabela32[[#This Row],[Serventia]],'Meta 1 - 2022'!$B$2:$D$859,3,0) -> 0 | S45: =VLOOKUP(Tabela32[[#This Row],[Serventia]],'Definição das cores'!$B$4393:$E$5113,4,0) -> Verde | T45: =VLOOKUP(Tabela32[[#This Row],[Serventia]],IAD!$A$10:$N$940,14,0) -> 1.26424722 | U45: =VLOOKUP(Tabela32[[#This Row],[Serventia]],'Definição das cores'!$B$1468:$E$2190,4,0) -> Verde | V45: =VLOOKUP(Tabela32[[#This Row],[Serventia]],IPS!$A$10:$N$940,14,0) ->  | W45: =VLOOKUP(Tabela32[[#This Row],[Serventia]],'Definição das cores'!$B$5124:$E$5846,4,0) ->  | X45: =VLOOKUP(Tabela32[[#This Row],[Serventia]],'Taxa De Congestionamento'!$A$3:$N$884,14,0) -> 0.5654993791 | Y45: =VLOOKUP(Tabela32[[#This Row],[Serventia]],'Definição das cores'!$B$2202:$E$2922,4,0) -> Verde | Z45: =Tabela32[[#This Row],[Arq (Média)]]/Tabela32[[#This Row],[Média no período]] -> 0.03024574669 | AA45: =VLOOKUP(Tabela32[[#This Row],[Serventia]],'Definição das cores'!$B$5856:$E$6582,4,0) -> Verde | AB45: =VLOOKUP(Tabela32[[#This Row],[Serventia]],'Aud. Real.'!$A$6:$N$1141,14,0) -> 2.833333333 | AC45: =VLOOKUP(Tabela32[[#This Row],[Serventia]],Conclusão!$A$6:$N$1141,14,0) -> 1365.833333 | AD45: =VLOOKUP(Tabela32[[#This Row],[Serventia]],'Definição das cores'!$B$6587:$E$7312,4,0) -> Verde | AE45: =VLOOKUP(Tabela32[[#This Row],[Serventia]],'Autos Conclusos + 30 '!$A$6:$N$1141,14,0) -> 1 | AF45: =VLOOKUP(Tabela32[[#This Row],[Serventia]],'Definição das cores'!$B$7317:$E$8041,4,0) -> Verde | AG45: =VLOOKUP(Tabela32[[#This Row],[Serventia]],'Autos Conclusos + 100'!$A$6:$N$1141,14,0) -> 0 | AH45: =VLOOKUP(Tabela32[[#This Row],[Serventia]],'Definição das cores'!$B$8046:$E$8771,4,0) -> Verde | AI45: =VLOOKUP(Tabela32[[#This Row],[Serventia]],'Autos Conclusos + 30 '!$A$5:$N$1141,13,0) -> 0 | AJ45: =VLOOKUP(Tabela32[[#This Row],[Serventia]],'Definição das cores'!$B$8046:$E$8771,4,0) -> Verde | AK45: =VLOOKUP(Tabela32[[#This Row],[Serventia]],'Autos Conclusos + 100'!$A$5:$N$1141,13,0) -> 0 | AL45: =VLOOKUP(Tabela32[[#This Row],[Serventia]],'Definição das cores'!$B$9506:$E$10231,4,0) -> Verde | AM45: =VLOOKUP(Tabela32[[#This Row],[Serventia]],'Autos Paralisados + 30'!$A$6:$N$1141,14,0) -> 205.1666667 | AN45: =VLOOKUP(Tabela32[[#This Row],[Serventia]],'Definição das cores'!$B$10236:$E$10961,4,0) -> Verde | AO45: =VLOOKUP(Tabela32[[#This Row],[Serventia]],'Autos Paralisados + 90'!$A$6:$N$1141,14,0) -> 1.25 | AP45: =VLOOKUP(Tabela32[[#This Row],[Serventia]],'Definição das cores'!$B$10967:$E$11692,4,0) -> Verde | AQ45: =VLOOKUP(Tabela32[[#This Row],[Serventia]],'Autos Paralisados + 30'!$A$6:$N$1141,13,0) -> 135 | AR45: =VLOOKUP(Tabela32[[#This Row],[Serventia]],'Definição das cores'!$B$11698:$E$12423,4,0) -> Verde | AS45: =VLOOKUP(Tabela32[[#This Row],[Serventia]],'Autos Paralisados + 90'!$A$6:$N$1141,13,0) -> 0 | AT45: =VLOOKUP(Tabela32[[#This Row],[Serventia]],'Definição das cores'!$B$12428:$E$13155,4,0) -> Verde | AU45: =Tabela32[[#This Row],[ 90 (Último Mês)2]]/Tabela32[[#This Row],[Último Mês]] -> 0 | AV45: =VLOOKUP(Tabela32[[#This Row],[Serventia]],'Definição das cores'!$B$3664:$E$4389,4,0) -> Verde | AW45: =IFERROR(Tabela32[[#This Row],[30 (Último Mês)]]/Tabela32[[#This Row],[ 30 (Último Mês)]],"-") -> 0 | AX45: =VLOOKUP(Tabela32[[#This Row],[Serventia]],'Definição das cores'!$B$2932:$E$3660,4,0) -> Verde | AY45: =VLOOKUP(Tabela32[[#This Row],[Serventia]],Lotação!$A$12:$D$2844,4,0) ->  | AZ45: =IFERROR(ROUND(VLOOKUP(Tabela32[[#This Row],[Serventia]],Tabela8[],2,0),0),"N/A") -> 6 | BA45: =IF(Tabela32[[#This Row],[Ideal]]="N/A","N/A",IF(Tabela32[[#This Row],[Atual]]>=Tabela32[[#This Row],[Ideal]],"Não",IF(Tabela32[[#This Row],[Atual]]<Tabela32[[#This Row],[Ideal]],"Sim"))) ->  | BB45: =VLOOKUP(Tabela32[[#This Row],[Serventia]],Tabela4[],8,0) -> Não | BC45: =VLOOKUP(Tabela32[[#This Row],[Serventia]],Tabela5[],15,0) ->  | BD45: =VLOOKUP(Tabela32[[#This Row],[Serventia]],'Definição das cores'!$A$13890:$J$14735,9,0) -> 6/6 | BE45: =VLOOKUP(Tabela32[[#This Row],[Serventia]],'Definição das cores'!$A$13890:$J$14735,10,0) -> 0/6
A46: CAPITAL 2 VARA CIVEL | B46: =VLOOKUP(Tabela32[[#This Row],[Serventia]],'Base_Critérios de Consulta'!$B$3:$D$868,3,0) -> 1 | C46: =VLOOKUP(Tabela32[[#This Row],[Serventia]],'Base_Critérios de Consulta'!$B$3:$G$868,6,0) -> Não | D46: =IFERROR(VLOOKUP(Tabela32[[#This Row],[Serventia]],'Acervo Geral - Físico'!$A$6:$N$1098,14,0),"-") -> 74.41666667 | E46: =VLOOKUP(Tabela32[[#This Row],[Serventia]],'Acervo Geral - Eletrônico'!$A$6:$N$1030,14,0) -> 4646.583333 | F46: =VLOOKUP(Tabela32[[#This Row],[Serventia]],'Acervo Geral - TOTAL'!$A$6:$N$1141,14,0) -> 4721 | G46: =VLOOKUP(Tabela32[[#This Row],[Serventia]],'Definição das cores'!$B$13160:$E$13887,4,0) -> Vermelho | H46: =VLOOKUP(Tabela32[[#This Row],[Serventia]],'Acervo Geral - TOTAL'!$A$6:$M$1141,13,0) -> 4700 | I46: =VLOOKUP(Tabela32[[#This Row],[Serventia]],'Definição das cores'!$B$5:$E$731,4,0) -> Vermelho | J46: =(Tabela32[[#This Row],[Último Mês (II)]]/Tabela32[[#This Row],[Média no período (I)]])-1 -> -0.004448210125 | K46: =VLOOKUP(Tabela32[[#This Row],[Serventia]],'Definição das cores'!$A$737:$C$1462,3,0) -> Verde | L46: =VLOOKUP(Tabela32[[#This Row],[Serventia]],'Acervo Físico - TOTAL'!$A$6:$N$1141,14,0) -> 4632.75 | M46: =VLOOKUP(Tabela32[[#This Row],[Serventia]],'Acervo Físico - TOTAL'!$A$6:$N$1141,13,0) -> 4576 | N46: =Tabela32[[#This Row],[Último Mês (II)]]-Tabela32[[#This Row],[Último Mês]] -> 124 | O46: =VLOOKUP(Tabela32[[#This Row],[Serventia]],Arquivados!$A$6:$N$1141,14,0) -> 62.08333333 | P46: =VLOOKUP(Tabela32[[#This Row],[Serventia]],'Tombados Geral '!$A$6:$N$1141,14,0) -> 79.91666667 | Q46: =VLOOKUP(Tabela32[[#This Row],[Serventia]],Tabela6[],3,0) -> 0.9713855422 | R46: =VLOOKUP(Tabela32[[#This Row],[Serventia]],'Meta 1 - 2022'!$B$2:$D$859,3,0) -> 0 | S46: =VLOOKUP(Tabela32[[#This Row],[Serventia]],'Definição das cores'!$B$4393:$E$5113,4,0) -> Verde | T46: =VLOOKUP(Tabela32[[#This Row],[Serventia]],IAD!$A$10:$N$940,14,0) -> 1.357681637 | U46: =VLOOKUP(Tabela32[[#This Row],[Serventia]],'Definição das cores'!$B$1468:$E$2190,4,0) -> Verde | V46: =VLOOKUP(Tabela32[[#This Row],[Serventia]],IPS!$A$10:$N$940,14,0) ->  | W46: =VLOOKUP(Tabela32[[#This Row],[Serventia]],'Definição das cores'!$B$5124:$E$5846,4,0) ->  | X46: =VLOOKUP(Tabela32[[#This Row],[Serventia]],'Taxa De Congestionamento'!$A$3:$N$884,14,0) -> 0.847484322 | Y46: =VLOOKUP(Tabela32[[#This Row],[Serventia]],'Definição das cores'!$B$2202:$E$2922,4,0) -> Vermelho | Z46: =Tabela32[[#This Row],[Arq (Média)]]/Tabela32[[#This Row],[Média no período]] -> 0.01340096775 | AA46: =VLOOKUP(Tabela32[[#This Row],[Serventia]],'Definição das cores'!$B$5856:$E$6582,4,0) -> Vermelho | AB46: =VLOOKUP(Tabela32[[#This Row],[Serventia]],'Aud. Real.'!$A$6:$N$1141,14,0) -> 0.3333333333 | AC46: =VLOOKUP(Tabela32[[#This Row],[Serventia]],Conclusão!$A$6:$N$1141,14,0) -> 1475.75 | AD46: =VLOOKUP(Tabela32[[#This Row],[Serventia]],'Definição das cores'!$B$6587:$E$7312,4,0) -> Verde | AE46: =VLOOKUP(Tabela32[[#This Row],[Serventia]],'Autos Conclusos + 30 '!$A$6:$N$1141,14,0) -> 3.666666667 | AF46: =VLOOKUP(Tabela32[[#This Row],[Serventia]],'Definição das cores'!$B$7317:$E$8041,4,0) -> Verde | AG46: =VLOOKUP(Tabela32[[#This Row],[Serventia]],'Autos Conclusos + 100'!$A$6:$N$1141,14,0) -> 0.25 | AH46: =VLOOKUP(Tabela32[[#This Row],[Serventia]],'Definição das cores'!$B$8046:$E$8771,4,0) -> Verde | AI46: =VLOOKUP(Tabela32[[#This Row],[Serventia]],'Autos Conclusos + 30 '!$A$5:$N$1141,13,0) -> 2 | AJ46: =VLOOKUP(Tabela32[[#This Row],[Serventia]],'Definição das cores'!$B$8046:$E$8771,4,0) -> Verde | AK46: =VLOOKUP(Tabela32[[#This Row],[Serventia]],'Autos Conclusos + 100'!$A$5:$N$1141,13,0) -> 1 | AL46: =VLOOKUP(Tabela32[[#This Row],[Serventia]],'Definição das cores'!$B$9506:$E$10231,4,0) -> Verde | AM46: =VLOOKUP(Tabela32[[#This Row],[Serventia]],'Autos Paralisados + 30'!$A$6:$N$1141,14,0) -> 1322.666667 | AN46: =VLOOKUP(Tabela32[[#This Row],[Serventia]],'Definição das cores'!$B$10236:$E$10961,4,0) -> Vermelho | AO46: =VLOOKUP(Tabela32[[#This Row],[Serventia]],'Autos Paralisados + 90'!$A$6:$N$1141,14,0) -> 160.5833333 | AP46: =VLOOKUP(Tabela32[[#This Row],[Serventia]],'Definição das cores'!$B$10967:$E$11692,4,0) -> Verde | AQ46: =VLOOKUP(Tabela32[[#This Row],[Serventia]],'Autos Paralisados + 30'!$A$6:$N$1141,13,0) -> 971 | AR46: =VLOOKUP(Tabela32[[#This Row],[Serventia]],'Definição das cores'!$B$11698:$E$12423,4,0) -> Verde | AS46: =VLOOKUP(Tabela32[[#This Row],[Serventia]],'Autos Paralisados + 90'!$A$6:$N$1141,13,0) -> 9 | AT46: =VLOOKUP(Tabela32[[#This Row],[Serventia]],'Definição das cores'!$B$12428:$E$13155,4,0) -> Verde | AU46: =Tabela32[[#This Row],[ 90 (Último Mês)2]]/Tabela32[[#This Row],[Último Mês]] -> 0.001966783217 | AV46: =VLOOKUP(Tabela32[[#This Row],[Serventia]],'Definição das cores'!$B$3664:$E$4389,4,0) -> Verde | AW46: =IFERROR(Tabela32[[#This Row],[30 (Último Mês)]]/Tabela32[[#This Row],[ 30 (Último Mês)]],"-") -> 0.002059732235 | AX46: =VLOOKUP(Tabela32[[#This Row],[Serventia]],'Definição das cores'!$B$2932:$E$3660,4,0) -> Verde | AY46: =VLOOKUP(Tabela32[[#This Row],[Serventia]],Lotação!$A$12:$D$2844,4,0) ->  | AZ46: =IFERROR(ROUND(VLOOKUP(Tabela32[[#This Row],[Serventia]],Tabela8[],2,0),0),"N/A") -> 6 | BA46: =IF(Tabela32[[#This Row],[Ideal]]="N/A","N/A",IF(Tabela32[[#This Row],[Atual]]>=Tabela32[[#This Row],[Ideal]],"Não",IF(Tabela32[[#This Row],[Atual]]<Tabela32[[#This Row],[Ideal]],"Sim"))) ->  | BB46: =VLOOKUP(Tabela32[[#This Row],[Serventia]],Tabela4[],8,0) -> Não | BC46: =VLOOKUP(Tabela32[[#This Row],[Serventia]],Tabela5[],15,0) ->  | BD46: =VLOOKUP(Tabela32[[#This Row],[Serventia]],'Definição das cores'!$A$13890:$J$14735,9,0) -> 4/6 | BE46: =VLOOKUP(Tabela32[[#This Row],[Serventia]],'Definição das cores'!$A$13890:$J$14735,10,0) -> 2/6
A47: CAPITAL 20 VARA CIVEL | B47: =VLOOKUP(Tabela32[[#This Row],[Serventia]],'Base_Critérios de Consulta'!$B$3:$D$868,3,0) -> 1 | C47: =VLOOKUP(Tabela32[[#This Row],[Serventia]],'Base_Critérios de Consulta'!$B$3:$G$868,6,0) -> Não | D47: =IFERROR(VLOOKUP(Tabela32[[#This Row],[Serventia]],'Acervo Geral - Físico'!$A$6:$N$1098,14,0),"-") -> 111.9166667 | E47: =VLOOKUP(Tabela32[[#This Row],[Serventia]],'Acervo Geral - Eletrônico'!$A$6:$N$1030,14,0) -> 5454.666667 | F47: =VLOOKUP(Tabela32[[#This Row],[Serventia]],'Acervo Geral - TOTAL'!$A$6:$N$1141,14,0) -> 5566.583333 | G47: =VLOOKUP(Tabela32[[#This Row],[Serventia]],'Definição das cores'!$B$13160:$E$13887,4,0) -> Vermelho | H47: =VLOOKUP(Tabela32[[#This Row],[Serventia]],'Acervo Geral - TOTAL'!$A$6:$M$1141,13,0) -> 5656 | I47: =VLOOKUP(Tabela32[[#This Row],[Serventia]],'Definição das cores'!$B$5:$E$731,4,0) -> Vermelho | J47: =(Tabela32[[#This Row],[Último Mês (II)]]/Tabela32[[#This Row],[Média no período (I)]])-1 -> 0.01606311472 | K47: =VLOOKUP(Tabela32[[#This Row],[Serventia]],'Definição das cores'!$A$737:$C$1462,3,0) -> Verde | L47: =VLOOKUP(Tabela32[[#This Row],[Serventia]],'Acervo Físico - TOTAL'!$A$6:$N$1141,14,0) -> 5399.583333 | M47: =VLOOKUP(Tabela32[[#This Row],[Serventia]],'Acervo Físico - TOTAL'!$A$6:$N$1141,13,0) -> 5450 | N47: =Tabela32[[#This Row],[Último Mês (II)]]-Tabela32[[#This Row],[Último Mês]] -> 206 | O47: =VLOOKUP(Tabela32[[#This Row],[Serventia]],Arquivados!$A$6:$N$1141,14,0) -> 11.33333333 | P47: =VLOOKUP(Tabela32[[#This Row],[Serventia]],'Tombados Geral '!$A$6:$N$1141,14,0) -> 78 | Q47: =VLOOKUP(Tabela32[[#This Row],[Serventia]],Tabela6[],3,0) -> 1.145259939 | R47: =VLOOKUP(Tabela32[[#This Row],[Serventia]],'Meta 1 - 2022'!$B$2:$D$859,3,0) -> 0 | S47: =VLOOKUP(Tabela32[[#This Row],[Serventia]],'Definição das cores'!$B$4393:$E$5113,4,0) -> Verde | T47: =VLOOKUP(Tabela32[[#This Row],[Serventia]],IAD!$A$10:$N$940,14,0) -> 1.136115374 | U47: =VLOOKUP(Tabela32[[#This Row],[Serventia]],'Definição das cores'!$B$1468:$E$2190,4,0) -> Verde | V47: =VLOOKUP(Tabela32[[#This Row],[Serventia]],IPS!$A$10:$N$940,14,0) ->  | W47: =VLOOKUP(Tabela32[[#This Row],[Serventia]],'Definição das cores'!$B$5124:$E$5846,4,0) ->  | X47: =VLOOKUP(Tabela32[[#This Row],[Serventia]],'Taxa De Congestionamento'!$A$3:$N$884,14,0) -> 0.8864231002 | Y47: =VLOOKUP(Tabela32[[#This Row],[Serventia]],'Definição das cores'!$B$2202:$E$2922,4,0) -> Vermelho | Z47: =Tabela32[[#This Row],[Arq (Média)]]/Tabela32[[#This Row],[Média no período]] -> 0.002098927386 | AA47: =VLOOKUP(Tabela32[[#This Row],[Serventia]],'Definição das cores'!$B$5856:$E$6582,4,0) -> Vermelho | AB47: =VLOOKUP(Tabela32[[#This Row],[Serventia]],'Aud. Real.'!$A$6:$N$1141,14,0) -> 1.583333333 | AC47: =VLOOKUP(Tabela32[[#This Row],[Serventia]],Conclusão!$A$6:$N$1141,14,0) -> 1169.666667 | AD47: =VLOOKUP(Tabela32[[#This Row],[Serventia]],'Definição das cores'!$B$6587:$E$7312,4,0) -> Verde | AE47: =VLOOKUP(Tabela32[[#This Row],[Serventia]],'Autos Conclusos + 30 '!$A$6:$N$1141,14,0) -> 1105.75 | AF47: =VLOOKUP(Tabela32[[#This Row],[Serventia]],'Definição das cores'!$B$7317:$E$8041,4,0) -> Vermelho | AG47: =VLOOKUP(Tabela32[[#This Row],[Serventia]],'Autos Conclusos + 100'!$A$6:$N$1141,14,0) -> 565.6666667 | AH47: =VLOOKUP(Tabela32[[#This Row],[Serventia]],'Definição das cores'!$B$8046:$E$8771,4,0) -> Vermelho | AI47: =VLOOKUP(Tabela32[[#This Row],[Serventia]],'Autos Conclusos + 30 '!$A$5:$N$1141,13,0) -> 1450 | AJ47: =VLOOKUP(Tabela32[[#This Row],[Serventia]],'Definição das cores'!$B$8046:$E$8771,4,0) -> Vermelho | AK47: =VLOOKUP(Tabela32[[#This Row],[Serventia]],'Autos Conclusos + 100'!$A$5:$N$1141,13,0) -> 750 | AL47: =VLOOKUP(Tabela32[[#This Row],[Serventia]],'Definição das cores'!$B$9506:$E$10231,4,0) -> Vermelho | AM47: =VLOOKUP(Tabela32[[#This Row],[Serventia]],'Autos Paralisados + 30'!$A$6:$N$1141,14,0) -> 2475.25 | AN47: =VLOOKUP(Tabela32[[#This Row],[Serventia]],'Definição das cores'!$B$10236:$E$10961,4,0) -> Vermelho | AO47: =VLOOKUP(Tabela32[[#This Row],[Serventia]],'Autos Paralisados + 90'!$A$6:$N$1141,14,0) -> 750.75 | AP47: =VLOOKUP(Tabela32[[#This Row],[Serventia]],'Definição das cores'!$B$10967:$E$11692,4,0) -> Vermelho | AQ47: =VLOOKUP(Tabela32[[#This Row],[Serventia]],'Autos Paralisados + 30'!$A$6:$N$1141,13,0) -> 2645 | AR47: =VLOOKUP(Tabela32[[#This Row],[Serventia]],'Definição das cores'!$B$11698:$E$12423,4,0) -> Vermelho | AS47: =VLOOKUP(Tabela32[[#This Row],[Serventia]],'Autos Paralisados + 90'!$A$6:$N$1141,13,0) -> 800 | AT47: =VLOOKUP(Tabela32[[#This Row],[Serventia]],'Definição das cores'!$B$12428:$E$13155,4,0) -> Vermelho | AU47: =Tabela32[[#This Row],[ 90 (Último Mês)2]]/Tabela32[[#This Row],[Último Mês]] -> 0.1467889908 | AV47: =VLOOKUP(Tabela32[[#This Row],[Serventia]],'Definição das cores'!$B$3664:$E$4389,4,0) -> Vermelho | AW47: =IFERROR(Tabela32[[#This Row],[30 (Último Mês)]]/Tabela32[[#This Row],[ 30 (Último Mês)]],"-") -> 0.5482041588 | AX47: =VLOOKUP(Tabela32[[#This Row],[Serventia]],'Definição das cores'!$B$2932:$E$3660,4,0) -> Vermelho | AY47: =VLOOKUP(Tabela32[[#This Row],[Serventia]],Lotação!$A$12:$D$2844,4,0) ->  | AZ47: =IFERROR(ROUND(VLOOKUP(Tabela32[[#This Row],[Serventia]],Tabela8[],2,0),0),"N/A") -> 6 | BA47: =IF(Tabela32[[#This Row],[Ideal]]="N/A","N/A",IF(Tabela32[[#This Row],[Atual]]>=Tabela32[[#This Row],[Ideal]],"Não",IF(Tabela32[[#This Row],[Atual]]<Tabela32[[#This Row],[Ideal]],"Sim"))) ->  | BB47: =VLOOKUP(Tabela32[[#This Row],[Serventia]],Tabela4[],8,0) -> Não | BC47: =VLOOKUP(Tabela32[[#This Row],[Serventia]],Tabela5[],15,0) ->  | BD47: =VLOOKUP(Tabela32[[#This Row],[Serventia]],'Definição das cores'!$A$13890:$J$14735,9,0) -> 2/6 | BE47: =VLOOKUP(Tabela32[[#This Row],[Serventia]],'Definição das cores'!$A$13890:$J$14735,10,0) -> 4/6
A48: CAPITAL 21 VARA CIVEL | B48: =VLOOKUP(Tabela32[[#This Row],[Serventia]],'Base_Critérios de Consulta'!$B$3:$D$868,3,0) -> 1 | C48: =VLOOKUP(Tabela32[[#This Row],[Serventia]],'Base_Critérios de Consulta'!$B$3:$G$868,6,0) -> Não | D48: =IFERROR(VLOOKUP(Tabela32[[#This Row],[Serventia]],'Acervo Geral - Físico'!$A$6:$N$1098,14,0),"-") -> 13.41666667 | E48: =VLOOKUP(Tabela32[[#This Row],[Serventia]],'Acervo Geral - Eletrônico'!$A$6:$N$1030,14,0) -> 2418.5 | F48: =VLOOKUP(Tabela32[[#This Row],[Serventia]],'Acervo Geral - TOTAL'!$A$6:$N$1141,14,0) -> 2431.916667 | G48: =VLOOKUP(Tabela32[[#This Row],[Serventia]],'Definição das cores'!$B$13160:$E$13887,4,0) -> Verde | H48: =VLOOKUP(Tabela32[[#This Row],[Serventia]],'Acervo Geral - TOTAL'!$A$6:$M$1141,13,0) -> 2508 | I48: =VLOOKUP(Tabela32[[#This Row],[Serventia]],'Definição das cores'!$B$5:$E$731,4,0) -> Verde | J48: =(Tabela32[[#This Row],[Último Mês (II)]]/Tabela32[[#This Row],[Média no período (I)]])-1 -> 0.03128533735 | K48: =VLOOKUP(Tabela32[[#This Row],[Serventia]],'Definição das cores'!$A$737:$C$1462,3,0) -> Verde | L48: =VLOOKUP(Tabela32[[#This Row],[Serventia]],'Acervo Físico - TOTAL'!$A$6:$N$1141,14,0) -> 2410.5 | M48: =VLOOKUP(Tabela32[[#This Row],[Serventia]],'Acervo Físico - TOTAL'!$A$6:$N$1141,13,0) -> 2497 | N48: =Tabela32[[#This Row],[Último Mês (II)]]-Tabela32[[#This Row],[Último Mês]] -> 11 | O48: =VLOOKUP(Tabela32[[#This Row],[Serventia]],Arquivados!$A$6:$N$1141,14,0) -> 84.08333333 | P48: =VLOOKUP(Tabela32[[#This Row],[Serventia]],'Tombados Geral '!$A$6:$N$1141,14,0) -> 81 | Q48: =VLOOKUP(Tabela32[[#This Row],[Serventia]],Tabela6[],3,0) -> 1.019259259 | R48: =VLOOKUP(Tabela32[[#This Row],[Serventia]],'Meta 1 - 2022'!$B$2:$D$859,3,0) -> 0 | S48: =VLOOKUP(Tabela32[[#This Row],[Serventia]],'Definição das cores'!$B$4393:$E$5113,4,0) -> Verde | T48: =VLOOKUP(Tabela32[[#This Row],[Serventia]],IAD!$A$10:$N$940,14,0) -> 1.809143547 | U48: =VLOOKUP(Tabela32[[#This Row],[Serventia]],'Definição das cores'!$B$1468:$E$2190,4,0) -> Verde | V48: =VLOOKUP(Tabela32[[#This Row],[Serventia]],IPS!$A$10:$N$940,14,0) ->  | W48: =VLOOKUP(Tabela32[[#This Row],[Serventia]],'Definição das cores'!$B$5124:$E$5846,4,0) ->  | X48: =VLOOKUP(Tabela32[[#This Row],[Serventia]],'Taxa De Congestionamento'!$A$3:$N$884,14,0) -> 0.6770070312 | Y48: =VLOOKUP(Tabela32[[#This Row],[Serventia]],'Definição das cores'!$B$2202:$E$2922,4,0) -> Verde | Z48: =Tabela32[[#This Row],[Arq (Média)]]/Tabela32[[#This Row],[Média no período]] -> 0.03488211298 | AA48: =VLOOKUP(Tabela32[[#This Row],[Serventia]],'Definição das cores'!$B$5856:$E$6582,4,0) -> Verde | AB48: =VLOOKUP(Tabela32[[#This Row],[Serventia]],'Aud. Real.'!$A$6:$N$1141,14,0) -> 0.4166666667 | AC48: =VLOOKUP(Tabela32[[#This Row],[Serventia]],Conclusão!$A$6:$N$1141,14,0) -> 820.5 | AD48: =VLOOKUP(Tabela32[[#This Row],[Serventia]],'Definição das cores'!$B$6587:$E$7312,4,0) -> Vermelho | AE48: =VLOOKUP(Tabela32[[#This Row],[Serventia]],'Autos Conclusos + 30 '!$A$6:$N$1141,14,0) -> 0 | AF48: =VLOOKUP(Tabela32[[#This Row],[Serventia]],'Definição das cores'!$B$7317:$E$8041,4,0) -> Verde | AG48: =VLOOKUP(Tabela32[[#This Row],[Serventia]],'Autos Conclusos + 100'!$A$6:$N$1141,14,0) -> 0 | AH48: =VLOOKUP(Tabela32[[#This Row],[Serventia]],'Definição das cores'!$B$8046:$E$8771,4,0) -> Verde | AI48: =VLOOKUP(Tabela32[[#This Row],[Serventia]],'Autos Conclusos + 30 '!$A$5:$N$1141,13,0) -> 0 | AJ48: =VLOOKUP(Tabela32[[#This Row],[Serventia]],'Definição das cores'!$B$8046:$E$8771,4,0) -> Verde | AK48: =VLOOKUP(Tabela32[[#This Row],[Serventia]],'Autos Conclusos + 100'!$A$5:$N$1141,13,0) -> 0 | AL48: =VLOOKUP(Tabela32[[#This Row],[Serventia]],'Definição das cores'!$B$9506:$E$10231,4,0) -> Verde | AM48: =VLOOKUP(Tabela32[[#This Row],[Serventia]],'Autos Paralisados + 30'!$A$6:$N$1141,14,0) -> 858.5833333 | AN48: =VLOOKUP(Tabela32[[#This Row],[Serventia]],'Definição das cores'!$B$10236:$E$10961,4,0) -> Verde | AO48: =VLOOKUP(Tabela32[[#This Row],[Serventia]],'Autos Paralisados + 90'!$A$6:$N$1141,14,0) -> 138.5833333 | AP48: =VLOOKUP(Tabela32[[#This Row],[Serventia]],'Definição das cores'!$B$10967:$E$11692,4,0) -> Verde | AQ48: =VLOOKUP(Tabela32[[#This Row],[Serventia]],'Autos Paralisados + 30'!$A$6:$N$1141,13,0) -> 832 | AR48: =VLOOKUP(Tabela32[[#This Row],[Serventia]],'Definição das cores'!$B$11698:$E$12423,4,0) -> Verde | AS48: =VLOOKUP(Tabela32[[#This Row],[Serventia]],'Autos Paralisados + 90'!$A$6:$N$1141,13,0) -> 90 | AT48: =VLOOKUP(Tabela32[[#This Row],[Serventia]],'Definição das cores'!$B$12428:$E$13155,4,0) -> Verde | AU48: =Tabela32[[#This Row],[ 90 (Último Mês)2]]/Tabela32[[#This Row],[Último Mês]] -> 0.0360432519 | AV48: =VLOOKUP(Tabela32[[#This Row],[Serventia]],'Definição das cores'!$B$3664:$E$4389,4,0) -> Verde | AW48: =IFERROR(Tabela32[[#This Row],[30 (Último Mês)]]/Tabela32[[#This Row],[ 30 (Último Mês)]],"-") -> 0 | AX48: =VLOOKUP(Tabela32[[#This Row],[Serventia]],'Definição das cores'!$B$2932:$E$3660,4,0) -> Verde | AY48: =VLOOKUP(Tabela32[[#This Row],[Serventia]],Lotação!$A$12:$D$2844,4,0) ->  | AZ48: =IFERROR(ROUND(VLOOKUP(Tabela32[[#This Row],[Serventia]],Tabela8[],2,0),0),"N/A") -> 6 | BA48: =IF(Tabela32[[#This Row],[Ideal]]="N/A","N/A",IF(Tabela32[[#This Row],[Atual]]>=Tabela32[[#This Row],[Ideal]],"Não",IF(Tabela32[[#This Row],[Atual]]<Tabela32[[#This Row],[Ideal]],"Sim"))) ->  | BB48: =VLOOKUP(Tabela32[[#This Row],[Serventia]],Tabela4[],8,0) -> Não | BC48: =VLOOKUP(Tabela32[[#This Row],[Serventia]],Tabela5[],15,0) ->  | BD48: =VLOOKUP(Tabela32[[#This Row],[Serventia]],'Definição das cores'!$A$13890:$J$14735,9,0) -> 6/6 | BE48: =VLOOKUP(Tabela32[[#This Row],[Serventia]],'Definição das cores'!$A$13890:$J$14735,10,0) -> 0/6
A49: CAPITAL 22 VARA CIVEL | B49: =VLOOKUP(Tabela32[[#This Row],[Serventia]],'Base_Critérios de Consulta'!$B$3:$D$868,3,0) -> 1 | C49: =VLOOKUP(Tabela32[[#This Row],[Serventia]],'Base_Critérios de Consulta'!$B$3:$G$868,6,0) -> Não | D49: =IFERROR(VLOOKUP(Tabela32[[#This Row],[Serventia]],'Acervo Geral - Físico'!$A$6:$N$1098,14,0),"-") -> 14.41666667 | E49: =VLOOKUP(Tabela32[[#This Row],[Serventia]],'Acervo Geral - Eletrônico'!$A$6:$N$1030,14,0) -> 2523.083333 | F49: =VLOOKUP(Tabela32[[#This Row],[Serventia]],'Acervo Geral - TOTAL'!$A$6:$N$1141,14,0) -> 2537.5 | G49: =VLOOKUP(Tabela32[[#This Row],[Serventia]],'Definição das cores'!$B$13160:$E$13887,4,0) -> Verde | H49: =VLOOKUP(Tabela32[[#This Row],[Serventia]],'Acervo Geral - TOTAL'!$A$6:$M$1141,13,0) -> 2503 | I49: =VLOOKUP(Tabela32[[#This Row],[Serventia]],'Definição das cores'!$B$5:$E$731,4,0) -> Verde | J49: =(Tabela32[[#This Row],[Último Mês (II)]]/Tabela32[[#This Row],[Média no período (I)]])-1 -> -0.01359605911 | K49: =VLOOKUP(Tabela32[[#This Row],[Serventia]],'Definição das cores'!$A$737:$C$1462,3,0) -> Verde | L49: =VLOOKUP(Tabela32[[#This Row],[Serventia]],'Acervo Físico - TOTAL'!$A$6:$N$1141,14,0) -> 2522.333333 | M49: =VLOOKUP(Tabela32[[#This Row],[Serventia]],'Acervo Físico - TOTAL'!$A$6:$N$1141,13,0) -> 2467 | N49: =Tabela32[[#This Row],[Último Mês (II)]]-Tabela32[[#This Row],[Último Mês]] -> 36 | O49: =VLOOKUP(Tabela32[[#This Row],[Serventia]],Arquivados!$A$6:$N$1141,14,0) -> 33.08333333 | P49: =VLOOKUP(Tabela32[[#This Row],[Serventia]],'Tombados Geral '!$A$6:$N$1141,14,0) -> 83 | Q49: =VLOOKUP(Tabela32[[#This Row],[Serventia]],Tabela6[],3,0) -> 0.9408099688 | R49: =VLOOKUP(Tabela32[[#This Row],[Serventia]],'Meta 1 - 2022'!$B$2:$D$859,3,0) -> 0 | S49: =VLOOKUP(Tabela32[[#This Row],[Serventia]],'Definição das cores'!$B$4393:$E$5113,4,0) -> Verde | T49: =VLOOKUP(Tabela32[[#This Row],[Serventia]],IAD!$A$10:$N$940,14,0) -> 1.058900627 | U49: =VLOOKUP(Tabela32[[#This Row],[Serventia]],'Definição das cores'!$B$1468:$E$2190,4,0) -> Verde | V49: =VLOOKUP(Tabela32[[#This Row],[Serventia]],IPS!$A$10:$N$940,14,0) ->  | W49: =VLOOKUP(Tabela32[[#This Row],[Serventia]],'Definição das cores'!$B$5124:$E$5846,4,0) ->  | X49: =VLOOKUP(Tabela32[[#This Row],[Serventia]],'Taxa De Congestionamento'!$A$3:$N$884,14,0) -> 0.8018275436 | Y49: =VLOOKUP(Tabela32[[#This Row],[Serventia]],'Definição das cores'!$B$2202:$E$2922,4,0) -> Vermelho | Z49: =Tabela32[[#This Row],[Arq (Média)]]/Tabela32[[#This Row],[Média no período]] -> 0.01311616228 | AA49: =VLOOKUP(Tabela32[[#This Row],[Serventia]],'Definição das cores'!$B$5856:$E$6582,4,0) -> Vermelho | AB49: =VLOOKUP(Tabela32[[#This Row],[Serventia]],'Aud. Real.'!$A$6:$N$1141,14,0) -> 1.583333333 | AC49: =VLOOKUP(Tabela32[[#This Row],[Serventia]],Conclusão!$A$6:$N$1141,14,0) -> 1001.75 | AD49: =VLOOKUP(Tabela32[[#This Row],[Serventia]],'Definição das cores'!$B$6587:$E$7312,4,0) -> Vermelho | AE49: =VLOOKUP(Tabela32[[#This Row],[Serventia]],'Autos Conclusos + 30 '!$A$6:$N$1141,14,0) -> 0 | AF49: =VLOOKUP(Tabela32[[#This Row],[Serventia]],'Definição das cores'!$B$7317:$E$8041,4,0) -> Verde | AG49: =VLOOKUP(Tabela32[[#This Row],[Serventia]],'Autos Conclusos + 100'!$A$6:$N$1141,14,0) -> 0 | AH49: =VLOOKUP(Tabela32[[#This Row],[Serventia]],'Definição das cores'!$B$8046:$E$8771,4,0) -> Verde | AI49: =VLOOKUP(Tabela32[[#This Row],[Serventia]],'Autos Conclusos + 30 '!$A$5:$N$1141,13,0) -> 0 | AJ49: =VLOOKUP(Tabela32[[#This Row],[Serventia]],'Definição das cores'!$B$8046:$E$8771,4,0) -> Verde | AK49: =VLOOKUP(Tabela32[[#This Row],[Serventia]],'Autos Conclusos + 100'!$A$5:$N$1141,13,0) -> 0 | AL49: =VLOOKUP(Tabela32[[#This Row],[Serventia]],'Definição das cores'!$B$9506:$E$10231,4,0) -> Verde | AM49: =VLOOKUP(Tabela32[[#This Row],[Serventia]],'Autos Paralisados + 30'!$A$6:$N$1141,14,0) -> 587.25 | AN49: =VLOOKUP(Tabela32[[#This Row],[Serventia]],'Definição das cores'!$B$10236:$E$10961,4,0) -> Verde | AO49: =VLOOKUP(Tabela32[[#This Row],[Serventia]],'Autos Paralisados + 90'!$A$6:$N$1141,14,0) -> 41.25 | AP49: =VLOOKUP(Tabela32[[#This Row],[Serventia]],'Definição das cores'!$B$10967:$E$11692,4,0) -> Verde | AQ49: =VLOOKUP(Tabela32[[#This Row],[Serventia]],'Autos Paralisados + 30'!$A$6:$N$1141,13,0) -> 360 | AR49: =VLOOKUP(Tabela32[[#This Row],[Serventia]],'Definição das cores'!$B$11698:$E$12423,4,0) -> Verde | AS49: =VLOOKUP(Tabela32[[#This Row],[Serventia]],'Autos Paralisados + 90'!$A$6:$N$1141,13,0) -> 12 | AT49: =VLOOKUP(Tabela32[[#This Row],[Serventia]],'Definição das cores'!$B$12428:$E$13155,4,0) -> Verde | AU49: =Tabela32[[#This Row],[ 90 (Último Mês)2]]/Tabela32[[#This Row],[Último Mês]] -> 0.00486420754 | AV49: =VLOOKUP(Tabela32[[#This Row],[Serventia]],'Definição das cores'!$B$3664:$E$4389,4,0) -> Verde | AW49: =IFERROR(Tabela32[[#This Row],[30 (Último Mês)]]/Tabela32[[#This Row],[ 30 (Último Mês)]],"-") -> 0 | AX49: =VLOOKUP(Tabela32[[#This Row],[Serventia]],'Definição das cores'!$B$2932:$E$3660,4,0) -> Verde | AY49: =VLOOKUP(Tabela32[[#This Row],[Serventia]],Lotação!$A$12:$D$2844,4,0) ->  | AZ49: =IFERROR(ROUND(VLOOKUP(Tabela32[[#This Row],[Serventia]],Tabela8[],2,0),0),"N/A") -> 6 | BA49: =IF(Tabela32[[#This Row],[Ideal]]="N/A","N/A",IF(Tabela32[[#This Row],[Atual]]>=Tabela32[[#This Row],[Ideal]],"Não",IF(Tabela32[[#This Row],[Atual]]<Tabela32[[#This Row],[Ideal]],"Sim"))) ->  | BB49: =VLOOKUP(Tabela32[[#This Row],[Serventia]],Tabela4[],8,0) -> Não | BC49: =VLOOKUP(Tabela32[[#This Row],[Serventia]],Tabela5[],15,0) ->  | BD49: =VLOOKUP(Tabela32[[#This Row],[Serventia]],'Definição das cores'!$A$13890:$J$14735,9,0) -> 5/6 | BE49: =VLOOKUP(Tabela32[[#This Row],[Serventia]],'Definição das cores'!$A$13890:$J$14735,10,0) -> 1/6
A50: CAPITAL 23 VARA CIVEL | B50: =VLOOKUP(Tabela32[[#This Row],[Serventia]],'Base_Critérios de Consulta'!$B$3:$D$868,3,0) -> 1 | C50: =VLOOKUP(Tabela32[[#This Row],[Serventia]],'Base_Critérios de Consulta'!$B$3:$G$868,6,0) -> Não | D50: =IFERROR(VLOOKUP(Tabela32[[#This Row],[Serventia]],'Acervo Geral - Físico'!$A$6:$N$1098,14,0),"-") -> 4.166666667 | E50: =VLOOKUP(Tabela32[[#This Row],[Serventia]],'Acervo Geral - Eletrônico'!$A$6:$N$1030,14,0) -> 2652.916667 | F50: =VLOOKUP(Tabela32[[#This Row],[Serventia]],'Acervo Geral - TOTAL'!$A$6:$N$1141,14,0) -> 2657.083333 | G50: =VLOOKUP(Tabela32[[#This Row],[Serventia]],'Definição das cores'!$B$13160:$E$13887,4,0) -> Verde | H50: =VLOOKUP(Tabela32[[#This Row],[Serventia]],'Acervo Geral - TOTAL'!$A$6:$M$1141,13,0) -> 2592 | I50: =VLOOKUP(Tabela32[[#This Row],[Serventia]],'Definição das cores'!$B$5:$E$731,4,0) -> Verde | J50: =(Tabela32[[#This Row],[Último Mês (II)]]/Tabela32[[#This Row],[Média no período (I)]])-1 -> -0.02449427631 | K50: =VLOOKUP(Tabela32[[#This Row],[Serventia]],'Definição das cores'!$A$737:$C$1462,3,0) -> Verde | L50: =VLOOKUP(Tabela32[[#This Row],[Serventia]],'Acervo Físico - TOTAL'!$A$6:$N$1141,14,0) -> 2633.166667 | M50: =VLOOKUP(Tabela32[[#This Row],[Serventia]],'Acervo Físico - TOTAL'!$A$6:$N$1141,13,0) -> 2577 | N50: =Tabela32[[#This Row],[Último Mês (II)]]-Tabela32[[#This Row],[Último Mês]] -> 15 | O50: =VLOOKUP(Tabela32[[#This Row],[Serventia]],Arquivados!$A$6:$N$1141,14,0) -> 132.75 | P50: =VLOOKUP(Tabela32[[#This Row],[Serventia]],'Tombados Geral '!$A$6:$N$1141,14,0) -> 82.91666667 | Q50: =VLOOKUP(Tabela32[[#This Row],[Serventia]],Tabela6[],3,0) -> 1.108108108 | R50: =VLOOKUP(Tabela32[[#This Row],[Serventia]],'Meta 1 - 2022'!$B$2:$D$859,3,0) -> 0 | S50: =VLOOKUP(Tabela32[[#This Row],[Serventia]],'Definição das cores'!$B$4393:$E$5113,4,0) -> Verde | T50: =VLOOKUP(Tabela32[[#This Row],[Serventia]],IAD!$A$10:$N$940,14,0) -> 1.975610367 | U50: =VLOOKUP(Tabela32[[#This Row],[Serventia]],'Definição das cores'!$B$1468:$E$2190,4,0) -> Verde | V50: =VLOOKUP(Tabela32[[#This Row],[Serventia]],IPS!$A$10:$N$940,14,0) ->  | W50: =VLOOKUP(Tabela32[[#This Row],[Serventia]],'Definição das cores'!$B$5124:$E$5846,4,0) ->  | X50: =VLOOKUP(Tabela32[[#This Row],[Serventia]],'Taxa De Congestionamento'!$A$3:$N$884,14,0) -> 0.6219139468 | Y50: =VLOOKUP(Tabela32[[#This Row],[Serventia]],'Definição das cores'!$B$2202:$E$2922,4,0) -> Verde | Z50: =Tabela32[[#This Row],[Arq (Média)]]/Tabela32[[#This Row],[Média no período]] -> 0.0504145832 | AA50: =VLOOKUP(Tabela32[[#This Row],[Serventia]],'Definição das cores'!$B$5856:$E$6582,4,0) -> Verde | AB50: =VLOOKUP(Tabela32[[#This Row],[Serventia]],'Aud. Real.'!$A$6:$N$1141,14,0) -> 2.333333333 | AC50: =VLOOKUP(Tabela32[[#This Row],[Serventia]],Conclusão!$A$6:$N$1141,14,0) -> 1173.5 | AD50: =VLOOKUP(Tabela32[[#This Row],[Serventia]],'Definição das cores'!$B$6587:$E$7312,4,0) -> Verde | AE50: =VLOOKUP(Tabela32[[#This Row],[Serventia]],'Autos Conclusos + 30 '!$A$6:$N$1141,14,0) -> 0 | AF50: =VLOOKUP(Tabela32[[#This Row],[Serventia]],'Definição das cores'!$B$7317:$E$8041,4,0) -> Verde | AG50: =VLOOKUP(Tabela32[[#This Row],[Serventia]],'Autos Conclusos + 100'!$A$6:$N$1141,14,0) -> 0 | AH50: =VLOOKUP(Tabela32[[#This Row],[Serventia]],'Definição das cores'!$B$8046:$E$8771,4,0) -> Verde | AI50: =VLOOKUP(Tabela32[[#This Row],[Serventia]],'Autos Conclusos + 30 '!$A$5:$N$1141,13,0) -> 0 | AJ50: =VLOOKUP(Tabela32[[#This Row],[Serventia]],'Definição das cores'!$B$8046:$E$8771,4,0) -> Verde | AK50: =VLOOKUP(Tabela32[[#This Row],[Serventia]],'Autos Conclusos + 100'!$A$5:$N$1141,13,0) -> 0 | AL50: =VLOOKUP(Tabela32[[#This Row],[Serventia]],'Definição das cores'!$B$9506:$E$10231,4,0) -> Verde | AM50: =VLOOKUP(Tabela32[[#This Row],[Serventia]],'Autos Paralisados + 30'!$A$6:$N$1141,14,0) -> 279.5 | AN50: =VLOOKUP(Tabela32[[#This Row],[Serventia]],'Definição das cores'!$B$10236:$E$10961,4,0) -> Verde | AO50: =VLOOKUP(Tabela32[[#This Row],[Serventia]],'Autos Paralisados + 90'!$A$6:$N$1141,14,0) -> 4 | AP50: =VLOOKUP(Tabela32[[#This Row],[Serventia]],'Definição das cores'!$B$10967:$E$11692,4,0) -> Verde | AQ50: =VLOOKUP(Tabela32[[#This Row],[Serventia]],'Autos Paralisados + 30'!$A$6:$N$1141,13,0) -> 109 | AR50: =VLOOKUP(Tabela32[[#This Row],[Serventia]],'Definição das cores'!$B$11698:$E$12423,4,0) -> Verde | AS50: =VLOOKUP(Tabela32[[#This Row],[Serventia]],'Autos Paralisados + 90'!$A$6:$N$1141,13,0) -> 1 | AT50: =VLOOKUP(Tabela32[[#This Row],[Serventia]],'Definição das cores'!$B$12428:$E$13155,4,0) -> Verde | AU50: =Tabela32[[#This Row],[ 90 (Último Mês)2]]/Tabela32[[#This Row],[Último Mês]] -> 0.000388048118 | AV50: =VLOOKUP(Tabela32[[#This Row],[Serventia]],'Definição das cores'!$B$3664:$E$4389,4,0) -> Verde | AW50: =IFERROR(Tabela32[[#This Row],[30 (Último Mês)]]/Tabela32[[#This Row],[ 30 (Último Mês)]],"-") -> 0 | AX50: =VLOOKUP(Tabela32[[#This Row],[Serventia]],'Definição das cores'!$B$2932:$E$3660,4,0) -> Verde | AY50: =VLOOKUP(Tabela32[[#This Row],[Serventia]],Lotação!$A$12:$D$2844,4,0) ->  | AZ50: =IFERROR(ROUND(VLOOKUP(Tabela32[[#This Row],[Serventia]],Tabela8[],2,0),0),"N/A") -> 6 | BA50: =IF(Tabela32[[#This Row],[Ideal]]="N/A","N/A",IF(Tabela32[[#This Row],[Atual]]>=Tabela32[[#This Row],[Ideal]],"Não",IF(Tabela32[[#This Row],[Atual]]<Tabela32[[#This Row],[Ideal]],"Sim"))) ->  | BB50: =VLOOKUP(Tabela32[[#This Row],[Serventia]],Tabela4[],8,0) -> Não | BC50: =VLOOKUP(Tabela32[[#This Row],[Serventia]],Tabela5[],15,0) ->  | BD50: =VLOOKUP(Tabela32[[#This Row],[Serventia]],'Definição das cores'!$A$13890:$J$14735,9,0) -> 6/6 | BE50: =VLOOKUP(Tabela32[[#This Row],[Serventia]],'Definição das cores'!$A$13890:$J$14735,10,0) -> 0/6
A51: CAPITAL 24 VARA CIVEL | B51: =VLOOKUP(Tabela32[[#This Row],[Serventia]],'Base_Critérios de Consulta'!$B$3:$D$868,3,0) -> 1 | C51: =VLOOKUP(Tabela32[[#This Row],[Serventia]],'Base_Critérios de Consulta'!$B$3:$G$868,6,0) -> Não | D51: =IFERROR(VLOOKUP(Tabela32[[#This Row],[Serventia]],'Acervo Geral - Físico'!$A$6:$N$1098,14,0),"-") -> 54.66666667 | E51: =VLOOKUP(Tabela32[[#This Row],[Serventia]],'Acervo Geral - Eletrônico'!$A$6:$N$1030,14,0) -> 3514.25 | F51: =VLOOKUP(Tabela32[[#This Row],[Serventia]],'Acervo Geral - TOTAL'!$A$6:$N$1141,14,0) -> 3568.916667 | G51: =VLOOKUP(Tabela32[[#This Row],[Serventia]],'Definição das cores'!$B$13160:$E$13887,4,0) -> Vermelho | H51: =VLOOKUP(Tabela32[[#This Row],[Serventia]],'Acervo Geral - TOTAL'!$A$6:$M$1141,13,0) -> 3618 | I51: =VLOOKUP(Tabela32[[#This Row],[Serventia]],'Definição das cores'!$B$5:$E$731,4,0) -> Vermelho | J51: =(Tabela32[[#This Row],[Último Mês (II)]]/Tabela32[[#This Row],[Média no período (I)]])-1 -> 0.01375300628 | K51: =VLOOKUP(Tabela32[[#This Row],[Serventia]],'Definição das cores'!$A$737:$C$1462,3,0) -> Verde | L51: =VLOOKUP(Tabela32[[#This Row],[Serventia]],'Acervo Físico - TOTAL'!$A$6:$N$1141,14,0) -> 3496.166667 | M51: =VLOOKUP(Tabela32[[#This Row],[Serventia]],'Acervo Físico - TOTAL'!$A$6:$N$1141,13,0) -> 3552 | N51: =Tabela32[[#This Row],[Último Mês (II)]]-Tabela32[[#This Row],[Último Mês]] -> 66 | O51: =VLOOKUP(Tabela32[[#This Row],[Serventia]],Arquivados!$A$6:$N$1141,14,0) -> 58.83333333 | P51: =VLOOKUP(Tabela32[[#This Row],[Serventia]],'Tombados Geral '!$A$6:$N$1141,14,0) -> 79.16666667 | Q51: =VLOOKUP(Tabela32[[#This Row],[Serventia]],Tabela6[],3,0) -> 0.9155354449 | R51: =VLOOKUP(Tabela32[[#This Row],[Serventia]],'Meta 1 - 2022'!$B$2:$D$859,3,0) -> 0 | S51: =VLOOKUP(Tabela32[[#This Row],[Serventia]],'Definição das cores'!$B$4393:$E$5113,4,0) -> Verde | T51: =VLOOKUP(Tabela32[[#This Row],[Serventia]],IAD!$A$10:$N$940,14,0) -> 1.247399896 | U51: =VLOOKUP(Tabela32[[#This Row],[Serventia]],'Definição das cores'!$B$1468:$E$2190,4,0) -> Verde | V51: =VLOOKUP(Tabela32[[#This Row],[Serventia]],IPS!$A$10:$N$940,14,0) ->  | W51: =VLOOKUP(Tabela32[[#This Row],[Serventia]],'Definição das cores'!$B$5124:$E$5846,4,0) ->  | X51: =VLOOKUP(Tabela32[[#This Row],[Serventia]],'Taxa De Congestionamento'!$A$3:$N$884,14,0) -> 0.8271070749 | Y51: =VLOOKUP(Tabela32[[#This Row],[Serventia]],'Definição das cores'!$B$2202:$E$2922,4,0) -> Vermelho | Z51: =Tabela32[[#This Row],[Arq (Média)]]/Tabela32[[#This Row],[Média no período]] -> 0.01682795443 | AA51: =VLOOKUP(Tabela32[[#This Row],[Serventia]],'Definição das cores'!$B$5856:$E$6582,4,0) -> Verde | AB51: =VLOOKUP(Tabela32[[#This Row],[Serventia]],'Aud. Real.'!$A$6:$N$1141,14,0) -> 5.416666667 | AC51: =VLOOKUP(Tabela32[[#This Row],[Serventia]],Conclusão!$A$6:$N$1141,14,0) -> 965.1666667 | AD51: =VLOOKUP(Tabela32[[#This Row],[Serventia]],'Definição das cores'!$B$6587:$E$7312,4,0) -> Vermelho | AE51: =VLOOKUP(Tabela32[[#This Row],[Serventia]],'Autos Conclusos + 30 '!$A$6:$N$1141,14,0) -> 1.75 | AF51: =VLOOKUP(Tabela32[[#This Row],[Serventia]],'Definição das cores'!$B$7317:$E$8041,4,0) -> Verde | AG51: =VLOOKUP(Tabela32[[#This Row],[Serventia]],'Autos Conclusos + 100'!$A$6:$N$1141,14,0) -> 0 | AH51: =VLOOKUP(Tabela32[[#This Row],[Serventia]],'Definição das cores'!$B$8046:$E$8771,4,0) -> Verde | AI51: =VLOOKUP(Tabela32[[#This Row],[Serventia]],'Autos Conclusos + 30 '!$A$5:$N$1141,13,0) -> 1 | AJ51: =VLOOKUP(Tabela32[[#This Row],[Serventia]],'Definição das cores'!$B$8046:$E$8771,4,0) -> Verde | AK51: =VLOOKUP(Tabela32[[#This Row],[Serventia]],'Autos Conclusos + 100'!$A$5:$N$1141,13,0) -> 0 | AL51: =VLOOKUP(Tabela32[[#This Row],[Serventia]],'Definição das cores'!$B$9506:$E$10231,4,0) -> Verde | AM51: =VLOOKUP(Tabela32[[#This Row],[Serventia]],'Autos Paralisados + 30'!$A$6:$N$1141,14,0) -> 1187.25 | AN51: =VLOOKUP(Tabela32[[#This Row],[Serventia]],'Definição das cores'!$B$10236:$E$10961,4,0) -> Vermelho | AO51: =VLOOKUP(Tabela32[[#This Row],[Serventia]],'Autos Paralisados + 90'!$A$6:$N$1141,14,0) -> 228.1666667 | AP51: =VLOOKUP(Tabela32[[#This Row],[Serventia]],'Definição das cores'!$B$10967:$E$11692,4,0) -> Verde | AQ51: =VLOOKUP(Tabela32[[#This Row],[Serventia]],'Autos Paralisados + 30'!$A$6:$N$1141,13,0) -> 1179 | AR51: =VLOOKUP(Tabela32[[#This Row],[Serventia]],'Definição das cores'!$B$11698:$E$12423,4,0) -> Vermelho | AS51: =VLOOKUP(Tabela32[[#This Row],[Serventia]],'Autos Paralisados + 90'!$A$6:$N$1141,13,0) -> 84 | AT51: =VLOOKUP(Tabela32[[#This Row],[Serventia]],'Definição das cores'!$B$12428:$E$13155,4,0) -> Verde | AU51: =Tabela32[[#This Row],[ 90 (Último Mês)2]]/Tabela32[[#This Row],[Último Mês]] -> 0.02364864865 | AV51: =VLOOKUP(Tabela32[[#This Row],[Serventia]],'Definição das cores'!$B$3664:$E$4389,4,0) -> Verde | AW51: =IFERROR(Tabela32[[#This Row],[30 (Último Mês)]]/Tabela32[[#This Row],[ 30 (Último Mês)]],"-") -> 0.0008481764207 | AX51: =VLOOKUP(Tabela32[[#This Row],[Serventia]],'Definição das cores'!$B$2932:$E$3660,4,0) -> Verde | AY51: =VLOOKUP(Tabela32[[#This Row],[Serventia]],Lotação!$A$12:$D$2844,4,0) ->  | AZ51: =IFERROR(ROUND(VLOOKUP(Tabela32[[#This Row],[Serventia]],Tabela8[],2,0),0),"N/A") -> 6 | BA51: =IF(Tabela32[[#This Row],[Ideal]]="N/A","N/A",IF(Tabela32[[#This Row],[Atual]]>=Tabela32[[#This Row],[Ideal]],"Não",IF(Tabela32[[#This Row],[Atual]]<Tabela32[[#This Row],[Ideal]],"Sim"))) ->  | BB51: =VLOOKUP(Tabela32[[#This Row],[Serventia]],Tabela4[],8,0) -> Não | BC51: =VLOOKUP(Tabela32[[#This Row],[Serventia]],Tabela5[],15,0) ->  | BD51: =VLOOKUP(Tabela32[[#This Row],[Serventia]],'Definição das cores'!$A$13890:$J$14735,9,0) -> 4/6 | BE51: =VLOOKUP(Tabela32[[#This Row],[Serventia]],'Definição das cores'!$A$13890:$J$14735,10,0) -> 2/6
A52: CAPITAL 25 VARA CIVEL | B52: =VLOOKUP(Tabela32[[#This Row],[Serventia]],'Base_Critérios de Consulta'!$B$3:$D$868,3,0) -> 1 | C52: =VLOOKUP(Tabela32[[#This Row],[Serventia]],'Base_Critérios de Consulta'!$B$3:$G$868,6,0) -> Não | D52: =IFERROR(VLOOKUP(Tabela32[[#This Row],[Serventia]],'Acervo Geral - Físico'!$A$6:$N$1098,14,0),"-") -> 29 | E52: =VLOOKUP(Tabela32[[#This Row],[Serventia]],'Acervo Geral - Eletrônico'!$A$6:$N$1030,14,0) -> 2157.5 | F52: =VLOOKUP(Tabela32[[#This Row],[Serventia]],'Acervo Geral - TOTAL'!$A$6:$N$1141,14,0) -> 2186.5 | G52: =VLOOKUP(Tabela32[[#This Row],[Serventia]],'Definição das cores'!$B$13160:$E$13887,4,0) -> Verde | H52: =VLOOKUP(Tabela32[[#This Row],[Serventia]],'Acervo Geral - TOTAL'!$A$6:$M$1141,13,0) -> 2254 | I52: =VLOOKUP(Tabela32[[#This Row],[Serventia]],'Definição das cores'!$B$5:$E$731,4,0) -> Verde | J52: =(Tabela32[[#This Row],[Último Mês (II)]]/Tabela32[[#This Row],[Média no período (I)]])-1 -> 0.03087125543 | K52: =VLOOKUP(Tabela32[[#This Row],[Serventia]],'Definição das cores'!$A$737:$C$1462,3,0) -> Verde | L52: =VLOOKUP(Tabela32[[#This Row],[Serventia]],'Acervo Físico - TOTAL'!$A$6:$N$1141,14,0) -> 2172.083333 | M52: =VLOOKUP(Tabela32[[#This Row],[Serventia]],'Acervo Físico - TOTAL'!$A$6:$N$1141,13,0) -> 2241 | N52: =Tabela32[[#This Row],[Último Mês (II)]]-Tabela32[[#This Row],[Último Mês]] -> 13 | O52: =VLOOKUP(Tabela32[[#This Row],[Serventia]],Arquivados!$A$6:$N$1141,14,0) -> 41.75 | P52: =VLOOKUP(Tabela32[[#This Row],[Serventia]],'Tombados Geral '!$A$6:$N$1141,14,0) -> 83.08333333 | Q52: =VLOOKUP(Tabela32[[#This Row],[Serventia]],Tabela6[],3,0) -> 0.9730538922 | R52: =VLOOKUP(Tabela32[[#This Row],[Serventia]],'Meta 1 - 2022'!$B$2:$D$859,3,0) -> 0 | S52: =VLOOKUP(Tabela32[[#This Row],[Serventia]],'Definição das cores'!$B$4393:$E$5113,4,0) -> Verde | T52: =VLOOKUP(Tabela32[[#This Row],[Serventia]],IAD!$A$10:$N$940,14,0) -> 1.141808048 | U52: =VLOOKUP(Tabela32[[#This Row],[Serventia]],'Definição das cores'!$B$1468:$E$2190,4,0) -> Verde | V52: =VLOOKUP(Tabela32[[#This Row],[Serventia]],IPS!$A$10:$N$940,14,0) ->  | W52: =VLOOKUP(Tabela32[[#This Row],[Serventia]],'Definição das cores'!$B$5124:$E$5846,4,0) ->  | X52: =VLOOKUP(Tabela32[[#This Row],[Serventia]],'Taxa De Congestionamento'!$A$3:$N$884,14,0) -> 0.6644193774 | Y52: =VLOOKUP(Tabela32[[#This Row],[Serventia]],'Definição das cores'!$B$2202:$E$2922,4,0) -> Verde | Z52: =Tabela32[[#This Row],[Arq (Média)]]/Tabela32[[#This Row],[Média no período]] -> 0.01922117782 | AA52: =VLOOKUP(Tabela32[[#This Row],[Serventia]],'Definição das cores'!$B$5856:$E$6582,4,0) -> Verde | AB52: =VLOOKUP(Tabela32[[#This Row],[Serventia]],'Aud. Real.'!$A$6:$N$1141,14,0) -> 0.8333333333 | AC52: =VLOOKUP(Tabela32[[#This Row],[Serventia]],Conclusão!$A$6:$N$1141,14,0) -> 950.5833333 | AD52: =VLOOKUP(Tabela32[[#This Row],[Serventia]],'Definição das cores'!$B$6587:$E$7312,4,0) -> Vermelho | AE52: =VLOOKUP(Tabela32[[#This Row],[Serventia]],'Autos Conclusos + 30 '!$A$6:$N$1141,14,0) -> 18.83333333 | AF52: =VLOOKUP(Tabela32[[#This Row],[Serventia]],'Definição das cores'!$B$7317:$E$8041,4,0) -> Verde | AG52: =VLOOKUP(Tabela32[[#This Row],[Serventia]],'Autos Conclusos + 100'!$A$6:$N$1141,14,0) -> 0.1666666667 | AH52: =VLOOKUP(Tabela32[[#This Row],[Serventia]],'Definição das cores'!$B$8046:$E$8771,4,0) -> Verde | AI52: =VLOOKUP(Tabela32[[#This Row],[Serventia]],'Autos Conclusos + 30 '!$A$5:$N$1141,13,0) -> 47 | AJ52: =VLOOKUP(Tabela32[[#This Row],[Serventia]],'Definição das cores'!$B$8046:$E$8771,4,0) -> Verde | AK52: =VLOOKUP(Tabela32[[#This Row],[Serventia]],'Autos Conclusos + 100'!$A$5:$N$1141,13,0) -> 0 | AL52: =VLOOKUP(Tabela32[[#This Row],[Serventia]],'Definição das cores'!$B$9506:$E$10231,4,0) -> Verde | AM52: =VLOOKUP(Tabela32[[#This Row],[Serventia]],'Autos Paralisados + 30'!$A$6:$N$1141,14,0) -> 319.3333333 | AN52: =VLOOKUP(Tabela32[[#This Row],[Serventia]],'Definição das cores'!$B$10236:$E$10961,4,0) -> Verde | AO52: =VLOOKUP(Tabela32[[#This Row],[Serventia]],'Autos Paralisados + 90'!$A$6:$N$1141,14,0) -> 23.58333333 | AP52: =VLOOKUP(Tabela32[[#This Row],[Serventia]],'Definição das cores'!$B$10967:$E$11692,4,0) -> Verde | AQ52: =VLOOKUP(Tabela32[[#This Row],[Serventia]],'Autos Paralisados + 30'!$A$6:$N$1141,13,0) -> 204 | AR52: =VLOOKUP(Tabela32[[#This Row],[Serventia]],'Definição das cores'!$B$11698:$E$12423,4,0) -> Verde | AS52: =VLOOKUP(Tabela32[[#This Row],[Serventia]],'Autos Paralisados + 90'!$A$6:$N$1141,13,0) -> 7 | AT52: =VLOOKUP(Tabela32[[#This Row],[Serventia]],'Definição das cores'!$B$12428:$E$13155,4,0) -> Verde | AU52: =Tabela32[[#This Row],[ 90 (Último Mês)2]]/Tabela32[[#This Row],[Último Mês]] -> 0.003123605533 | AV52: =VLOOKUP(Tabela32[[#This Row],[Serventia]],'Definição das cores'!$B$3664:$E$4389,4,0) -> Verde | AW52: =IFERROR(Tabela32[[#This Row],[30 (Último Mês)]]/Tabela32[[#This Row],[ 30 (Último Mês)]],"-") -> 0.2303921569 | AX52: =VLOOKUP(Tabela32[[#This Row],[Serventia]],'Definição das cores'!$B$2932:$E$3660,4,0) -> Vermelho | AY52: =VLOOKUP(Tabela32[[#This Row],[Serventia]],Lotação!$A$12:$D$2844,4,0) ->  | AZ52: =IFERROR(ROUND(VLOOKUP(Tabela32[[#This Row],[Serventia]],Tabela8[],2,0),0),"N/A") -> 6 | BA52: =IF(Tabela32[[#This Row],[Ideal]]="N/A","N/A",IF(Tabela32[[#This Row],[Atual]]>=Tabela32[[#This Row],[Ideal]],"Não",IF(Tabela32[[#This Row],[Atual]]<Tabela32[[#This Row],[Ideal]],"Sim"))) ->  | BB52: =VLOOKUP(Tabela32[[#This Row],[Serventia]],Tabela4[],8,0) -> Não | BC52: =VLOOKUP(Tabela32[[#This Row],[Serventia]],Tabela5[],15,0) ->  | BD52: =VLOOKUP(Tabela32[[#This Row],[Serventia]],'Definição das cores'!$A$13890:$J$14735,9,0) -> 5/6 | BE52: =VLOOKUP(Tabela32[[#This Row],[Serventia]],'Definição das cores'!$A$13890:$J$14735,10,0) -> 1/6
A53: CAPITAL 26 VARA CIVEL | B53: =VLOOKUP(Tabela32[[#This Row],[Serventia]],'Base_Critérios de Consulta'!$B$3:$D$868,3,0) -> 1 | C53: =VLOOKUP(Tabela32[[#This Row],[Serventia]],'Base_Critérios de Consulta'!$B$3:$G$868,6,0) -> Não | D53: =IFERROR(VLOOKUP(Tabela32[[#This Row],[Serventia]],'Acervo Geral - Físico'!$A$6:$N$1098,14,0),"-") -> 122.8333333 | E53: =VLOOKUP(Tabela32[[#This Row],[Serventia]],'Acervo Geral - Eletrônico'!$A$6:$N$1030,14,0) -> 4027 | F53: =VLOOKUP(Tabela32[[#This Row],[Serventia]],'Acervo Geral - TOTAL'!$A$6:$N$1141,14,0) -> 4149.833333 | G53: =VLOOKUP(Tabela32[[#This Row],[Serventia]],'Definição das cores'!$B$13160:$E$13887,4,0) -> Vermelho | H53: =VLOOKUP(Tabela32[[#This Row],[Serventia]],'Acervo Geral - TOTAL'!$A$6:$M$1141,13,0) -> 4225 | I53: =VLOOKUP(Tabela32[[#This Row],[Serventia]],'Definição das cores'!$B$5:$E$731,4,0) -> Vermelho | J53: =(Tabela32[[#This Row],[Último Mês (II)]]/Tabela32[[#This Row],[Média no período (I)]])-1 -> 0.01811317724 | K53: =VLOOKUP(Tabela32[[#This Row],[Serventia]],'Definição das cores'!$A$737:$C$1462,3,0) -> Verde | L53: =VLOOKUP(Tabela32[[#This Row],[Serventia]],'Acervo Físico - TOTAL'!$A$6:$N$1141,14,0) -> 4071.583333 | M53: =VLOOKUP(Tabela32[[#This Row],[Serventia]],'Acervo Físico - TOTAL'!$A$6:$N$1141,13,0) -> 4164 | N53: =Tabela32[[#This Row],[Último Mês (II)]]-Tabela32[[#This Row],[Último Mês]] -> 61 | O53: =VLOOKUP(Tabela32[[#This Row],[Serventia]],Arquivados!$A$6:$N$1141,14,0) -> 83 | P53: =VLOOKUP(Tabela32[[#This Row],[Serventia]],'Tombados Geral '!$A$6:$N$1141,14,0) -> 81.41666667 | Q53: =VLOOKUP(Tabela32[[#This Row],[Serventia]],Tabela6[],3,0) -> 1 | R53: =VLOOKUP(Tabela32[[#This Row],[Serventia]],'Meta 1 - 2022'!$B$2:$D$859,3,0) -> 0 | S53: =VLOOKUP(Tabela32[[#This Row],[Serventia]],'Definição das cores'!$B$4393:$E$5113,4,0) -> Verde | T53: =VLOOKUP(Tabela32[[#This Row],[Serventia]],IAD!$A$10:$N$940,14,0) -> 1.194945245 | U53: =VLOOKUP(Tabela32[[#This Row],[Serventia]],'Definição das cores'!$B$1468:$E$2190,4,0) -> Verde | V53: =VLOOKUP(Tabela32[[#This Row],[Serventia]],IPS!$A$10:$N$940,14,0) ->  | W53: =VLOOKUP(Tabela32[[#This Row],[Serventia]],'Definição das cores'!$B$5124:$E$5846,4,0) ->  | X53: =VLOOKUP(Tabela32[[#This Row],[Serventia]],'Taxa De Congestionamento'!$A$3:$N$884,14,0) -> 0.8376498645 | Y53: =VLOOKUP(Tabela32[[#This Row],[Serventia]],'Definição das cores'!$B$2202:$E$2922,4,0) -> Vermelho | Z53: =Tabela32[[#This Row],[Arq (Média)]]/Tabela32[[#This Row],[Média no período]] -> 0.02038519004 | AA53: =VLOOKUP(Tabela32[[#This Row],[Serventia]],'Definição das cores'!$B$5856:$E$6582,4,0) -> Verde | AB53: =VLOOKUP(Tabela32[[#This Row],[Serventia]],'Aud. Real.'!$A$6:$N$1141,14,0) -> 3 | AC53: =VLOOKUP(Tabela32[[#This Row],[Serventia]],Conclusão!$A$6:$N$1141,14,0) -> 1409.166667 | AD53: =VLOOKUP(Tabela32[[#This Row],[Serventia]],'Definição das cores'!$B$6587:$E$7312,4,0) -> Verde | AE53: =VLOOKUP(Tabela32[[#This Row],[Serventia]],'Autos Conclusos + 30 '!$A$6:$N$1141,14,0) -> 2.916666667 | AF53: =VLOOKUP(Tabela32[[#This Row],[Serventia]],'Definição das cores'!$B$7317:$E$8041,4,0) -> Verde | AG53: =VLOOKUP(Tabela32[[#This Row],[Serventia]],'Autos Conclusos + 100'!$A$6:$N$1141,14,0) -> 0.3333333333 | AH53: =VLOOKUP(Tabela32[[#This Row],[Serventia]],'Definição das cores'!$B$8046:$E$8771,4,0) -> Verde | AI53: =VLOOKUP(Tabela32[[#This Row],[Serventia]],'Autos Conclusos + 30 '!$A$5:$N$1141,13,0) -> 2 | AJ53: =VLOOKUP(Tabela32[[#This Row],[Serventia]],'Definição das cores'!$B$8046:$E$8771,4,0) -> Verde | AK53: =VLOOKUP(Tabela32[[#This Row],[Serventia]],'Autos Conclusos + 100'!$A$5:$N$1141,13,0) -> 0 | AL53: =VLOOKUP(Tabela32[[#This Row],[Serventia]],'Definição das cores'!$B$9506:$E$10231,4,0) -> Verde | AM53: =VLOOKUP(Tabela32[[#This Row],[Serventia]],'Autos Paralisados + 30'!$A$6:$N$1141,14,0) -> 1609 | AN53: =VLOOKUP(Tabela32[[#This Row],[Serventia]],'Definição das cores'!$B$10236:$E$10961,4,0) -> Vermelho | AO53: =VLOOKUP(Tabela32[[#This Row],[Serventia]],'Autos Paralisados + 90'!$A$6:$N$1141,14,0) -> 295.1666667 | AP53: =VLOOKUP(Tabela32[[#This Row],[Serventia]],'Definição das cores'!$B$10967:$E$11692,4,0) -> Vermelho | AQ53: =VLOOKUP(Tabela32[[#This Row],[Serventia]],'Autos Paralisados + 30'!$A$6:$N$1141,13,0) -> 1438 | AR53: =VLOOKUP(Tabela32[[#This Row],[Serventia]],'Definição das cores'!$B$11698:$E$12423,4,0) -> Vermelho | AS53: =VLOOKUP(Tabela32[[#This Row],[Serventia]],'Autos Paralisados + 90'!$A$6:$N$1141,13,0) -> 150 | AT53: =VLOOKUP(Tabela32[[#This Row],[Serventia]],'Definição das cores'!$B$12428:$E$13155,4,0) -> Verde | AU53: =Tabela32[[#This Row],[ 90 (Último Mês)2]]/Tabela32[[#This Row],[Último Mês]] -> 0.03602305476 | AV53: =VLOOKUP(Tabela32[[#This Row],[Serventia]],'Definição das cores'!$B$3664:$E$4389,4,0) -> Verde | AW53: =IFERROR(Tabela32[[#This Row],[30 (Último Mês)]]/Tabela32[[#This Row],[ 30 (Último Mês)]],"-") -> 0.001390820584 | AX53: =VLOOKUP(Tabela32[[#This Row],[Serventia]],'Definição das cores'!$B$2932:$E$3660,4,0) -> Verde | AY53: =VLOOKUP(Tabela32[[#This Row],[Serventia]],Lotação!$A$12:$D$2844,4,0) ->  | AZ53: =IFERROR(ROUND(VLOOKUP(Tabela32[[#This Row],[Serventia]],Tabela8[],2,0),0),"N/A") -> 6 | BA53: =IF(Tabela32[[#This Row],[Ideal]]="N/A","N/A",IF(Tabela32[[#This Row],[Atual]]>=Tabela32[[#This Row],[Ideal]],"Não",IF(Tabela32[[#This Row],[Atual]]<Tabela32[[#This Row],[Ideal]],"Sim"))) ->  | BB53: =VLOOKUP(Tabela32[[#This Row],[Serventia]],Tabela4[],8,0) -> Não | BC53: =VLOOKUP(Tabela32[[#This Row],[Serventia]],Tabela5[],15,0) ->  | BD53: =VLOOKUP(Tabela32[[#This Row],[Serventia]],'Definição das cores'!$A$13890:$J$14735,9,0) -> 4/6 | BE53: =VLOOKUP(Tabela32[[#This Row],[Serventia]],'Definição das cores'!$A$13890:$J$14735,10,0) -> 2/6
A54: CAPITAL 27 VARA CIVEL | B54: =VLOOKUP(Tabela32[[#This Row],[Serventia]],'Base_Critérios de Consulta'!$B$3:$D$868,3,0) -> 1 | C54: =VLOOKUP(Tabela32[[#This Row],[Serventia]],'Base_Critérios de Consulta'!$B$3:$G$868,6,0) -> Não | D54: =IFERROR(VLOOKUP(Tabela32[[#This Row],[Serventia]],'Acervo Geral - Físico'!$A$6:$N$1098,14,0),"-") -> 30.66666667 | E54: =VLOOKUP(Tabela32[[#This Row],[Serventia]],'Acervo Geral - Eletrônico'!$A$6:$N$1030,14,0) -> 3523.666667 | F54: =VLOOKUP(Tabela32[[#This Row],[Serventia]],'Acervo Geral - TOTAL'!$A$6:$N$1141,14,0) -> 3554.333333 | G54: =VLOOKUP(Tabela32[[#This Row],[Serventia]],'Definição das cores'!$B$13160:$E$13887,4,0) -> Vermelho | H54: =VLOOKUP(Tabela32[[#This Row],[Serventia]],'Acervo Geral - TOTAL'!$A$6:$M$1141,13,0) -> 3486 | I54: =VLOOKUP(Tabela32[[#This Row],[Serventia]],'Definição das cores'!$B$5:$E$731,4,0) -> Vermelho | J54: =(Tabela32[[#This Row],[Último Mês (II)]]/Tabela32[[#This Row],[Média no período (I)]])-1 -> -0.01922535872 | K54: =VLOOKUP(Tabela32[[#This Row],[Serventia]],'Definição das cores'!$A$737:$C$1462,3,0) -> Verde | L54: =VLOOKUP(Tabela32[[#This Row],[Serventia]],'Acervo Físico - TOTAL'!$A$6:$N$1141,14,0) -> 3541.166667 | M54: =VLOOKUP(Tabela32[[#This Row],[Serventia]],'Acervo Físico - TOTAL'!$A$6:$N$1141,13,0) -> 3483 | N54: =Tabela32[[#This Row],[Último Mês (II)]]-Tabela32[[#This Row],[Último Mês]] -> 3 | O54: =VLOOKUP(Tabela32[[#This Row],[Serventia]],Arquivados!$A$6:$N$1141,14,0) -> 34.83333333 | P54: =VLOOKUP(Tabela32[[#This Row],[Serventia]],'Tombados Geral '!$A$6:$N$1141,14,0) -> 77.91666667 | Q54: =VLOOKUP(Tabela32[[#This Row],[Serventia]],Tabela6[],3,0) -> 1.08141321 | R54: =VLOOKUP(Tabela32[[#This Row],[Serventia]],'Meta 1 - 2022'!$B$2:$D$859,3,0) -> 0 | S54: =VLOOKUP(Tabela32[[#This Row],[Serventia]],'Definição das cores'!$B$4393:$E$5113,4,0) -> Verde | T54: =VLOOKUP(Tabela32[[#This Row],[Serventia]],IAD!$A$10:$N$940,14,0) -> 1.35250302 | U54: =VLOOKUP(Tabela32[[#This Row],[Serventia]],'Definição das cores'!$B$1468:$E$2190,4,0) -> Verde | V54: =VLOOKUP(Tabela32[[#This Row],[Serventia]],IPS!$A$10:$N$940,14,0) ->  | W54: =VLOOKUP(Tabela32[[#This Row],[Serventia]],'Definição das cores'!$B$5124:$E$5846,4,0) ->  | X54: =VLOOKUP(Tabela32[[#This Row],[Serventia]],'Taxa De Congestionamento'!$A$3:$N$884,14,0) -> 0.8544765315 | Y54: =VLOOKUP(Tabela32[[#This Row],[Serventia]],'Definição das cores'!$B$2202:$E$2922,4,0) -> Vermelho | Z54: =Tabela32[[#This Row],[Arq (Média)]]/Tabela32[[#This Row],[Média no período]] -> 0.009836682826 | AA54: =VLOOKUP(Tabela32[[#This Row],[Serventia]],'Definição das cores'!$B$5856:$E$6582,4,0) -> Vermelho | AB54: =VLOOKUP(Tabela32[[#This Row],[Serventia]],'Aud. Real.'!$A$6:$N$1141,14,0) -> 2.666666667 | AC54: =VLOOKUP(Tabela32[[#This Row],[Serventia]],Conclusão!$A$6:$N$1141,14,0) -> 1082.25 | AD54: =VLOOKUP(Tabela32[[#This Row],[Serventia]],'Definição das cores'!$B$6587:$E$7312,4,0) -> Verde | AE54: =VLOOKUP(Tabela32[[#This Row],[Serventia]],'Autos Conclusos + 30 '!$A$6:$N$1141,14,0) -> 0 | AF54: =VLOOKUP(Tabela32[[#This Row],[Serventia]],'Definição das cores'!$B$7317:$E$8041,4,0) -> Verde | AG54: =VLOOKUP(Tabela32[[#This Row],[Serventia]],'Autos Conclusos + 100'!$A$6:$N$1141,14,0) -> 0 | AH54: =VLOOKUP(Tabela32[[#This Row],[Serventia]],'Definição das cores'!$B$8046:$E$8771,4,0) -> Verde | AI54: =VLOOKUP(Tabela32[[#This Row],[Serventia]],'Autos Conclusos + 30 '!$A$5:$N$1141,13,0) -> 0 | AJ54: =VLOOKUP(Tabela32[[#This Row],[Serventia]],'Definição das cores'!$B$8046:$E$8771,4,0) -> Verde | AK54: =VLOOKUP(Tabela32[[#This Row],[Serventia]],'Autos Conclusos + 100'!$A$5:$N$1141,13,0) -> 0 | AL54: =VLOOKUP(Tabela32[[#This Row],[Serventia]],'Definição das cores'!$B$9506:$E$10231,4,0) -> Verde | AM54: =VLOOKUP(Tabela32[[#This Row],[Serventia]],'Autos Paralisados + 30'!$A$6:$N$1141,14,0) -> 630.0833333 | AN54: =VLOOKUP(Tabela32[[#This Row],[Serventia]],'Definição das cores'!$B$10236:$E$10961,4,0) -> Verde | AO54: =VLOOKUP(Tabela32[[#This Row],[Serventia]],'Autos Paralisados + 90'!$A$6:$N$1141,14,0) -> 23.83333333 | AP54: =VLOOKUP(Tabela32[[#This Row],[Serventia]],'Definição das cores'!$B$10967:$E$11692,4,0) -> Verde | AQ54: =VLOOKUP(Tabela32[[#This Row],[Serventia]],'Autos Paralisados + 30'!$A$6:$N$1141,13,0) -> 486 | AR54: =VLOOKUP(Tabela32[[#This Row],[Serventia]],'Definição das cores'!$B$11698:$E$12423,4,0) -> Verde | AS54: =VLOOKUP(Tabela32[[#This Row],[Serventia]],'Autos Paralisados + 90'!$A$6:$N$1141,13,0) -> 0 | AT54: =VLOOKUP(Tabela32[[#This Row],[Serventia]],'Definição das cores'!$B$12428:$E$13155,4,0) -> Verde | AU54: =Tabela32[[#This Row],[ 90 (Último Mês)2]]/Tabela32[[#This Row],[Último Mês]] -> 0 | AV54: =VLOOKUP(Tabela32[[#This Row],[Serventia]],'Definição das cores'!$B$3664:$E$4389,4,0) -> Verde | AW54: =IFERROR(Tabela32[[#This Row],[30 (Último Mês)]]/Tabela32[[#This Row],[ 30 (Último Mês)]],"-") -> 0 | AX54: =VLOOKUP(Tabela32[[#This Row],[Serventia]],'Definição das cores'!$B$2932:$E$3660,4,0) -> Verde | AY54: =VLOOKUP(Tabela32[[#This Row],[Serventia]],Lotação!$A$12:$D$2844,4,0) ->  | AZ54: =IFERROR(ROUND(VLOOKUP(Tabela32[[#This Row],[Serventia]],Tabela8[],2,0),0),"N/A") -> 6 | BA54: =IF(Tabela32[[#This Row],[Ideal]]="N/A","N/A",IF(Tabela32[[#This Row],[Atual]]>=Tabela32[[#This Row],[Ideal]],"Não",IF(Tabela32[[#This Row],[Atual]]<Tabela32[[#This Row],[Ideal]],"Sim"))) ->  | BB54: =VLOOKUP(Tabela32[[#This Row],[Serventia]],Tabela4[],8,0) -> Não | BC54: =VLOOKUP(Tabela32[[#This Row],[Serventia]],Tabela5[],15,0) ->  | BD54: =VLOOKUP(Tabela32[[#This Row],[Serventia]],'Definição das cores'!$A$13890:$J$14735,9,0) -> 4/6 | BE54: =VLOOKUP(Tabela32[[#This Row],[Serventia]],'Definição das cores'!$A$13890:$J$14735,10,0) -> 2/6
A55: CAPITAL 28 VARA CIVEL | B55: =VLOOKUP(Tabela32[[#This Row],[Serventia]],'Base_Critérios de Consulta'!$B$3:$D$868,3,0) -> 1 | C55: =VLOOKUP(Tabela32[[#This Row],[Serventia]],'Base_Critérios de Consulta'!$B$3:$G$868,6,0) -> Não | D55: =IFERROR(VLOOKUP(Tabela32[[#This Row],[Serventia]],'Acervo Geral - Físico'!$A$6:$N$1098,14,0),"-") -> 14.58333333 | E55: =VLOOKUP(Tabela32[[#This Row],[Serventia]],'Acervo Geral - Eletrônico'!$A$6:$N$1030,14,0) -> 2664.416667 | F55: =VLOOKUP(Tabela32[[#This Row],[Serventia]],'Acervo Geral - TOTAL'!$A$6:$N$1141,14,0) -> 2679 | G55: =VLOOKUP(Tabela32[[#This Row],[Serventia]],'Definição das cores'!$B$13160:$E$13887,4,0) -> Verde | H55: =VLOOKUP(Tabela32[[#This Row],[Serventia]],'Acervo Geral - TOTAL'!$A$6:$M$1141,13,0) -> 2658 | I55: =VLOOKUP(Tabela32[[#This Row],[Serventia]],'Definição das cores'!$B$5:$E$731,4,0) -> Verde | J55: =(Tabela32[[#This Row],[Último Mês (II)]]/Tabela32[[#This Row],[Média no período (I)]])-1 -> -0.007838745801 | K55: =VLOOKUP(Tabela32[[#This Row],[Serventia]],'Definição das cores'!$A$737:$C$1462,3,0) -> Verde | L55: =VLOOKUP(Tabela32[[#This Row],[Serventia]],'Acervo Físico - TOTAL'!$A$6:$N$1141,14,0) -> 2637.083333 | M55: =VLOOKUP(Tabela32[[#This Row],[Serventia]],'Acervo Físico - TOTAL'!$A$6:$N$1141,13,0) -> 2617 | N55: =Tabela32[[#This Row],[Último Mês (II)]]-Tabela32[[#This Row],[Último Mês]] -> 41 | O55: =VLOOKUP(Tabela32[[#This Row],[Serventia]],Arquivados!$A$6:$N$1141,14,0) -> 35.16666667 | P55: =VLOOKUP(Tabela32[[#This Row],[Serventia]],'Tombados Geral '!$A$6:$N$1141,14,0) -> 81.91666667 | Q55: =VLOOKUP(Tabela32[[#This Row],[Serventia]],Tabela6[],3,0) -> 1.044025157 | R55: =VLOOKUP(Tabela32[[#This Row],[Serventia]],'Meta 1 - 2022'!$B$2:$D$859,3,0) -> 0 | S55: =VLOOKUP(Tabela32[[#This Row],[Serventia]],'Definição das cores'!$B$4393:$E$5113,4,0) -> Verde | T55: =VLOOKUP(Tabela32[[#This Row],[Serventia]],IAD!$A$10:$N$940,14,0) -> 1.631637026 | U55: =VLOOKUP(Tabela32[[#This Row],[Serventia]],'Definição das cores'!$B$1468:$E$2190,4,0) -> Verde | V55: =VLOOKUP(Tabela32[[#This Row],[Serventia]],IPS!$A$10:$N$940,14,0) ->  | W55: =VLOOKUP(Tabela32[[#This Row],[Serventia]],'Definição das cores'!$B$5124:$E$5846,4,0) ->  | X55: =VLOOKUP(Tabela32[[#This Row],[Serventia]],'Taxa De Congestionamento'!$A$3:$N$884,14,0) -> 0.7736884803 | Y55: =VLOOKUP(Tabela32[[#This Row],[Serventia]],'Definição das cores'!$B$2202:$E$2922,4,0) -> Vermelho | Z55: =Tabela32[[#This Row],[Arq (Média)]]/Tabela32[[#This Row],[Média no período]] -> 0.01333544004 | AA55: =VLOOKUP(Tabela32[[#This Row],[Serventia]],'Definição das cores'!$B$5856:$E$6582,4,0) -> Vermelho | AB55: =VLOOKUP(Tabela32[[#This Row],[Serventia]],'Aud. Real.'!$A$6:$N$1141,14,0) -> 2.916666667 | AC55: =VLOOKUP(Tabela32[[#This Row],[Serventia]],Conclusão!$A$6:$N$1141,14,0) -> 1206.083333 | AD55: =VLOOKUP(Tabela32[[#This Row],[Serventia]],'Definição das cores'!$B$6587:$E$7312,4,0) -> Verde | AE55: =VLOOKUP(Tabela32[[#This Row],[Serventia]],'Autos Conclusos + 30 '!$A$6:$N$1141,14,0) -> 0.25 | AF55: =VLOOKUP(Tabela32[[#This Row],[Serventia]],'Definição das cores'!$B$7317:$E$8041,4,0) -> Verde | AG55: =VLOOKUP(Tabela32[[#This Row],[Serventia]],'Autos Conclusos + 100'!$A$6:$N$1141,14,0) -> 0 | AH55: =VLOOKUP(Tabela32[[#This Row],[Serventia]],'Definição das cores'!$B$8046:$E$8771,4,0) -> Verde | AI55: =VLOOKUP(Tabela32[[#This Row],[Serventia]],'Autos Conclusos + 30 '!$A$5:$N$1141,13,0) -> 1 | AJ55: =VLOOKUP(Tabela32[[#This Row],[Serventia]],'Definição das cores'!$B$8046:$E$8771,4,0) -> Verde | AK55: =VLOOKUP(Tabela32[[#This Row],[Serventia]],'Autos Conclusos + 100'!$A$5:$N$1141,13,0) -> 0 | AL55: =VLOOKUP(Tabela32[[#This Row],[Serventia]],'Definição das cores'!$B$9506:$E$10231,4,0) -> Verde | AM55: =VLOOKUP(Tabela32[[#This Row],[Serventia]],'Autos Paralisados + 30'!$A$6:$N$1141,14,0) -> 356.9166667 | AN55: =VLOOKUP(Tabela32[[#This Row],[Serventia]],'Definição das cores'!$B$10236:$E$10961,4,0) -> Verde | AO55: =VLOOKUP(Tabela32[[#This Row],[Serventia]],'Autos Paralisados + 90'!$A$6:$N$1141,14,0) -> 0.9166666667 | AP55: =VLOOKUP(Tabela32[[#This Row],[Serventia]],'Definição das cores'!$B$10967:$E$11692,4,0) -> Verde | AQ55: =VLOOKUP(Tabela32[[#This Row],[Serventia]],'Autos Paralisados + 30'!$A$6:$N$1141,13,0) -> 208 | AR55: =VLOOKUP(Tabela32[[#This Row],[Serventia]],'Definição das cores'!$B$11698:$E$12423,4,0) -> Verde | AS55: =VLOOKUP(Tabela32[[#This Row],[Serventia]],'Autos Paralisados + 90'!$A$6:$N$1141,13,0) -> 0 | AT55: =VLOOKUP(Tabela32[[#This Row],[Serventia]],'Definição das cores'!$B$12428:$E$13155,4,0) -> Verde | AU55: =Tabela32[[#This Row],[ 90 (Último Mês)2]]/Tabela32[[#This Row],[Último Mês]] -> 0 | AV55: =VLOOKUP(Tabela32[[#This Row],[Serventia]],'Definição das cores'!$B$3664:$E$4389,4,0) -> Verde | AW55: =IFERROR(Tabela32[[#This Row],[30 (Último Mês)]]/Tabela32[[#This Row],[ 30 (Último Mês)]],"-") -> 0.004807692308 | AX55: =VLOOKUP(Tabela32[[#This Row],[Serventia]],'Definição das cores'!$B$2932:$E$3660,4,0) -> Verde | AY55: =VLOOKUP(Tabela32[[#This Row],[Serventia]],Lotação!$A$12:$D$2844,4,0) ->  | AZ55: =IFERROR(ROUND(VLOOKUP(Tabela32[[#This Row],[Serventia]],Tabela8[],2,0),0),"N/A") -> 6 | BA55: =IF(Tabela32[[#This Row],[Ideal]]="N/A","N/A",IF(Tabela32[[#This Row],[Atual]]>=Tabela32[[#This Row],[Ideal]],"Não",IF(Tabela32[[#This Row],[Atual]]<Tabela32[[#This Row],[Ideal]],"Sim"))) ->  | BB55: =VLOOKUP(Tabela32[[#This Row],[Serventia]],Tabela4[],8,0) -> Não | BC55: =VLOOKUP(Tabela32[[#This Row],[Serventia]],Tabela5[],15,0) ->  | BD55: =VLOOKUP(Tabela32[[#This Row],[Serventia]],'Definição das cores'!$A$13890:$J$14735,9,0) -> 5/6 | BE55: =VLOOKUP(Tabela32[[#This Row],[Serventia]],'Definição das cores'!$A$13890:$J$14735,10,0) -> 1/6
A56: CAPITAL 29 VARA CIVEL | B56: =VLOOKUP(Tabela32[[#This Row],[Serventia]],'Base_Critérios de Consulta'!$B$3:$D$868,3,0) -> 1 | C56: =VLOOKUP(Tabela32[[#This Row],[Serventia]],'Base_Critérios de Consulta'!$B$3:$G$868,6,0) -> Não | D56: =IFERROR(VLOOKUP(Tabela32[[#This Row],[Serventia]],'Acervo Geral - Físico'!$A$6:$N$1098,14,0),"-") -> 36.75 | E56: =VLOOKUP(Tabela32[[#This Row],[Serventia]],'Acervo Geral - Eletrônico'!$A$6:$N$1030,14,0) -> 4001.916667 | F56: =VLOOKUP(Tabela32[[#This Row],[Serventia]],'Acervo Geral - TOTAL'!$A$6:$N$1141,14,0) -> 4038.666667 | G56: =VLOOKUP(Tabela32[[#This Row],[Serventia]],'Definição das cores'!$B$13160:$E$13887,4,0) -> Vermelho | H56: =VLOOKUP(Tabela32[[#This Row],[Serventia]],'Acervo Geral - TOTAL'!$A$6:$M$1141,13,0) -> 4045 | I56: =VLOOKUP(Tabela32[[#This Row],[Serventia]],'Definição das cores'!$B$5:$E$731,4,0) -> Vermelho | J56: =(Tabela32[[#This Row],[Último Mês (II)]]/Tabela32[[#This Row],[Média no período (I)]])-1 -> 0.001568174315 | K56: =VLOOKUP(Tabela32[[#This Row],[Serventia]],'Definição das cores'!$A$737:$C$1462,3,0) -> Verde | L56: =VLOOKUP(Tabela32[[#This Row],[Serventia]],'Acervo Físico - TOTAL'!$A$6:$N$1141,14,0) -> 3984.333333 | M56: =VLOOKUP(Tabela32[[#This Row],[Serventia]],'Acervo Físico - TOTAL'!$A$6:$N$1141,13,0) -> 3967 | N56: =Tabela32[[#This Row],[Último Mês (II)]]-Tabela32[[#This Row],[Último Mês]] -> 78 | O56: =VLOOKUP(Tabela32[[#This Row],[Serventia]],Arquivados!$A$6:$N$1141,14,0) -> 12.58333333 | P56: =VLOOKUP(Tabela32[[#This Row],[Serventia]],'Tombados Geral '!$A$6:$N$1141,14,0) -> 78.08333333 | Q56: =VLOOKUP(Tabela32[[#This Row],[Serventia]],Tabela6[],3,0) -> 1.005952381 | R56: =VLOOKUP(Tabela32[[#This Row],[Serventia]],'Meta 1 - 2022'!$B$2:$D$859,3,0) -> 0 | S56: =VLOOKUP(Tabela32[[#This Row],[Serventia]],'Definição das cores'!$B$4393:$E$5113,4,0) -> Verde | T56: =VLOOKUP(Tabela32[[#This Row],[Serventia]],IAD!$A$10:$N$940,14,0) -> 1.350612642 | U56: =VLOOKUP(Tabela32[[#This Row],[Serventia]],'Definição das cores'!$B$1468:$E$2190,4,0) -> Verde | V56: =VLOOKUP(Tabela32[[#This Row],[Serventia]],IPS!$A$10:$N$940,14,0) ->  | W56: =VLOOKUP(Tabela32[[#This Row],[Serventia]],'Definição das cores'!$B$5124:$E$5846,4,0) ->  | X56: =VLOOKUP(Tabela32[[#This Row],[Serventia]],'Taxa De Congestionamento'!$A$3:$N$884,14,0) -> 0.8021226565 | Y56: =VLOOKUP(Tabela32[[#This Row],[Serventia]],'Definição das cores'!$B$2202:$E$2922,4,0) -> Vermelho | Z56: =Tabela32[[#This Row],[Arq (Média)]]/Tabela32[[#This Row],[Média no período]] -> 0.003158202962 | AA56: =VLOOKUP(Tabela32[[#This Row],[Serventia]],'Definição das cores'!$B$5856:$E$6582,4,0) -> Vermelho | AB56: =VLOOKUP(Tabela32[[#This Row],[Serventia]],'Aud. Real.'!$A$6:$N$1141,14,0) -> 7.25 | AC56: =VLOOKUP(Tabela32[[#This Row],[Serventia]],Conclusão!$A$6:$N$1141,14,0) -> 862.25 | AD56: =VLOOKUP(Tabela32[[#This Row],[Serventia]],'Definição das cores'!$B$6587:$E$7312,4,0) -> Vermelho | AE56: =VLOOKUP(Tabela32[[#This Row],[Serventia]],'Autos Conclusos + 30 '!$A$6:$N$1141,14,0) -> 12.66666667 | AF56: =VLOOKUP(Tabela32[[#This Row],[Serventia]],'Definição das cores'!$B$7317:$E$8041,4,0) -> Verde | AG56: =VLOOKUP(Tabela32[[#This Row],[Serventia]],'Autos Conclusos + 100'!$A$6:$N$1141,14,0) -> 0.08333333333 | AH56: =VLOOKUP(Tabela32[[#This Row],[Serventia]],'Definição das cores'!$B$8046:$E$8771,4,0) -> Verde | AI56: =VLOOKUP(Tabela32[[#This Row],[Serventia]],'Autos Conclusos + 30 '!$A$5:$N$1141,13,0) -> 62 | AJ56: =VLOOKUP(Tabela32[[#This Row],[Serventia]],'Definição das cores'!$B$8046:$E$8771,4,0) -> Verde | AK56: =VLOOKUP(Tabela32[[#This Row],[Serventia]],'Autos Conclusos + 100'!$A$5:$N$1141,13,0) -> 0 | AL56: =VLOOKUP(Tabela32[[#This Row],[Serventia]],'Definição das cores'!$B$9506:$E$10231,4,0) -> Verde | AM56: =VLOOKUP(Tabela32[[#This Row],[Serventia]],'Autos Paralisados + 30'!$A$6:$N$1141,14,0) -> 1156.333333 | AN56: =VLOOKUP(Tabela32[[#This Row],[Serventia]],'Definição das cores'!$B$10236:$E$10961,4,0) -> Vermelho | AO56: =VLOOKUP(Tabela32[[#This Row],[Serventia]],'Autos Paralisados + 90'!$A$6:$N$1141,14,0) -> 99.25 | AP56: =VLOOKUP(Tabela32[[#This Row],[Serventia]],'Definição das cores'!$B$10967:$E$11692,4,0) -> Verde | AQ56: =VLOOKUP(Tabela32[[#This Row],[Serventia]],'Autos Paralisados + 30'!$A$6:$N$1141,13,0) -> 1012 | AR56: =VLOOKUP(Tabela32[[#This Row],[Serventia]],'Definição das cores'!$B$11698:$E$12423,4,0) -> Vermelho | AS56: =VLOOKUP(Tabela32[[#This Row],[Serventia]],'Autos Paralisados + 90'!$A$6:$N$1141,13,0) -> 113 | AT56: =VLOOKUP(Tabela32[[#This Row],[Serventia]],'Definição das cores'!$B$12428:$E$13155,4,0) -> Verde | AU56: =Tabela32[[#This Row],[ 90 (Último Mês)2]]/Tabela32[[#This Row],[Último Mês]] -> 0.02848500126 | AV56: =VLOOKUP(Tabela32[[#This Row],[Serventia]],'Definição das cores'!$B$3664:$E$4389,4,0) -> Verde | AW56: =IFERROR(Tabela32[[#This Row],[30 (Último Mês)]]/Tabela32[[#This Row],[ 30 (Último Mês)]],"-") -> 0.06126482213 | AX56: =VLOOKUP(Tabela32[[#This Row],[Serventia]],'Definição das cores'!$B$2932:$E$3660,4,0) -> Verde | AY56: =VLOOKUP(Tabela32[[#This Row],[Serventia]],Lotação!$A$12:$D$2844,4,0) ->  | AZ56: =IFERROR(ROUND(VLOOKUP(Tabela32[[#This Row],[Serventia]],Tabela8[],2,0),0),"N/A") -> 6 | BA56: =IF(Tabela32[[#This Row],[Ideal]]="N/A","N/A",IF(Tabela32[[#This Row],[Atual]]>=Tabela32[[#This Row],[Ideal]],"Não",IF(Tabela32[[#This Row],[Atual]]<Tabela32[[#This Row],[Ideal]],"Sim"))) ->  | BB56: =VLOOKUP(Tabela32[[#This Row],[Serventia]],Tabela4[],8,0) -> Não | BC56: =VLOOKUP(Tabela32[[#This Row],[Serventia]],Tabela5[],15,0) ->  | BD56: =VLOOKUP(Tabela32[[#This Row],[Serventia]],'Definição das cores'!$A$13890:$J$14735,9,0) -> 4/6 | BE56: =VLOOKUP(Tabela32[[#This Row],[Serventia]],'Definição das cores'!$A$13890:$J$14735,10,0) -> 2/6
A57: CAPITAL 3 VARA CIVEL | B57: =VLOOKUP(Tabela32[[#This Row],[Serventia]],'Base_Critérios de Consulta'!$B$3:$D$868,3,0) -> 1 | C57: =VLOOKUP(Tabela32[[#This Row],[Serventia]],'Base_Critérios de Consulta'!$B$3:$G$868,6,0) -> Não | D57: =IFERROR(VLOOKUP(Tabela32[[#This Row],[Serventia]],'Acervo Geral - Físico'!$A$6:$N$1098,14,0),"-") -> 7.583333333 | E57: =VLOOKUP(Tabela32[[#This Row],[Serventia]],'Acervo Geral - Eletrônico'!$A$6:$N$1030,14,0) -> 2814.25 | F57: =VLOOKUP(Tabela32[[#This Row],[Serventia]],'Acervo Geral - TOTAL'!$A$6:$N$1141,14,0) -> 2821.833333 | G57: =VLOOKUP(Tabela32[[#This Row],[Serventia]],'Definição das cores'!$B$13160:$E$13887,4,0) -> Verde | H57: =VLOOKUP(Tabela32[[#This Row],[Serventia]],'Acervo Geral - TOTAL'!$A$6:$M$1141,13,0) -> 2832 | I57: =VLOOKUP(Tabela32[[#This Row],[Serventia]],'Definição das cores'!$B$5:$E$731,4,0) -> Verde | J57: =(Tabela32[[#This Row],[Último Mês (II)]]/Tabela32[[#This Row],[Média no período (I)]])-1 -> 0.003602858662 | K57: =VLOOKUP(Tabela32[[#This Row],[Serventia]],'Definição das cores'!$A$737:$C$1462,3,0) -> Verde | L57: =VLOOKUP(Tabela32[[#This Row],[Serventia]],'Acervo Físico - TOTAL'!$A$6:$N$1141,14,0) -> 2811.75 | M57: =VLOOKUP(Tabela32[[#This Row],[Serventia]],'Acervo Físico - TOTAL'!$A$6:$N$1141,13,0) -> 2829 | N57: =Tabela32[[#This Row],[Último Mês (II)]]-Tabela32[[#This Row],[Último Mês]] -> 3 | O57: =VLOOKUP(Tabela32[[#This Row],[Serventia]],Arquivados!$A$6:$N$1141,14,0) -> 57.5 | P57: =VLOOKUP(Tabela32[[#This Row],[Serventia]],'Tombados Geral '!$A$6:$N$1141,14,0) -> 82.91666667 | Q57: =VLOOKUP(Tabela32[[#This Row],[Serventia]],Tabela6[],3,0) -> 0.9825581395 | R57: =VLOOKUP(Tabela32[[#This Row],[Serventia]],'Meta 1 - 2022'!$B$2:$D$859,3,0) -> 0 | S57: =VLOOKUP(Tabela32[[#This Row],[Serventia]],'Definição das cores'!$B$4393:$E$5113,4,0) -> Verde | T57: =VLOOKUP(Tabela32[[#This Row],[Serventia]],IAD!$A$10:$N$940,14,0) -> 1.326300231 | U57: =VLOOKUP(Tabela32[[#This Row],[Serventia]],'Definição das cores'!$B$1468:$E$2190,4,0) -> Verde | V57: =VLOOKUP(Tabela32[[#This Row],[Serventia]],IPS!$A$10:$N$940,14,0) ->  | W57: =VLOOKUP(Tabela32[[#This Row],[Serventia]],'Definição das cores'!$B$5124:$E$5846,4,0) ->  | X57: =VLOOKUP(Tabela32[[#This Row],[Serventia]],'Taxa De Congestionamento'!$A$3:$N$884,14,0) -> 0.7564062059 | Y57: =VLOOKUP(Tabela32[[#This Row],[Serventia]],'Definição das cores'!$B$2202:$E$2922,4,0) -> Verde | Z57: =Tabela32[[#This Row],[Arq (Média)]]/Tabela32[[#This Row],[Média no período]] -> 0.02044989775 | AA57: =VLOOKUP(Tabela32[[#This Row],[Serventia]],'Definição das cores'!$B$5856:$E$6582,4,0) -> Verde | AB57: =VLOOKUP(Tabela32[[#This Row],[Serventia]],'Aud. Real.'!$A$6:$N$1141,14,0) -> 0.1666666667 | AC57: =VLOOKUP(Tabela32[[#This Row],[Serventia]],Conclusão!$A$6:$N$1141,14,0) -> 1061.666667 | AD57: =VLOOKUP(Tabela32[[#This Row],[Serventia]],'Definição das cores'!$B$6587:$E$7312,4,0) -> Verde | AE57: =VLOOKUP(Tabela32[[#This Row],[Serventia]],'Autos Conclusos + 30 '!$A$6:$N$1141,14,0) -> 0 | AF57: =VLOOKUP(Tabela32[[#This Row],[Serventia]],'Definição das cores'!$B$7317:$E$8041,4,0) -> Verde | AG57: =VLOOKUP(Tabela32[[#This Row],[Serventia]],'Autos Conclusos + 100'!$A$6:$N$1141,14,0) -> 0 | AH57: =VLOOKUP(Tabela32[[#This Row],[Serventia]],'Definição das cores'!$B$8046:$E$8771,4,0) -> Verde | AI57: =VLOOKUP(Tabela32[[#This Row],[Serventia]],'Autos Conclusos + 30 '!$A$5:$N$1141,13,0) -> 0 | AJ57: =VLOOKUP(Tabela32[[#This Row],[Serventia]],'Definição das cores'!$B$8046:$E$8771,4,0) -> Verde | AK57: =VLOOKUP(Tabela32[[#This Row],[Serventia]],'Autos Conclusos + 100'!$A$5:$N$1141,13,0) -> 0 | AL57: =VLOOKUP(Tabela32[[#This Row],[Serventia]],'Definição das cores'!$B$9506:$E$10231,4,0) -> Verde | AM57: =VLOOKUP(Tabela32[[#This Row],[Serventia]],'Autos Paralisados + 30'!$A$6:$N$1141,14,0) -> 591.25 | AN57: =VLOOKUP(Tabela32[[#This Row],[Serventia]],'Definição das cores'!$B$10236:$E$10961,4,0) -> Verde | AO57: =VLOOKUP(Tabela32[[#This Row],[Serventia]],'Autos Paralisados + 90'!$A$6:$N$1141,14,0) -> 1.416666667 | AP57: =VLOOKUP(Tabela32[[#This Row],[Serventia]],'Definição das cores'!$B$10967:$E$11692,4,0) -> Verde | AQ57: =VLOOKUP(Tabela32[[#This Row],[Serventia]],'Autos Paralisados + 30'!$A$6:$N$1141,13,0) -> 510 | AR57: =VLOOKUP(Tabela32[[#This Row],[Serventia]],'Definição das cores'!$B$11698:$E$12423,4,0) -> Verde | AS57: =VLOOKUP(Tabela32[[#This Row],[Serventia]],'Autos Paralisados + 90'!$A$6:$N$1141,13,0) -> 0 | AT57: =VLOOKUP(Tabela32[[#This Row],[Serventia]],'Definição das cores'!$B$12428:$E$13155,4,0) -> Verde | AU57: =Tabela32[[#This Row],[ 90 (Último Mês)2]]/Tabela32[[#This Row],[Último Mês]] -> 0 | AV57: =VLOOKUP(Tabela32[[#This Row],[Serventia]],'Definição das cores'!$B$3664:$E$4389,4,0) -> Verde | AW57: =IFERROR(Tabela32[[#This Row],[30 (Último Mês)]]/Tabela32[[#This Row],[ 30 (Último Mês)]],"-") -> 0 | AX57: =VLOOKUP(Tabela32[[#This Row],[Serventia]],'Definição das cores'!$B$2932:$E$3660,4,0) -> Verde | AY57: =VLOOKUP(Tabela32[[#This Row],[Serventia]],Lotação!$A$12:$D$2844,4,0) ->  | AZ57: =IFERROR(ROUND(VLOOKUP(Tabela32[[#This Row],[Serventia]],Tabela8[],2,0),0),"N/A") -> 6 | BA57: =IF(Tabela32[[#This Row],[Ideal]]="N/A","N/A",IF(Tabela32[[#This Row],[Atual]]>=Tabela32[[#This Row],[Ideal]],"Não",IF(Tabela32[[#This Row],[Atual]]<Tabela32[[#This Row],[Ideal]],"Sim"))) ->  | BB57: =VLOOKUP(Tabela32[[#This Row],[Serventia]],Tabela4[],8,0) -> Não | BC57: =VLOOKUP(Tabela32[[#This Row],[Serventia]],Tabela5[],15,0) ->  | BD57: =VLOOKUP(Tabela32[[#This Row],[Serventia]],'Definição das cores'!$A$13890:$J$14735,9,0) -> 6/6 | BE57: =VLOOKUP(Tabela32[[#This Row],[Serventia]],'Definição das cores'!$A$13890:$J$14735,10,0) -> 0/6
A58: CAPITAL 30 VARA CIVEL | B58: =VLOOKUP(Tabela32[[#This Row],[Serventia]],'Base_Critérios de Consulta'!$B$3:$D$868,3,0) -> 1 | C58: =VLOOKUP(Tabela32[[#This Row],[Serventia]],'Base_Critérios de Consulta'!$B$3:$G$868,6,0) -> Não | D58: =IFERROR(VLOOKUP(Tabela32[[#This Row],[Serventia]],'Acervo Geral - Físico'!$A$6:$N$1098,14,0),"-") -> 33.33333333 | E58: =VLOOKUP(Tabela32[[#This Row],[Serventia]],'Acervo Geral - Eletrônico'!$A$6:$N$1030,14,0) -> 3928.25 | F58: =VLOOKUP(Tabela32[[#This Row],[Serventia]],'Acervo Geral - TOTAL'!$A$6:$N$1141,14,0) -> 3961.583333 | G58: =VLOOKUP(Tabela32[[#This Row],[Serventia]],'Definição das cores'!$B$13160:$E$13887,4,0) -> Vermelho | H58: =VLOOKUP(Tabela32[[#This Row],[Serventia]],'Acervo Geral - TOTAL'!$A$6:$M$1141,13,0) -> 3931 | I58: =VLOOKUP(Tabela32[[#This Row],[Serventia]],'Definição das cores'!$B$5:$E$731,4,0) -> Vermelho | J58: =(Tabela32[[#This Row],[Último Mês (II)]]/Tabela32[[#This Row],[Média no período (I)]])-1 -> -0.007719977282 | K58: =VLOOKUP(Tabela32[[#This Row],[Serventia]],'Definição das cores'!$A$737:$C$1462,3,0) -> Verde | L58: =VLOOKUP(Tabela32[[#This Row],[Serventia]],'Acervo Físico - TOTAL'!$A$6:$N$1141,14,0) -> 3953.083333 | M58: =VLOOKUP(Tabela32[[#This Row],[Serventia]],'Acervo Físico - TOTAL'!$A$6:$N$1141,13,0) -> 3917 | N58: =Tabela32[[#This Row],[Último Mês (II)]]-Tabela32[[#This Row],[Último Mês]] -> 14 | O58: =VLOOKUP(Tabela32[[#This Row],[Serventia]],Arquivados!$A$6:$N$1141,14,0) -> 28.66666667 | P58: =VLOOKUP(Tabela32[[#This Row],[Serventia]],'Tombados Geral '!$A$6:$N$1141,14,0) -> 82.75 | Q58: =VLOOKUP(Tabela32[[#This Row],[Serventia]],Tabela6[],3,0) -> 1.191553544 | R58: =VLOOKUP(Tabela32[[#This Row],[Serventia]],'Meta 1 - 2022'!$B$2:$D$859,3,0) -> 0 | S58: =VLOOKUP(Tabela32[[#This Row],[Serventia]],'Definição das cores'!$B$4393:$E$5113,4,0) -> Verde | T58: =VLOOKUP(Tabela32[[#This Row],[Serventia]],IAD!$A$10:$N$940,14,0) -> 1.098458294 | U58: =VLOOKUP(Tabela32[[#This Row],[Serventia]],'Definição das cores'!$B$1468:$E$2190,4,0) -> Verde | V58: =VLOOKUP(Tabela32[[#This Row],[Serventia]],IPS!$A$10:$N$940,14,0) ->  | W58: =VLOOKUP(Tabela32[[#This Row],[Serventia]],'Definição das cores'!$B$5124:$E$5846,4,0) ->  | X58: =VLOOKUP(Tabela32[[#This Row],[Serventia]],'Taxa De Congestionamento'!$A$3:$N$884,14,0) -> 0.7580214222 | Y58: =VLOOKUP(Tabela32[[#This Row],[Serventia]],'Definição das cores'!$B$2202:$E$2922,4,0) -> Verde | Z58: =Tabela32[[#This Row],[Arq (Média)]]/Tabela32[[#This Row],[Média no período]] -> 0.007251723338 | AA58: =VLOOKUP(Tabela32[[#This Row],[Serventia]],'Definição das cores'!$B$5856:$E$6582,4,0) -> Vermelho | AB58: =VLOOKUP(Tabela32[[#This Row],[Serventia]],'Aud. Real.'!$A$6:$N$1141,14,0) -> 0.08333333333 | AC58: =VLOOKUP(Tabela32[[#This Row],[Serventia]],Conclusão!$A$6:$N$1141,14,0) -> 932 | AD58: =VLOOKUP(Tabela32[[#This Row],[Serventia]],'Definição das cores'!$B$6587:$E$7312,4,0) -> Vermelho | AE58: =VLOOKUP(Tabela32[[#This Row],[Serventia]],'Autos Conclusos + 30 '!$A$6:$N$1141,14,0) -> 3.333333333 | AF58: =VLOOKUP(Tabela32[[#This Row],[Serventia]],'Definição das cores'!$B$7317:$E$8041,4,0) -> Verde | AG58: =VLOOKUP(Tabela32[[#This Row],[Serventia]],'Autos Conclusos + 100'!$A$6:$N$1141,14,0) -> 0 | AH58: =VLOOKUP(Tabela32[[#This Row],[Serventia]],'Definição das cores'!$B$8046:$E$8771,4,0) -> Verde | AI58: =VLOOKUP(Tabela32[[#This Row],[Serventia]],'Autos Conclusos + 30 '!$A$5:$N$1141,13,0) -> 12 | AJ58: =VLOOKUP(Tabela32[[#This Row],[Serventia]],'Definição das cores'!$B$8046:$E$8771,4,0) -> Verde | AK58: =VLOOKUP(Tabela32[[#This Row],[Serventia]],'Autos Conclusos + 100'!$A$5:$N$1141,13,0) -> 0 | AL58: =VLOOKUP(Tabela32[[#This Row],[Serventia]],'Definição das cores'!$B$9506:$E$10231,4,0) -> Verde | AM58: =VLOOKUP(Tabela32[[#This Row],[Serventia]],'Autos Paralisados + 30'!$A$6:$N$1141,14,0) -> 1216 | AN58: =VLOOKUP(Tabela32[[#This Row],[Serventia]],'Definição das cores'!$B$10236:$E$10961,4,0) -> Vermelho | AO58: =VLOOKUP(Tabela32[[#This Row],[Serventia]],'Autos Paralisados + 90'!$A$6:$N$1141,14,0) -> 15.58333333 | AP58: =VLOOKUP(Tabela32[[#This Row],[Serventia]],'Definição das cores'!$B$10967:$E$11692,4,0) -> Verde | AQ58: =VLOOKUP(Tabela32[[#This Row],[Serventia]],'Autos Paralisados + 30'!$A$6:$N$1141,13,0) -> 1386 | AR58: =VLOOKUP(Tabela32[[#This Row],[Serventia]],'Definição das cores'!$B$11698:$E$12423,4,0) -> Vermelho | AS58: =VLOOKUP(Tabela32[[#This Row],[Serventia]],'Autos Paralisados + 90'!$A$6:$N$1141,13,0) -> 93 | AT58: =VLOOKUP(Tabela32[[#This Row],[Serventia]],'Definição das cores'!$B$12428:$E$13155,4,0) -> Verde | AU58: =Tabela32[[#This Row],[ 90 (Último Mês)2]]/Tabela32[[#This Row],[Último Mês]] -> 0.0237426602 | AV58: =VLOOKUP(Tabela32[[#This Row],[Serventia]],'Definição das cores'!$B$3664:$E$4389,4,0) -> Verde | AW58: =IFERROR(Tabela32[[#This Row],[30 (Último Mês)]]/Tabela32[[#This Row],[ 30 (Último Mês)]],"-") -> 0.008658008658 | AX58: =VLOOKUP(Tabela32[[#This Row],[Serventia]],'Definição das cores'!$B$2932:$E$3660,4,0) -> Verde | AY58: =VLOOKUP(Tabela32[[#This Row],[Serventia]],Lotação!$A$12:$D$2844,4,0) ->  | AZ58: =IFERROR(ROUND(VLOOKUP(Tabela32[[#This Row],[Serventia]],Tabela8[],2,0),0),"N/A") -> 6 | BA58: =IF(Tabela32[[#This Row],[Ideal]]="N/A","N/A",IF(Tabela32[[#This Row],[Atual]]>=Tabela32[[#This Row],[Ideal]],"Não",IF(Tabela32[[#This Row],[Atual]]<Tabela32[[#This Row],[Ideal]],"Sim"))) ->  | BB58: =VLOOKUP(Tabela32[[#This Row],[Serventia]],Tabela4[],8,0) -> Não | BC58: =VLOOKUP(Tabela32[[#This Row],[Serventia]],Tabela5[],15,0) ->  | BD58: =VLOOKUP(Tabela32[[#This Row],[Serventia]],'Definição das cores'!$A$13890:$J$14735,9,0) -> 5/6 | BE58: =VLOOKUP(Tabela32[[#This Row],[Serventia]],'Definição das cores'!$A$13890:$J$14735,10,0) -> 1/6
A59: CAPITAL 31 VARA CIVEL | B59: =VLOOKUP(Tabela32[[#This Row],[Serventia]],'Base_Critérios de Consulta'!$B$3:$D$868,3,0) -> 1 | C59: =VLOOKUP(Tabela32[[#This Row],[Serventia]],'Base_Critérios de Consulta'!$B$3:$G$868,6,0) -> Não | D59: =IFERROR(VLOOKUP(Tabela32[[#This Row],[Serventia]],'Acervo Geral - Físico'!$A$6:$N$1098,14,0),"-") -> 11.91666667 | E59: =VLOOKUP(Tabela32[[#This Row],[Serventia]],'Acervo Geral - Eletrônico'!$A$6:$N$1030,14,0) -> 4095.166667 | F59: =VLOOKUP(Tabela32[[#This Row],[Serventia]],'Acervo Geral - TOTAL'!$A$6:$N$1141,14,0) -> 4107.083333 | G59: =VLOOKUP(Tabela32[[#This Row],[Serventia]],'Definição das cores'!$B$13160:$E$13887,4,0) -> Vermelho | H59: =VLOOKUP(Tabela32[[#This Row],[Serventia]],'Acervo Geral - TOTAL'!$A$6:$M$1141,13,0) -> 4088 | I59: =VLOOKUP(Tabela32[[#This Row],[Serventia]],'Definição das cores'!$B$5:$E$731,4,0) -> Vermelho | J59: =(Tabela32[[#This Row],[Último Mês (II)]]/Tabela32[[#This Row],[Média no período (I)]])-1 -> -0.004646444151 | K59: =VLOOKUP(Tabela32[[#This Row],[Serventia]],'Definição das cores'!$A$737:$C$1462,3,0) -> Verde | L59: =VLOOKUP(Tabela32[[#This Row],[Serventia]],'Acervo Físico - TOTAL'!$A$6:$N$1141,14,0) -> 4076.666667 | M59: =VLOOKUP(Tabela32[[#This Row],[Serventia]],'Acervo Físico - TOTAL'!$A$6:$N$1141,13,0) -> 4063 | N59: =Tabela32[[#This Row],[Último Mês (II)]]-Tabela32[[#This Row],[Último Mês]] -> 25 | O59: =VLOOKUP(Tabela32[[#This Row],[Serventia]],Arquivados!$A$6:$N$1141,14,0) -> 18.58333333 | P59: =VLOOKUP(Tabela32[[#This Row],[Serventia]],'Tombados Geral '!$A$6:$N$1141,14,0) -> 81 | Q59: =VLOOKUP(Tabela32[[#This Row],[Serventia]],Tabela6[],3,0) -> 0.9807427785 | R59: =VLOOKUP(Tabela32[[#This Row],[Serventia]],'Meta 1 - 2022'!$B$2:$D$859,3,0) -> 0 | S59: =VLOOKUP(Tabela32[[#This Row],[Serventia]],'Definição das cores'!$B$4393:$E$5113,4,0) -> Verde | T59: =VLOOKUP(Tabela32[[#This Row],[Serventia]],IAD!$A$10:$N$940,14,0) -> 1.338196184 | U59: =VLOOKUP(Tabela32[[#This Row],[Serventia]],'Definição das cores'!$B$1468:$E$2190,4,0) -> Verde | V59: =VLOOKUP(Tabela32[[#This Row],[Serventia]],IPS!$A$10:$N$940,14,0) ->  | W59: =VLOOKUP(Tabela32[[#This Row],[Serventia]],'Definição das cores'!$B$5124:$E$5846,4,0) ->  | X59: =VLOOKUP(Tabela32[[#This Row],[Serventia]],'Taxa De Congestionamento'!$A$3:$N$884,14,0) -> 0.7666379276 | Y59: =VLOOKUP(Tabela32[[#This Row],[Serventia]],'Definição das cores'!$B$2202:$E$2922,4,0) -> Verde | Z59: =Tabela32[[#This Row],[Arq (Média)]]/Tabela32[[#This Row],[Média no período]] -> 0.004558462796 | AA59: =VLOOKUP(Tabela32[[#This Row],[Serventia]],'Definição das cores'!$B$5856:$E$6582,4,0) -> Vermelho | AB59: =VLOOKUP(Tabela32[[#This Row],[Serventia]],'Aud. Real.'!$A$6:$N$1141,14,0) -> 2.416666667 | AC59: =VLOOKUP(Tabela32[[#This Row],[Serventia]],Conclusão!$A$6:$N$1141,14,0) -> 724.9166667 | AD59: =VLOOKUP(Tabela32[[#This Row],[Serventia]],'Definição das cores'!$B$6587:$E$7312,4,0) -> Vermelho | AE59: =VLOOKUP(Tabela32[[#This Row],[Serventia]],'Autos Conclusos + 30 '!$A$6:$N$1141,14,0) -> 5.416666667 | AF59: =VLOOKUP(Tabela32[[#This Row],[Serventia]],'Definição das cores'!$B$7317:$E$8041,4,0) -> Verde | AG59: =VLOOKUP(Tabela32[[#This Row],[Serventia]],'Autos Conclusos + 100'!$A$6:$N$1141,14,0) -> 0 | AH59: =VLOOKUP(Tabela32[[#This Row],[Serventia]],'Definição das cores'!$B$8046:$E$8771,4,0) -> Verde | AI59: =VLOOKUP(Tabela32[[#This Row],[Serventia]],'Autos Conclusos + 30 '!$A$5:$N$1141,13,0) -> 1 | AJ59: =VLOOKUP(Tabela32[[#This Row],[Serventia]],'Definição das cores'!$B$8046:$E$8771,4,0) -> Verde | AK59: =VLOOKUP(Tabela32[[#This Row],[Serventia]],'Autos Conclusos + 100'!$A$5:$N$1141,13,0) -> 0 | AL59: =VLOOKUP(Tabela32[[#This Row],[Serventia]],'Definição das cores'!$B$9506:$E$10231,4,0) -> Verde | AM59: =VLOOKUP(Tabela32[[#This Row],[Serventia]],'Autos Paralisados + 30'!$A$6:$N$1141,14,0) -> 1880.833333 | AN59: =VLOOKUP(Tabela32[[#This Row],[Serventia]],'Definição das cores'!$B$10236:$E$10961,4,0) -> Vermelho | AO59: =VLOOKUP(Tabela32[[#This Row],[Serventia]],'Autos Paralisados + 90'!$A$6:$N$1141,14,0) -> 613.3333333 | AP59: =VLOOKUP(Tabela32[[#This Row],[Serventia]],'Definição das cores'!$B$10967:$E$11692,4,0) -> Vermelho | AQ59: =VLOOKUP(Tabela32[[#This Row],[Serventia]],'Autos Paralisados + 30'!$A$6:$N$1141,13,0) -> 1261 | AR59: =VLOOKUP(Tabela32[[#This Row],[Serventia]],'Definição das cores'!$B$11698:$E$12423,4,0) -> Vermelho | AS59: =VLOOKUP(Tabela32[[#This Row],[Serventia]],'Autos Paralisados + 90'!$A$6:$N$1141,13,0) -> 132 | AT59: =VLOOKUP(Tabela32[[#This Row],[Serventia]],'Definição das cores'!$B$12428:$E$13155,4,0) -> Verde | AU59: =Tabela32[[#This Row],[ 90 (Último Mês)2]]/Tabela32[[#This Row],[Último Mês]] -> 0.03248830913 | AV59: =VLOOKUP(Tabela32[[#This Row],[Serventia]],'Definição das cores'!$B$3664:$E$4389,4,0) -> Verde | AW59: =IFERROR(Tabela32[[#This Row],[30 (Último Mês)]]/Tabela32[[#This Row],[ 30 (Último Mês)]],"-") -> 0.0007930214116 | AX59: =VLOOKUP(Tabela32[[#This Row],[Serventia]],'Definição das cores'!$B$2932:$E$3660,4,0) -> Verde | AY59: =VLOOKUP(Tabela32[[#This Row],[Serventia]],Lotação!$A$12:$D$2844,4,0) ->  | AZ59: =IFERROR(ROUND(VLOOKUP(Tabela32[[#This Row],[Serventia]],Tabela8[],2,0),0),"N/A") -> 6 | BA59: =IF(Tabela32[[#This Row],[Ideal]]="N/A","N/A",IF(Tabela32[[#This Row],[Atual]]>=Tabela32[[#This Row],[Ideal]],"Não",IF(Tabela32[[#This Row],[Atual]]<Tabela32[[#This Row],[Ideal]],"Sim"))) ->  | BB59: =VLOOKUP(Tabela32[[#This Row],[Serventia]],Tabela4[],8,0) -> Não | BC59: =VLOOKUP(Tabela32[[#This Row],[Serventia]],Tabela5[],15,0) ->  | BD59: =VLOOKUP(Tabela32[[#This Row],[Serventia]],'Definição das cores'!$A$13890:$J$14735,9,0) -> 5/6 | BE59: =VLOOKUP(Tabela32[[#This Row],[Serventia]],'Definição das cores'!$A$13890:$J$14735,10,0) -> 1/6
A60: CAPITAL 32 VARA CIVEL | B60: =VLOOKUP(Tabela32[[#This Row],[Serventia]],'Base_Critérios de Consulta'!$B$3:$D$868,3,0) -> 1 | C60: =VLOOKUP(Tabela32[[#This Row],[Serventia]],'Base_Critérios de Consulta'!$B$3:$G$868,6,0) -> Não | D60: =IFERROR(VLOOKUP(Tabela32[[#This Row],[Serventia]],'Acervo Geral - Físico'!$A$6:$N$1098,14,0),"-") -> 2.833333333 | E60: =VLOOKUP(Tabela32[[#This Row],[Serventia]],'Acervo Geral - Eletrônico'!$A$6:$N$1030,14,0) -> 4165.083333 | F60: =VLOOKUP(Tabela32[[#This Row],[Serventia]],'Acervo Geral - TOTAL'!$A$6:$N$1141,14,0) -> 4167.916667 | G60: =VLOOKUP(Tabela32[[#This Row],[Serventia]],'Definição das cores'!$B$13160:$E$13887,4,0) -> Vermelho | H60: =VLOOKUP(Tabela32[[#This Row],[Serventia]],'Acervo Geral - TOTAL'!$A$6:$M$1141,13,0) -> 4185 | I60: =VLOOKUP(Tabela32[[#This Row],[Serventia]],'Definição das cores'!$B$5:$E$731,4,0) -> Vermelho | J60: =(Tabela32[[#This Row],[Último Mês (II)]]/Tabela32[[#This Row],[Média no período (I)]])-1 -> 0.004098770369 | K60: =VLOOKUP(Tabela32[[#This Row],[Serventia]],'Definição das cores'!$A$737:$C$1462,3,0) -> Verde | L60: =VLOOKUP(Tabela32[[#This Row],[Serventia]],'Acervo Físico - TOTAL'!$A$6:$N$1141,14,0) -> 4148 | M60: =VLOOKUP(Tabela32[[#This Row],[Serventia]],'Acervo Físico - TOTAL'!$A$6:$N$1141,13,0) -> 4138 | N60: =Tabela32[[#This Row],[Último Mês (II)]]-Tabela32[[#This Row],[Último Mês]] -> 47 | O60: =VLOOKUP(Tabela32[[#This Row],[Serventia]],Arquivados!$A$6:$N$1141,14,0) -> 148.75 | P60: =VLOOKUP(Tabela32[[#This Row],[Serventia]],'Tombados Geral '!$A$6:$N$1141,14,0) -> 80 | Q60: =VLOOKUP(Tabela32[[#This Row],[Serventia]],Tabela6[],3,0) -> 0.9871382637 | R60: =VLOOKUP(Tabela32[[#This Row],[Serventia]],'Meta 1 - 2022'!$B$2:$D$859,3,0) -> 0 | S60: =VLOOKUP(Tabela32[[#This Row],[Serventia]],'Definição das cores'!$B$4393:$E$5113,4,0) -> Verde | T60: =VLOOKUP(Tabela32[[#This Row],[Serventia]],IAD!$A$10:$N$940,14,0) -> 1.759778134 | U60: =VLOOKUP(Tabela32[[#This Row],[Serventia]],'Definição das cores'!$B$1468:$E$2190,4,0) -> Verde | V60: =VLOOKUP(Tabela32[[#This Row],[Serventia]],IPS!$A$10:$N$940,14,0) ->  | W60: =VLOOKUP(Tabela32[[#This Row],[Serventia]],'Definição das cores'!$B$5124:$E$5846,4,0) ->  | X60: =VLOOKUP(Tabela32[[#This Row],[Serventia]],'Taxa De Congestionamento'!$A$3:$N$884,14,0) -> 0.75726244 | Y60: =VLOOKUP(Tabela32[[#This Row],[Serventia]],'Definição das cores'!$B$2202:$E$2922,4,0) -> Verde | Z60: =Tabela32[[#This Row],[Arq (Média)]]/Tabela32[[#This Row],[Média no período]] -> 0.03586065574 | AA60: =VLOOKUP(Tabela32[[#This Row],[Serventia]],'Definição das cores'!$B$5856:$E$6582,4,0) -> Verde | AB60: =VLOOKUP(Tabela32[[#This Row],[Serventia]],'Aud. Real.'!$A$6:$N$1141,14,0) -> 1.083333333 | AC60: =VLOOKUP(Tabela32[[#This Row],[Serventia]],Conclusão!$A$6:$N$1141,14,0) -> 951.0833333 | AD60: =VLOOKUP(Tabela32[[#This Row],[Serventia]],'Definição das cores'!$B$6587:$E$7312,4,0) -> Vermelho | AE60: =VLOOKUP(Tabela32[[#This Row],[Serventia]],'Autos Conclusos + 30 '!$A$6:$N$1141,14,0) -> 1 | AF60: =VLOOKUP(Tabela32[[#This Row],[Serventia]],'Definição das cores'!$B$7317:$E$8041,4,0) -> Verde | AG60: =VLOOKUP(Tabela32[[#This Row],[Serventia]],'Autos Conclusos + 100'!$A$6:$N$1141,14,0) -> 0 | AH60: =VLOOKUP(Tabela32[[#This Row],[Serventia]],'Definição das cores'!$B$8046:$E$8771,4,0) -> Verde | AI60: =VLOOKUP(Tabela32[[#This Row],[Serventia]],'Autos Conclusos + 30 '!$A$5:$N$1141,13,0) -> 0 | AJ60: =VLOOKUP(Tabela32[[#This Row],[Serventia]],'Definição das cores'!$B$8046:$E$8771,4,0) -> Verde | AK60: =VLOOKUP(Tabela32[[#This Row],[Serventia]],'Autos Conclusos + 100'!$A$5:$N$1141,13,0) -> 0 | AL60: =VLOOKUP(Tabela32[[#This Row],[Serventia]],'Definição das cores'!$B$9506:$E$10231,4,0) -> Verde | AM60: =VLOOKUP(Tabela32[[#This Row],[Serventia]],'Autos Paralisados + 30'!$A$6:$N$1141,14,0) -> 1577.083333 | AN60: =VLOOKUP(Tabela32[[#This Row],[Serventia]],'Definição das cores'!$B$10236:$E$10961,4,0) -> Vermelho | AO60: =VLOOKUP(Tabela32[[#This Row],[Serventia]],'Autos Paralisados + 90'!$A$6:$N$1141,14,0) -> 216.3333333 | AP60: =VLOOKUP(Tabela32[[#This Row],[Serventia]],'Definição das cores'!$B$10967:$E$11692,4,0) -> Verde | AQ60: =VLOOKUP(Tabela32[[#This Row],[Serventia]],'Autos Paralisados + 30'!$A$6:$N$1141,13,0) -> 1360 | AR60: =VLOOKUP(Tabela32[[#This Row],[Serventia]],'Definição das cores'!$B$11698:$E$12423,4,0) -> Vermelho | AS60: =VLOOKUP(Tabela32[[#This Row],[Serventia]],'Autos Paralisados + 90'!$A$6:$N$1141,13,0) -> 7 | AT60: =VLOOKUP(Tabela32[[#This Row],[Serventia]],'Definição das cores'!$B$12428:$E$13155,4,0) -> Verde | AU60: =Tabela32[[#This Row],[ 90 (Último Mês)2]]/Tabela32[[#This Row],[Último Mês]] -> 0.001691638473 | AV60: =VLOOKUP(Tabela32[[#This Row],[Serventia]],'Definição das cores'!$B$3664:$E$4389,4,0) -> Verde | AW60: =IFERROR(Tabela32[[#This Row],[30 (Último Mês)]]/Tabela32[[#This Row],[ 30 (Último Mês)]],"-") -> 0 | AX60: =VLOOKUP(Tabela32[[#This Row],[Serventia]],'Definição das cores'!$B$2932:$E$3660,4,0) -> Verde | AY60: =VLOOKUP(Tabela32[[#This Row],[Serventia]],Lotação!$A$12:$D$2844,4,0) ->  | AZ60: =IFERROR(ROUND(VLOOKUP(Tabela32[[#This Row],[Serventia]],Tabela8[],2,0),0),"N/A") -> 6 | BA60: =IF(Tabela32[[#This Row],[Ideal]]="N/A","N/A",IF(Tabela32[[#This Row],[Atual]]>=Tabela32[[#This Row],[Ideal]],"Não",IF(Tabela32[[#This Row],[Atual]]<Tabela32[[#This Row],[Ideal]],"Sim"))) ->  | BB60: =VLOOKUP(Tabela32[[#This Row],[Serventia]],Tabela4[],8,0) -> Não | BC60: =VLOOKUP(Tabela32[[#This Row],[Serventia]],Tabela5[],15,0) ->  | BD60: =VLOOKUP(Tabela32[[#This Row],[Serventia]],'Definição das cores'!$A$13890:$J$14735,9,0) -> 5/6 | BE60: =VLOOKUP(Tabela32[[#This Row],[Serventia]],'Definição das cores'!$A$13890:$J$14735,10,0) -> 1/6
A61: CAPITAL 33 VARA CIVEL | B61: =VLOOKUP(Tabela32[[#This Row],[Serventia]],'Base_Critérios de Consulta'!$B$3:$D$868,3,0) -> 1 | C61: =VLOOKUP(Tabela32[[#This Row],[Serventia]],'Base_Critérios de Consulta'!$B$3:$G$868,6,0) -> Não | D61: =IFERROR(VLOOKUP(Tabela32[[#This Row],[Serventia]],'Acervo Geral - Físico'!$A$6:$N$1098,14,0),"-") -> 19.33333333 | E61: =VLOOKUP(Tabela32[[#This Row],[Serventia]],'Acervo Geral - Eletrônico'!$A$6:$N$1030,14,0) -> 3069.916667 | F61: =VLOOKUP(Tabela32[[#This Row],[Serventia]],'Acervo Geral - TOTAL'!$A$6:$N$1141,14,0) -> 3089.25 | G61: =VLOOKUP(Tabela32[[#This Row],[Serventia]],'Definição das cores'!$B$13160:$E$13887,4,0) -> Verde | H61: =VLOOKUP(Tabela32[[#This Row],[Serventia]],'Acervo Geral - TOTAL'!$A$6:$M$1141,13,0) -> 3002 | I61: =VLOOKUP(Tabela32[[#This Row],[Serventia]],'Definição das cores'!$B$5:$E$731,4,0) -> Verde | J61: =(Tabela32[[#This Row],[Último Mês (II)]]/Tabela32[[#This Row],[Média no período (I)]])-1 -> -0.02824310108 | K61: =VLOOKUP(Tabela32[[#This Row],[Serventia]],'Definição das cores'!$A$737:$C$1462,3,0) -> Verde | L61: =VLOOKUP(Tabela32[[#This Row],[Serventia]],'Acervo Físico - TOTAL'!$A$6:$N$1141,14,0) -> 3048.416667 | M61: =VLOOKUP(Tabela32[[#This Row],[Serventia]],'Acervo Físico - TOTAL'!$A$6:$N$1141,13,0) -> 2976 | N61: =Tabela32[[#This Row],[Último Mês (II)]]-Tabela32[[#This Row],[Último Mês]] -> 26 | O61: =VLOOKUP(Tabela32[[#This Row],[Serventia]],Arquivados!$A$6:$N$1141,14,0) -> 44.5 | P61: =VLOOKUP(Tabela32[[#This Row],[Serventia]],'Tombados Geral '!$A$6:$N$1141,14,0) -> 80.83333333 | Q61: =VLOOKUP(Tabela32[[#This Row],[Serventia]],Tabela6[],3,0) -> 0.8887195122 | R61: =VLOOKUP(Tabela32[[#This Row],[Serventia]],'Meta 1 - 2022'!$B$2:$D$859,3,0) -> 0 | S61: =VLOOKUP(Tabela32[[#This Row],[Serventia]],'Definição das cores'!$B$4393:$E$5113,4,0) -> Verde | T61: =VLOOKUP(Tabela32[[#This Row],[Serventia]],IAD!$A$10:$N$940,14,0) -> 1.071531552 | U61: =VLOOKUP(Tabela32[[#This Row],[Serventia]],'Definição das cores'!$B$1468:$E$2190,4,0) -> Verde | V61: =VLOOKUP(Tabela32[[#This Row],[Serventia]],IPS!$A$10:$N$940,14,0) ->  | W61: =VLOOKUP(Tabela32[[#This Row],[Serventia]],'Definição das cores'!$B$5124:$E$5846,4,0) ->  | X61: =VLOOKUP(Tabela32[[#This Row],[Serventia]],'Taxa De Congestionamento'!$A$3:$N$884,14,0) -> 0.786960241 | Y61: =VLOOKUP(Tabela32[[#This Row],[Serventia]],'Definição das cores'!$B$2202:$E$2922,4,0) -> Vermelho | Z61: =Tabela32[[#This Row],[Arq (Média)]]/Tabela32[[#This Row],[Média no período]] -> 0.014597742 | AA61: =VLOOKUP(Tabela32[[#This Row],[Serventia]],'Definição das cores'!$B$5856:$E$6582,4,0) -> Verde | AB61: =VLOOKUP(Tabela32[[#This Row],[Serventia]],'Aud. Real.'!$A$6:$N$1141,14,0) -> 1.083333333 | AC61: =VLOOKUP(Tabela32[[#This Row],[Serventia]],Conclusão!$A$6:$N$1141,14,0) -> 1004 | AD61: =VLOOKUP(Tabela32[[#This Row],[Serventia]],'Definição das cores'!$B$6587:$E$7312,4,0) -> Vermelho | AE61: =VLOOKUP(Tabela32[[#This Row],[Serventia]],'Autos Conclusos + 30 '!$A$6:$N$1141,14,0) -> 11.5 | AF61: =VLOOKUP(Tabela32[[#This Row],[Serventia]],'Definição das cores'!$B$7317:$E$8041,4,0) -> Verde | AG61: =VLOOKUP(Tabela32[[#This Row],[Serventia]],'Autos Conclusos + 100'!$A$6:$N$1141,14,0) -> 0 | AH61: =VLOOKUP(Tabela32[[#This Row],[Serventia]],'Definição das cores'!$B$8046:$E$8771,4,0) -> Verde | AI61: =VLOOKUP(Tabela32[[#This Row],[Serventia]],'Autos Conclusos + 30 '!$A$5:$N$1141,13,0) -> 2 | AJ61: =VLOOKUP(Tabela32[[#This Row],[Serventia]],'Definição das cores'!$B$8046:$E$8771,4,0) -> Verde | AK61: =VLOOKUP(Tabela32[[#This Row],[Serventia]],'Autos Conclusos + 100'!$A$5:$N$1141,13,0) -> 0 | AL61: =VLOOKUP(Tabela32[[#This Row],[Serventia]],'Definição das cores'!$B$9506:$E$10231,4,0) -> Verde | AM61: =VLOOKUP(Tabela32[[#This Row],[Serventia]],'Autos Paralisados + 30'!$A$6:$N$1141,14,0) -> 627.75 | AN61: =VLOOKUP(Tabela32[[#This Row],[Serventia]],'Definição das cores'!$B$10236:$E$10961,4,0) -> Verde | AO61: =VLOOKUP(Tabela32[[#This Row],[Serventia]],'Autos Paralisados + 90'!$A$6:$N$1141,14,0) -> 44.66666667 | AP61: =VLOOKUP(Tabela32[[#This Row],[Serventia]],'Definição das cores'!$B$10967:$E$11692,4,0) -> Verde | AQ61: =VLOOKUP(Tabela32[[#This Row],[Serventia]],'Autos Paralisados + 30'!$A$6:$N$1141,13,0) -> 377 | AR61: =VLOOKUP(Tabela32[[#This Row],[Serventia]],'Definição das cores'!$B$11698:$E$12423,4,0) -> Verde | AS61: =VLOOKUP(Tabela32[[#This Row],[Serventia]],'Autos Paralisados + 90'!$A$6:$N$1141,13,0) -> 21 | AT61: =VLOOKUP(Tabela32[[#This Row],[Serventia]],'Definição das cores'!$B$12428:$E$13155,4,0) -> Verde | AU61: =Tabela32[[#This Row],[ 90 (Último Mês)2]]/Tabela32[[#This Row],[Último Mês]] -> 0.007056451613 | AV61: =VLOOKUP(Tabela32[[#This Row],[Serventia]],'Definição das cores'!$B$3664:$E$4389,4,0) -> Verde | AW61: =IFERROR(Tabela32[[#This Row],[30 (Último Mês)]]/Tabela32[[#This Row],[ 30 (Último Mês)]],"-") -> 0.005305039788 | AX61: =VLOOKUP(Tabela32[[#This Row],[Serventia]],'Definição das cores'!$B$2932:$E$3660,4,0) -> Verde | AY61: =VLOOKUP(Tabela32[[#This Row],[Serventia]],Lotação!$A$12:$D$2844,4,0) ->  | AZ61: =IFERROR(ROUND(VLOOKUP(Tabela32[[#This Row],[Serventia]],Tabela8[],2,0),0),"N/A") -> 6 | BA61: =IF(Tabela32[[#This Row],[Ideal]]="N/A","N/A",IF(Tabela32[[#This Row],[Atual]]>=Tabela32[[#This Row],[Ideal]],"Não",IF(Tabela32[[#This Row],[Atual]]<Tabela32[[#This Row],[Ideal]],"Sim"))) ->  | BB61: =VLOOKUP(Tabela32[[#This Row],[Serventia]],Tabela4[],8,0) -> Não | BC61: =VLOOKUP(Tabela32[[#This Row],[Serventia]],Tabela5[],15,0) ->  | BD61: =VLOOKUP(Tabela32[[#This Row],[Serventia]],'Definição das cores'!$A$13890:$J$14735,9,0) -> 5/6 | BE61: =VLOOKUP(Tabela32[[#This Row],[Serventia]],'Definição das cores'!$A$13890:$J$14735,10,0) -> 1/6
A62: CAPITAL 34 VARA CIVEL | B62: =VLOOKUP(Tabela32[[#This Row],[Serventia]],'Base_Critérios de Consulta'!$B$3:$D$868,3,0) -> 1 | C62: =VLOOKUP(Tabela32[[#This Row],[Serventia]],'Base_Critérios de Consulta'!$B$3:$G$868,6,0) -> Não | D62: =IFERROR(VLOOKUP(Tabela32[[#This Row],[Serventia]],'Acervo Geral - Físico'!$A$6:$N$1098,14,0),"-") -> 36.66666667 | E62: =VLOOKUP(Tabela32[[#This Row],[Serventia]],'Acervo Geral - Eletrônico'!$A$6:$N$1030,14,0) -> 3262.166667 | F62: =VLOOKUP(Tabela32[[#This Row],[Serventia]],'Acervo Geral - TOTAL'!$A$6:$N$1141,14,0) -> 3298.833333 | G62: =VLOOKUP(Tabela32[[#This Row],[Serventia]],'Definição das cores'!$B$13160:$E$13887,4,0) -> Verde | H62: =VLOOKUP(Tabela32[[#This Row],[Serventia]],'Acervo Geral - TOTAL'!$A$6:$M$1141,13,0) -> 3236 | I62: =VLOOKUP(Tabela32[[#This Row],[Serventia]],'Definição das cores'!$B$5:$E$731,4,0) -> Verde | J62: =(Tabela32[[#This Row],[Último Mês (II)]]/Tabela32[[#This Row],[Média no período (I)]])-1 -> -0.01904713788 | K62: =VLOOKUP(Tabela32[[#This Row],[Serventia]],'Definição das cores'!$A$737:$C$1462,3,0) -> Verde | L62: =VLOOKUP(Tabela32[[#This Row],[Serventia]],'Acervo Físico - TOTAL'!$A$6:$N$1141,14,0) -> 3289.666667 | M62: =VLOOKUP(Tabela32[[#This Row],[Serventia]],'Acervo Físico - TOTAL'!$A$6:$N$1141,13,0) -> 3233 | N62: =Tabela32[[#This Row],[Último Mês (II)]]-Tabela32[[#This Row],[Último Mês]] -> 3 | O62: =VLOOKUP(Tabela32[[#This Row],[Serventia]],Arquivados!$A$6:$N$1141,14,0) -> 27.41666667 | P62: =VLOOKUP(Tabela32[[#This Row],[Serventia]],'Tombados Geral '!$A$6:$N$1141,14,0) -> 82.41666667 | Q62: =VLOOKUP(Tabela32[[#This Row],[Serventia]],Tabela6[],3,0) -> 0.9646892655 | R62: =VLOOKUP(Tabela32[[#This Row],[Serventia]],'Meta 1 - 2022'!$B$2:$D$859,3,0) -> 0 | S62: =VLOOKUP(Tabela32[[#This Row],[Serventia]],'Definição das cores'!$B$4393:$E$5113,4,0) -> Verde | T62: =VLOOKUP(Tabela32[[#This Row],[Serventia]],IAD!$A$10:$N$940,14,0) -> 1.163834855 | U62: =VLOOKUP(Tabela32[[#This Row],[Serventia]],'Definição das cores'!$B$1468:$E$2190,4,0) -> Verde | V62: =VLOOKUP(Tabela32[[#This Row],[Serventia]],IPS!$A$10:$N$940,14,0) ->  | W62: =VLOOKUP(Tabela32[[#This Row],[Serventia]],'Definição das cores'!$B$5124:$E$5846,4,0) ->  | X62: =VLOOKUP(Tabela32[[#This Row],[Serventia]],'Taxa De Congestionamento'!$A$3:$N$884,14,0) -> 0.7981995733 | Y62: =VLOOKUP(Tabela32[[#This Row],[Serventia]],'Definição das cores'!$B$2202:$E$2922,4,0) -> Vermelho | Z62: =Tabela32[[#This Row],[Arq (Média)]]/Tabela32[[#This Row],[Média no período]] -> 0.008334177728 | AA62: =VLOOKUP(Tabela32[[#This Row],[Serventia]],'Definição das cores'!$B$5856:$E$6582,4,0) -> Vermelho | AB62: =VLOOKUP(Tabela32[[#This Row],[Serventia]],'Aud. Real.'!$A$6:$N$1141,14,0) -> 1.833333333 | AC62: =VLOOKUP(Tabela32[[#This Row],[Serventia]],Conclusão!$A$6:$N$1141,14,0) -> 1051.583333 | AD62: =VLOOKUP(Tabela32[[#This Row],[Serventia]],'Definição das cores'!$B$6587:$E$7312,4,0) -> Verde | AE62: =VLOOKUP(Tabela32[[#This Row],[Serventia]],'Autos Conclusos + 30 '!$A$6:$N$1141,14,0) -> 11.66666667 | AF62: =VLOOKUP(Tabela32[[#This Row],[Serventia]],'Definição das cores'!$B$7317:$E$8041,4,0) -> Verde | AG62: =VLOOKUP(Tabela32[[#This Row],[Serventia]],'Autos Conclusos + 100'!$A$6:$N$1141,14,0) -> 0 | AH62: =VLOOKUP(Tabela32[[#This Row],[Serventia]],'Definição das cores'!$B$8046:$E$8771,4,0) -> Verde | AI62: =VLOOKUP(Tabela32[[#This Row],[Serventia]],'Autos Conclusos + 30 '!$A$5:$N$1141,13,0) -> 11 | AJ62: =VLOOKUP(Tabela32[[#This Row],[Serventia]],'Definição das cores'!$B$8046:$E$8771,4,0) -> Verde | AK62: =VLOOKUP(Tabela32[[#This Row],[Serventia]],'Autos Conclusos + 100'!$A$5:$N$1141,13,0) -> 0 | AL62: =VLOOKUP(Tabela32[[#This Row],[Serventia]],'Definição das cores'!$B$9506:$E$10231,4,0) -> Verde | AM62: =VLOOKUP(Tabela32[[#This Row],[Serventia]],'Autos Paralisados + 30'!$A$6:$N$1141,14,0) -> 894.25 | AN62: =VLOOKUP(Tabela32[[#This Row],[Serventia]],'Definição das cores'!$B$10236:$E$10961,4,0) -> Verde | AO62: =VLOOKUP(Tabela32[[#This Row],[Serventia]],'Autos Paralisados + 90'!$A$6:$N$1141,14,0) -> 155.25 | AP62: =VLOOKUP(Tabela32[[#This Row],[Serventia]],'Definição das cores'!$B$10967:$E$11692,4,0) -> Verde | AQ62: =VLOOKUP(Tabela32[[#This Row],[Serventia]],'Autos Paralisados + 30'!$A$6:$N$1141,13,0) -> 543 | AR62: =VLOOKUP(Tabela32[[#This Row],[Serventia]],'Definição das cores'!$B$11698:$E$12423,4,0) -> Verde | AS62: =VLOOKUP(Tabela32[[#This Row],[Serventia]],'Autos Paralisados + 90'!$A$6:$N$1141,13,0) -> 21 | AT62: =VLOOKUP(Tabela32[[#This Row],[Serventia]],'Definição das cores'!$B$12428:$E$13155,4,0) -> Verde | AU62: =Tabela32[[#This Row],[ 90 (Último Mês)2]]/Tabela32[[#This Row],[Último Mês]] -> 0.006495515002 | AV62: =VLOOKUP(Tabela32[[#This Row],[Serventia]],'Definição das cores'!$B$3664:$E$4389,4,0) -> Verde | AW62: =IFERROR(Tabela32[[#This Row],[30 (Último Mês)]]/Tabela32[[#This Row],[ 30 (Último Mês)]],"-") -> 0.02025782689 | AX62: =VLOOKUP(Tabela32[[#This Row],[Serventia]],'Definição das cores'!$B$2932:$E$3660,4,0) -> Verde | AY62: =VLOOKUP(Tabela32[[#This Row],[Serventia]],Lotação!$A$12:$D$2844,4,0) ->  | AZ62: =IFERROR(ROUND(VLOOKUP(Tabela32[[#This Row],[Serventia]],Tabela8[],2,0),0),"N/A") -> 6 | BA62: =IF(Tabela32[[#This Row],[Ideal]]="N/A","N/A",IF(Tabela32[[#This Row],[Atual]]>=Tabela32[[#This Row],[Ideal]],"Não",IF(Tabela32[[#This Row],[Atual]]<Tabela32[[#This Row],[Ideal]],"Sim"))) ->  | BB62: =VLOOKUP(Tabela32[[#This Row],[Serventia]],Tabela4[],8,0) -> Não | BC62: =VLOOKUP(Tabela32[[#This Row],[Serventia]],Tabela5[],15,0) ->  | BD62: =VLOOKUP(Tabela32[[#This Row],[Serventia]],'Definição das cores'!$A$13890:$J$14735,9,0) -> 5/6 | BE62: =VLOOKUP(Tabela32[[#This Row],[Serventia]],'Definição das cores'!$A$13890:$J$14735,10,0) -> 1/6
A63: CAPITAL 35 VARA CIVEL | B63: =VLOOKUP(Tabela32[[#This Row],[Serventia]],'Base_Critérios de Consulta'!$B$3:$D$868,3,0) -> 1 | C63: =VLOOKUP(Tabela32[[#This Row],[Serventia]],'Base_Critérios de Consulta'!$B$3:$G$868,6,0) -> Não | D63: =IFERROR(VLOOKUP(Tabela32[[#This Row],[Serventia]],'Acervo Geral - Físico'!$A$6:$N$1098,14,0),"-") -> 94 | E63: =VLOOKUP(Tabela32[[#This Row],[Serventia]],'Acervo Geral - Eletrônico'!$A$6:$N$1030,14,0) -> 3635.75 | F63: =VLOOKUP(Tabela32[[#This Row],[Serventia]],'Acervo Geral - TOTAL'!$A$6:$N$1141,14,0) -> 3729.75 | G63: =VLOOKUP(Tabela32[[#This Row],[Serventia]],'Definição das cores'!$B$13160:$E$13887,4,0) -> Vermelho | H63: =VLOOKUP(Tabela32[[#This Row],[Serventia]],'Acervo Geral - TOTAL'!$A$6:$M$1141,13,0) -> 3825 | I63: =VLOOKUP(Tabela32[[#This Row],[Serventia]],'Definição das cores'!$B$5:$E$731,4,0) -> Vermelho | J63: =(Tabela32[[#This Row],[Último Mês (II)]]/Tabela32[[#This Row],[Média no período (I)]])-1 -> 0.02553790469 | K63: =VLOOKUP(Tabela32[[#This Row],[Serventia]],'Definição das cores'!$A$737:$C$1462,3,0) -> Verde | L63: =VLOOKUP(Tabela32[[#This Row],[Serventia]],'Acervo Físico - TOTAL'!$A$6:$N$1141,14,0) -> 3577.916667 | M63: =VLOOKUP(Tabela32[[#This Row],[Serventia]],'Acervo Físico - TOTAL'!$A$6:$N$1141,13,0) -> 3685 | N63: =Tabela32[[#This Row],[Último Mês (II)]]-Tabela32[[#This Row],[Último Mês]] -> 140 | O63: =VLOOKUP(Tabela32[[#This Row],[Serventia]],Arquivados!$A$6:$N$1141,14,0) -> 33.75 | P63: =VLOOKUP(Tabela32[[#This Row],[Serventia]],'Tombados Geral '!$A$6:$N$1141,14,0) -> 83.08333333 | Q63: =VLOOKUP(Tabela32[[#This Row],[Serventia]],Tabela6[],3,0) -> 0.9210526316 | R63: =VLOOKUP(Tabela32[[#This Row],[Serventia]],'Meta 1 - 2022'!$B$2:$D$859,3,0) -> 0 | S63: =VLOOKUP(Tabela32[[#This Row],[Serventia]],'Definição das cores'!$B$4393:$E$5113,4,0) -> Verde | T63: =VLOOKUP(Tabela32[[#This Row],[Serventia]],IAD!$A$10:$N$940,14,0) -> 1.199024713 | U63: =VLOOKUP(Tabela32[[#This Row],[Serventia]],'Definição das cores'!$B$1468:$E$2190,4,0) -> Verde | V63: =VLOOKUP(Tabela32[[#This Row],[Serventia]],IPS!$A$10:$N$940,14,0) ->  | W63: =VLOOKUP(Tabela32[[#This Row],[Serventia]],'Definição das cores'!$B$5124:$E$5846,4,0) ->  | X63: =VLOOKUP(Tabela32[[#This Row],[Serventia]],'Taxa De Congestionamento'!$A$3:$N$884,14,0) -> 0.8357775083 | Y63: =VLOOKUP(Tabela32[[#This Row],[Serventia]],'Definição das cores'!$B$2202:$E$2922,4,0) -> Vermelho | Z63: =Tabela32[[#This Row],[Arq (Média)]]/Tabela32[[#This Row],[Média no período]] -> 0.009432863631 | AA63: =VLOOKUP(Tabela32[[#This Row],[Serventia]],'Definição das cores'!$B$5856:$E$6582,4,0) -> Vermelho | AB63: =VLOOKUP(Tabela32[[#This Row],[Serventia]],'Aud. Real.'!$A$6:$N$1141,14,0) -> 2.5 | AC63: =VLOOKUP(Tabela32[[#This Row],[Serventia]],Conclusão!$A$6:$N$1141,14,0) -> 840.5833333 | AD63: =VLOOKUP(Tabela32[[#This Row],[Serventia]],'Definição das cores'!$B$6587:$E$7312,4,0) -> Vermelho | AE63: =VLOOKUP(Tabela32[[#This Row],[Serventia]],'Autos Conclusos + 30 '!$A$6:$N$1141,14,0) -> 27.5 | AF63: =VLOOKUP(Tabela32[[#This Row],[Serventia]],'Definição das cores'!$B$7317:$E$8041,4,0) -> Verde | AG63: =VLOOKUP(Tabela32[[#This Row],[Serventia]],'Autos Conclusos + 100'!$A$6:$N$1141,14,0) -> 3.083333333 | AH63: =VLOOKUP(Tabela32[[#This Row],[Serventia]],'Definição das cores'!$B$8046:$E$8771,4,0) -> Verde | AI63: =VLOOKUP(Tabela32[[#This Row],[Serventia]],'Autos Conclusos + 30 '!$A$5:$N$1141,13,0) -> 17 | AJ63: =VLOOKUP(Tabela32[[#This Row],[Serventia]],'Definição das cores'!$B$8046:$E$8771,4,0) -> Verde | AK63: =VLOOKUP(Tabela32[[#This Row],[Serventia]],'Autos Conclusos + 100'!$A$5:$N$1141,13,0) -> 2 | AL63: =VLOOKUP(Tabela32[[#This Row],[Serventia]],'Definição das cores'!$B$9506:$E$10231,4,0) -> Verde | AM63: =VLOOKUP(Tabela32[[#This Row],[Serventia]],'Autos Paralisados + 30'!$A$6:$N$1141,14,0) -> 1054.75 | AN63: =VLOOKUP(Tabela32[[#This Row],[Serventia]],'Definição das cores'!$B$10236:$E$10961,4,0) -> Verde | AO63: =VLOOKUP(Tabela32[[#This Row],[Serventia]],'Autos Paralisados + 90'!$A$6:$N$1141,14,0) -> 52 | AP63: =VLOOKUP(Tabela32[[#This Row],[Serventia]],'Definição das cores'!$B$10967:$E$11692,4,0) -> Verde | AQ63: =VLOOKUP(Tabela32[[#This Row],[Serventia]],'Autos Paralisados + 30'!$A$6:$N$1141,13,0) -> 836 | AR63: =VLOOKUP(Tabela32[[#This Row],[Serventia]],'Definição das cores'!$B$11698:$E$12423,4,0) -> Verde | AS63: =VLOOKUP(Tabela32[[#This Row],[Serventia]],'Autos Paralisados + 90'!$A$6:$N$1141,13,0) -> 28 | AT63: =VLOOKUP(Tabela32[[#This Row],[Serventia]],'Definição das cores'!$B$12428:$E$13155,4,0) -> Verde | AU63: =Tabela32[[#This Row],[ 90 (Último Mês)2]]/Tabela32[[#This Row],[Último Mês]] -> 0.007598371777 | AV63: =VLOOKUP(Tabela32[[#This Row],[Serventia]],'Definição das cores'!$B$3664:$E$4389,4,0) -> Verde | AW63: =IFERROR(Tabela32[[#This Row],[30 (Último Mês)]]/Tabela32[[#This Row],[ 30 (Último Mês)]],"-") -> 0.02033492823 | AX63: =VLOOKUP(Tabela32[[#This Row],[Serventia]],'Definição das cores'!$B$2932:$E$3660,4,0) -> Verde | AY63: =VLOOKUP(Tabela32[[#This Row],[Serventia]],Lotação!$A$12:$D$2844,4,0) ->  | AZ63: =IFERROR(ROUND(VLOOKUP(Tabela32[[#This Row],[Serventia]],Tabela8[],2,0),0),"N/A") -> 6 | BA63: =IF(Tabela32[[#This Row],[Ideal]]="N/A","N/A",IF(Tabela32[[#This Row],[Atual]]>=Tabela32[[#This Row],[Ideal]],"Não",IF(Tabela32[[#This Row],[Atual]]<Tabela32[[#This Row],[Ideal]],"Sim"))) ->  | BB63: =VLOOKUP(Tabela32[[#This Row],[Serventia]],Tabela4[],8,0) -> Não | BC63: =VLOOKUP(Tabela32[[#This Row],[Serventia]],Tabela5[],15,0) ->  | BD63: =VLOOKUP(Tabela32[[#This Row],[Serventia]],'Definição das cores'!$A$13890:$J$14735,9,0) -> 4/6 | BE63: =VLOOKUP(Tabela32[[#This Row],[Serventia]],'Definição das cores'!$A$13890:$J$14735,10,0) -> 2/6
A64: CAPITAL 36 VARA CIVEL | B64: =VLOOKUP(Tabela32[[#This Row],[Serventia]],'Base_Critérios de Consulta'!$B$3:$D$868,3,0) -> 1 | C64: =VLOOKUP(Tabela32[[#This Row],[Serventia]],'Base_Critérios de Consulta'!$B$3:$G$868,6,0) -> Não | D64: =IFERROR(VLOOKUP(Tabela32[[#This Row],[Serventia]],'Acervo Geral - Físico'!$A$6:$N$1098,14,0),"-") -> 15.5 | E64: =VLOOKUP(Tabela32[[#This Row],[Serventia]],'Acervo Geral - Eletrônico'!$A$6:$N$1030,14,0) -> 4203.5 | F64: =VLOOKUP(Tabela32[[#This Row],[Serventia]],'Acervo Geral - TOTAL'!$A$6:$N$1141,14,0) -> 4219 | G64: =VLOOKUP(Tabela32[[#This Row],[Serventia]],'Definição das cores'!$B$13160:$E$13887,4,0) -> Vermelho | H64: =VLOOKUP(Tabela32[[#This Row],[Serventia]],'Acervo Geral - TOTAL'!$A$6:$M$1141,13,0) -> 4276 | I64: =VLOOKUP(Tabela32[[#This Row],[Serventia]],'Definição das cores'!$B$5:$E$731,4,0) -> Vermelho | J64: =(Tabela32[[#This Row],[Último Mês (II)]]/Tabela32[[#This Row],[Média no período (I)]])-1 -> 0.0135103105 | K64: =VLOOKUP(Tabela32[[#This Row],[Serventia]],'Definição das cores'!$A$737:$C$1462,3,0) -> Verde | L64: =VLOOKUP(Tabela32[[#This Row],[Serventia]],'Acervo Físico - TOTAL'!$A$6:$N$1141,14,0) -> 4196.166667 | M64: =VLOOKUP(Tabela32[[#This Row],[Serventia]],'Acervo Físico - TOTAL'!$A$6:$N$1141,13,0) -> 4230 | N64: =Tabela32[[#This Row],[Último Mês (II)]]-Tabela32[[#This Row],[Último Mês]] -> 46 | O64: =VLOOKUP(Tabela32[[#This Row],[Serventia]],Arquivados!$A$6:$N$1141,14,0) -> 63.58333333 | P64: =VLOOKUP(Tabela32[[#This Row],[Serventia]],'Tombados Geral '!$A$6:$N$1141,14,0) -> 80 | Q64: =VLOOKUP(Tabela32[[#This Row],[Serventia]],Tabela6[],3,0) -> 1.006144393 | R64: =VLOOKUP(Tabela32[[#This Row],[Serventia]],'Meta 1 - 2022'!$B$2:$D$859,3,0) -> 0 | S64: =VLOOKUP(Tabela32[[#This Row],[Serventia]],'Definição das cores'!$B$4393:$E$5113,4,0) -> Verde | T64: =VLOOKUP(Tabela32[[#This Row],[Serventia]],IAD!$A$10:$N$940,14,0) -> 1.458126794 | U64: =VLOOKUP(Tabela32[[#This Row],[Serventia]],'Definição das cores'!$B$1468:$E$2190,4,0) -> Verde | V64: =VLOOKUP(Tabela32[[#This Row],[Serventia]],IPS!$A$10:$N$940,14,0) ->  | W64: =VLOOKUP(Tabela32[[#This Row],[Serventia]],'Definição das cores'!$B$5124:$E$5846,4,0) ->  | X64: =VLOOKUP(Tabela32[[#This Row],[Serventia]],'Taxa De Congestionamento'!$A$3:$N$884,14,0) -> 0.7545086896 | Y64: =VLOOKUP(Tabela32[[#This Row],[Serventia]],'Definição das cores'!$B$2202:$E$2922,4,0) -> Verde | Z64: =Tabela32[[#This Row],[Arq (Média)]]/Tabela32[[#This Row],[Média no período]] -> 0.01515271875 | AA64: =VLOOKUP(Tabela32[[#This Row],[Serventia]],'Definição das cores'!$B$5856:$E$6582,4,0) -> Verde | AB64: =VLOOKUP(Tabela32[[#This Row],[Serventia]],'Aud. Real.'!$A$6:$N$1141,14,0) -> 2.5 | AC64: =VLOOKUP(Tabela32[[#This Row],[Serventia]],Conclusão!$A$6:$N$1141,14,0) -> 1139.416667 | AD64: =VLOOKUP(Tabela32[[#This Row],[Serventia]],'Definição das cores'!$B$6587:$E$7312,4,0) -> Verde | AE64: =VLOOKUP(Tabela32[[#This Row],[Serventia]],'Autos Conclusos + 30 '!$A$6:$N$1141,14,0) -> 0.1666666667 | AF64: =VLOOKUP(Tabela32[[#This Row],[Serventia]],'Definição das cores'!$B$7317:$E$8041,4,0) -> Verde | AG64: =VLOOKUP(Tabela32[[#This Row],[Serventia]],'Autos Conclusos + 100'!$A$6:$N$1141,14,0) -> 0.1666666667 | AH64: =VLOOKUP(Tabela32[[#This Row],[Serventia]],'Definição das cores'!$B$8046:$E$8771,4,0) -> Verde | AI64: =VLOOKUP(Tabela32[[#This Row],[Serventia]],'Autos Conclusos + 30 '!$A$5:$N$1141,13,0) -> 0 | AJ64: =VLOOKUP(Tabela32[[#This Row],[Serventia]],'Definição das cores'!$B$8046:$E$8771,4,0) -> Verde | AK64: =VLOOKUP(Tabela32[[#This Row],[Serventia]],'Autos Conclusos + 100'!$A$5:$N$1141,13,0) -> 0 | AL64: =VLOOKUP(Tabela32[[#This Row],[Serventia]],'Definição das cores'!$B$9506:$E$10231,4,0) -> Verde | AM64: =VLOOKUP(Tabela32[[#This Row],[Serventia]],'Autos Paralisados + 30'!$A$6:$N$1141,14,0) -> 1465.75 | AN64: =VLOOKUP(Tabela32[[#This Row],[Serventia]],'Definição das cores'!$B$10236:$E$10961,4,0) -> Vermelho | AO64: =VLOOKUP(Tabela32[[#This Row],[Serventia]],'Autos Paralisados + 90'!$A$6:$N$1141,14,0) -> 506.75 | AP64: =VLOOKUP(Tabela32[[#This Row],[Serventia]],'Definição das cores'!$B$10967:$E$11692,4,0) -> Vermelho | AQ64: =VLOOKUP(Tabela32[[#This Row],[Serventia]],'Autos Paralisados + 30'!$A$6:$N$1141,13,0) -> 1157 | AR64: =VLOOKUP(Tabela32[[#This Row],[Serventia]],'Definição das cores'!$B$11698:$E$12423,4,0) -> Vermelho | AS64: =VLOOKUP(Tabela32[[#This Row],[Serventia]],'Autos Paralisados + 90'!$A$6:$N$1141,13,0) -> 388 | AT64: =VLOOKUP(Tabela32[[#This Row],[Serventia]],'Definição das cores'!$B$12428:$E$13155,4,0) -> Vermelho | AU64: =Tabela32[[#This Row],[ 90 (Último Mês)2]]/Tabela32[[#This Row],[Último Mês]] -> 0.09172576832 | AV64: =VLOOKUP(Tabela32[[#This Row],[Serventia]],'Definição das cores'!$B$3664:$E$4389,4,0) -> Vermelho | AW64: =IFERROR(Tabela32[[#This Row],[30 (Último Mês)]]/Tabela32[[#This Row],[ 30 (Último Mês)]],"-") -> 0 | AX64: =VLOOKUP(Tabela32[[#This Row],[Serventia]],'Definição das cores'!$B$2932:$E$3660,4,0) -> Verde | AY64: =VLOOKUP(Tabela32[[#This Row],[Serventia]],Lotação!$A$12:$D$2844,4,0) ->  | AZ64: =IFERROR(ROUND(VLOOKUP(Tabela32[[#This Row],[Serventia]],Tabela8[],2,0),0),"N/A") -> 6 | BA64: =IF(Tabela32[[#This Row],[Ideal]]="N/A","N/A",IF(Tabela32[[#This Row],[Atual]]>=Tabela32[[#This Row],[Ideal]],"Não",IF(Tabela32[[#This Row],[Atual]]<Tabela32[[#This Row],[Ideal]],"Sim"))) ->  | BB64: =VLOOKUP(Tabela32[[#This Row],[Serventia]],Tabela4[],8,0) -> Não | BC64: =VLOOKUP(Tabela32[[#This Row],[Serventia]],Tabela5[],15,0) ->  | BD64: =VLOOKUP(Tabela32[[#This Row],[Serventia]],'Definição das cores'!$A$13890:$J$14735,9,0) -> 4/6 | BE64: =VLOOKUP(Tabela32[[#This Row],[Serventia]],'Definição das cores'!$A$13890:$J$14735,10,0) -> 2/6
A65: CAPITAL 37 VARA CIVEL | B65: =VLOOKUP(Tabela32[[#This Row],[Serventia]],'Base_Critérios de Consulta'!$B$3:$D$868,3,0) -> 1 | C65: =VLOOKUP(Tabela32[[#This Row],[Serventia]],'Base_Critérios de Consulta'!$B$3:$G$868,6,0) -> Não | D65: =IFERROR(VLOOKUP(Tabela32[[#This Row],[Serventia]],'Acervo Geral - Físico'!$A$6:$N$1098,14,0),"-") -> 22 | E65: =VLOOKUP(Tabela32[[#This Row],[Serventia]],'Acervo Geral - Eletrônico'!$A$6:$N$1030,14,0) -> 4272.75 | F65: =VLOOKUP(Tabela32[[#This Row],[Serventia]],'Acervo Geral - TOTAL'!$A$6:$N$1141,14,0) -> 4294.75 | G65: =VLOOKUP(Tabela32[[#This Row],[Serventia]],'Definição das cores'!$B$13160:$E$13887,4,0) -> Vermelho | H65: =VLOOKUP(Tabela32[[#This Row],[Serventia]],'Acervo Geral - TOTAL'!$A$6:$M$1141,13,0) -> 4484 | I65: =VLOOKUP(Tabela32[[#This Row],[Serventia]],'Definição das cores'!$B$5:$E$731,4,0) -> Vermelho | J65: =(Tabela32[[#This Row],[Último Mês (II)]]/Tabela32[[#This Row],[Média no período (I)]])-1 -> 0.04406542872 | K65: =VLOOKUP(Tabela32[[#This Row],[Serventia]],'Definição das cores'!$A$737:$C$1462,3,0) -> Verde | L65: =VLOOKUP(Tabela32[[#This Row],[Serventia]],'Acervo Físico - TOTAL'!$A$6:$N$1141,14,0) -> 4243.416667 | M65: =VLOOKUP(Tabela32[[#This Row],[Serventia]],'Acervo Físico - TOTAL'!$A$6:$N$1141,13,0) -> 4441 | N65: =Tabela32[[#This Row],[Último Mês (II)]]-Tabela32[[#This Row],[Último Mês]] -> 43 | O65: =VLOOKUP(Tabela32[[#This Row],[Serventia]],Arquivados!$A$6:$N$1141,14,0) -> 45.16666667 | P65: =VLOOKUP(Tabela32[[#This Row],[Serventia]],'Tombados Geral '!$A$6:$N$1141,14,0) -> 77.66666667 | Q65: =VLOOKUP(Tabela32[[#This Row],[Serventia]],Tabela6[],3,0) -> 0.773962804 | R65: =VLOOKUP(Tabela32[[#This Row],[Serventia]],'Meta 1 - 2022'!$B$2:$D$859,3,0) -> 0 | S65: =VLOOKUP(Tabela32[[#This Row],[Serventia]],'Definição das cores'!$B$4393:$E$5113,4,0) -> Verde | T65: =VLOOKUP(Tabela32[[#This Row],[Serventia]],IAD!$A$10:$N$940,14,0) -> 1.344483937 | U65: =VLOOKUP(Tabela32[[#This Row],[Serventia]],'Definição das cores'!$B$1468:$E$2190,4,0) -> Verde | V65: =VLOOKUP(Tabela32[[#This Row],[Serventia]],IPS!$A$10:$N$940,14,0) ->  | W65: =VLOOKUP(Tabela32[[#This Row],[Serventia]],'Definição das cores'!$B$5124:$E$5846,4,0) ->  | X65: =VLOOKUP(Tabela32[[#This Row],[Serventia]],'Taxa De Congestionamento'!$A$3:$N$884,14,0) -> 0.8592036599 | Y65: =VLOOKUP(Tabela32[[#This Row],[Serventia]],'Definição das cores'!$B$2202:$E$2922,4,0) -> Vermelho | Z65: =Tabela32[[#This Row],[Arq (Média)]]/Tabela32[[#This Row],[Média no período]] -> 0.01064393865 | AA65: =VLOOKUP(Tabela32[[#This Row],[Serventia]],'Definição das cores'!$B$5856:$E$6582,4,0) -> Vermelho | AB65: =VLOOKUP(Tabela32[[#This Row],[Serventia]],'Aud. Real.'!$A$6:$N$1141,14,0) -> 1.416666667 | AC65: =VLOOKUP(Tabela32[[#This Row],[Serventia]],Conclusão!$A$6:$N$1141,14,0) -> 1735.333333 | AD65: =VLOOKUP(Tabela32[[#This Row],[Serventia]],'Definição das cores'!$B$6587:$E$7312,4,0) -> Verde | AE65: =VLOOKUP(Tabela32[[#This Row],[Serventia]],'Autos Conclusos + 30 '!$A$6:$N$1141,14,0) -> 17.16666667 | AF65: =VLOOKUP(Tabela32[[#This Row],[Serventia]],'Definição das cores'!$B$7317:$E$8041,4,0) -> Verde | AG65: =VLOOKUP(Tabela32[[#This Row],[Serventia]],'Autos Conclusos + 100'!$A$6:$N$1141,14,0) -> 1.666666667 | AH65: =VLOOKUP(Tabela32[[#This Row],[Serventia]],'Definição das cores'!$B$8046:$E$8771,4,0) -> Verde | AI65: =VLOOKUP(Tabela32[[#This Row],[Serventia]],'Autos Conclusos + 30 '!$A$5:$N$1141,13,0) -> 22 | AJ65: =VLOOKUP(Tabela32[[#This Row],[Serventia]],'Definição das cores'!$B$8046:$E$8771,4,0) -> Verde | AK65: =VLOOKUP(Tabela32[[#This Row],[Serventia]],'Autos Conclusos + 100'!$A$5:$N$1141,13,0) -> 1 | AL65: =VLOOKUP(Tabela32[[#This Row],[Serventia]],'Definição das cores'!$B$9506:$E$10231,4,0) -> Verde | AM65: =VLOOKUP(Tabela32[[#This Row],[Serventia]],'Autos Paralisados + 30'!$A$6:$N$1141,14,0) -> 774 | AN65: =VLOOKUP(Tabela32[[#This Row],[Serventia]],'Definição das cores'!$B$10236:$E$10961,4,0) -> Verde | AO65: =VLOOKUP(Tabela32[[#This Row],[Serventia]],'Autos Paralisados + 90'!$A$6:$N$1141,14,0) -> 69.16666667 | AP65: =VLOOKUP(Tabela32[[#This Row],[Serventia]],'Definição das cores'!$B$10967:$E$11692,4,0) -> Verde | AQ65: =VLOOKUP(Tabela32[[#This Row],[Serventia]],'Autos Paralisados + 30'!$A$6:$N$1141,13,0) -> 1183 | AR65: =VLOOKUP(Tabela32[[#This Row],[Serventia]],'Definição das cores'!$B$11698:$E$12423,4,0) -> Vermelho | AS65: =VLOOKUP(Tabela32[[#This Row],[Serventia]],'Autos Paralisados + 90'!$A$6:$N$1141,13,0) -> 276 | AT65: =VLOOKUP(Tabela32[[#This Row],[Serventia]],'Definição das cores'!$B$12428:$E$13155,4,0) -> Vermelho | AU65: =Tabela32[[#This Row],[ 90 (Último Mês)2]]/Tabela32[[#This Row],[Último Mês]] -> 0.06214816483 | AV65: =VLOOKUP(Tabela32[[#This Row],[Serventia]],'Definição das cores'!$B$3664:$E$4389,4,0) -> Vermelho | AW65: =IFERROR(Tabela32[[#This Row],[30 (Último Mês)]]/Tabela32[[#This Row],[ 30 (Último Mês)]],"-") -> 0.01859678783 | AX65: =VLOOKUP(Tabela32[[#This Row],[Serventia]],'Definição das cores'!$B$2932:$E$3660,4,0) -> Verde | AY65: =VLOOKUP(Tabela32[[#This Row],[Serventia]],Lotação!$A$12:$D$2844,4,0) ->  | AZ65: =IFERROR(ROUND(VLOOKUP(Tabela32[[#This Row],[Serventia]],Tabela8[],2,0),0),"N/A") -> 6 | BA65: =IF(Tabela32[[#This Row],[Ideal]]="N/A","N/A",IF(Tabela32[[#This Row],[Atual]]>=Tabela32[[#This Row],[Ideal]],"Não",IF(Tabela32[[#This Row],[Atual]]<Tabela32[[#This Row],[Ideal]],"Sim"))) ->  | BB65: =VLOOKUP(Tabela32[[#This Row],[Serventia]],Tabela4[],8,0) -> Não | BC65: =VLOOKUP(Tabela32[[#This Row],[Serventia]],Tabela5[],15,0) ->  | BD65: =VLOOKUP(Tabela32[[#This Row],[Serventia]],'Definição das cores'!$A$13890:$J$14735,9,0) -> 3/6 | BE65: =VLOOKUP(Tabela32[[#This Row],[Serventia]],'Definição das cores'!$A$13890:$J$14735,10,0) -> 3/6
A66: CAPITAL 38 VARA CIVEL | B66: =VLOOKUP(Tabela32[[#This Row],[Serventia]],'Base_Critérios de Consulta'!$B$3:$D$868,3,0) -> 1 | C66: =VLOOKUP(Tabela32[[#This Row],[Serventia]],'Base_Critérios de Consulta'!$B$3:$G$868,6,0) -> Não | D66: =IFERROR(VLOOKUP(Tabela32[[#This Row],[Serventia]],'Acervo Geral - Físico'!$A$6:$N$1098,14,0),"-") -> 40.16666667 | E66: =VLOOKUP(Tabela32[[#This Row],[Serventia]],'Acervo Geral - Eletrônico'!$A$6:$N$1030,14,0) -> 2832.583333 | F66: =VLOOKUP(Tabela32[[#This Row],[Serventia]],'Acervo Geral - TOTAL'!$A$6:$N$1141,14,0) -> 2872.75 | G66: =VLOOKUP(Tabela32[[#This Row],[Serventia]],'Definição das cores'!$B$13160:$E$13887,4,0) -> Verde | H66: =VLOOKUP(Tabela32[[#This Row],[Serventia]],'Acervo Geral - TOTAL'!$A$6:$M$1141,13,0) -> 2819 | I66: =VLOOKUP(Tabela32[[#This Row],[Serventia]],'Definição das cores'!$B$5:$E$731,4,0) -> Verde | J66: =(Tabela32[[#This Row],[Último Mês (II)]]/Tabela32[[#This Row],[Média no período (I)]])-1 -> -0.01871029501 | K66: =VLOOKUP(Tabela32[[#This Row],[Serventia]],'Definição das cores'!$A$737:$C$1462,3,0) -> Verde | L66: =VLOOKUP(Tabela32[[#This Row],[Serventia]],'Acervo Físico - TOTAL'!$A$6:$N$1141,14,0) -> 2830.833333 | M66: =VLOOKUP(Tabela32[[#This Row],[Serventia]],'Acervo Físico - TOTAL'!$A$6:$N$1141,13,0) -> 2783 | N66: =Tabela32[[#This Row],[Último Mês (II)]]-Tabela32[[#This Row],[Último Mês]] -> 36 | O66: =VLOOKUP(Tabela32[[#This Row],[Serventia]],Arquivados!$A$6:$N$1141,14,0) -> 17.16666667 | P66: =VLOOKUP(Tabela32[[#This Row],[Serventia]],'Tombados Geral '!$A$6:$N$1141,14,0) -> 81.25 | Q66: =VLOOKUP(Tabela32[[#This Row],[Serventia]],Tabela6[],3,0) -> 1.115384615 | R66: =VLOOKUP(Tabela32[[#This Row],[Serventia]],'Meta 1 - 2022'!$B$2:$D$859,3,0) -> 0 | S66: =VLOOKUP(Tabela32[[#This Row],[Serventia]],'Definição das cores'!$B$4393:$E$5113,4,0) -> Verde | T66: =VLOOKUP(Tabela32[[#This Row],[Serventia]],IAD!$A$10:$N$940,14,0) -> 1.139500869 | U66: =VLOOKUP(Tabela32[[#This Row],[Serventia]],'Definição das cores'!$B$1468:$E$2190,4,0) -> Verde | V66: =VLOOKUP(Tabela32[[#This Row],[Serventia]],IPS!$A$10:$N$940,14,0) ->  | W66: =VLOOKUP(Tabela32[[#This Row],[Serventia]],'Definição das cores'!$B$5124:$E$5846,4,0) ->  | X66: =VLOOKUP(Tabela32[[#This Row],[Serventia]],'Taxa De Congestionamento'!$A$3:$N$884,14,0) -> 0.8347872595 | Y66: =VLOOKUP(Tabela32[[#This Row],[Serventia]],'Definição das cores'!$B$2202:$E$2922,4,0) -> Vermelho | Z66: =Tabela32[[#This Row],[Arq (Média)]]/Tabela32[[#This Row],[Média no período]] -> 0.006064174271 | AA66: =VLOOKUP(Tabela32[[#This Row],[Serventia]],'Definição das cores'!$B$5856:$E$6582,4,0) -> Vermelho | AB66: =VLOOKUP(Tabela32[[#This Row],[Serventia]],'Aud. Real.'!$A$6:$N$1141,14,0) -> 0.8333333333 | AC66: =VLOOKUP(Tabela32[[#This Row],[Serventia]],Conclusão!$A$6:$N$1141,14,0) -> 1220.416667 | AD66: =VLOOKUP(Tabela32[[#This Row],[Serventia]],'Definição das cores'!$B$6587:$E$7312,4,0) -> Verde | AE66: =VLOOKUP(Tabela32[[#This Row],[Serventia]],'Autos Conclusos + 30 '!$A$6:$N$1141,14,0) -> 0.9166666667 | AF66: =VLOOKUP(Tabela32[[#This Row],[Serventia]],'Definição das cores'!$B$7317:$E$8041,4,0) -> Verde | AG66: =VLOOKUP(Tabela32[[#This Row],[Serventia]],'Autos Conclusos + 100'!$A$6:$N$1141,14,0) -> 0 | AH66: =VLOOKUP(Tabela32[[#This Row],[Serventia]],'Definição das cores'!$B$8046:$E$8771,4,0) -> Verde | AI66: =VLOOKUP(Tabela32[[#This Row],[Serventia]],'Autos Conclusos + 30 '!$A$5:$N$1141,13,0) -> 1 | AJ66: =VLOOKUP(Tabela32[[#This Row],[Serventia]],'Definição das cores'!$B$8046:$E$8771,4,0) -> Verde | AK66: =VLOOKUP(Tabela32[[#This Row],[Serventia]],'Autos Conclusos + 100'!$A$5:$N$1141,13,0) -> 0 | AL66: =VLOOKUP(Tabela32[[#This Row],[Serventia]],'Definição das cores'!$B$9506:$E$10231,4,0) -> Verde | AM66: =VLOOKUP(Tabela32[[#This Row],[Serventia]],'Autos Paralisados + 30'!$A$6:$N$1141,14,0) -> 596.1666667 | AN66: =VLOOKUP(Tabela32[[#This Row],[Serventia]],'Definição das cores'!$B$10236:$E$10961,4,0) -> Verde | AO66: =VLOOKUP(Tabela32[[#This Row],[Serventia]],'Autos Paralisados + 90'!$A$6:$N$1141,14,0) -> 44.58333333 | AP66: =VLOOKUP(Tabela32[[#This Row],[Serventia]],'Definição das cores'!$B$10967:$E$11692,4,0) -> Verde | AQ66: =VLOOKUP(Tabela32[[#This Row],[Serventia]],'Autos Paralisados + 30'!$A$6:$N$1141,13,0) -> 393 | AR66: =VLOOKUP(Tabela32[[#This Row],[Serventia]],'Definição das cores'!$B$11698:$E$12423,4,0) -> Verde | AS66: =VLOOKUP(Tabela32[[#This Row],[Serventia]],'Autos Paralisados + 90'!$A$6:$N$1141,13,0) -> 13 | AT66: =VLOOKUP(Tabela32[[#This Row],[Serventia]],'Definição das cores'!$B$12428:$E$13155,4,0) -> Verde | AU66: =Tabela32[[#This Row],[ 90 (Último Mês)2]]/Tabela32[[#This Row],[Último Mês]] -> 0.00467121811 | AV66: =VLOOKUP(Tabela32[[#This Row],[Serventia]],'Definição das cores'!$B$3664:$E$4389,4,0) -> Verde | AW66: =IFERROR(Tabela32[[#This Row],[30 (Último Mês)]]/Tabela32[[#This Row],[ 30 (Último Mês)]],"-") -> 0.002544529262 | AX66: =VLOOKUP(Tabela32[[#This Row],[Serventia]],'Definição das cores'!$B$2932:$E$3660,4,0) -> Verde | AY66: =VLOOKUP(Tabela32[[#This Row],[Serventia]],Lotação!$A$12:$D$2844,4,0) ->  | AZ66: =IFERROR(ROUND(VLOOKUP(Tabela32[[#This Row],[Serventia]],Tabela8[],2,0),0),"N/A") -> 6 | BA66: =IF(Tabela32[[#This Row],[Ideal]]="N/A","N/A",IF(Tabela32[[#This Row],[Atual]]>=Tabela32[[#This Row],[Ideal]],"Não",IF(Tabela32[[#This Row],[Atual]]<Tabela32[[#This Row],[Ideal]],"Sim"))) ->  | BB66: =VLOOKUP(Tabela32[[#This Row],[Serventia]],Tabela4[],8,0) -> Não | BC66: =VLOOKUP(Tabela32[[#This Row],[Serventia]],Tabela5[],15,0) ->  | BD66: =VLOOKUP(Tabela32[[#This Row],[Serventia]],'Definição das cores'!$A$13890:$J$14735,9,0) -> 5/6 | BE66: =VLOOKUP(Tabela32[[#This Row],[Serventia]],'Definição das cores'!$A$13890:$J$14735,10,0) -> 1/6
A67: CAPITAL 39 VARA CIVEL | B67: =VLOOKUP(Tabela32[[#This Row],[Serventia]],'Base_Critérios de Consulta'!$B$3:$D$868,3,0) -> 1 | C67: =VLOOKUP(Tabela32[[#This Row],[Serventia]],'Base_Critérios de Consulta'!$B$3:$G$868,6,0) -> Não | D67: =IFERROR(VLOOKUP(Tabela32[[#This Row],[Serventia]],'Acervo Geral - Físico'!$A$6:$N$1098,14,0),"-") -> 32.33333333 | E67: =VLOOKUP(Tabela32[[#This Row],[Serventia]],'Acervo Geral - Eletrônico'!$A$6:$N$1030,14,0) -> 3385.333333 | F67: =VLOOKUP(Tabela32[[#This Row],[Serventia]],'Acervo Geral - TOTAL'!$A$6:$N$1141,14,0) -> 3417.666667 | G67: =VLOOKUP(Tabela32[[#This Row],[Serventia]],'Definição das cores'!$B$13160:$E$13887,4,0) -> Verde | H67: =VLOOKUP(Tabela32[[#This Row],[Serventia]],'Acervo Geral - TOTAL'!$A$6:$M$1141,13,0) -> 3374 | I67: =VLOOKUP(Tabela32[[#This Row],[Serventia]],'Definição das cores'!$B$5:$E$731,4,0) -> Verde | J67: =(Tabela32[[#This Row],[Último Mês (II)]]/Tabela32[[#This Row],[Média no período (I)]])-1 -> -0.01277674827 | K67: =VLOOKUP(Tabela32[[#This Row],[Serventia]],'Definição das cores'!$A$737:$C$1462,3,0) -> Verde | L67: =VLOOKUP(Tabela32[[#This Row],[Serventia]],'Acervo Físico - TOTAL'!$A$6:$N$1141,14,0) -> 3368.5 | M67: =VLOOKUP(Tabela32[[#This Row],[Serventia]],'Acervo Físico - TOTAL'!$A$6:$N$1141,13,0) -> 3309 | N67: =Tabela32[[#This Row],[Último Mês (II)]]-Tabela32[[#This Row],[Último Mês]] -> 65 | O67: =VLOOKUP(Tabela32[[#This Row],[Serventia]],Arquivados!$A$6:$N$1141,14,0) -> 31.41666667 | P67: =VLOOKUP(Tabela32[[#This Row],[Serventia]],'Tombados Geral '!$A$6:$N$1141,14,0) -> 77.25 | Q67: =VLOOKUP(Tabela32[[#This Row],[Serventia]],Tabela6[],3,0) -> 1.005856515 | R67: =VLOOKUP(Tabela32[[#This Row],[Serventia]],'Meta 1 - 2022'!$B$2:$D$859,3,0) -> 0 | S67: =VLOOKUP(Tabela32[[#This Row],[Serventia]],'Definição das cores'!$B$4393:$E$5113,4,0) -> Verde | T67: =VLOOKUP(Tabela32[[#This Row],[Serventia]],IAD!$A$10:$N$940,14,0) -> 1.200995992 | U67: =VLOOKUP(Tabela32[[#This Row],[Serventia]],'Definição das cores'!$B$1468:$E$2190,4,0) -> Verde | V67: =VLOOKUP(Tabela32[[#This Row],[Serventia]],IPS!$A$10:$N$940,14,0) ->  | W67: =VLOOKUP(Tabela32[[#This Row],[Serventia]],'Definição das cores'!$B$5124:$E$5846,4,0) ->  | X67: =VLOOKUP(Tabela32[[#This Row],[Serventia]],'Taxa De Congestionamento'!$A$3:$N$884,14,0) -> 0.8145449893 | Y67: =VLOOKUP(Tabela32[[#This Row],[Serventia]],'Definição das cores'!$B$2202:$E$2922,4,0) -> Vermelho | Z67: =Tabela32[[#This Row],[Arq (Média)]]/Tabela32[[#This Row],[Média no período]] -> 0.009326604324 | AA67: =VLOOKUP(Tabela32[[#This Row],[Serventia]],'Definição das cores'!$B$5856:$E$6582,4,0) -> Vermelho | AB67: =VLOOKUP(Tabela32[[#This Row],[Serventia]],'Aud. Real.'!$A$6:$N$1141,14,0) -> 5.416666667 | AC67: =VLOOKUP(Tabela32[[#This Row],[Serventia]],Conclusão!$A$6:$N$1141,14,0) -> 810.75 | AD67: =VLOOKUP(Tabela32[[#This Row],[Serventia]],'Definição das cores'!$B$6587:$E$7312,4,0) -> Vermelho | AE67: =VLOOKUP(Tabela32[[#This Row],[Serventia]],'Autos Conclusos + 30 '!$A$6:$N$1141,14,0) -> 10.16666667 | AF67: =VLOOKUP(Tabela32[[#This Row],[Serventia]],'Definição das cores'!$B$7317:$E$8041,4,0) -> Verde | AG67: =VLOOKUP(Tabela32[[#This Row],[Serventia]],'Autos Conclusos + 100'!$A$6:$N$1141,14,0) -> 3.333333333 | AH67: =VLOOKUP(Tabela32[[#This Row],[Serventia]],'Definição das cores'!$B$8046:$E$8771,4,0) -> Verde | AI67: =VLOOKUP(Tabela32[[#This Row],[Serventia]],'Autos Conclusos + 30 '!$A$5:$N$1141,13,0) -> 17 | AJ67: =VLOOKUP(Tabela32[[#This Row],[Serventia]],'Definição das cores'!$B$8046:$E$8771,4,0) -> Verde | AK67: =VLOOKUP(Tabela32[[#This Row],[Serventia]],'Autos Conclusos + 100'!$A$5:$N$1141,13,0) -> 2 | AL67: =VLOOKUP(Tabela32[[#This Row],[Serventia]],'Definição das cores'!$B$9506:$E$10231,4,0) -> Verde | AM67: =VLOOKUP(Tabela32[[#This Row],[Serventia]],'Autos Paralisados + 30'!$A$6:$N$1141,14,0) -> 1239.75 | AN67: =VLOOKUP(Tabela32[[#This Row],[Serventia]],'Definição das cores'!$B$10236:$E$10961,4,0) -> Vermelho | AO67: =VLOOKUP(Tabela32[[#This Row],[Serventia]],'Autos Paralisados + 90'!$A$6:$N$1141,14,0) -> 164.9166667 | AP67: =VLOOKUP(Tabela32[[#This Row],[Serventia]],'Definição das cores'!$B$10967:$E$11692,4,0) -> Verde | AQ67: =VLOOKUP(Tabela32[[#This Row],[Serventia]],'Autos Paralisados + 30'!$A$6:$N$1141,13,0) -> 902 | AR67: =VLOOKUP(Tabela32[[#This Row],[Serventia]],'Definição das cores'!$B$11698:$E$12423,4,0) -> Verde | AS67: =VLOOKUP(Tabela32[[#This Row],[Serventia]],'Autos Paralisados + 90'!$A$6:$N$1141,13,0) -> 35 | AT67: =VLOOKUP(Tabela32[[#This Row],[Serventia]],'Definição das cores'!$B$12428:$E$13155,4,0) -> Verde | AU67: =Tabela32[[#This Row],[ 90 (Último Mês)2]]/Tabela32[[#This Row],[Último Mês]] -> 0.01057721366 | AV67: =VLOOKUP(Tabela32[[#This Row],[Serventia]],'Definição das cores'!$B$3664:$E$4389,4,0) -> Verde | AW67: =IFERROR(Tabela32[[#This Row],[30 (Último Mês)]]/Tabela32[[#This Row],[ 30 (Último Mês)]],"-") -> 0.01884700665 | AX67: =VLOOKUP(Tabela32[[#This Row],[Serventia]],'Definição das cores'!$B$2932:$E$3660,4,0) -> Verde | AY67: =VLOOKUP(Tabela32[[#This Row],[Serventia]],Lotação!$A$12:$D$2844,4,0) ->  | AZ67: =IFERROR(ROUND(VLOOKUP(Tabela32[[#This Row],[Serventia]],Tabela8[],2,0),0),"N/A") -> 6 | BA67: =IF(Tabela32[[#This Row],[Ideal]]="N/A","N/A",IF(Tabela32[[#This Row],[Atual]]>=Tabela32[[#This Row],[Ideal]],"Não",IF(Tabela32[[#This Row],[Atual]]<Tabela32[[#This Row],[Ideal]],"Sim"))) ->  | BB67: =VLOOKUP(Tabela32[[#This Row],[Serventia]],Tabela4[],8,0) -> Não | BC67: =VLOOKUP(Tabela32[[#This Row],[Serventia]],Tabela5[],15,0) ->  | BD67: =VLOOKUP(Tabela32[[#This Row],[Serventia]],'Definição das cores'!$A$13890:$J$14735,9,0) -> 5/6 | BE67: =VLOOKUP(Tabela32[[#This Row],[Serventia]],'Definição das cores'!$A$13890:$J$14735,10,0) -> 1/6
A68: CAPITAL 4 VARA CIVEL | B68: =VLOOKUP(Tabela32[[#This Row],[Serventia]],'Base_Critérios de Consulta'!$B$3:$D$868,3,0) -> 1 | C68: =VLOOKUP(Tabela32[[#This Row],[Serventia]],'Base_Critérios de Consulta'!$B$3:$G$868,6,0) -> Não | D68: =IFERROR(VLOOKUP(Tabela32[[#This Row],[Serventia]],'Acervo Geral - Físico'!$A$6:$N$1098,14,0),"-") -> 7.666666667 | E68: =VLOOKUP(Tabela32[[#This Row],[Serventia]],'Acervo Geral - Eletrônico'!$A$6:$N$1030,14,0) -> 2284.25 | F68: =VLOOKUP(Tabela32[[#This Row],[Serventia]],'Acervo Geral - TOTAL'!$A$6:$N$1141,14,0) -> 2291.916667 | G68: =VLOOKUP(Tabela32[[#This Row],[Serventia]],'Definição das cores'!$B$13160:$E$13887,4,0) -> Verde | H68: =VLOOKUP(Tabela32[[#This Row],[Serventia]],'Acervo Geral - TOTAL'!$A$6:$M$1141,13,0) -> 2276 | I68: =VLOOKUP(Tabela32[[#This Row],[Serventia]],'Definição das cores'!$B$5:$E$731,4,0) -> Verde | J68: =(Tabela32[[#This Row],[Último Mês (II)]]/Tabela32[[#This Row],[Média no período (I)]])-1 -> -0.006944696942 | K68: =VLOOKUP(Tabela32[[#This Row],[Serventia]],'Definição das cores'!$A$737:$C$1462,3,0) -> Verde | L68: =VLOOKUP(Tabela32[[#This Row],[Serventia]],'Acervo Físico - TOTAL'!$A$6:$N$1141,14,0) -> 2278.833333 | M68: =VLOOKUP(Tabela32[[#This Row],[Serventia]],'Acervo Físico - TOTAL'!$A$6:$N$1141,13,0) -> 2264 | N68: =Tabela32[[#This Row],[Último Mês (II)]]-Tabela32[[#This Row],[Último Mês]] -> 12 | O68: =VLOOKUP(Tabela32[[#This Row],[Serventia]],Arquivados!$A$6:$N$1141,14,0) -> 20.83333333 | P68: =VLOOKUP(Tabela32[[#This Row],[Serventia]],'Tombados Geral '!$A$6:$N$1141,14,0) -> 80.41666667 | Q68: =VLOOKUP(Tabela32[[#This Row],[Serventia]],Tabela6[],3,0) -> 0.9833585477 | R68: =VLOOKUP(Tabela32[[#This Row],[Serventia]],'Meta 1 - 2022'!$B$2:$D$859,3,0) -> 0 | S68: =VLOOKUP(Tabela32[[#This Row],[Serventia]],'Definição das cores'!$B$4393:$E$5113,4,0) -> Verde | T68: =VLOOKUP(Tabela32[[#This Row],[Serventia]],IAD!$A$10:$N$940,14,0) -> 1.132531698 | U68: =VLOOKUP(Tabela32[[#This Row],[Serventia]],'Definição das cores'!$B$1468:$E$2190,4,0) -> Verde | V68: =VLOOKUP(Tabela32[[#This Row],[Serventia]],IPS!$A$10:$N$940,14,0) ->  | W68: =VLOOKUP(Tabela32[[#This Row],[Serventia]],'Definição das cores'!$B$5124:$E$5846,4,0) ->  | X68: =VLOOKUP(Tabela32[[#This Row],[Serventia]],'Taxa De Congestionamento'!$A$3:$N$884,14,0) -> 0.7393846213 | Y68: =VLOOKUP(Tabela32[[#This Row],[Serventia]],'Definição das cores'!$B$2202:$E$2922,4,0) -> Verde | Z68: =Tabela32[[#This Row],[Arq (Média)]]/Tabela32[[#This Row],[Média no período]] -> 0.009142104878 | AA68: =VLOOKUP(Tabela32[[#This Row],[Serventia]],'Definição das cores'!$B$5856:$E$6582,4,0) -> Vermelho | AB68: =VLOOKUP(Tabela32[[#This Row],[Serventia]],'Aud. Real.'!$A$6:$N$1141,14,0) -> 3.416666667 | AC68: =VLOOKUP(Tabela32[[#This Row],[Serventia]],Conclusão!$A$6:$N$1141,14,0) -> 1133.583333 | AD68: =VLOOKUP(Tabela32[[#This Row],[Serventia]],'Definição das cores'!$B$6587:$E$7312,4,0) -> Verde | AE68: =VLOOKUP(Tabela32[[#This Row],[Serventia]],'Autos Conclusos + 30 '!$A$6:$N$1141,14,0) -> 0 | AF68: =VLOOKUP(Tabela32[[#This Row],[Serventia]],'Definição das cores'!$B$7317:$E$8041,4,0) -> Verde | AG68: =VLOOKUP(Tabela32[[#This Row],[Serventia]],'Autos Conclusos + 100'!$A$6:$N$1141,14,0) -> 0 | AH68: =VLOOKUP(Tabela32[[#This Row],[Serventia]],'Definição das cores'!$B$8046:$E$8771,4,0) -> Verde | AI68: =VLOOKUP(Tabela32[[#This Row],[Serventia]],'Autos Conclusos + 30 '!$A$5:$N$1141,13,0) -> 0 | AJ68: =VLOOKUP(Tabela32[[#This Row],[Serventia]],'Definição das cores'!$B$8046:$E$8771,4,0) -> Verde | AK68: =VLOOKUP(Tabela32[[#This Row],[Serventia]],'Autos Conclusos + 100'!$A$5:$N$1141,13,0) -> 0 | AL68: =VLOOKUP(Tabela32[[#This Row],[Serventia]],'Definição das cores'!$B$9506:$E$10231,4,0) -> Verde | AM68: =VLOOKUP(Tabela32[[#This Row],[Serventia]],'Autos Paralisados + 30'!$A$6:$N$1141,14,0) -> 453.9166667 | AN68: =VLOOKUP(Tabela32[[#This Row],[Serventia]],'Definição das cores'!$B$10236:$E$10961,4,0) -> Verde | AO68: =VLOOKUP(Tabela32[[#This Row],[Serventia]],'Autos Paralisados + 90'!$A$6:$N$1141,14,0) -> 7 | AP68: =VLOOKUP(Tabela32[[#This Row],[Serventia]],'Definição das cores'!$B$10967:$E$11692,4,0) -> Verde | AQ68: =VLOOKUP(Tabela32[[#This Row],[Serventia]],'Autos Paralisados + 30'!$A$6:$N$1141,13,0) -> 413 | AR68: =VLOOKUP(Tabela32[[#This Row],[Serventia]],'Definição das cores'!$B$11698:$E$12423,4,0) -> Verde | AS68: =VLOOKUP(Tabela32[[#This Row],[Serventia]],'Autos Paralisados + 90'!$A$6:$N$1141,13,0) -> 1 | AT68: =VLOOKUP(Tabela32[[#This Row],[Serventia]],'Definição das cores'!$B$12428:$E$13155,4,0) -> Verde | AU68: =Tabela32[[#This Row],[ 90 (Último Mês)2]]/Tabela32[[#This Row],[Último Mês]] -> 0.0004416961131 | AV68: =VLOOKUP(Tabela32[[#This Row],[Serventia]],'Definição das cores'!$B$3664:$E$4389,4,0) -> Verde | AW68: =IFERROR(Tabela32[[#This Row],[30 (Último Mês)]]/Tabela32[[#This Row],[ 30 (Último Mês)]],"-") -> 0 | AX68: =VLOOKUP(Tabela32[[#This Row],[Serventia]],'Definição das cores'!$B$2932:$E$3660,4,0) -> Verde | AY68: =VLOOKUP(Tabela32[[#This Row],[Serventia]],Lotação!$A$12:$D$2844,4,0) ->  | AZ68: =IFERROR(ROUND(VLOOKUP(Tabela32[[#This Row],[Serventia]],Tabela8[],2,0),0),"N/A") -> 6 | BA68: =IF(Tabela32[[#This Row],[Ideal]]="N/A","N/A",IF(Tabela32[[#This Row],[Atual]]>=Tabela32[[#This Row],[Ideal]],"Não",IF(Tabela32[[#This Row],[Atual]]<Tabela32[[#This Row],[Ideal]],"Sim"))) ->  | BB68: =VLOOKUP(Tabela32[[#This Row],[Serventia]],Tabela4[],8,0) -> Não | BC68: =VLOOKUP(Tabela32[[#This Row],[Serventia]],Tabela5[],15,0) ->  | BD68: =VLOOKUP(Tabela32[[#This Row],[Serventia]],'Definição das cores'!$A$13890:$J$14735,9,0) -> 6/6 | BE68: =VLOOKUP(Tabela32[[#This Row],[Serventia]],'Definição das cores'!$A$13890:$J$14735,10,0) -> 0/6
A69: CAPITAL 40 VARA CIVEL | B69: =VLOOKUP(Tabela32[[#This Row],[Serventia]],'Base_Critérios de Consulta'!$B$3:$D$868,3,0) -> 1 | C69: =VLOOKUP(Tabela32[[#This Row],[Serventia]],'Base_Critérios de Consulta'!$B$3:$G$868,6,0) -> Não | D69: =IFERROR(VLOOKUP(Tabela32[[#This Row],[Serventia]],'Acervo Geral - Físico'!$A$6:$N$1098,14,0),"-") -> 67.5 | E69: =VLOOKUP(Tabela32[[#This Row],[Serventia]],'Acervo Geral - Eletrônico'!$A$6:$N$1030,14,0) -> 3535.833333 | F69: =VLOOKUP(Tabela32[[#This Row],[Serventia]],'Acervo Geral - TOTAL'!$A$6:$N$1141,14,0) -> 3603.333333 | G69: =VLOOKUP(Tabela32[[#This Row],[Serventia]],'Definição das cores'!$B$13160:$E$13887,4,0) -> Vermelho | H69: =VLOOKUP(Tabela32[[#This Row],[Serventia]],'Acervo Geral - TOTAL'!$A$6:$M$1141,13,0) -> 4291 | I69: =VLOOKUP(Tabela32[[#This Row],[Serventia]],'Definição das cores'!$B$5:$E$731,4,0) -> Vermelho | J69: =(Tabela32[[#This Row],[Último Mês (II)]]/Tabela32[[#This Row],[Média no período (I)]])-1 -> 0.1908418131 | K69: =VLOOKUP(Tabela32[[#This Row],[Serventia]],'Definição das cores'!$A$737:$C$1462,3,0) -> Vermelho | L69: =VLOOKUP(Tabela32[[#This Row],[Serventia]],'Acervo Físico - TOTAL'!$A$6:$N$1141,14,0) -> 3534.916667 | M69: =VLOOKUP(Tabela32[[#This Row],[Serventia]],'Acervo Físico - TOTAL'!$A$6:$N$1141,13,0) -> 4164 | N69: =Tabela32[[#This Row],[Último Mês (II)]]-Tabela32[[#This Row],[Último Mês]] -> 127 | O69: =VLOOKUP(Tabela32[[#This Row],[Serventia]],Arquivados!$A$6:$N$1141,14,0) -> 41.66666667 | P69: =VLOOKUP(Tabela32[[#This Row],[Serventia]],'Tombados Geral '!$A$6:$N$1141,14,0) -> 83.5 | Q69: =VLOOKUP(Tabela32[[#This Row],[Serventia]],Tabela6[],3,0) -> 0.8535871157 | R69: =VLOOKUP(Tabela32[[#This Row],[Serventia]],'Meta 1 - 2022'!$B$2:$D$859,3,0) -> 0 | S69: =VLOOKUP(Tabela32[[#This Row],[Serventia]],'Definição das cores'!$B$4393:$E$5113,4,0) -> Verde | T69: =VLOOKUP(Tabela32[[#This Row],[Serventia]],IAD!$A$10:$N$940,14,0) -> 0.9813145651 | U69: =VLOOKUP(Tabela32[[#This Row],[Serventia]],'Definição das cores'!$B$1468:$E$2190,4,0) -> Vermelho | V69: =VLOOKUP(Tabela32[[#This Row],[Serventia]],IPS!$A$10:$N$940,14,0) ->  | W69: =VLOOKUP(Tabela32[[#This Row],[Serventia]],'Definição das cores'!$B$5124:$E$5846,4,0) ->  | X69: =VLOOKUP(Tabela32[[#This Row],[Serventia]],'Taxa De Congestionamento'!$A$3:$N$884,14,0) -> 0.8003208622 | Y69: =VLOOKUP(Tabela32[[#This Row],[Serventia]],'Definição das cores'!$B$2202:$E$2922,4,0) -> Vermelho | Z69: =Tabela32[[#This Row],[Arq (Média)]]/Tabela32[[#This Row],[Média no período]] -> 0.01178717084 | AA69: =VLOOKUP(Tabela32[[#This Row],[Serventia]],'Definição das cores'!$B$5856:$E$6582,4,0) -> Vermelho | AB69: =VLOOKUP(Tabela32[[#This Row],[Serventia]],'Aud. Real.'!$A$6:$N$1141,14,0) -> 0 | AC69: =VLOOKUP(Tabela32[[#This Row],[Serventia]],Conclusão!$A$6:$N$1141,14,0) -> 741.5 | AD69: =VLOOKUP(Tabela32[[#This Row],[Serventia]],'Definição das cores'!$B$6587:$E$7312,4,0) -> Vermelho | AE69: =VLOOKUP(Tabela32[[#This Row],[Serventia]],'Autos Conclusos + 30 '!$A$6:$N$1141,14,0) -> 50.5 | AF69: =VLOOKUP(Tabela32[[#This Row],[Serventia]],'Definição das cores'!$B$7317:$E$8041,4,0) -> Verde | AG69: =VLOOKUP(Tabela32[[#This Row],[Serventia]],'Autos Conclusos + 100'!$A$6:$N$1141,14,0) -> 1.916666667 | AH69: =VLOOKUP(Tabela32[[#This Row],[Serventia]],'Definição das cores'!$B$8046:$E$8771,4,0) -> Verde | AI69: =VLOOKUP(Tabela32[[#This Row],[Serventia]],'Autos Conclusos + 30 '!$A$5:$N$1141,13,0) -> 191 | AJ69: =VLOOKUP(Tabela32[[#This Row],[Serventia]],'Definição das cores'!$B$8046:$E$8771,4,0) -> Verde | AK69: =VLOOKUP(Tabela32[[#This Row],[Serventia]],'Autos Conclusos + 100'!$A$5:$N$1141,13,0) -> 19 | AL69: =VLOOKUP(Tabela32[[#This Row],[Serventia]],'Definição das cores'!$B$9506:$E$10231,4,0) -> Verde | AM69: =VLOOKUP(Tabela32[[#This Row],[Serventia]],'Autos Paralisados + 30'!$A$6:$N$1141,14,0) -> 1261.75 | AN69: =VLOOKUP(Tabela32[[#This Row],[Serventia]],'Definição das cores'!$B$10236:$E$10961,4,0) -> Vermelho | AO69: =VLOOKUP(Tabela32[[#This Row],[Serventia]],'Autos Paralisados + 90'!$A$6:$N$1141,14,0) -> 184.6666667 | AP69: =VLOOKUP(Tabela32[[#This Row],[Serventia]],'Definição das cores'!$B$10967:$E$11692,4,0) -> Verde | AQ69: =VLOOKUP(Tabela32[[#This Row],[Serventia]],'Autos Paralisados + 30'!$A$6:$N$1141,13,0) -> 1394 | AR69: =VLOOKUP(Tabela32[[#This Row],[Serventia]],'Definição das cores'!$B$11698:$E$12423,4,0) -> Vermelho | AS69: =VLOOKUP(Tabela32[[#This Row],[Serventia]],'Autos Paralisados + 90'!$A$6:$N$1141,13,0) -> 33 | AT69: =VLOOKUP(Tabela32[[#This Row],[Serventia]],'Definição das cores'!$B$12428:$E$13155,4,0) -> Verde | AU69: =Tabela32[[#This Row],[ 90 (Último Mês)2]]/Tabela32[[#This Row],[Último Mês]] -> 0.007925072046 | AV69: =VLOOKUP(Tabela32[[#This Row],[Serventia]],'Definição das cores'!$B$3664:$E$4389,4,0) -> Verde | AW69: =IFERROR(Tabela32[[#This Row],[30 (Último Mês)]]/Tabela32[[#This Row],[ 30 (Último Mês)]],"-") -> 0.1370157819 | AX69: =VLOOKUP(Tabela32[[#This Row],[Serventia]],'Definição das cores'!$B$2932:$E$3660,4,0) -> Vermelho | AY69: =VLOOKUP(Tabela32[[#This Row],[Serventia]],Lotação!$A$12:$D$2844,4,0) ->  | AZ69: =IFERROR(ROUND(VLOOKUP(Tabela32[[#This Row],[Serventia]],Tabela8[],2,0),0),"N/A") -> 6 | BA69: =IF(Tabela32[[#This Row],[Ideal]]="N/A","N/A",IF(Tabela32[[#This Row],[Atual]]>=Tabela32[[#This Row],[Ideal]],"Não",IF(Tabela32[[#This Row],[Atual]]<Tabela32[[#This Row],[Ideal]],"Sim"))) ->  | BB69: =VLOOKUP(Tabela32[[#This Row],[Serventia]],Tabela4[],8,0) -> Sim | BC69: =VLOOKUP(Tabela32[[#This Row],[Serventia]],Tabela5[],15,0) ->  | BD69: =VLOOKUP(Tabela32[[#This Row],[Serventia]],'Definição das cores'!$A$13890:$J$14735,9,0) -> 1/6 | BE69: =VLOOKUP(Tabela32[[#This Row],[Serventia]],'Definição das cores'!$A$13890:$J$14735,10,0) -> 5/6
A70: CAPITAL 41 VARA CIVEL | B70: =VLOOKUP(Tabela32[[#This Row],[Serventia]],'Base_Critérios de Consulta'!$B$3:$D$868,3,0) -> 1 | C70: =VLOOKUP(Tabela32[[#This Row],[Serventia]],'Base_Critérios de Consulta'!$B$3:$G$868,6,0) -> Não | D70: =IFERROR(VLOOKUP(Tabela32[[#This Row],[Serventia]],'Acervo Geral - Físico'!$A$6:$N$1098,14,0),"-") -> 127.5 | E70: =VLOOKUP(Tabela32[[#This Row],[Serventia]],'Acervo Geral - Eletrônico'!$A$6:$N$1030,14,0) -> 4734.75 | F70: =VLOOKUP(Tabela32[[#This Row],[Serventia]],'Acervo Geral - TOTAL'!$A$6:$N$1141,14,0) -> 4862.25 | G70: =VLOOKUP(Tabela32[[#This Row],[Serventia]],'Definição das cores'!$B$13160:$E$13887,4,0) -> Vermelho | H70: =VLOOKUP(Tabela32[[#This Row],[Serventia]],'Acervo Geral - TOTAL'!$A$6:$M$1141,13,0) -> 4710 | I70: =VLOOKUP(Tabela32[[#This Row],[Serventia]],'Definição das cores'!$B$5:$E$731,4,0) -> Vermelho | J70: =(Tabela32[[#This Row],[Último Mês (II)]]/Tabela32[[#This Row],[Média no período (I)]])-1 -> -0.03131266389 | K70: =VLOOKUP(Tabela32[[#This Row],[Serventia]],'Definição das cores'!$A$737:$C$1462,3,0) -> Verde | L70: =VLOOKUP(Tabela32[[#This Row],[Serventia]],'Acervo Físico - TOTAL'!$A$6:$N$1141,14,0) -> 4746.916667 | M70: =VLOOKUP(Tabela32[[#This Row],[Serventia]],'Acervo Físico - TOTAL'!$A$6:$N$1141,13,0) -> 4595 | N70: =Tabela32[[#This Row],[Último Mês (II)]]-Tabela32[[#This Row],[Último Mês]] -> 115 | O70: =VLOOKUP(Tabela32[[#This Row],[Serventia]],Arquivados!$A$6:$N$1141,14,0) -> 26.66666667 | P70: =VLOOKUP(Tabela32[[#This Row],[Serventia]],'Tombados Geral '!$A$6:$N$1141,14,0) -> 77.08333333 | Q70: =VLOOKUP(Tabela32[[#This Row],[Serventia]],Tabela6[],3,0) -> 0.8767334361 | R70: =VLOOKUP(Tabela32[[#This Row],[Serventia]],'Meta 1 - 2022'!$B$2:$D$859,3,0) -> 0 | S70: =VLOOKUP(Tabela32[[#This Row],[Serventia]],'Definição das cores'!$B$4393:$E$5113,4,0) -> Verde | T70: =VLOOKUP(Tabela32[[#This Row],[Serventia]],IAD!$A$10:$N$940,14,0) -> 0.7885618856 | U70: =VLOOKUP(Tabela32[[#This Row],[Serventia]],'Definição das cores'!$B$1468:$E$2190,4,0) -> Vermelho | V70: =VLOOKUP(Tabela32[[#This Row],[Serventia]],IPS!$A$10:$N$940,14,0) ->  | W70: =VLOOKUP(Tabela32[[#This Row],[Serventia]],'Definição das cores'!$B$5124:$E$5846,4,0) ->  | X70: =VLOOKUP(Tabela32[[#This Row],[Serventia]],'Taxa De Congestionamento'!$A$3:$N$884,14,0) -> 0.898468662 | Y70: =VLOOKUP(Tabela32[[#This Row],[Serventia]],'Definição das cores'!$B$2202:$E$2922,4,0) -> Vermelho | Z70: =Tabela32[[#This Row],[Arq (Média)]]/Tabela32[[#This Row],[Média no período]] -> 0.005617681653 | AA70: =VLOOKUP(Tabela32[[#This Row],[Serventia]],'Definição das cores'!$B$5856:$E$6582,4,0) -> Vermelho | AB70: =VLOOKUP(Tabela32[[#This Row],[Serventia]],'Aud. Real.'!$A$6:$N$1141,14,0) -> 0.1666666667 | AC70: =VLOOKUP(Tabela32[[#This Row],[Serventia]],Conclusão!$A$6:$N$1141,14,0) -> 723.5833333 | AD70: =VLOOKUP(Tabela32[[#This Row],[Serventia]],'Definição das cores'!$B$6587:$E$7312,4,0) -> Vermelho | AE70: =VLOOKUP(Tabela32[[#This Row],[Serventia]],'Autos Conclusos + 30 '!$A$6:$N$1141,14,0) -> 1.916666667 | AF70: =VLOOKUP(Tabela32[[#This Row],[Serventia]],'Definição das cores'!$B$7317:$E$8041,4,0) -> Verde | AG70: =VLOOKUP(Tabela32[[#This Row],[Serventia]],'Autos Conclusos + 100'!$A$6:$N$1141,14,0) -> 0.08333333333 | AH70: =VLOOKUP(Tabela32[[#This Row],[Serventia]],'Definição das cores'!$B$8046:$E$8771,4,0) -> Verde | AI70: =VLOOKUP(Tabela32[[#This Row],[Serventia]],'Autos Conclusos + 30 '!$A$5:$N$1141,13,0) -> 3 | AJ70: =VLOOKUP(Tabela32[[#This Row],[Serventia]],'Definição das cores'!$B$8046:$E$8771,4,0) -> Verde | AK70: =VLOOKUP(Tabela32[[#This Row],[Serventia]],'Autos Conclusos + 100'!$A$5:$N$1141,13,0) -> 1 | AL70: =VLOOKUP(Tabela32[[#This Row],[Serventia]],'Definição das cores'!$B$9506:$E$10231,4,0) -> Verde | AM70: =VLOOKUP(Tabela32[[#This Row],[Serventia]],'Autos Paralisados + 30'!$A$6:$N$1141,14,0) -> 2654.75 | AN70: =VLOOKUP(Tabela32[[#This Row],[Serventia]],'Definição das cores'!$B$10236:$E$10961,4,0) -> Vermelho | AO70: =VLOOKUP(Tabela32[[#This Row],[Serventia]],'Autos Paralisados + 90'!$A$6:$N$1141,14,0) -> 1024.416667 | AP70: =VLOOKUP(Tabela32[[#This Row],[Serventia]],'Definição das cores'!$B$10967:$E$11692,4,0) -> Vermelho | AQ70: =VLOOKUP(Tabela32[[#This Row],[Serventia]],'Autos Paralisados + 30'!$A$6:$N$1141,13,0) -> 2339 | AR70: =VLOOKUP(Tabela32[[#This Row],[Serventia]],'Definição das cores'!$B$11698:$E$12423,4,0) -> Vermelho | AS70: =VLOOKUP(Tabela32[[#This Row],[Serventia]],'Autos Paralisados + 90'!$A$6:$N$1141,13,0) -> 931 | AT70: =VLOOKUP(Tabela32[[#This Row],[Serventia]],'Definição das cores'!$B$12428:$E$13155,4,0) -> Vermelho | AU70: =Tabela32[[#This Row],[ 90 (Último Mês)2]]/Tabela32[[#This Row],[Último Mês]] -> 0.2026115343 | AV70: =VLOOKUP(Tabela32[[#This Row],[Serventia]],'Definição das cores'!$B$3664:$E$4389,4,0) -> Vermelho | AW70: =IFERROR(Tabela32[[#This Row],[30 (Último Mês)]]/Tabela32[[#This Row],[ 30 (Último Mês)]],"-") -> 0.001282599401 | AX70: =VLOOKUP(Tabela32[[#This Row],[Serventia]],'Definição das cores'!$B$2932:$E$3660,4,0) -> Verde | AY70: =VLOOKUP(Tabela32[[#This Row],[Serventia]],Lotação!$A$12:$D$2844,4,0) ->  | AZ70: =IFERROR(ROUND(VLOOKUP(Tabela32[[#This Row],[Serventia]],Tabela8[],2,0),0),"N/A") -> 6 | BA70: =IF(Tabela32[[#This Row],[Ideal]]="N/A","N/A",IF(Tabela32[[#This Row],[Atual]]>=Tabela32[[#This Row],[Ideal]],"Não",IF(Tabela32[[#This Row],[Atual]]<Tabela32[[#This Row],[Ideal]],"Sim"))) ->  | BB70: =VLOOKUP(Tabela32[[#This Row],[Serventia]],Tabela4[],8,0) -> Sim | BC70: =VLOOKUP(Tabela32[[#This Row],[Serventia]],Tabela5[],15,0) ->  | BD70: =VLOOKUP(Tabela32[[#This Row],[Serventia]],'Definição das cores'!$A$13890:$J$14735,9,0) -> 2/6 | BE70: =VLOOKUP(Tabela32[[#This Row],[Serventia]],'Definição das cores'!$A$13890:$J$14735,10,0) -> 4/6
A71: CAPITAL 42 VARA CIVEL | B71: =VLOOKUP(Tabela32[[#This Row],[Serventia]],'Base_Critérios de Consulta'!$B$3:$D$868,3,0) -> 1 | C71: =VLOOKUP(Tabela32[[#This Row],[Serventia]],'Base_Critérios de Consulta'!$B$3:$G$868,6,0) -> Não | D71: =IFERROR(VLOOKUP(Tabela32[[#This Row],[Serventia]],'Acervo Geral - Físico'!$A$6:$N$1098,14,0),"-") -> 22.66666667 | E71: =VLOOKUP(Tabela32[[#This Row],[Serventia]],'Acervo Geral - Eletrônico'!$A$6:$N$1030,14,0) -> 3334.25 | F71: =VLOOKUP(Tabela32[[#This Row],[Serventia]],'Acervo Geral - TOTAL'!$A$6:$N$1141,14,0) -> 3356.916667 | G71: =VLOOKUP(Tabela32[[#This Row],[Serventia]],'Definição das cores'!$B$13160:$E$13887,4,0) -> Verde | H71: =VLOOKUP(Tabela32[[#This Row],[Serventia]],'Acervo Geral - TOTAL'!$A$6:$M$1141,13,0) -> 3415 | I71: =VLOOKUP(Tabela32[[#This Row],[Serventia]],'Definição das cores'!$B$5:$E$731,4,0) -> Verde | J71: =(Tabela32[[#This Row],[Último Mês (II)]]/Tabela32[[#This Row],[Média no período (I)]])-1 -> 0.01730258422 | K71: =VLOOKUP(Tabela32[[#This Row],[Serventia]],'Definição das cores'!$A$737:$C$1462,3,0) -> Verde | L71: =VLOOKUP(Tabela32[[#This Row],[Serventia]],'Acervo Físico - TOTAL'!$A$6:$N$1141,14,0) -> 3298.416667 | M71: =VLOOKUP(Tabela32[[#This Row],[Serventia]],'Acervo Físico - TOTAL'!$A$6:$N$1141,13,0) -> 3361 | N71: =Tabela32[[#This Row],[Último Mês (II)]]-Tabela32[[#This Row],[Último Mês]] -> 54 | O71: =VLOOKUP(Tabela32[[#This Row],[Serventia]],Arquivados!$A$6:$N$1141,14,0) -> 109.6666667 | P71: =VLOOKUP(Tabela32[[#This Row],[Serventia]],'Tombados Geral '!$A$6:$N$1141,14,0) -> 81.33333333 | Q71: =VLOOKUP(Tabela32[[#This Row],[Serventia]],Tabela6[],3,0) -> 1.074074074 | R71: =VLOOKUP(Tabela32[[#This Row],[Serventia]],'Meta 1 - 2022'!$B$2:$D$859,3,0) -> 0 | S71: =VLOOKUP(Tabela32[[#This Row],[Serventia]],'Definição das cores'!$B$4393:$E$5113,4,0) -> Verde | T71: =VLOOKUP(Tabela32[[#This Row],[Serventia]],IAD!$A$10:$N$940,14,0) -> 1.911292739 | U71: =VLOOKUP(Tabela32[[#This Row],[Serventia]],'Definição das cores'!$B$1468:$E$2190,4,0) -> Verde | V71: =VLOOKUP(Tabela32[[#This Row],[Serventia]],IPS!$A$10:$N$940,14,0) ->  | W71: =VLOOKUP(Tabela32[[#This Row],[Serventia]],'Definição das cores'!$B$5124:$E$5846,4,0) ->  | X71: =VLOOKUP(Tabela32[[#This Row],[Serventia]],'Taxa De Congestionamento'!$A$3:$N$884,14,0) -> 0.7249791305 | Y71: =VLOOKUP(Tabela32[[#This Row],[Serventia]],'Definição das cores'!$B$2202:$E$2922,4,0) -> Verde | Z71: =Tabela32[[#This Row],[Arq (Média)]]/Tabela32[[#This Row],[Média no período]] -> 0.03324827569 | AA71: =VLOOKUP(Tabela32[[#This Row],[Serventia]],'Definição das cores'!$B$5856:$E$6582,4,0) -> Verde | AB71: =VLOOKUP(Tabela32[[#This Row],[Serventia]],'Aud. Real.'!$A$6:$N$1141,14,0) -> 1.666666667 | AC71: =VLOOKUP(Tabela32[[#This Row],[Serventia]],Conclusão!$A$6:$N$1141,14,0) -> 482.8333333 | AD71: =VLOOKUP(Tabela32[[#This Row],[Serventia]],'Definição das cores'!$B$6587:$E$7312,4,0) -> Vermelho | AE71: =VLOOKUP(Tabela32[[#This Row],[Serventia]],'Autos Conclusos + 30 '!$A$6:$N$1141,14,0) -> 66.75 | AF71: =VLOOKUP(Tabela32[[#This Row],[Serventia]],'Definição das cores'!$B$7317:$E$8041,4,0) -> Verde | AG71: =VLOOKUP(Tabela32[[#This Row],[Serventia]],'Autos Conclusos + 100'!$A$6:$N$1141,14,0) -> 1 | AH71: =VLOOKUP(Tabela32[[#This Row],[Serventia]],'Definição das cores'!$B$8046:$E$8771,4,0) -> Verde | AI71: =VLOOKUP(Tabela32[[#This Row],[Serventia]],'Autos Conclusos + 30 '!$A$5:$N$1141,13,0) -> 162 | AJ71: =VLOOKUP(Tabela32[[#This Row],[Serventia]],'Definição das cores'!$B$8046:$E$8771,4,0) -> Verde | AK71: =VLOOKUP(Tabela32[[#This Row],[Serventia]],'Autos Conclusos + 100'!$A$5:$N$1141,13,0) -> 1 | AL71: =VLOOKUP(Tabela32[[#This Row],[Serventia]],'Definição das cores'!$B$9506:$E$10231,4,0) -> Verde | AM71: =VLOOKUP(Tabela32[[#This Row],[Serventia]],'Autos Paralisados + 30'!$A$6:$N$1141,14,0) -> 1006.416667 | AN71: =VLOOKUP(Tabela32[[#This Row],[Serventia]],'Definição das cores'!$B$10236:$E$10961,4,0) -> Verde | AO71: =VLOOKUP(Tabela32[[#This Row],[Serventia]],'Autos Paralisados + 90'!$A$6:$N$1141,14,0) -> 143 | AP71: =VLOOKUP(Tabela32[[#This Row],[Serventia]],'Definição das cores'!$B$10967:$E$11692,4,0) -> Verde | AQ71: =VLOOKUP(Tabela32[[#This Row],[Serventia]],'Autos Paralisados + 30'!$A$6:$N$1141,13,0) -> 956 | AR71: =VLOOKUP(Tabela32[[#This Row],[Serventia]],'Definição das cores'!$B$11698:$E$12423,4,0) -> Verde | AS71: =VLOOKUP(Tabela32[[#This Row],[Serventia]],'Autos Paralisados + 90'!$A$6:$N$1141,13,0) -> 204 | AT71: =VLOOKUP(Tabela32[[#This Row],[Serventia]],'Definição das cores'!$B$12428:$E$13155,4,0) -> Vermelho | AU71: =Tabela32[[#This Row],[ 90 (Último Mês)2]]/Tabela32[[#This Row],[Último Mês]] -> 0.06069622136 | AV71: =VLOOKUP(Tabela32[[#This Row],[Serventia]],'Definição das cores'!$B$3664:$E$4389,4,0) -> Vermelho | AW71: =IFERROR(Tabela32[[#This Row],[30 (Último Mês)]]/Tabela32[[#This Row],[ 30 (Último Mês)]],"-") -> 0.1694560669 | AX71: =VLOOKUP(Tabela32[[#This Row],[Serventia]],'Definição das cores'!$B$2932:$E$3660,4,0) -> Vermelho | AY71: =VLOOKUP(Tabela32[[#This Row],[Serventia]],Lotação!$A$12:$D$2844,4,0) ->  | AZ71: =IFERROR(ROUND(VLOOKUP(Tabela32[[#This Row],[Serventia]],Tabela8[],2,0),0),"N/A") -> 6 | BA71: =IF(Tabela32[[#This Row],[Ideal]]="N/A","N/A",IF(Tabela32[[#This Row],[Atual]]>=Tabela32[[#This Row],[Ideal]],"Não",IF(Tabela32[[#This Row],[Atual]]<Tabela32[[#This Row],[Ideal]],"Sim"))) ->  | BB71: =VLOOKUP(Tabela32[[#This Row],[Serventia]],Tabela4[],8,0) -> Não | BC71: =VLOOKUP(Tabela32[[#This Row],[Serventia]],Tabela5[],15,0) ->  | BD71: =VLOOKUP(Tabela32[[#This Row],[Serventia]],'Definição das cores'!$A$13890:$J$14735,9,0) -> 4/6 | BE71: =VLOOKUP(Tabela32[[#This Row],[Serventia]],'Definição das cores'!$A$13890:$J$14735,10,0) -> 2/6
A72: CAPITAL 43 VARA CIVEL | B72: =VLOOKUP(Tabela32[[#This Row],[Serventia]],'Base_Critérios de Consulta'!$B$3:$D$868,3,0) -> 1 | C72: =VLOOKUP(Tabela32[[#This Row],[Serventia]],'Base_Critérios de Consulta'!$B$3:$G$868,6,0) -> Não | D72: =IFERROR(VLOOKUP(Tabela32[[#This Row],[Serventia]],'Acervo Geral - Físico'!$A$6:$N$1098,14,0),"-") -> 40.25 | E72: =VLOOKUP(Tabela32[[#This Row],[Serventia]],'Acervo Geral - Eletrônico'!$A$6:$N$1030,14,0) -> 3991.333333 | F72: =VLOOKUP(Tabela32[[#This Row],[Serventia]],'Acervo Geral - TOTAL'!$A$6:$N$1141,14,0) -> 4031.583333 | G72: =VLOOKUP(Tabela32[[#This Row],[Serventia]],'Definição das cores'!$B$13160:$E$13887,4,0) -> Vermelho | H72: =VLOOKUP(Tabela32[[#This Row],[Serventia]],'Acervo Geral - TOTAL'!$A$6:$M$1141,13,0) -> 4072 | I72: =VLOOKUP(Tabela32[[#This Row],[Serventia]],'Definição das cores'!$B$5:$E$731,4,0) -> Vermelho | J72: =(Tabela32[[#This Row],[Último Mês (II)]]/Tabela32[[#This Row],[Média no período (I)]])-1 -> 0.01002501085 | K72: =VLOOKUP(Tabela32[[#This Row],[Serventia]],'Definição das cores'!$A$737:$C$1462,3,0) -> Verde | L72: =VLOOKUP(Tabela32[[#This Row],[Serventia]],'Acervo Físico - TOTAL'!$A$6:$N$1141,14,0) -> 3990.75 | M72: =VLOOKUP(Tabela32[[#This Row],[Serventia]],'Acervo Físico - TOTAL'!$A$6:$N$1141,13,0) -> 4037 | N72: =Tabela32[[#This Row],[Último Mês (II)]]-Tabela32[[#This Row],[Último Mês]] -> 35 | O72: =VLOOKUP(Tabela32[[#This Row],[Serventia]],Arquivados!$A$6:$N$1141,14,0) -> 27.25 | P72: =VLOOKUP(Tabela32[[#This Row],[Serventia]],'Tombados Geral '!$A$6:$N$1141,14,0) -> 81.33333333 | Q72: =VLOOKUP(Tabela32[[#This Row],[Serventia]],Tabela6[],3,0) -> 0.8201133144 | R72: =VLOOKUP(Tabela32[[#This Row],[Serventia]],'Meta 1 - 2022'!$B$2:$D$859,3,0) -> 0 | S72: =VLOOKUP(Tabela32[[#This Row],[Serventia]],'Definição das cores'!$B$4393:$E$5113,4,0) -> Verde | T72: =VLOOKUP(Tabela32[[#This Row],[Serventia]],IAD!$A$10:$N$940,14,0) -> 1.394683682 | U72: =VLOOKUP(Tabela32[[#This Row],[Serventia]],'Definição das cores'!$B$1468:$E$2190,4,0) -> Verde | V72: =VLOOKUP(Tabela32[[#This Row],[Serventia]],IPS!$A$10:$N$940,14,0) ->  | W72: =VLOOKUP(Tabela32[[#This Row],[Serventia]],'Definição das cores'!$B$5124:$E$5846,4,0) ->  | X72: =VLOOKUP(Tabela32[[#This Row],[Serventia]],'Taxa De Congestionamento'!$A$3:$N$884,14,0) -> 0.8316311392 | Y72: =VLOOKUP(Tabela32[[#This Row],[Serventia]],'Definição das cores'!$B$2202:$E$2922,4,0) -> Vermelho | Z72: =Tabela32[[#This Row],[Arq (Média)]]/Tabela32[[#This Row],[Média no período]] -> 0.006828290422 | AA72: =VLOOKUP(Tabela32[[#This Row],[Serventia]],'Definição das cores'!$B$5856:$E$6582,4,0) -> Vermelho | AB72: =VLOOKUP(Tabela32[[#This Row],[Serventia]],'Aud. Real.'!$A$6:$N$1141,14,0) -> 0.08333333333 | AC72: =VLOOKUP(Tabela32[[#This Row],[Serventia]],Conclusão!$A$6:$N$1141,14,0) -> 966.75 | AD72: =VLOOKUP(Tabela32[[#This Row],[Serventia]],'Definição das cores'!$B$6587:$E$7312,4,0) -> Vermelho | AE72: =VLOOKUP(Tabela32[[#This Row],[Serventia]],'Autos Conclusos + 30 '!$A$6:$N$1141,14,0) -> 102 | AF72: =VLOOKUP(Tabela32[[#This Row],[Serventia]],'Definição das cores'!$B$7317:$E$8041,4,0) -> Vermelho | AG72: =VLOOKUP(Tabela32[[#This Row],[Serventia]],'Autos Conclusos + 100'!$A$6:$N$1141,14,0) -> 0.08333333333 | AH72: =VLOOKUP(Tabela32[[#This Row],[Serventia]],'Definição das cores'!$B$8046:$E$8771,4,0) -> Verde | AI72: =VLOOKUP(Tabela32[[#This Row],[Serventia]],'Autos Conclusos + 30 '!$A$5:$N$1141,13,0) -> 2 | AJ72: =VLOOKUP(Tabela32[[#This Row],[Serventia]],'Definição das cores'!$B$8046:$E$8771,4,0) -> Verde | AK72: =VLOOKUP(Tabela32[[#This Row],[Serventia]],'Autos Conclusos + 100'!$A$5:$N$1141,13,0) -> 1 | AL72: =VLOOKUP(Tabela32[[#This Row],[Serventia]],'Definição das cores'!$B$9506:$E$10231,4,0) -> Verde | AM72: =VLOOKUP(Tabela32[[#This Row],[Serventia]],'Autos Paralisados + 30'!$A$6:$N$1141,14,0) -> 1605.916667 | AN72: =VLOOKUP(Tabela32[[#This Row],[Serventia]],'Definição das cores'!$B$10236:$E$10961,4,0) -> Vermelho | AO72: =VLOOKUP(Tabela32[[#This Row],[Serventia]],'Autos Paralisados + 90'!$A$6:$N$1141,14,0) -> 303.1666667 | AP72: =VLOOKUP(Tabela32[[#This Row],[Serventia]],'Definição das cores'!$B$10967:$E$11692,4,0) -> Vermelho | AQ72: =VLOOKUP(Tabela32[[#This Row],[Serventia]],'Autos Paralisados + 30'!$A$6:$N$1141,13,0) -> 1633 | AR72: =VLOOKUP(Tabela32[[#This Row],[Serventia]],'Definição das cores'!$B$11698:$E$12423,4,0) -> Vermelho | AS72: =VLOOKUP(Tabela32[[#This Row],[Serventia]],'Autos Paralisados + 90'!$A$6:$N$1141,13,0) -> 66 | AT72: =VLOOKUP(Tabela32[[#This Row],[Serventia]],'Definição das cores'!$B$12428:$E$13155,4,0) -> Verde | AU72: =Tabela32[[#This Row],[ 90 (Último Mês)2]]/Tabela32[[#This Row],[Último Mês]] -> 0.01634877384 | AV72: =VLOOKUP(Tabela32[[#This Row],[Serventia]],'Definição das cores'!$B$3664:$E$4389,4,0) -> Verde | AW72: =IFERROR(Tabela32[[#This Row],[30 (Último Mês)]]/Tabela32[[#This Row],[ 30 (Último Mês)]],"-") -> 0.001224739743 | AX72: =VLOOKUP(Tabela32[[#This Row],[Serventia]],'Definição das cores'!$B$2932:$E$3660,4,0) -> Verde | AY72: =VLOOKUP(Tabela32[[#This Row],[Serventia]],Lotação!$A$12:$D$2844,4,0) ->  | AZ72: =IFERROR(ROUND(VLOOKUP(Tabela32[[#This Row],[Serventia]],Tabela8[],2,0),0),"N/A") -> 6 | BA72: =IF(Tabela32[[#This Row],[Ideal]]="N/A","N/A",IF(Tabela32[[#This Row],[Atual]]>=Tabela32[[#This Row],[Ideal]],"Não",IF(Tabela32[[#This Row],[Atual]]<Tabela32[[#This Row],[Ideal]],"Sim"))) ->  | BB72: =VLOOKUP(Tabela32[[#This Row],[Serventia]],Tabela4[],8,0) -> Não | BC72: =VLOOKUP(Tabela32[[#This Row],[Serventia]],Tabela5[],15,0) ->  | BD72: =VLOOKUP(Tabela32[[#This Row],[Serventia]],'Definição das cores'!$A$13890:$J$14735,9,0) -> 4/6 | BE72: =VLOOKUP(Tabela32[[#This Row],[Serventia]],'Definição das cores'!$A$13890:$J$14735,10,0) -> 2/6
A73: CAPITAL 44 VARA CIVEL | B73: =VLOOKUP(Tabela32[[#This Row],[Serventia]],'Base_Critérios de Consulta'!$B$3:$D$868,3,0) -> 1 | C73: =VLOOKUP(Tabela32[[#This Row],[Serventia]],'Base_Critérios de Consulta'!$B$3:$G$868,6,0) -> Não | D73: =IFERROR(VLOOKUP(Tabela32[[#This Row],[Serventia]],'Acervo Geral - Físico'!$A$6:$N$1098,14,0),"-") -> 16.58333333 | E73: =VLOOKUP(Tabela32[[#This Row],[Serventia]],'Acervo Geral - Eletrônico'!$A$6:$N$1030,14,0) -> 4012.333333 | F73: =VLOOKUP(Tabela32[[#This Row],[Serventia]],'Acervo Geral - TOTAL'!$A$6:$N$1141,14,0) -> 4028.916667 | G73: =VLOOKUP(Tabela32[[#This Row],[Serventia]],'Definição das cores'!$B$13160:$E$13887,4,0) -> Vermelho | H73: =VLOOKUP(Tabela32[[#This Row],[Serventia]],'Acervo Geral - TOTAL'!$A$6:$M$1141,13,0) -> 3942 | I73: =VLOOKUP(Tabela32[[#This Row],[Serventia]],'Definição das cores'!$B$5:$E$731,4,0) -> Vermelho | J73: =(Tabela32[[#This Row],[Último Mês (II)]]/Tabela32[[#This Row],[Média no período (I)]])-1 -> -0.02157321033 | K73: =VLOOKUP(Tabela32[[#This Row],[Serventia]],'Definição das cores'!$A$737:$C$1462,3,0) -> Verde | L73: =VLOOKUP(Tabela32[[#This Row],[Serventia]],'Acervo Físico - TOTAL'!$A$6:$N$1141,14,0) -> 3986 | M73: =VLOOKUP(Tabela32[[#This Row],[Serventia]],'Acervo Físico - TOTAL'!$A$6:$N$1141,13,0) -> 3871 | N73: =Tabela32[[#This Row],[Último Mês (II)]]-Tabela32[[#This Row],[Último Mês]] -> 71 | O73: =VLOOKUP(Tabela32[[#This Row],[Serventia]],Arquivados!$A$6:$N$1141,14,0) -> 27.16666667 | P73: =VLOOKUP(Tabela32[[#This Row],[Serventia]],'Tombados Geral '!$A$6:$N$1141,14,0) -> 80.91666667 | Q73: =VLOOKUP(Tabela32[[#This Row],[Serventia]],Tabela6[],3,0) -> 0.9153737659 | R73: =VLOOKUP(Tabela32[[#This Row],[Serventia]],'Meta 1 - 2022'!$B$2:$D$859,3,0) -> 0 | S73: =VLOOKUP(Tabela32[[#This Row],[Serventia]],'Definição das cores'!$B$4393:$E$5113,4,0) -> Verde | T73: =VLOOKUP(Tabela32[[#This Row],[Serventia]],IAD!$A$10:$N$940,14,0) -> 1.056285771 | U73: =VLOOKUP(Tabela32[[#This Row],[Serventia]],'Definição das cores'!$B$1468:$E$2190,4,0) -> Verde | V73: =VLOOKUP(Tabela32[[#This Row],[Serventia]],IPS!$A$10:$N$940,14,0) ->  | W73: =VLOOKUP(Tabela32[[#This Row],[Serventia]],'Definição das cores'!$B$5124:$E$5846,4,0) ->  | X73: =VLOOKUP(Tabela32[[#This Row],[Serventia]],'Taxa De Congestionamento'!$A$3:$N$884,14,0) -> 0.8729487755 | Y73: =VLOOKUP(Tabela32[[#This Row],[Serventia]],'Definição das cores'!$B$2202:$E$2922,4,0) -> Vermelho | Z73: =Tabela32[[#This Row],[Arq (Média)]]/Tabela32[[#This Row],[Média no período]] -> 0.00681552099 | AA73: =VLOOKUP(Tabela32[[#This Row],[Serventia]],'Definição das cores'!$B$5856:$E$6582,4,0) -> Vermelho | AB73: =VLOOKUP(Tabela32[[#This Row],[Serventia]],'Aud. Real.'!$A$6:$N$1141,14,0) -> 1.333333333 | AC73: =VLOOKUP(Tabela32[[#This Row],[Serventia]],Conclusão!$A$6:$N$1141,14,0) -> 917.3333333 | AD73: =VLOOKUP(Tabela32[[#This Row],[Serventia]],'Definição das cores'!$B$6587:$E$7312,4,0) -> Vermelho | AE73: =VLOOKUP(Tabela32[[#This Row],[Serventia]],'Autos Conclusos + 30 '!$A$6:$N$1141,14,0) -> 2.25 | AF73: =VLOOKUP(Tabela32[[#This Row],[Serventia]],'Definição das cores'!$B$7317:$E$8041,4,0) -> Verde | AG73: =VLOOKUP(Tabela32[[#This Row],[Serventia]],'Autos Conclusos + 100'!$A$6:$N$1141,14,0) -> 0.5 | AH73: =VLOOKUP(Tabela32[[#This Row],[Serventia]],'Definição das cores'!$B$8046:$E$8771,4,0) -> Verde | AI73: =VLOOKUP(Tabela32[[#This Row],[Serventia]],'Autos Conclusos + 30 '!$A$5:$N$1141,13,0) -> 2 | AJ73: =VLOOKUP(Tabela32[[#This Row],[Serventia]],'Definição das cores'!$B$8046:$E$8771,4,0) -> Verde | AK73: =VLOOKUP(Tabela32[[#This Row],[Serventia]],'Autos Conclusos + 100'!$A$5:$N$1141,13,0) -> 1 | AL73: =VLOOKUP(Tabela32[[#This Row],[Serventia]],'Definição das cores'!$B$9506:$E$10231,4,0) -> Verde | AM73: =VLOOKUP(Tabela32[[#This Row],[Serventia]],'Autos Paralisados + 30'!$A$6:$N$1141,14,0) -> 1581.083333 | AN73: =VLOOKUP(Tabela32[[#This Row],[Serventia]],'Definição das cores'!$B$10236:$E$10961,4,0) -> Vermelho | AO73: =VLOOKUP(Tabela32[[#This Row],[Serventia]],'Autos Paralisados + 90'!$A$6:$N$1141,14,0) -> 350.25 | AP73: =VLOOKUP(Tabela32[[#This Row],[Serventia]],'Definição das cores'!$B$10967:$E$11692,4,0) -> Vermelho | AQ73: =VLOOKUP(Tabela32[[#This Row],[Serventia]],'Autos Paralisados + 30'!$A$6:$N$1141,13,0) -> 1168 | AR73: =VLOOKUP(Tabela32[[#This Row],[Serventia]],'Definição das cores'!$B$11698:$E$12423,4,0) -> Vermelho | AS73: =VLOOKUP(Tabela32[[#This Row],[Serventia]],'Autos Paralisados + 90'!$A$6:$N$1141,13,0) -> 9 | AT73: =VLOOKUP(Tabela32[[#This Row],[Serventia]],'Definição das cores'!$B$12428:$E$13155,4,0) -> Verde | AU73: =Tabela32[[#This Row],[ 90 (Último Mês)2]]/Tabela32[[#This Row],[Último Mês]] -> 0.002324980625 | AV73: =VLOOKUP(Tabela32[[#This Row],[Serventia]],'Definição das cores'!$B$3664:$E$4389,4,0) -> Verde | AW73: =IFERROR(Tabela32[[#This Row],[30 (Último Mês)]]/Tabela32[[#This Row],[ 30 (Último Mês)]],"-") -> 0.001712328767 | AX73: =VLOOKUP(Tabela32[[#This Row],[Serventia]],'Definição das cores'!$B$2932:$E$3660,4,0) -> Verde | AY73: =VLOOKUP(Tabela32[[#This Row],[Serventia]],Lotação!$A$12:$D$2844,4,0) ->  | AZ73: =IFERROR(ROUND(VLOOKUP(Tabela32[[#This Row],[Serventia]],Tabela8[],2,0),0),"N/A") -> 6 | BA73: =IF(Tabela32[[#This Row],[Ideal]]="N/A","N/A",IF(Tabela32[[#This Row],[Atual]]>=Tabela32[[#This Row],[Ideal]],"Não",IF(Tabela32[[#This Row],[Atual]]<Tabela32[[#This Row],[Ideal]],"Sim"))) ->  | BB73: =VLOOKUP(Tabela32[[#This Row],[Serventia]],Tabela4[],8,0) -> Não | BC73: =VLOOKUP(Tabela32[[#This Row],[Serventia]],Tabela5[],15,0) ->  | BD73: =VLOOKUP(Tabela32[[#This Row],[Serventia]],'Definição das cores'!$A$13890:$J$14735,9,0) -> 4/6 | BE73: =VLOOKUP(Tabela32[[#This Row],[Serventia]],'Definição das cores'!$A$13890:$J$14735,10,0) -> 2/6
A74: CAPITAL 45 VARA CIVEL | B74: =VLOOKUP(Tabela32[[#This Row],[Serventia]],'Base_Critérios de Consulta'!$B$3:$D$868,3,0) -> 1 | C74: =VLOOKUP(Tabela32[[#This Row],[Serventia]],'Base_Critérios de Consulta'!$B$3:$G$868,6,0) -> Não | D74: =IFERROR(VLOOKUP(Tabela32[[#This Row],[Serventia]],'Acervo Geral - Físico'!$A$6:$N$1098,14,0),"-") -> 164.4166667 | E74: =VLOOKUP(Tabela32[[#This Row],[Serventia]],'Acervo Geral - Eletrônico'!$A$6:$N$1030,14,0) -> 4597.666667 | F74: =VLOOKUP(Tabela32[[#This Row],[Serventia]],'Acervo Geral - TOTAL'!$A$6:$N$1141,14,0) -> 4762.083333 | G74: =VLOOKUP(Tabela32[[#This Row],[Serventia]],'Definição das cores'!$B$13160:$E$13887,4,0) -> Vermelho | H74: =VLOOKUP(Tabela32[[#This Row],[Serventia]],'Acervo Geral - TOTAL'!$A$6:$M$1141,13,0) -> 4531 | I74: =VLOOKUP(Tabela32[[#This Row],[Serventia]],'Definição das cores'!$B$5:$E$731,4,0) -> Vermelho | J74: =(Tabela32[[#This Row],[Último Mês (II)]]/Tabela32[[#This Row],[Média no período (I)]])-1 -> -0.04852568029 | K74: =VLOOKUP(Tabela32[[#This Row],[Serventia]],'Definição das cores'!$A$737:$C$1462,3,0) -> Verde | L74: =VLOOKUP(Tabela32[[#This Row],[Serventia]],'Acervo Físico - TOTAL'!$A$6:$N$1141,14,0) -> 4542.75 | M74: =VLOOKUP(Tabela32[[#This Row],[Serventia]],'Acervo Físico - TOTAL'!$A$6:$N$1141,13,0) -> 4423 | N74: =Tabela32[[#This Row],[Último Mês (II)]]-Tabela32[[#This Row],[Último Mês]] -> 108 | O74: =VLOOKUP(Tabela32[[#This Row],[Serventia]],Arquivados!$A$6:$N$1141,14,0) -> 54.16666667 | P74: =VLOOKUP(Tabela32[[#This Row],[Serventia]],'Tombados Geral '!$A$6:$N$1141,14,0) -> 79.25 | Q74: =VLOOKUP(Tabela32[[#This Row],[Serventia]],Tabela6[],3,0) -> 0.8461538462 | R74: =VLOOKUP(Tabela32[[#This Row],[Serventia]],'Meta 1 - 2022'!$B$2:$D$859,3,0) -> 0 | S74: =VLOOKUP(Tabela32[[#This Row],[Serventia]],'Definição das cores'!$B$4393:$E$5113,4,0) -> Verde | T74: =VLOOKUP(Tabela32[[#This Row],[Serventia]],IAD!$A$10:$N$940,14,0) -> 1.514483281 | U74: =VLOOKUP(Tabela32[[#This Row],[Serventia]],'Definição das cores'!$B$1468:$E$2190,4,0) -> Verde | V74: =VLOOKUP(Tabela32[[#This Row],[Serventia]],IPS!$A$10:$N$940,14,0) ->  | W74: =VLOOKUP(Tabela32[[#This Row],[Serventia]],'Definição das cores'!$B$5124:$E$5846,4,0) ->  | X74: =VLOOKUP(Tabela32[[#This Row],[Serventia]],'Taxa De Congestionamento'!$A$3:$N$884,14,0) -> 0.7787420947 | Y74: =VLOOKUP(Tabela32[[#This Row],[Serventia]],'Definição das cores'!$B$2202:$E$2922,4,0) -> Vermelho | Z74: =Tabela32[[#This Row],[Arq (Média)]]/Tabela32[[#This Row],[Média no período]] -> 0.0119237613 | AA74: =VLOOKUP(Tabela32[[#This Row],[Serventia]],'Definição das cores'!$B$5856:$E$6582,4,0) -> Vermelho | AB74: =VLOOKUP(Tabela32[[#This Row],[Serventia]],'Aud. Real.'!$A$6:$N$1141,14,0) -> 5.25 | AC74: =VLOOKUP(Tabela32[[#This Row],[Serventia]],Conclusão!$A$6:$N$1141,14,0) -> 1251.333333 | AD74: =VLOOKUP(Tabela32[[#This Row],[Serventia]],'Definição das cores'!$B$6587:$E$7312,4,0) -> Verde | AE74: =VLOOKUP(Tabela32[[#This Row],[Serventia]],'Autos Conclusos + 30 '!$A$6:$N$1141,14,0) -> 9.5 | AF74: =VLOOKUP(Tabela32[[#This Row],[Serventia]],'Definição das cores'!$B$7317:$E$8041,4,0) -> Verde | AG74: =VLOOKUP(Tabela32[[#This Row],[Serventia]],'Autos Conclusos + 100'!$A$6:$N$1141,14,0) -> 0 | AH74: =VLOOKUP(Tabela32[[#This Row],[Serventia]],'Definição das cores'!$B$8046:$E$8771,4,0) -> Verde | AI74: =VLOOKUP(Tabela32[[#This Row],[Serventia]],'Autos Conclusos + 30 '!$A$5:$N$1141,13,0) -> 2 | AJ74: =VLOOKUP(Tabela32[[#This Row],[Serventia]],'Definição das cores'!$B$8046:$E$8771,4,0) -> Verde | AK74: =VLOOKUP(Tabela32[[#This Row],[Serventia]],'Autos Conclusos + 100'!$A$5:$N$1141,13,0) -> 0 | AL74: =VLOOKUP(Tabela32[[#This Row],[Serventia]],'Definição das cores'!$B$9506:$E$10231,4,0) -> Verde | AM74: =VLOOKUP(Tabela32[[#This Row],[Serventia]],'Autos Paralisados + 30'!$A$6:$N$1141,14,0) -> 1646.25 | AN74: =VLOOKUP(Tabela32[[#This Row],[Serventia]],'Definição das cores'!$B$10236:$E$10961,4,0) -> Vermelho | AO74: =VLOOKUP(Tabela32[[#This Row],[Serventia]],'Autos Paralisados + 90'!$A$6:$N$1141,14,0) -> 431.9166667 | AP74: =VLOOKUP(Tabela32[[#This Row],[Serventia]],'Definição das cores'!$B$10967:$E$11692,4,0) -> Vermelho | AQ74: =VLOOKUP(Tabela32[[#This Row],[Serventia]],'Autos Paralisados + 30'!$A$6:$N$1141,13,0) -> 851 | AR74: =VLOOKUP(Tabela32[[#This Row],[Serventia]],'Definição das cores'!$B$11698:$E$12423,4,0) -> Verde | AS74: =VLOOKUP(Tabela32[[#This Row],[Serventia]],'Autos Paralisados + 90'!$A$6:$N$1141,13,0) -> 97 | AT74: =VLOOKUP(Tabela32[[#This Row],[Serventia]],'Definição das cores'!$B$12428:$E$13155,4,0) -> Verde | AU74: =Tabela32[[#This Row],[ 90 (Último Mês)2]]/Tabela32[[#This Row],[Último Mês]] -> 0.02193081619 | AV74: =VLOOKUP(Tabela32[[#This Row],[Serventia]],'Definição das cores'!$B$3664:$E$4389,4,0) -> Verde | AW74: =IFERROR(Tabela32[[#This Row],[30 (Último Mês)]]/Tabela32[[#This Row],[ 30 (Último Mês)]],"-") -> 0.002350176263 | AX74: =VLOOKUP(Tabela32[[#This Row],[Serventia]],'Definição das cores'!$B$2932:$E$3660,4,0) -> Verde | AY74: =VLOOKUP(Tabela32[[#This Row],[Serventia]],Lotação!$A$12:$D$2844,4,0) ->  | AZ74: =IFERROR(ROUND(VLOOKUP(Tabela32[[#This Row],[Serventia]],Tabela8[],2,0),0),"N/A") -> 6 | BA74: =IF(Tabela32[[#This Row],[Ideal]]="N/A","N/A",IF(Tabela32[[#This Row],[Atual]]>=Tabela32[[#This Row],[Ideal]],"Não",IF(Tabela32[[#This Row],[Atual]]<Tabela32[[#This Row],[Ideal]],"Sim"))) ->  | BB74: =VLOOKUP(Tabela32[[#This Row],[Serventia]],Tabela4[],8,0) -> Não | BC74: =VLOOKUP(Tabela32[[#This Row],[Serventia]],Tabela5[],15,0) ->  | BD74: =VLOOKUP(Tabela32[[#This Row],[Serventia]],'Definição das cores'!$A$13890:$J$14735,9,0) -> 4/6 | BE74: =VLOOKUP(Tabela32[[#This Row],[Serventia]],'Definição das cores'!$A$13890:$J$14735,10,0) -> 2/6
A75: CAPITAL 46 VARA CIVEL | B75: =VLOOKUP(Tabela32[[#This Row],[Serventia]],'Base_Critérios de Consulta'!$B$3:$D$868,3,0) -> 1 | C75: =VLOOKUP(Tabela32[[#This Row],[Serventia]],'Base_Critérios de Consulta'!$B$3:$G$868,6,0) -> Não | D75: =IFERROR(VLOOKUP(Tabela32[[#This Row],[Serventia]],'Acervo Geral - Físico'!$A$6:$N$1098,14,0),"-") -> 10.08333333 | E75: =VLOOKUP(Tabela32[[#This Row],[Serventia]],'Acervo Geral - Eletrônico'!$A$6:$N$1030,14,0) -> 1680.833333 | F75: =VLOOKUP(Tabela32[[#This Row],[Serventia]],'Acervo Geral - TOTAL'!$A$6:$N$1141,14,0) -> 1690.916667 | G75: =VLOOKUP(Tabela32[[#This Row],[Serventia]],'Definição das cores'!$B$13160:$E$13887,4,0) -> Verde | H75: =VLOOKUP(Tabela32[[#This Row],[Serventia]],'Acervo Geral - TOTAL'!$A$6:$M$1141,13,0) -> 1628 | I75: =VLOOKUP(Tabela32[[#This Row],[Serventia]],'Definição das cores'!$B$5:$E$731,4,0) -> Verde | J75: =(Tabela32[[#This Row],[Último Mês (II)]]/Tabela32[[#This Row],[Média no período (I)]])-1 -> -0.03720861466 | K75: =VLOOKUP(Tabela32[[#This Row],[Serventia]],'Definição das cores'!$A$737:$C$1462,3,0) -> Verde | L75: =VLOOKUP(Tabela32[[#This Row],[Serventia]],'Acervo Físico - TOTAL'!$A$6:$N$1141,14,0) -> 1678.416667 | M75: =VLOOKUP(Tabela32[[#This Row],[Serventia]],'Acervo Físico - TOTAL'!$A$6:$N$1141,13,0) -> 1618 | N75: =Tabela32[[#This Row],[Último Mês (II)]]-Tabela32[[#This Row],[Último Mês]] -> 10 | O75: =VLOOKUP(Tabela32[[#This Row],[Serventia]],Arquivados!$A$6:$N$1141,14,0) -> 45 | P75: =VLOOKUP(Tabela32[[#This Row],[Serventia]],'Tombados Geral '!$A$6:$N$1141,14,0) -> 79.83333333 | Q75: =VLOOKUP(Tabela32[[#This Row],[Serventia]],Tabela6[],3,0) -> 1.012158055 | R75: =VLOOKUP(Tabela32[[#This Row],[Serventia]],'Meta 1 - 2022'!$B$2:$D$859,3,0) -> 0 | S75: =VLOOKUP(Tabela32[[#This Row],[Serventia]],'Definição das cores'!$B$4393:$E$5113,4,0) -> Verde | T75: =VLOOKUP(Tabela32[[#This Row],[Serventia]],IAD!$A$10:$N$940,14,0) -> 1.227798949 | U75: =VLOOKUP(Tabela32[[#This Row],[Serventia]],'Definição das cores'!$B$1468:$E$2190,4,0) -> Verde | V75: =VLOOKUP(Tabela32[[#This Row],[Serventia]],IPS!$A$10:$N$940,14,0) ->  | W75: =VLOOKUP(Tabela32[[#This Row],[Serventia]],'Definição das cores'!$B$5124:$E$5846,4,0) ->  | X75: =VLOOKUP(Tabela32[[#This Row],[Serventia]],'Taxa De Congestionamento'!$A$3:$N$884,14,0) -> 0.6146704109 | Y75: =VLOOKUP(Tabela32[[#This Row],[Serventia]],'Definição das cores'!$B$2202:$E$2922,4,0) -> Verde | Z75: =Tabela32[[#This Row],[Arq (Média)]]/Tabela32[[#This Row],[Média no período]] -> 0.02681098257 | AA75: =VLOOKUP(Tabela32[[#This Row],[Serventia]],'Definição das cores'!$B$5856:$E$6582,4,0) -> Verde | AB75: =VLOOKUP(Tabela32[[#This Row],[Serventia]],'Aud. Real.'!$A$6:$N$1141,14,0) -> 4.916666667 | AC75: =VLOOKUP(Tabela32[[#This Row],[Serventia]],Conclusão!$A$6:$N$1141,14,0) -> 1026.583333 | AD75: =VLOOKUP(Tabela32[[#This Row],[Serventia]],'Definição das cores'!$B$6587:$E$7312,4,0) -> Verde | AE75: =VLOOKUP(Tabela32[[#This Row],[Serventia]],'Autos Conclusos + 30 '!$A$6:$N$1141,14,0) -> 0.75 | AF75: =VLOOKUP(Tabela32[[#This Row],[Serventia]],'Definição das cores'!$B$7317:$E$8041,4,0) -> Verde | AG75: =VLOOKUP(Tabela32[[#This Row],[Serventia]],'Autos Conclusos + 100'!$A$6:$N$1141,14,0) -> 0 | AH75: =VLOOKUP(Tabela32[[#This Row],[Serventia]],'Definição das cores'!$B$8046:$E$8771,4,0) -> Verde | AI75: =VLOOKUP(Tabela32[[#This Row],[Serventia]],'Autos Conclusos + 30 '!$A$5:$N$1141,13,0) -> 2 | AJ75: =VLOOKUP(Tabela32[[#This Row],[Serventia]],'Definição das cores'!$B$8046:$E$8771,4,0) -> Verde | AK75: =VLOOKUP(Tabela32[[#This Row],[Serventia]],'Autos Conclusos + 100'!$A$5:$N$1141,13,0) -> 0 | AL75: =VLOOKUP(Tabela32[[#This Row],[Serventia]],'Definição das cores'!$B$9506:$E$10231,4,0) -> Verde | AM75: =VLOOKUP(Tabela32[[#This Row],[Serventia]],'Autos Paralisados + 30'!$A$6:$N$1141,14,0) -> 287.75 | AN75: =VLOOKUP(Tabela32[[#This Row],[Serventia]],'Definição das cores'!$B$10236:$E$10961,4,0) -> Verde | AO75: =VLOOKUP(Tabela32[[#This Row],[Serventia]],'Autos Paralisados + 90'!$A$6:$N$1141,14,0) -> 16.91666667 | AP75: =VLOOKUP(Tabela32[[#This Row],[Serventia]],'Definição das cores'!$B$10967:$E$11692,4,0) -> Verde | AQ75: =VLOOKUP(Tabela32[[#This Row],[Serventia]],'Autos Paralisados + 30'!$A$6:$N$1141,13,0) -> 188 | AR75: =VLOOKUP(Tabela32[[#This Row],[Serventia]],'Definição das cores'!$B$11698:$E$12423,4,0) -> Verde | AS75: =VLOOKUP(Tabela32[[#This Row],[Serventia]],'Autos Paralisados + 90'!$A$6:$N$1141,13,0) -> 22 | AT75: =VLOOKUP(Tabela32[[#This Row],[Serventia]],'Definição das cores'!$B$12428:$E$13155,4,0) -> Verde | AU75: =Tabela32[[#This Row],[ 90 (Último Mês)2]]/Tabela32[[#This Row],[Último Mês]] -> 0.01359703337 | AV75: =VLOOKUP(Tabela32[[#This Row],[Serventia]],'Definição das cores'!$B$3664:$E$4389,4,0) -> Verde | AW75: =IFERROR(Tabela32[[#This Row],[30 (Último Mês)]]/Tabela32[[#This Row],[ 30 (Último Mês)]],"-") -> 0.01063829787 | AX75: =VLOOKUP(Tabela32[[#This Row],[Serventia]],'Definição das cores'!$B$2932:$E$3660,4,0) -> Verde | AY75: =VLOOKUP(Tabela32[[#This Row],[Serventia]],Lotação!$A$12:$D$2844,4,0) ->  | AZ75: =IFERROR(ROUND(VLOOKUP(Tabela32[[#This Row],[Serventia]],Tabela8[],2,0),0),"N/A") -> 6 | BA75: =IF(Tabela32[[#This Row],[Ideal]]="N/A","N/A",IF(Tabela32[[#This Row],[Atual]]>=Tabela32[[#This Row],[Ideal]],"Não",IF(Tabela32[[#This Row],[Atual]]<Tabela32[[#This Row],[Ideal]],"Sim"))) ->  | BB75: =VLOOKUP(Tabela32[[#This Row],[Serventia]],Tabela4[],8,0) -> Não | BC75: =VLOOKUP(Tabela32[[#This Row],[Serventia]],Tabela5[],15,0) ->  | BD75: =VLOOKUP(Tabela32[[#This Row],[Serventia]],'Definição das cores'!$A$13890:$J$14735,9,0) -> 6/6 | BE75: =VLOOKUP(Tabela32[[#This Row],[Serventia]],'Definição das cores'!$A$13890:$J$14735,10,0) -> 0/6
